Workbook

Sheet Intro Page
B2: Clean Power Plan Goal Calculation Viewer
H3: Introduction | AS3: References
I4: This tool illustrates the calculation of category-specific performance rates[1] and state emission rate goals and mass goals, under the Clean Power Plan.[2] For detailed explanations of these data and the calculations used to determine the category-specific performance rates and state goals, please see the CO2 Emission Performance Rate and Goal Computation Technical Support Document (TSD). Additionally, for further information on EPA’s technical evaluation of each GHG reducing measure, please see the GHG Mitigation Measures TSD. In EPA’s technical evaluation, it assessed the cost and potential of each GHG emissions reducing measure identified.[3] EPA relied on a similar building block structure as proposed, with revisions based on comments. For the final CPP, the revised building block levels were used to calculate category-specific performance rates. The category-specific performance rates were then used to calculate state rate goals and mass goals. The assumptions used to arrive at each state’s goal are not prescriptive of necessary actions that a state must take. This tool is not intended to be a compliance resource. As described in the CPP, states have flexibility to choose what goes into their plan (i.e., how and when to get the necessary reductions), provided the goals are met in the established timeframe. Please ensure that macros are enabled and then click on the "Calculation Overview" button in the upper left corner. The "Calculation Overview" button will always appear at the top left. Buttons show detailed calculations or other information, when applicable, appear in the lower right corner | AT4: Section V of the preamble discusses the the Best System of Emission Reduction (BSER) and associated building blocks Section VI of the preamble discusses the category-specific performance rates more broadly along with some of the changes made between proposal and final based on comment. Section VII of the preamble describes the expression of the category-specific performance standards through a state goal metric reflecting likely covered fossil sources in a state. The Greenhouse Gas (GHG) Mitigation Measures TSD for CPP Final Rule explains the technical basis for the development of the Best System of Emission Reductions (BSER) that inform the category-specific performance rates and the subsequent state goals. The CO2 Emission Performance Rate and Goal Computation TSD for CPP Final Rule provides detailed explanation of the data and the BSER-based calculations used to determine the category-specific performance rates and state goals. - Appendix 1 contains the underlying 2012 unit-level baseline inventory and data - Appendix 4 contains the computation of the category-specific performance rates (interim and final) - Appendix 5 contains the computation of the state goals (interim and final) The New Source Complements TSD for CPP Final Rule provides information the new source complement to the mass goals for states that choose to include new sources in their plans.
H22: 1. The only natural gas fired EGUs currently considered affected units under the 111(d) applicability criteria are NGCC units capable of supplying more than 25 MW of electrical output to the grid. The data and rates for these units represents all emissions and MWh output associated with both the combustion turbines as well as all associated heat recovery steam generating units. 2. Values in tables are rounded for illustrative purposes. Actual calculations with all significant digits can be found in Appendix 1-5. 3. GHG Mitigation Measures TSD

Sheet Calculation Overview
B2: Clean Power Plan Goal Calculation Viewer
H3: CALCULATION OVERVIEW

Sheet SCSR Overview
B2: Clean Power Plan Goal Calculation Viewer
H3: Overview of Source Category Rate Calculations | AS3: Map of Interconnections
H5: The Source Category Specific Rates are calculated using the following process, which is broken into 8 steps and described in more detail in the following worksheets:
I7: -Aggregate baseline data to 3 interconnects [steps 1-3]. (click button at lower right corner for a map) -Apply building blocks [steps 4-6] -Calculate source category rates (fossil steam and NGCC) for each year in each region [step 7] -Select the most achievable of the three regional rates for each source category for each year. This becomes the rate applied to ALL units in ALL regions [step 8]
H11: Note: The steps and their resulting data are interim stages that are not used for any other purpose and do not have independent meaning. They are only used to calculate the ultimate Source Category Specific Rates that are applicable under the Clean Power Plan. Additionally, as an example, this tool illustrates calculations for the Eastern Interconnection for year 2030 . For 2030, this is also the most achievable rate for each source category, which is applied to all units in all regions.
H22: 1. See preamble section V.A for a discussion of interconnects and source-categories 2. See preamble section VI for explanation of how source specific CO2 emission performance rates were developed
B55: =LEFT(D55,2) -> AK | C55: =RIGHT(D55,6) -> Alaska | D55: AK-Alaska
B56: AL | C56: =RIGHT(D56,7) -> Eastern | D56: AL-Eastern
B57: AR | C57: Eastern | D57: AR-Eastern
B58: AZ | C58: Western | D58: AZ-Western
B59: CA | C59: Western | D59: CA-Western
B60: CO | C60: Western | D60: CO-Western
B61: CT | C61: Eastern | D61: CT-Eastern
B62: DE | C62: Eastern | D62: DE-Eastern
B63: FL | C63: Eastern | D63: FL-Eastern
B64: Fort Mojave | C64: Western | D64: Fort Mojave-Western
B65: =LEFT(D65,2) -> GA | C65: Eastern | D65: GA-Eastern
B66: HI | C66: =RIGHT(D66,6) -> Hawaii | D66: HI-Hawaii
B67: IA | C67: =RIGHT(D67,7) -> Eastern | D67: IA-Eastern
B68: ID | C68: Western | D68: ID-Western
B69: IL | C69: Eastern | D69: IL-Eastern
B70: IN | C70: Eastern | D70: IN-Eastern
B71: KS | C71: Eastern | D71: KS-Eastern
B72: KY | C72: Eastern | D72: KY-Eastern
B73: LA | C73: Eastern | D73: LA-Eastern
B74: MA | C74: Eastern | D74: MA-Eastern
B75: MD | C75: Eastern | D75: MD-Eastern
B76: ME | C76: Eastern | D76: ME-Eastern
B77: MI | C77: Eastern | D77: MI-Eastern
B78: MN | C78: Eastern | D78: MN-Eastern
B79: MO | C79: Eastern | D79: MO-Eastern
B80: MS | C80: Eastern | D80: MS-Eastern
B81: MT | C81: Eastern | D81: MT-Eastern
B82: MT | C82: Western | D82: MT-Western
B83: Navajo | C83: Western | D83: Navajo-Western
B84: =LEFT(D84,2) -> NC | C84: Eastern | D84: NC-Eastern
B85: ND | C85: Eastern | D85: ND-Eastern
B86: NE | C86: Eastern | D86: NE-Eastern
B87: NH | C87: Eastern | D87: NH-Eastern
B88: NJ | C88: Eastern | D88: NJ-Eastern
B89: NM | C89: Eastern | D89: NM-Eastern
B90: NM | C90: Western | D90: NM-Western
B91: NV | C91: Western | D91: NV-Western
B92: NY | C92: Eastern | D92: NY-Eastern
B93: OH | C93: Eastern | D93: OH-Eastern
B94: OK | C94: Eastern | D94: OK-Eastern
B95: OR | C95: Western | D95: OR-Western
B96: PA | C96: Eastern | D96: PA-Eastern
B97: RI | C97: Eastern | D97: RI-Eastern
B98: SC | C98: Eastern | D98: SC-Eastern
B99: SD | C99: Eastern | D99: SD-Eastern
B100: TN | C100: Eastern | D100: TN-Eastern
B101: TX | C101: Eastern | D101: TX-Eastern
B102: TX | C102: =RIGHT(D102,5) -> ERCOT | D102: TX-ERCOT
B103: TX | C103: =RIGHT(D103,7) -> Western | D103: TX-Western
B104: UTE | C104: Western | D104: Ute-Western
B105: =LEFT(D105,2) -> UT | C105: Western | D105: UT-Western
B106: VA | C106: Eastern | D106: VA-Eastern
B107: WA | C107: Western | D107: WA-Western
B108: WI | C108: Eastern | D108: WI-Eastern
B109: WV | C109: Eastern | D109: WV-Eastern
B110: WY | C110: Western | D110: WY-Western

Sheet SCSR Step 1
B2: Clean Power Plan Goal Calculation Viewer
H3: Step 1: Compile 2012 unit-level data, aggregate to state-level, make baseline adjustments, and sum to regional baseline totals | AS3: Step 1: Compile 2012 unit-level data, aggregate to state-level, make baseline adjustments, and sum to regional baseline totals
H5: The EPA begins the category-specific performance rate calculation by starting with 2012 unit-level or plant-level emissions and generation reported by the facility.[1] EPA categorized each unit as coal steam, O/G steam, or NGCC.[2] It also flagged units that fit these technology categories and were considered to have commenced construction by 1/08/2014.[3] EPA then aggregated the data for the coal steam, O/G steam, and NGCC units (not including those flagged as under construction) to the state-level and calculated the state-specific emission rate for each technology category by dividing the total emissions by the total generation. This reflected the unadjusted 2012 data for units that commenced operation prior to 2012. For states that have likely affected EGUs in two different interconnections, EPA segmented these states into their relevant interconnect portions at this step (e.g., the Montana Eastern Interconnection and Montana Western Interconnection). EPA then added the expected incremental generation and emissions from likely affected units considered under construction. The resulting state-totals provided an adjusted 2012 baseline for all likely affected EGUs.[4] Complete data for these steps is available in appendices 1, 2 and 3. | AT5: The example below illustrates where EPA first identified 2012 data from likely affected units that were not under construction then identified under construction capacity, and then adjusted the baseline generation values up to reflect anticipated baseline generation values assuming a more representative full-year utilization for these units. The emissions for these state are also adjusted upwards by multiplying each state’s adjusted generation for a given technology by that technologies emission rate in that state. [1,2]
AT8: Choose a state/region to view its 2012 baseline calculations | BK8: AL-Eastern
AU10: 2012 Data for Affected Units[3] (excluding under construction) | BE10: Adjustment for Under Affected Construction Units | BO10: Adjusted Baseline
AU12: Coal Generation (TWh) | AZ12: NGCC Generation (TWh) | BE12: Under Construction Coal (MW) | BJ12: Under Construction NGCC (MW) | BO12: Coal Generation (TWh) | BT12: NGCC Generation (TWh)
AU14: =TEXT(IF(VLOOKUP($BK$8,'Appendix 3 - State-level Data'!$C$3:$AO$58,13,0)>0,VLOOKUP($BK$8,'Appendix 3 - State-level Data'!$C$3:$AO$58,13,0),VLOOKUP($BK$8,'Appendix 3 - State-level Data'!$C$3:$AO$58,2,0))/1000000,"###,##0.##0") -> 46.060 | AZ14: =TEXT(IF(VLOOKUP($BK$8,'Appendix 3 - State-level Data'!$C$3:$AO$58,14,0)>0,VLOOKUP($BK$8,'Appendix 3 - State-level Data'!$C$3:$AO$58,14,0),VLOOKUP($BK$8,'Appendix 3 - State-level Data'!$C$3:$AO$58,5,0))/1000000,"###,##0.##0") -> 53.492 | BE14: =TEXT(VLOOKUP($BK$8,'Appendix 3 - State-level Data'!$C$3:$AO$58,16,0)+VLOOKUP($BK$8,'Appendix 3 - State-level Data'!$C$3:$AO$58,17,0),"###,##0") -> 0 | BJ14: =TEXT(VLOOKUP($BK$8,'Appendix 3 - State-level Data'!$C$3:$AO$58,18,0)+VLOOKUP($BK$8,'Appendix 3 - State-level Data'!$C$3:$AO$58,19,0),"###,##0") -> 0 | BO14: =TEXT(VLOOKUP($BK$8,'Appendix 3 - State-level Data'!$C$3:$AO$58,20,0)/1000000,"###,##0.##0") -> 46.060 | BT14: =TEXT(VLOOKUP($BK$8,'Appendix 3 - State-level Data'!$C$3:$AO$58,23,0)/1000000,"###,##0.##0") -> 53.492
AT16: Adjusted Coal Baseline: | AZ16: =AU14&" TWh" -> 46.060 TWh | BD16: + | BE16: (8,784 hrs * | BH16: =BE14&" MW" -> 0 MW | BK16: =IF($BK$8="MS-Eastern","* 0.70 capacity factor) = ","* 0.60 capacity factor) = ") -> * 0.60 capacity factor) = | BQ16: =" "&BO14&" TWh" -> 46.060 TWh
AS18: Adjusted NCGG Baseline: | AZ18: =AZ14&" TWh" -> 53.492 TWh | BD18: + | BE18: (8,784 hrs * | BH18: =BJ14&" MW" -> 0 MW | BK18: * 0.55 capacity factor) = | BQ18: =" "&BT14&" TWh" -> 53.492 TWh
AS19: =IFERROR( IF(BK8="MS-Eastern",CONCATENATE("Note: The Kemper IGCC under construction unit receives the same assumptions it did at proposal of 70 percent capacity factor and an 800 lb/MWh emission rate that are"," relative to its unique circumstance as the only under construction facility with carbon capture and storage technology."), IF($BK$8="MN-Eastern","Note: The 2012 Coal Generation displayed for Minnesota is adjusted upward by 5,492,640 MWh to account for the Sherco unit being down in 2012.", "Note: The 2012 Fossil Generation displayed for "&VLOOKUP($BK$8,$AY$57:$BA$64,2,0)&" is adjusted upward by "&TEXT(VLOOKUP($BK$8,$AY$57:$BA$64,3,0),"##.#%")&" to adjust for expected future hydro generation levels.")), "") -> 
H22: 1. See Appendix 9 of the CO2 Emission Performance Rate and Goal Computation TSD for more detailed explanation 2. EPA only flagged units as one of these technology categories if it determined it to be of that technology class and likely affected EGU (e.g., greater than 25 MW). Units of this technology class, but determined to be not likely affected are categorized as exclude. 3. “Commence” and “construction” defined in 40 CFR 60.2 4. Adjustments accounting for significant unit-level outages, hydro outlier years, and under construction sources. See appendix 7 of the 3 of the CO2 Emission Performance Rate and Goal Computation TSD 5. See also: CO2 Emission Performance Rate and Goal Computation TSD | AS22: 1. For states that had under construction technology (e.g., NGCC), but no prior affected units of that generating technology in the state for which the benchmark emission rate could be identified, EPA used the average NGCC emission rate of 908 lbs/MWh identified for all states that had affected NGCC EGUs in 2012 (Appendix 3). 2. As described in the preamble section VI, EPA established a 55 percent capacity factor as representative of the incremental baseline impact of new NGCC units (60 percent for new coal) informed by a review of 2012 utilization patterns for units that recently commenced operation. 3. See Appendix 7 of the CO2 Emission Performance Rate and Goal Computation TSD for an explanation of Hydro and Unit-Outage adjustments
B55: =LEFT(D55,2) -> AL | C55: =RIGHT(D55,7) -> Eastern | D55: AL-Eastern | AY55: Hydro state adjustments
B56: AR | C56: Eastern | D56: AR-Eastern
B57: AZ | C57: Western | D57: AZ-Western
B58: CA | C58: Western | D58: CA-Western | AY58: ID-Western | AZ58: Idaho | BA58: 0.6522957243
B59: CO | C59: Western | D59: CO-Western | AY59: ME-Eastern | AZ59: Maine | BA59: 0.154
B60: CT | C60: Eastern | D60: CT-Eastern | AY60: MT-Eastern | AZ60: Montana | BA60: 0.06821854585
B61: DE | C61: Eastern | D61: DE-Eastern | AY61: MT-Western | AZ61: Montana | BA61: 0.06821854585
B62: FL | C62: Eastern | D62: FL-Eastern | AY62: OR-Western | AZ62: Oregon | BA62: 0.1805397629
B63: Fort Mojave | C63: Western | D63: Fort Mojave-Western | AY63: SD-Eastern | AZ63: South Dakota | BA63: 0.4150040733
B64: =LEFT(D64,2) -> GA | C64: Eastern | D64: GA-Eastern | AY64: WA-Western | AZ64: Washington | BA64: 1.070266623
B65: IA | C65: Eastern | D65: IA-Eastern
B66: ID | C66: Western | D66: ID-Western
B67: IL | C67: Eastern | D67: IL-Eastern | AY67: MN-Eastern | AZ67: Minnesota | BA67: 5492640
B68: IN | C68: Eastern | D68: IN-Eastern
B69: KS | C69: Eastern | D69: KS-Eastern
B70: KY | C70: Eastern | D70: KY-Eastern
B71: LA | C71: Eastern | D71: LA-Eastern
B72: MA | C72: Eastern | D72: MA-Eastern
B73: MD | C73: Eastern | D73: MD-Eastern
B74: ME | C74: Eastern | D74: ME-Eastern
B75: MI | C75: Eastern | D75: MI-Eastern
B76: MN | C76: Eastern | D76: MN-Eastern
B77: MO | C77: Eastern | D77: MO-Eastern
B78: MS | C78: Eastern | D78: MS-Eastern
B79: MT | C79: Eastern | D79: MT-Eastern
B80: MT | C80: Western | D80: MT-Western
B81: Navajo | C81: Western | D81: Navajo-Western
B82: =LEFT(D82,2) -> NC | C82: Eastern | D82: NC-Eastern
B83: ND | C83: Eastern | D83: ND-Eastern
B84: NE | C84: Eastern | D84: NE-Eastern
B85: NH | C85: Eastern | D85: NH-Eastern
B86: NJ | C86: Eastern | D86: NJ-Eastern
B87: NM | C87: Eastern | D87: NM-Eastern
B88: NM | C88: Western | D88: NM-Western
B89: NV | C89: Western | D89: NV-Western
B90: NY | C90: Eastern | D90: NY-Eastern
B91: OH | C91: Eastern | D91: OH-Eastern
B92: OK | C92: Eastern | D92: OK-Eastern
B93: OR | C93: Western | D93: OR-Western
B94: PA | C94: Eastern | D94: PA-Eastern
B95: RI | C95: Eastern | D95: RI-Eastern
B96: SC | C96: Eastern | D96: SC-Eastern
B97: SD | C97: Eastern | D97: SD-Eastern
B98: TN | C98: Eastern | D98: TN-Eastern
B99: TX | C99: Eastern | D99: TX-Eastern
B100: TX | C100: =RIGHT(D100,5) -> ERCOT | D100: TX-ERCOT
B101: TX | C101: =RIGHT(D101,7) -> Western | D101: TX-Western
B102: UTE | C102: Western | D102: Ute-Western
B103: =LEFT(D103,2) -> UT | C103: Western | D103: UT-Western
B104: VA | C104: Eastern | D104: VA-Eastern
B105: WA | C105: Western | D105: WA-Western
B106: WI | C106: Eastern | D106: WI-Eastern
B107: WV | C107: Eastern | D107: WV-Eastern
B108: WY | C108: Western | D108: WY-Western

Sheet SCSR Step 2
B2: Clean Power Plan Goal Calculation Viewer
H3: Step 2: Aggregate the adjusted historical emissions and generation to a regional level for coal steam, OG steam, and NGCC technology categories
I5: Once EPA has the adjusted state-level generation and emission for each state from step 1, it summed the state totals for all states in the same region to derive regional totals. EPA kept the technology-source categories separate at this stage to evaluate BSER impacts separately for each source category. These category-specific values become the basis for calculating the category-specific performance emission rates and subsequent state goals.
J11: Regional Baseline (2012)
N12: Coal | V12: NGCC | AD12: OG Steam
J13: Inter-connection | N13: Emissions (1000 short tons) | R13: Net Generation (GWh) | V13: Emissions (1000 short tons) | Z13: Net Generation (GWh) | AD13: Emissions (1000 short tons) | AH13: Net Generation (GWh)
J15: Eastern | N15: ='Appendix 4 - Category-spec calc'!B13/1000 -> 1356066.366 | R15: ='Appendix 4 - Category-spec calc'!C13/1000 -> 1230447.795 | V15: ='Appendix 4 - Category-spec calc'!D13/1000 -> 328219.5194 | Z15: ='Appendix 4 - Category-spec calc'!E13/1000 -> 734535.1571 | AD15: ='Appendix 4 - Category-spec calc'!F13/1000 -> 52979.25874 | AH15: ='Appendix 4 - Category-spec calc'!G13/1000 -> 74240.80218

Sheet SCSR Step 3
B2: Clean Power Plan Goal Calculation Viewer
H3: Step 3: Identify category-specific baseline emission rates for fossil steam and NGCC | AS3: Step 3: Identify category-specific baseline emission rates for fossil steam and NGCC
I4: Fossil steam sources include both coal steam and oil/gas steam affected sources. These data are combined to calculate a fossil steam emission rate and generation total for each interconnection. This emission rate reflects the sum of coal emissions and O/G steam emissions divided by the baseline generation for each technology. Because the BSER involves both reductions in emissions intensity of sources (e.g., heat rate improvements) and reductions in generation of sources (e.g., shifting from fossil to renewable generation), the baseline emission rate and generation for each technology source category are utilized to assess the potential impact of the building blocks. All emission rates provided are on a net basis. This step is shown here for illustrative purposes, but is combined with step 4 in appendix 4.
AT8: Eastern Fossil Steam Rate | AX8: = | AY8: =AX51 -> 1,356,066,366 + 52,979,259 tons | BH8: = | BI8: =BH47 -> 2,160 lbs/MWh | BN8: Eastern NGCC Rate | BR8: = | BS8: =AX58 -> 328,219,519 tons | BX8: = | BY8: =BI47 -> 894 lbs/MWh
AY9: =BG51 -> 1,230,448 + 74,241 GWh | BS9: =BG58 -> 734,535 GWh
I11: Baseline Category-Specific Emission Rates and Generation | AT11: Western Fossil Steam Rate | AX11: = | AY11: =AX52 -> 229,424,716 + 9,433,180 tons | BH11: = | BI11: =BH48 -> 2,198 lbs/MWh | BN11: Western NGCC Rate | BR11: = | BS11: =AX59 -> 89,135,327 tons | BX11: = | BY11: =BI48 -> 899 lbs/MWh
L12: Coal | R12: NGCC | X12: O/G Steam | AD12: Fossil Steam | AJ12: NGCC | AY12: =BG52 -> 203,977 + 13,326 GWh | BS12: =BG59 -> 198,374 GWh
I13: Inter-connection | L13: Emissions (1000 short tons) | O13: Net Generation (GWh) | R13: Emissions (1000 short tons) | U13: Net Generation (GWh) | X13: Emissions (1000 short tons) | AA13: Net Generation (GWh) | AD13: Emission Rate (lbs/MWh) | AG13: Net Generation (GWh) | AJ13: Emission Rate (lbs/MWh) | AM13: Net Generation (GWh)
AT14: Texas Fossil Steam Rate | AX14: = | AY14: =AX53 -> 129,404,298 + 5,835,641 tons | BH14: = | BI14: =BH49 -> 2,192 lbs/MWh | BN14: Texas NGCC Rate | BR14: = | BS14: =AX60 -> 65,236,948 tons | BX14: = | BY14: =BI49 -> 951 lbs/MWh
AY15: =BG53 -> 115,050 + 8,331 GWh | BS15: =BG60 -> 137,183 GWh
I16: Eastern | L16: ='Appendix 4 - Category-spec calc'!B13/1000 -> 1356066.366 | O16: ='Appendix 4 - Category-spec calc'!C13/1000 -> 1230447.795 | R16: ='Appendix 4 - Category-spec calc'!D13/1000 -> 328219.5194 | U16: ='Appendix 4 - Category-spec calc'!E13/1000 -> 734535.1571 | X16: ='Appendix 4 - Category-spec calc'!F13/1000 -> 52979.25874 | AA16: ='Appendix 4 - Category-spec calc'!G13/1000 -> 74240.80218 | AD16: =(L16+X16)*1000*2000/(AG16*1000) -> 2159.972315 | AG16: =O16+AA16 -> 1304688.597 | AJ16: =R16*1000*2000/(U16*1000) -> 893.6795366 | AM16: =U16 -> 734535.1571
H22: 1. See also: CO2 Emission Performance Rate and Goal Computation TSD
AX45: Coal | AZ45: NGCC | BB45: OG Steam
AX46: Emissions (tons) | AY46: Gen (MWh) | AZ46: Emissions (tons) | BA46: Gen(MWh) | BB46: Emissions (tons) | BC46: Gen(MWh)
AW47: Eastern | AX47: ='Appendix 4 - Category-spec calc'!B13 -> 1356066366 | AY47: ='Appendix 4 - Category-spec calc'!C13 -> 1230447795 | AZ47: ='Appendix 4 - Category-spec calc'!D13 -> 328219519.4 | BA47: ='Appendix 4 - Category-spec calc'!E13 -> 734535157.1 | BB47: ='Appendix 4 - Category-spec calc'!F13 -> 52979258.74 | BC47: ='Appendix 4 - Category-spec calc'!G13 -> 74240802.18 | BD47: =((AX47+BB47)*2000)/(AY47+BC47) -> 2159.972315 | BE47: =AZ47*2000/BA47 -> 893.6795366 | BH47: =TEXT(BD47,"###,###,##0")&" lbs/MWh" -> 2,160 lbs/MWh | BI47: =TEXT(BE47,"###,###,##0")&" lbs/MWh" -> 894 lbs/MWh
AW48: Western | AX48: ='Appendix 4 - Category-spec calc'!B14 -> 229424715.8 | AY48: ='Appendix 4 - Category-spec calc'!C14 -> 203976917.8 | AZ48: ='Appendix 4 - Category-spec calc'!D14 -> 89135326.65 | BA48: ='Appendix 4 - Category-spec calc'!E14 -> 198374375.9 | BB48: ='Appendix 4 - Category-spec calc'!F14 -> 9433180.3 | BC48: ='Appendix 4 - Category-spec calc'!G14 -> 13326187 | BD48: =((AX48+BB48)*2000)/(AY48+BC48) -> 2198.384568 | BE48: =AZ48*2000/BA48 -> 898.6576642 | BH48: =TEXT(BD48,"###,###,##0")&" lbs/MWh" -> 2,198 lbs/MWh | BI48: 899 lbs/MWh
AW49: ERCOT | AX49: ='Appendix 4 - Category-spec calc'!B15 -> 129404297.9 | AY49: ='Appendix 4 - Category-spec calc'!C15 -> 115050132.4 | AZ49: ='Appendix 4 - Category-spec calc'!D15 -> 65236948.46 | BA49: ='Appendix 4 - Category-spec calc'!E15 -> 137182895.2 | BB49: ='Appendix 4 - Category-spec calc'!F15 -> 5835640.98 | BC49: ='Appendix 4 - Category-spec calc'!G15 -> 8331348 | BD49: 2192.224285 | BE49: =AZ49*2000/BA49 -> 951.0944987 | BH49: 2,192 lbs/MWh | BI49: 951 lbs/MWh
AX51: =TEXT(AX47,"###,###,##0")&" + "&TEXT(BB47,"###,###,##0")&" tons" -> 1,356,066,366 + 52,979,259 tons | BG51: =TEXT(AY47/1000,"###,###,##0")&" + "&TEXT(BC47/1000,"###,###,##0")&" GWh" -> 1,230,448 + 74,241 GWh
AX52: =TEXT(AX48,"###,###,##0")&" + "&TEXT(BB48,"###,###,##0")&" tons" -> 229,424,716 + 9,433,180 tons | BG52: =TEXT(AY48/1000,"###,###,##0")&" + "&TEXT(BC48/1000,"###,###,##0")&" GWh" -> 203,977 + 13,326 GWh
AX53: 129,404,298 + 5,835,641 tons | BG53: 115,050 + 8,331 GWh
AX58: =TEXT(AZ47,"###,###,##0")&" tons" -> 328,219,519 tons | BG58: =TEXT(BA47/1000,"###,###,##0")&" GWh" -> 734,535 GWh
AX59: =TEXT(AZ48,"###,###,##0")&" tons" -> 89,135,327 tons | BG59: =TEXT(BA48/1000,"###,###,##0")&" GWh" -> 198,374 GWh
AX60: 65,236,948 tons | BG60: 137,183 GWh

Sheet SCSR Step 4
B2: Clean Power Plan Goal Calculation Viewer
H3: Step 4: Calculate regional fossil steam emission rate resulting from building block 1 heat rate improvement (HRI) | AS3: Step 4: Calculate regional fossil steam emission rate resulting from building block 1 heat rate improvement (HRI)
I5: After this baseline data are aggregated for each region, the EPA begins to adjust some of the data values to reflect each building block of BSER. The EPA applies HRI to the regional coal steam fleets using a 2.1 percent heat rate improvement in the Western Interconnection, a 2.3 percent HRI in the Texas Interconnection, and a 4.3 percent heat rate improvement in the Eastern Interconnection. This is reflected by adjusting the coal emissions down by the region-specific heat rate improvement percentage and leaving the generation level unchanged. Subsequently, the fossil steam rate for the region is calculated by adding the adjusted coal emissions subsequent to the heat rate improvement with the baseline OG steam emissions and dividing by the sum of the coal steam and OG steam generation. There is no change in the NGCC rate from this step. When the technology emission rate is recalculated with building block 1 reflected in the adjustment to the region’s coal emissions, the region’s fossil steam emission rate drops below its baseline value. Note that the fossil steam rate reflects the aggregation of both coal and OG steam data. This is not the final category-specific performance rate, rather it is an adjusted emission rate reflecting the application of building block 1 before moving on to the remaining building blocks.
I15: Adjusted Fossil Steam Rate Reflecting Building Block 1
L16: Baseline Coal | R16: Baseline OG Steam | X16: Baseline Fossil Steam | AC16: BB1
I17: Inter-connection | L17: Emissions (1000 short tons) | O17: Generation (GWh) | R17: Emissions (1000 short tons) | U17: Generation (GWh) | X17: Emission Rate (lbs/MWh) | AC17: BB1 HRI Level | AF17: Post BB1 Coal Emissions (1000 short tons) | AI17: Fossil Steam Emission Rate Post BB1 (lbs/MWh)
I20: Eastern | L20: ='Appendix 4 - Category-spec calc'!B13/1000 -> 1356066.366 | O20: ='Appendix 4 - Category-spec calc'!C13/1000 -> 1230447.795 | R20: ='Appendix 4 - Category-spec calc'!F13/1000 -> 52979.25874 | U20: ='Appendix 4 - Category-spec calc'!G13/1000 -> 74240.80218 | X20: =(L20+R20)*1000*2000/((O20+U20)*1000) -> 2159.972315 | AC20: 0.043 | AF20: =L20*(1-AC20) -> 1297755.512 | AI20: =(AF20+R20)*1000*2000/((O20+U20)*1000) -> 2070.585693
H22: 1. GHG Mitigation Measures TSD 2. See also: CO2 Emission Performance Rate and Goal Computation TSD 3. Note: The steps and their resulting data are interim stages that are not used for any other purpose and do not have independent meaning. They are only used to calculate the ultimate Source Category Specific Rates that are applicable under the Clean Power Plan.
AX45: Coal | AZ45: NGCC | BB45: OG Steam
AX46: Emissions (tons) | AY46: Gen (MWh) | AZ46: Emissions (tons) | BA46: Gen(MWh) | BB46: Emissions (tons) | BC46: Gen(MWh)
AW47: Eastern | AX47: ='Appendix 4 - Category-spec calc'!B13 -> 1356066366 | AY47: ='Appendix 4 - Category-spec calc'!C13 -> 1230447795 | AZ47: ='Appendix 4 - Category-spec calc'!D13 -> 328219519.4 | BA47: ='Appendix 4 - Category-spec calc'!E13 -> 734535157.1 | BB47: ='Appendix 4 - Category-spec calc'!F13 -> 52979258.74 | BC47: ='Appendix 4 - Category-spec calc'!G13 -> 74240802.18 | BH47: ='Appendix 4 - Category-spec calc'!H13 -> 2070.585693 | BJ47: =" = "& TEXT(BH47,"###,###,##0")&" lbs/MWh" -> = 2,071 lbs/MWh
AW48: Western | AX48: ='Appendix 4 - Category-spec calc'!B14 -> 229424715.8 | AY48: ='Appendix 4 - Category-spec calc'!C14 -> 203976917.8 | AZ48: ='Appendix 4 - Category-spec calc'!D14 -> 89135326.65 | BA48: ='Appendix 4 - Category-spec calc'!E14 -> 198374375.9 | BB48: ='Appendix 4 - Category-spec calc'!F14 -> 9433180.3 | BC48: ='Appendix 4 - Category-spec calc'!G14 -> 13326187 | BH48: ='Appendix 4 - Category-spec calc'!H14 -> 2154.041722 | BJ48: =" = "& TEXT(BH48,"###,###,##0")&" lbs/MWh" -> = 2,154 lbs/MWh
AW49: ERCOT | AX49: ='Appendix 4 - Category-spec calc'!B15 -> 129404297.9 | AY49: ='Appendix 4 - Category-spec calc'!C15 -> 115050132.4 | AZ49: ='Appendix 4 - Category-spec calc'!D15 -> 65236948.46 | BA49: ='Appendix 4 - Category-spec calc'!E15 -> 137182895.2 | BB49: ='Appendix 4 - Category-spec calc'!F15 -> 5835640.98 | BC49: ='Appendix 4 - Category-spec calc'!G15 -> 8331348 | BH49: ='Appendix 4 - Category-spec calc'!H15 -> 2143.978814 | BJ49: = 2,144 lbs/MWh
AX51: =TEXT(AX47,"###,###,##0")&" + "&TEXT(BB47,"###,###,##0")&" tons" -> 1,356,066,366 + 52,979,259 tons | BG51: =TEXT(AY47/1000,"###,###,##0")&" + "&TEXT(BC47/1000,"###,###,##0")&" GWh" -> 1,230,448 + 74,241 GWh
AX52: =TEXT(AX48,"###,###,##0")&" + "&TEXT(BB48,"###,###,##0")&" tons" -> 229,424,716 + 9,433,180 tons | BG52: =TEXT(AY48/1000,"###,###,##0")&" + "&TEXT(BC48/1000,"###,###,##0")&" GWh" -> 203,977 + 13,326 GWh
AX53: 129,404,298 + 5,835,641 tons | BG53: 115,050 + 8,331 GWh
AX58: =TEXT(AZ47,"###,###,##0")&" tons" -> 328,219,519 tons | BG58: =TEXT(BA47/1000,"###,###,##0")&" GWh" -> 734,535 GWh
AX59: =TEXT(AZ48,"###,###,##0")&" tons" -> 89,135,327 tons | BG59: =TEXT(BA48/1000,"###,###,##0")&" GWh" -> 198,374 GWh
AX60: 65,236,948 tons | BG60: 137,183 GWh

Sheet SCSR Step 5
B2: Clean Power Plan Goal Calculation Viewer
H3: Step 5: Calculate regional fossil steam and NGCC generation levels resulting from building block 3 (incremental renewable energy (RE) generation) | AS3: Step 5: Calculate regional fossil steam and NGCC generation levels resulting from building block 3 (incremental renewable energy (RE) generation)
I5: Building Block 3 is based on lower-emitting generation replacing higher emitting generation.[1,2] All incremental building block 3 RE is assumed to emit zero tons of CO2. EPA uses building block 3 incremental generation to replace existing fossil generation from the baseline levels. The replacement impact on each technology category is estimated on a pro-rata basis. Incremental BB3 generation is identified and then apportioned to replace either fossil steam or NGCC generation, based on the share of baseline generation each technology category represents.
AT10: Select a region/year below to view calculation for that combination
AV11: Region: | AY11: Eastern | BB11: Year: | BE11: 2030
J13: Adjusted Fossil Steam and NGCC Generation Reflecting Replacement by BB3 Generation, 2030
M14: Baseline Generation | S14: BB3
J15: Inter-connection | M15: Fossil Steam Net Generation (GWh) | P15: NGCC Net Generation (GWh) | S15: Fossil Steam Share of Total Fossil Gen. | V15: NGCC Share of Total Fossil Gen | Y15: Potential BB3 (GWh) | AB15: Remaining Fossil Steam (GWh) | AE15: Remaining NGCC Gen (GWh) | AH15: BB3 Replacing Fossil Steam (GWh) | AK15: BB3 Replacing NGCC (GWh) | AX15: = 1,304,689 - (438,445 * 64%) = 1,024,173 GWh
AX17: = 734,535 - (438,445 * 36%) = 576,606 GWh
J18: Eastern | M18: ='Appendix 4 - Category-spec calc'!J13/1000 -> 1304688.597 | P18: ='Appendix 4 - Category-spec calc'!K13/1000 -> 734535.1571 | S18: ='Appendix 4 - Category-spec calc'!L13 -> 0.6397966846 | V18: ='Appendix 4 - Category-spec calc'!M13 -> 0.3602033154 | Y18: ='Appendix 4 - Category-spec calc'!N13/1000 -> 438444.6997 | AB18: ='Appendix 4 - Category-spec calc'!O13/1000 -> 1024173.132 | AE18: ='Appendix 4 - Category-spec calc'!P13/1000 -> 576605.9226 | AH18: ='Appendix 4 - Category-spec calc'!Q13/1000 -> 280515.4652 | AK18: ='Appendix 4 - Category-spec calc'!R13/1000 -> 157929.2345
H22: 1. The GHG Mitigation Measures TSD describes how the incremental RE generation potential for each region was derived. As explained in the TSD, the BB3 potential is defined as only incremental RE generation (incremental relative to 2012 levels). Therefore the computation of category-specific performance rates and state goals for the final rule only reflect this incremental RE total. 2. See also: CO2 Emission Performance Rate and Goal Computation TSD; See also: CPP final rule preamble section V.E on BB3 3. Note: The steps and their resulting data are interim stages that are not used for any other purpose and do not have independent meaning. They are only used to calculate the ultimate Source Category Specific Rates that are applicable under the Clean Power Plan.
AV42: =BE11&" "&AY11&" Fossil Steam Generation" -> 2030 Eastern Fossil Steam Generation | BG42: =BE11&" "&AY11&" NGCC Generation" -> 2030 Eastern NGCC Generation
AV43: ="= "& TEXT(INDEX('Appendix 4 - Category-spec calc'!$A$1:$Z$90,VLOOKUP($BE$11,$AT$48:$AU$56,2,0)+VLOOKUP($AY$11,$AX$48:$AY$50,2,0),10)/1000,"###,###,###") -> = 1,304,689 | BG43: ="= "& TEXT(INDEX('Appendix 4 - Category-spec calc'!$A$1:$Z$90,VLOOKUP($BE$11,$AT$48:$AU$56,2,0)+VLOOKUP($AY$11,$AX$48:$AY$50,2,0),11)/1000,"###,###,###") -> = 734,535
AV44: =" - ("&TEXT(INDEX('Appendix 4 - Category-spec calc'!$A$1:$Z$90,VLOOKUP($BE$11,$AT$48:$AU$56,2,0)+VLOOKUP($AY$11,$AX$48:$AY$50,2,0),14)/1000,"###,###,###")&" * " &TEXT(INDEX('Appendix 4 - Category-spec calc'!$A$1:$Z$90,VLOOKUP($BE$11,$AT$48:$AU$56,2,0)+VLOOKUP($AY$11,$AX$48:$AY$50,2,0),12)*100,"###")&"%)" -> - (438,445 * 64%) | BG44: =" - ("&TEXT(INDEX('Appendix 4 - Category-spec calc'!$A$1:$Z$90,VLOOKUP($BE$11,$AT$48:$AU$56,2,0)+VLOOKUP($AY$11,$AX$48:$AY$50,2,0),14)/1000,"###,###,###")&" * " &TEXT(INDEX('Appendix 4 - Category-spec calc'!$A$1:$Z$90,VLOOKUP($BE$11,$AT$48:$AU$56,2,0)+VLOOKUP($AY$11,$AX$48:$AY$50,2,0),13)*100,"###")&"%)" -> - (438,445 * 36%)
AV45: =" = "&TEXT(INDEX('Appendix 4 - Category-spec calc'!$A$1:$Z$90,VLOOKUP($BE$11,$AT$48:$AU$56,2,0)+VLOOKUP($AY$11,$AX$48:$AY$50,2,0),15)/1000,"###,###,###")&" GWh" -> = 1,024,173 GWh | BG45: =" = "&TEXT(INDEX('Appendix 4 - Category-spec calc'!$A$1:$Z$90,VLOOKUP($BE$11,$AT$48:$AU$56,2,0)+VLOOKUP($AY$11,$AX$48:$AY$50,2,0),16)/1000,"###,###,###")&" GWh" -> = 576,606 GWh
AT47: year | AU47: row | AX47: region | AY47: row add
AT48: 2022 | AU48: 88 | AX48: Eastern | AY48: 0
AT49: 2023 | AU49: 79 | AX49: Western | AY49: 1
AT50: 2024 | AU50: 70 | AX50: Texas | AY50: 2
AT51: 2025 | AU51: 61
AT52: 2026 | AU52: 52
AT53: 2027 | AU53: 42
AT54: 2028 | AU54: 32
AT55: 2029 | AU55: 22
AT56: 2030 | AU56: 13

Sheet SCSR Step 6
B2: Clean Power Plan Goal Calculation Viewer
H3: Step 6: Calculate regional fossil steam and NGCC generation resulting from building block 2 (incremental NGCC generation) | AS3: Step 6: Calculate regional fossil steam and NGCC generation resulting from building block 2 (incremental NGCC generation)
I5: This step of the rate calculation captures the change in source-category generation levels associated with building block 2 potential of 75 percent potential utilization for the NGCC fleet. To do so, the regional NGCC fleet summertime capacity is multiplied by 8,784 hours (the number of hours in the 2012 leap year) and then by 75 percent to determine total potential net NGCC generation at a 75 percent capacity factor. However, this 75 percent capacity factor represents a generation ceiling, and the region’s NGCC generation is only adjusted up to this ceiling to the extent that such NGCC generation increases can replace remaining fossil steam generation.[1]
AT11: Select a region/year below to view calculation for that combination
AV12: Region: | AY12: Eastern | BB12: Year: | BE12: 2030
K14: Adjusted Fossil Steam and NGCC Generation Reflecting Replacement by BB3 and BB2 Generation, 2030
K15: Inter-connection | N15: Remaining Fossil Steam (GWh) | R15: Remaining NGCC gen (GWh) | V15: NGCC Potential at 75% CF (GWh) | Z15: Difference between NGCC gen at full BB2 utilization and Post BB3 NGCC levels (GWh) | AF15: Remaining Fossil Steam (GWh)[2] | AJ15: Remaining NGCC Gen (GWh)[2] | AX15: = 1,024,173 - (987,857 - 576,606) = 612,922 GWh
AX17: = 576,606 + (1,024,173 - 612,922) = 987,857 GWh
K18: Eastern | N18: ='Appendix 4 - Category-spec calc'!O13/1000 -> 1024173.132 | R18: ='Appendix 4 - Category-spec calc'!P13/1000 -> 576605.9226 | V18: ='BB2'!L4/1000 -> 987856.7652 | Z18: ='Appendix 4 - Category-spec calc'!S13/1000 -> 411250.8426 | AF18: ='Appendix 4 - Category-spec calc'!T13/1000 -> 612922.289 | AJ18: ='Appendix 4 - Category-spec calc'!U13/1000 -> 987856.7652
AU19: =IF(AV45=" = 0 GWh","*Potential NGCC Generation exceeds Post BB3 Fossil Steam generation. Fossil Steam Generation reduced to 0 ","") -> 
H22: 1. The ceiling in the interim period is less than the 75% utilization level. The BB2 deployment schedule is discussed in greater detail in the GHG Mitigation Measures TSD. 2. The combined remaining fossil steam and NGCC generation from in this table reflect the remaining fossil steam and NGCC generation total after BB3. 3. Note: The steps and their resulting data are interim stages that are not used for any other purpose and do not have independent meaning. They are only used to calculate the ultimate Source Category Specific Rates that are applicable under the Clean Power Plan. | AS22: 1. NGCC Maximum Capacity Factor is the lesser of A) 75% or B) the 2012 Regional NGCC generation grown 22% in 2022 and an addition 5% each year thereafter. The Capacity Factor for the chosen Region/Year combination appears in this formula for convenience 2. If (NGCC Potential at 75 percent CF – Post BB3 NGCC Gen) is greater than post BB3 fossil steam gen, then the fossil steam generation amount is adjusted to zero and the NGCC generation amount is increased by the post BB3 fossil steam generation amount that it replaced. 3. See also: CO2 Emission Performance Rate and Goal Computation TSD 4. See also: CPP final rule preamble section V.D on BB2
AV42: =BE12&" "&AY12&" Fossil Steam Generation" -> 2030 Eastern Fossil Steam Generation | BG42: =BE12&" "&AY12&" NGCC Generation" -> 2030 Eastern NGCC Generation
AV43: ="= "& TEXT(INDEX('Appendix 4 - Category-spec calc'!$A$1:$Z$90,VLOOKUP($BE$12,$AV$52:$AW$60,2,0)+VLOOKUP($AY$12,$AZ$52:$BA$54,2,0),15)/1000,"###,###,##0") -> = 1,024,173 | BG43: ="= "& TEXT(INDEX('Appendix 4 - Category-spec calc'!$A$1:$Z$90,VLOOKUP($BE$12,$AV$52:$AW$60,2,0)+VLOOKUP($AY$12,$AZ$52:$BA$54,2,0),16)/1000,"###,###,##0") -> = 576,606
AV44: =" - ("&TEXT(VLOOKUP(IF($AY$12="Texas","ERCOT",$AY$12),'BB2'!$A$4:$L$6,$BE$12-2022+4,0)/1000,"###,###,##0")&" - " &TEXT(INDEX('Appendix 4 - Category-spec calc'!$A$1:$Z$90,VLOOKUP($BE$12,$AV$52:$AW$60,2,0)+VLOOKUP($AY$12,$AZ$52:$BA$54,2,0),16)/1000,"###,###,##0")&")" -> - (987,857 - 576,606) | BG44: =" + ("&TEXT(INDEX('Appendix 4 - Category-spec calc'!$A$1:$Z$90,VLOOKUP($BE$12,$AV$52:$AW$60,2,0)+VLOOKUP($AY$12,$AZ$52:$BA$54,2,0),15)/1000,"###,###,##0")&" - " &TEXT(INDEX('Appendix 4 - Category-spec calc'!$A$1:$Z$90,VLOOKUP($BE$12,$AV$52:$AW$60,2,0)+VLOOKUP($AY$12,$AZ$52:$BA$54,2,0),20)/1000,"###,###,##0")&")" -> + (1,024,173 - 612,922)
AV45: =" = "&TEXT(INDEX('Appendix 4 - Category-spec calc'!$A$1:$Z$90,VLOOKUP($BE$12,$AV$52:$AW$60,2,0)+VLOOKUP($AY$12,$AZ$52:$BA$54,2,0),20)/1000,"###,###,##0")&" GWh" -> = 612,922 GWh | BG45: =" = "&TEXT(INDEX('Appendix 4 - Category-spec calc'!$A$1:$Z$90,VLOOKUP($BE$12,$AV$52:$AW$60,2,0)+VLOOKUP($AY$12,$AZ$52:$BA$54,2,0),21)/1000,"###,###,##0")&" GWh" -> = 987,857 GWh
AV48: ="- (NGCC Potential at "&ROUND(100*VLOOKUP($AY$12,'BB2'!$A$22:$L$24,MATCH($BE$12,'BB2'!$A$21:$L$21,0),0),1)&"% CF – Post BB3 NGCC Gen)" -> - (NGCC Potential at 75% CF – Post BB3 NGCC Gen)
AV51: year | AW51: row | AZ51: region | BA51: row add
AV52: 2022 | AW52: 88 | AZ52: Eastern | BA52: 0
AV53: 2023 | AW53: 79 | AZ53: Western | BA53: 1
AV54: 2024 | AW54: 70 | AZ54: Texas | BA54: 2
AV55: 2025 | AW55: 61
AV56: 2026 | AW56: 52
AV57: 2027 | AW57: 42
AV58: 2028 | AW58: 32
AV59: 2029 | AW59: 22
AV60: 2030 | AW60: 13

Sheet SCSR Step 7
B2: Clean Power Plan Goal Calculation Viewer
H3: Step 7: Determine the adjusted category-specific performance rates for each region reflecting the heat rate improvement and generation shifts. | AS3: Step 7: Determine the adjusted category-specific performance rates for each region reflecting the heat rate improvement and generation shifts.
H5: Combining the adjusted emission rates with the adjusted generation allows EPA to calculate a category-specific adjusted emission rate reflecting the expression of BSER.[1] For the regional fossil steam rate, EPA first calculates the numerator (i.e. emissions). EPA multiplies the fossil steam emission rate from step 4 by the remaining fossil steam generation following step 6. For BB3, all renewable generation is assumed to equal zero, therefore no numerator adjustment was made. EPA also calculates a portion of the NGCC generation in the fossil steam rate reflecting the incremental BB2 potential used;[2] This level of reassignment is consistent with the maximum amount of incremental generation identified in BB2. This amount of NGCC generation is multiplied by the NGCC emission rate from step 3 to get the amount of incremental NGCC emissions assigned to the numerator of the fossil steam emission rate as part of BB2. These emissions are then divided by the total amount of remaining fossil steam generation, the renewable generation assigned to fossil steam, and the incremental NGCC defined above. This results in a regional fossil steam emission rate reflective of BSER. For the regional NGCC emission rate, EPA performs a similar operation. The NGCC generation post step six is multiplied by the NGCC baseline emission rate from step 3 to estimate the total amount of NGCC emissions post BB3 and BB2. These emissions are then divided by the sum of the NGCC generation post step 6 and the amount of BB3 renewable generation assigned to NGCC generation. This regional NGCC rate reflects the adjusted NGCC rate reflecting BSER.
AT11: Select a region/year below to view calculation for that combination
AV12: Region: | AY12: Eastern | BB12: Year: | BE12: 2030
AX14: (612,922 GWh * 2,071 lbs/MWh) + (253,322 GWh * 894lbs/MWh)
AX15: .253,322 + 612,922 + 280,515 GWh
H16: Adjusted Fossil Steam and NGCC Generation Rates Reflecting all Three Building Blocks | AX16: 1,304 lbs/MWh
H17: Baseline with BB1 | U17: BB3 | AG17: BB2 | AM17: Adjusted Rates
H18: Inter-connection | K18: Fossil Steam Rate (lbs/ MWh) | N18: NGCC Rate (lbs/ MWh) | P18: Fossil Steam Gen (GWh) | S18: NGCC Gen (GWh) | U18: Remaining Fossil Steam (GWh) | X18: Remaining NGCC gen (GWh) | AA18: BB3 Replacing Fossil Steam (GWh) | AD18: BB3 Replacing NGCC (GWh) | AG18: Remaining Fossil Steam (GWh) | AJ18: Remaining NGCC Gen (GWh) | AM18: Fossil Steam Rate (lbs/ MWh) | AP18: NGCC Rate (lbs/ MWh) | AX18: (987,857 GWh * 894lbs/MWh)
AX19: .987,857 + 157,929 GWh
H20: Eastern | K20: ='SCSR Step 4'!AI20 -> 2070.585693 | N20: ='SCSR Step 3'!AJ16 -> 893.6795366 | P20: ='Appendix 4 - Category-spec calc'!J13/1000 -> 1304688.597 | S20: ='Appendix 4 - Category-spec calc'!K13/1000 -> 734535.1571 | U20: ='Appendix 4 - Category-spec calc'!O13/1000 -> 1024173.132 | X20: ='Appendix 4 - Category-spec calc'!P13/1000 -> 576605.9226 | AA20: ='Appendix 4 - Category-spec calc'!Q13/1000 -> 280515.4652 | AD20: ='Appendix 4 - Category-spec calc'!R13/1000 -> 157929.2345 | AG20: ='Appendix 4 - Category-spec calc'!T13/1000 -> 612922.289 | AJ20: ='Appendix 4 - Category-spec calc'!U13/1000 -> 987856.7652 | AM20: =ROUNDUP('Appendix 4 - Category-spec calc'!V13,0) -> 1305 | AP20: =ROUNDUP('Appendix 4 - Category-spec calc'!W13,0) -> 771 | AX20: 770 lbs/MWh
H22: 1. In this step, EPA was careful to apportion incremental generation in a manner consistent with the building block levels, and that respected the pro-rata nature of building block three. See Section VI of the preamble for further explanation. 2. As described in the preamble section VI and the Federal Plan Proposal, EPA reflected the incremental NGCC generation (and corresponding emissions) in the fossil steam rate source category rate and created a parallel compliance structure for quantifying NGCC ERCs which fossil steam sources may use in compliance. 3. See also: CO2 Emission Performance Rate and Goal Computation TSD 4. See also: CPP final rule preamble section VI | AS22: 1. The full NGCC generation (and corresponding emissions) expected under the BSER calculation from that source category is included in the NGCC rate, even though a portion of it is also reflected in the fossil steam rate. Failing to do so would leave the NGCC sources with a lower rate than what is expected post building block 2 and building block 3 when accounting for all of their generation and block three responsibility. Keeping the full NGCC generation amount in the NGCC rate recognizes the dual role NGCC has in terms of compliance responsibility as an affected EGU and a mitigation measure under building block two that that can offset fossil steam generation.
AV42: =BE12&" "&AY12&" Fossil Steam Rate" -> 2030 Eastern Fossil Steam Rate | BG42: =BE12&" "&AY12&" NGCC Rate" -> 2030 Eastern NGCC Rate
AV43: ="("&TEXT(INDEX('Appendix 4 - Category-spec calc'!$A$1:$Z$90,VLOOKUP($BE$12,$AV$63:$AW$71,2,0)+VLOOKUP($AY$12,$AZ$63:$BA$65,2,0),20)/1000,"###,###,##0")&" GWh * "&TEXT(INDEX('Appendix 4 - Category-spec calc'!$A$1:$Z$90,VLOOKUP($BE$12,$AV$63:$AW$71,2,0)+VLOOKUP($AY$12,$AZ$63:$BA$65,2,0),8),"###,###,##0")&" lbs/MWh) " -> (612,922 GWh * 2,071 lbs/MWh) | BG43: ="("&TEXT(INDEX('Appendix 4 - Category-spec calc'!$A$1:$Z$90,VLOOKUP($BE$12,$AV$63:$AW$71,2,0)+VLOOKUP($AY$12,$AZ$63:$BA$65,2,0),21)/1000,"###,###,##0")&" GWh * " &TEXT(INDEX('Appendix 4 - Category-spec calc'!$A$1:$Z$90,VLOOKUP($BE$12,$AV$63:$AW$71,2,0)+VLOOKUP($AY$12,$AZ$63:$BA$65,2,0),9),"###,###,##0")&"lbs/MWh)" -> (987,857 GWh * 894lbs/MWh) | BT43: =AY12&" Region Source Category Rates" -> Eastern Region Source Category Rates
AV44: =" + " -> +
AV45: ="("&TEXT(MAX(0,INDEX('Appendix 4 - Category-spec calc'!$A$1:$Z$90,VLOOKUP($BE$12,$AV$63:$AW$71,2,0)+VLOOKUP($AY$12,$AZ$63:$BA$65,2,0),21)-INDEX('Appendix 4 - Category-spec calc'!$A$1:$Z$90,VLOOKUP($BE$12,$AV$63:$AW$71,2,0)+VLOOKUP($AY$12,$AZ$63:$BA$65,2,0),11))/1000,"###,###,##0")&" GWh * " &TEXT(INDEX('Appendix 4 - Category-spec calc'!$A$1:$Z$90,VLOOKUP($BE$12,$AV$63:$AW$71,2,0)+VLOOKUP($AY$12,$AZ$63:$BA$65,2,0),9),"###,###,##0")&"lbs/MWh)" -> (253,322 GWh * 894lbs/MWh)
BR46: Graph Data
AV47: ="." -> . | AW47: <space> | BG47: ="." -> . | BH47: <space> | BS47: Fossil Steam | BT47: NGCC
AV48: =TEXT(MAX(0,INDEX('Appendix 4 - Category-spec calc'!$A$1:$Z$90,VLOOKUP($BE$12,$AV$63:$AW$71,2,0)+VLOOKUP($AY$12,$AZ$63:$BA$65,2,0),21)-INDEX('Appendix 4 - Category-spec calc'!$A$1:$Z$90,VLOOKUP($BE$12,$AV$63:$AW$71,2,0)+VLOOKUP($AY$12,$AZ$63:$BA$65,2,0),11))/1000,"###,###,##0") -> 253,322 | BG48: =TEXT(INDEX('Appendix 4 - Category-spec calc'!$A$1:$Z$90,VLOOKUP($BE$12,$AV$63:$AW$71,2,0)+VLOOKUP($AY$12,$AZ$63:$BA$65,2,0),21)/1000,"###,###,###") -> 987,857 | BR48: 2022 | BS48: =INDEX('Appendix 4 - Category-spec calc'!$A$1:$Z$90,VLOOKUP($BR48,$AV$63:$AW$71,2,0)+VLOOKUP($AY$12,$AZ$63:$BA$65,2,0),22) -> 1740.871168 | BT48: =INDEX('Appendix 4 - Category-spec calc'!$A$1:$Z$90,VLOOKUP($BR48,$AV$63:$AW$71,2,0)+VLOOKUP($AY$12,$AZ$63:$BA$65,2,0),23) -> 837.699475
AV49: =" + " -> + | BG49: =" + " -> + | BR49: =BR48+1 -> 2023 | BS49: =INDEX('Appendix 4 - Category-spec calc'!$A$1:$Z$90,VLOOKUP($BR49,$AV$63:$AW$71,2,0)+VLOOKUP($AY$12,$AZ$63:$BA$65,2,0),22) -> 1680.511033 | BT49: =INDEX('Appendix 4 - Category-spec calc'!$A$1:$Z$90,VLOOKUP($BR49,$AV$63:$AW$71,2,0)+VLOOKUP($AY$12,$AZ$63:$BA$65,2,0),23) -> 835.6074711
AV50: =TEXT(INDEX('Appendix 4 - Category-spec calc'!$A$1:$Z$90,VLOOKUP($BE$12,$AV$63:$AW$71,2,0)+VLOOKUP($AY$12,$AZ$63:$BA$65,2,0),20)/1000,"###,###,##0") -> 612,922 | BG50: =TEXT(INDEX('Appendix 4 - Category-spec calc'!$A$1:$Z$90,VLOOKUP($BE$12,$AV$63:$AW$71,2,0)+VLOOKUP($AY$12,$AZ$63:$BA$65,2,0),18)/1000,"###,###,###") -> 157,929 | BR50: =BR49+1 -> 2024 | BS50: =INDEX('Appendix 4 - Category-spec calc'!$A$1:$Z$90,VLOOKUP($BR50,$AV$63:$AW$71,2,0)+VLOOKUP($AY$12,$AZ$63:$BA$65,2,0),22) -> 1591.6156 | BT50: =INDEX('Appendix 4 - Category-spec calc'!$A$1:$Z$90,VLOOKUP($BR50,$AV$63:$AW$71,2,0)+VLOOKUP($AY$12,$AZ$63:$BA$65,2,0),23) -> 827.8043506
AV51: =" + " -> + | BG51: =" GWh" -> GWh | BR51: 2025 | BS51: =INDEX('Appendix 4 - Category-spec calc'!$A$1:$Z$90,VLOOKUP($BR51,$AV$63:$AW$71,2,0)+VLOOKUP($AY$12,$AZ$63:$BA$65,2,0),22) -> 1546.308859 | BT51: =INDEX('Appendix 4 - Category-spec calc'!$A$1:$Z$90,VLOOKUP($BR51,$AV$63:$AW$71,2,0)+VLOOKUP($AY$12,$AZ$63:$BA$65,2,0),23) -> 817.6688226
AV52: =TEXT(INDEX('Appendix 4 - Category-spec calc'!$A$1:$Z$90,VLOOKUP($BE$12,$AV$63:$AW$71,2,0)+VLOOKUP($AY$12,$AZ$63:$BA$65,2,0),17)/1000,"###,###,##0") -> 280,515 | BR52: 2026 | BS52: =INDEX('Appendix 4 - Category-spec calc'!$A$1:$Z$90,VLOOKUP($BR52,$AV$63:$AW$71,2,0)+VLOOKUP($AY$12,$AZ$63:$BA$65,2,0),22) -> 1500.003591 | BT52: =INDEX('Appendix 4 - Category-spec calc'!$A$1:$Z$90,VLOOKUP($BR52,$AV$63:$AW$71,2,0)+VLOOKUP($AY$12,$AZ$63:$BA$65,2,0),23) -> 807.7784887
AV53: =" GWh" -> GWh | BR53: 2027 | BS53: =INDEX('Appendix 4 - Category-spec calc'!$A$1:$Z$90,VLOOKUP($BR53,$AV$63:$AW$71,2,0)+VLOOKUP($AY$12,$AZ$63:$BA$65,2,0),22) -> 1452.666419 | BT53: =INDEX('Appendix 4 - Category-spec calc'!$A$1:$Z$90,VLOOKUP($BR53,$AV$63:$AW$71,2,0)+VLOOKUP($AY$12,$AZ$63:$BA$65,2,0),23) -> 798.1245578
BR54: 2028 | BS54: =INDEX('Appendix 4 - Category-spec calc'!$A$1:$Z$90,VLOOKUP($BR54,$AV$63:$AW$71,2,0)+VLOOKUP($AY$12,$AZ$63:$BA$65,2,0),22) -> 1404.262459 | BT54: =INDEX('Appendix 4 - Category-spec calc'!$A$1:$Z$90,VLOOKUP($BR54,$AV$63:$AW$71,2,0)+VLOOKUP($AY$12,$AZ$63:$BA$65,2,0),23) -> 788.6986539
AV55: =TEXT(INDEX('Appendix 4 - Category-spec calc'!$A$1:$Z$90,VLOOKUP($BE$12,$AV$63:$AW$71,2,0)+VLOOKUP($AY$12,$AZ$63:$BA$65,2,0),22),"###,###,##0")&" lbs/MWh" -> 1,304 lbs/MWh | BG55: =TEXT(INDEX('Appendix 4 - Category-spec calc'!$A$1:$Z$90,VLOOKUP($BE$12,$AV$63:$AW$71,2,0)+VLOOKUP($AY$12,$AZ$63:$BA$65,2,0),23),"###,###,###")&" lbs/MWh" -> 770 lbs/MWh | BR55: 2029 | BS55: =INDEX('Appendix 4 - Category-spec calc'!$A$1:$Z$90,VLOOKUP($BR55,$AV$63:$AW$71,2,0)+VLOOKUP($AY$12,$AZ$63:$BA$65,2,0),22) -> 1354.75524 | BT55: =INDEX('Appendix 4 - Category-spec calc'!$A$1:$Z$90,VLOOKUP($BR55,$AV$63:$AW$71,2,0)+VLOOKUP($AY$12,$AZ$63:$BA$65,2,0),23) -> 779.4927925
BR56: 2030 | BS56: =INDEX('Appendix 4 - Category-spec calc'!$A$1:$Z$90,VLOOKUP($BR56,$AV$63:$AW$71,2,0)+VLOOKUP($AY$12,$AZ$63:$BA$65,2,0),22) -> 1304.106606 | BT56: =INDEX('Appendix 4 - Category-spec calc'!$A$1:$Z$90,VLOOKUP($BR56,$AV$63:$AW$71,2,0)+VLOOKUP($AY$12,$AZ$63:$BA$65,2,0),23) -> 770.4993571
AV62: year | AW62: row | AZ62: region | BA62: row add
AV63: 2022 | AW63: 88 | AZ63: Eastern | BA63: 0
AV64: 2023 | AW64: 79 | AZ64: Western | BA64: 1
AV65: 2024 | AW65: 70 | AZ65: Texas | BA65: 2
AV66: 2025 | AW66: 61
AV67: 2026 | AW67: 52
AV68: 2027 | AW68: 42
AV69: 2028 | AW69: 32
AV70: 2029 | AW70: 22
AV71: 2030 | AW71: 13

Sheet SCSR Step 8
B2: Clean Power Plan Goal Calculation Viewer
H3: Step 8: Identify the least stringent regional rate as the emission performance rate for the technology source category | AS3: Step 8: Identify the least stringent regional rate as the emission performance rate for the technology source category
I5: After completing a regional assessment of building block potential impact on source category-specific rates, EPA evaluates the resulting fossil steam and NGCC rate for each region to identify the region with the least stringent emission rate. The least stringent (i.e., the highest) fossil steam rate and the least stringent NGCC emission rate among the three regions are identified and used to establish the source-category emission performance rates for the Clean Power Plan. The completion of the previous steps for each year results in an annual emission performance rate for each source category.[1,2] This results in a set of decreasing annual adjusted emission rates for the years 2022-2029. Once the interim and final rates are determined, EPA rounds any fractional number up to the nearest integer for these two values. This completes the quantification of BSER and establishes nationwide uniform category-specific rates.
I13: Annual Category-Specific Rates | AE13: Interim (avg 2022-2029) | AI13: Final (2030)
M14: 2022 | O14: =M14+1 -> 2023 | Q14: =O14+1 -> 2024 | S14: =Q14+1 -> 2025 | U14: =S14+1 -> 2026 | W14: =U14+1 -> 2027 | Y14: =W14+1 -> 2028 | AA14: =Y14+1 -> 2029 | AC14: =AA14+1 -> 2030
I15: Fossil Steam | M15: =VLOOKUP($I15,'Appendix 4 - Category-spec calc'!$A$4:$L$6,MATCH(M$14,'Appendix 4 - Category-spec calc'!$A$4:$L$4,0),0) -> 1740.871168 | O15: =VLOOKUP($I15,'Appendix 4 - Category-spec calc'!$A$4:$L$6,MATCH(O$14,'Appendix 4 - Category-spec calc'!$A$4:$L$4,0),0) -> 1680.511033 | Q15: =VLOOKUP($I15,'Appendix 4 - Category-spec calc'!$A$4:$L$6,MATCH(Q$14,'Appendix 4 - Category-spec calc'!$A$4:$L$4,0),0) -> 1591.6156 | S15: =VLOOKUP($I15,'Appendix 4 - Category-spec calc'!$A$4:$L$6,MATCH(S$14,'Appendix 4 - Category-spec calc'!$A$4:$L$4,0),0) -> 1546.308859 | U15: =VLOOKUP($I15,'Appendix 4 - Category-spec calc'!$A$4:$L$6,MATCH(U$14,'Appendix 4 - Category-spec calc'!$A$4:$L$4,0),0) -> 1500.003591 | W15: =VLOOKUP($I15,'Appendix 4 - Category-spec calc'!$A$4:$L$6,MATCH(W$14,'Appendix 4 - Category-spec calc'!$A$4:$L$4,0),0) -> 1452.666419 | Y15: =VLOOKUP($I15,'Appendix 4 - Category-spec calc'!$A$4:$L$6,MATCH(Y$14,'Appendix 4 - Category-spec calc'!$A$4:$L$4,0),0) -> 1404.262459 | AA15: =VLOOKUP($I15,'Appendix 4 - Category-spec calc'!$A$4:$L$6,MATCH(AA$14,'Appendix 4 - Category-spec calc'!$A$4:$L$4,0),0) -> 1354.75524 | AC15: =VLOOKUP($I15,'Appendix 4 - Category-spec calc'!$A$4:$L$6,MATCH(AC$14,'Appendix 4 - Category-spec calc'!$A$4:$L$4,0),0) -> 1304.106606 | AE15: ='Appendix 4 - Category-spec calc'!K5 -> 1534 | AI15: ='Appendix 4 - Category-spec calc'!L5 -> 1305
I16: NGCC | M16: =VLOOKUP($I16,'Appendix 4 - Category-spec calc'!$A$4:$L$6,MATCH(M$14,'Appendix 4 - Category-spec calc'!$A$4:$L$4,0),0) -> 897.5510043 | O16: =VLOOKUP($I16,'Appendix 4 - Category-spec calc'!$A$4:$L$6,MATCH(O$14,'Appendix 4 - Category-spec calc'!$A$4:$L$4,0),0) -> 877.0549082 | Q16: =VLOOKUP($I16,'Appendix 4 - Category-spec calc'!$A$4:$L$6,MATCH(Q$14,'Appendix 4 - Category-spec calc'!$A$4:$L$4,0),0) -> 855.0171699 | S16: =VLOOKUP($I16,'Appendix 4 - Category-spec calc'!$A$4:$L$6,MATCH(S$14,'Appendix 4 - Category-spec calc'!$A$4:$L$4,0),0) -> 836.1520383 | U16: =VLOOKUP($I16,'Appendix 4 - Category-spec calc'!$A$4:$L$6,MATCH(U$14,'Appendix 4 - Category-spec calc'!$A$4:$L$4,0),0) -> 817.3262271 | W16: =VLOOKUP($I16,'Appendix 4 - Category-spec calc'!$A$4:$L$6,MATCH(W$14,'Appendix 4 - Category-spec calc'!$A$4:$L$4,0),0) -> 798.1245578 | Y16: =VLOOKUP($I16,'Appendix 4 - Category-spec calc'!$A$4:$L$6,MATCH(Y$14,'Appendix 4 - Category-spec calc'!$A$4:$L$4,0),0) -> 788.6986539 | AA16: =VLOOKUP($I16,'Appendix 4 - Category-spec calc'!$A$4:$L$6,MATCH(AA$14,'Appendix 4 - Category-spec calc'!$A$4:$L$4,0),0) -> 779.4927925 | AC16: =VLOOKUP($I16,'Appendix 4 - Category-spec calc'!$A$4:$L$6,MATCH(AC$14,'Appendix 4 - Category-spec calc'!$A$4:$L$4,0),0) -> 770.4993571 | AE16: ='Appendix 4 - Category-spec calc'!K6 -> 832 | AI16: ='Appendix 4 - Category-spec calc'!L6 -> 771
AT17: Regional source-category specific rates for each of three regions 2022-2030. The least stringent (i.e., the highest) fossil steam and NGCC emission rate among the three regions is identified and used to establish the emission performance rates described in Section VI of the Preamble. Because the least stringent emission rate determines BSER, for the two non-binding regions for each technology source, the amount of BB1, BB2, and BB3 potential assumed in the previous steps reflects only building block potential – not the amount of building block levels assumed in BSER as those potential resulted in rates beyond BSER.
H22: 1. As described in the GHG Mitigation Measures TSD, the BB2 and BB3 assumed potential changes for each year from 2022 through 2030 2. The region with the least stringent rate can differ by year. For the fossil steam rate, the Eastern Interconnection is the limiting region in all years. For the NGCC rate, the Texas Interconnection is the limiting region for 2022 through 2026, and the Eastern Interconnection is the limiting region for 2027 through 2030.
BD42: Fossil Steam | BG42: NGCC
BD43: Eastern | BE43: Western | BF43: Texas | BG43: Eastern | BI43: Western | BJ43: Texas
BC44: 2022 | BD44: =INDEX('Appendix 4 - Category-spec calc'!$A$1:$Z$90,VLOOKUP($BC44,$AW$56:$AX$64,2,0)+VLOOKUP(BD$43,$BA$56:$BB$58,2,0),22) -> 1740.871168 | BE44: =INDEX('Appendix 4 - Category-spec calc'!$A$1:$Z$90,VLOOKUP($BC44,$AW$56:$AX$64,2,0)+VLOOKUP(BE$43,$BA$56:$BB$58,2,0),22) -> 1530.716553 | BF44: =INDEX('Appendix 4 - Category-spec calc'!$A$1:$Z$90,VLOOKUP($BC44,$AW$56:$AX$64,2,0)+VLOOKUP(BF$43,$BA$56:$BB$58,2,0),22) -> 1656.722379 | BG44: =INDEX('Appendix 4 - Category-spec calc'!$A$1:$Z$90,VLOOKUP($BC44,$AW$56:$AX$64,2,0)+VLOOKUP(BG$43,$BA$56:$BB$58,2,0),23) -> 837.699475 | BI44: =INDEX('Appendix 4 - Category-spec calc'!$A$1:$Z$90,VLOOKUP($BC44,$AW$56:$AX$64,2,0)+VLOOKUP(BI$43,$BA$56:$BB$58,2,0),23) -> 808.3383623 | BJ44: =INDEX('Appendix 4 - Category-spec calc'!$A$1:$Z$90,VLOOKUP($BC44,$AW$56:$AX$64,2,0)+VLOOKUP(BJ$43,$BA$56:$BB$58,2,0),23) -> 897.5510043
BC45: =BC44+1 -> 2023 | BD45: =INDEX('Appendix 4 - Category-spec calc'!$A$1:$Z$90,VLOOKUP($BC45,$AW$56:$AX$64,2,0)+VLOOKUP(BD$43,$BA$56:$BB$58,2,0),22) -> 1680.511033 | BE45: =INDEX('Appendix 4 - Category-spec calc'!$A$1:$Z$90,VLOOKUP($BC45,$AW$56:$AX$64,2,0)+VLOOKUP(BE$43,$BA$56:$BB$58,2,0),22) -> 1417.535184 | BF45: =INDEX('Appendix 4 - Category-spec calc'!$A$1:$Z$90,VLOOKUP($BC45,$AW$56:$AX$64,2,0)+VLOOKUP(BF$43,$BA$56:$BB$58,2,0),22) -> 1456.810292 | BG45: =INDEX('Appendix 4 - Category-spec calc'!$A$1:$Z$90,VLOOKUP($BC45,$AW$56:$AX$64,2,0)+VLOOKUP(BG$43,$BA$56:$BB$58,2,0),23) -> 835.6074711 | BI45: =INDEX('Appendix 4 - Category-spec calc'!$A$1:$Z$90,VLOOKUP($BC45,$AW$56:$AX$64,2,0)+VLOOKUP(BI$43,$BA$56:$BB$58,2,0),23) -> 806.3501427 | BJ45: =INDEX('Appendix 4 - Category-spec calc'!$A$1:$Z$90,VLOOKUP($BC45,$AW$56:$AX$64,2,0)+VLOOKUP(BJ$43,$BA$56:$BB$58,2,0),23) -> 877.0549082
BC46: =BC45+1 -> 2024 | BD46: =INDEX('Appendix 4 - Category-spec calc'!$A$1:$Z$90,VLOOKUP($BC46,$AW$56:$AX$64,2,0)+VLOOKUP(BD$43,$BA$56:$BB$58,2,0),22) -> 1591.6156 | BE46: =INDEX('Appendix 4 - Category-spec calc'!$A$1:$Z$90,VLOOKUP($BC46,$AW$56:$AX$64,2,0)+VLOOKUP(BE$43,$BA$56:$BB$58,2,0),22) -> 1213.214646 | BF46: =INDEX('Appendix 4 - Category-spec calc'!$A$1:$Z$90,VLOOKUP($BC46,$AW$56:$AX$64,2,0)+VLOOKUP(BF$43,$BA$56:$BB$58,2,0),22) -> 1204.391083 | BG46: =INDEX('Appendix 4 - Category-spec calc'!$A$1:$Z$90,VLOOKUP($BC46,$AW$56:$AX$64,2,0)+VLOOKUP(BG$43,$BA$56:$BB$58,2,0),23) -> 827.8043506 | BI46: =INDEX('Appendix 4 - Category-spec calc'!$A$1:$Z$90,VLOOKUP($BC46,$AW$56:$AX$64,2,0)+VLOOKUP(BI$43,$BA$56:$BB$58,2,0),23) -> 792.0618383 | BJ46: =INDEX('Appendix 4 - Category-spec calc'!$A$1:$Z$90,VLOOKUP($BC46,$AW$56:$AX$64,2,0)+VLOOKUP(BJ$43,$BA$56:$BB$58,2,0),23) -> 855.0171699
BC47: 2025 | BD47: =INDEX('Appendix 4 - Category-spec calc'!$A$1:$Z$90,VLOOKUP($BC47,$AW$56:$AX$64,2,0)+VLOOKUP(BD$43,$BA$56:$BB$58,2,0),22) -> 1546.308859 | BE47: =INDEX('Appendix 4 - Category-spec calc'!$A$1:$Z$90,VLOOKUP($BC47,$AW$56:$AX$64,2,0)+VLOOKUP(BE$43,$BA$56:$BB$58,2,0),22) -> 988.3642538 | BF47: =INDEX('Appendix 4 - Category-spec calc'!$A$1:$Z$90,VLOOKUP($BC47,$AW$56:$AX$64,2,0)+VLOOKUP(BF$43,$BA$56:$BB$58,2,0),22) -> 915.7731623 | BG47: =INDEX('Appendix 4 - Category-spec calc'!$A$1:$Z$90,VLOOKUP($BC47,$AW$56:$AX$64,2,0)+VLOOKUP(BG$43,$BA$56:$BB$58,2,0),23) -> 817.6688226 | BI47: =INDEX('Appendix 4 - Category-spec calc'!$A$1:$Z$90,VLOOKUP($BC47,$AW$56:$AX$64,2,0)+VLOOKUP(BI$43,$BA$56:$BB$58,2,0),23) -> 779.7393502 | BJ47: =INDEX('Appendix 4 - Category-spec calc'!$A$1:$Z$90,VLOOKUP($BC47,$AW$56:$AX$64,2,0)+VLOOKUP(BJ$43,$BA$56:$BB$58,2,0),23) -> 836.1520383
BC48: 2026 | BD48: =INDEX('Appendix 4 - Category-spec calc'!$A$1:$Z$90,VLOOKUP($BC48,$AW$56:$AX$64,2,0)+VLOOKUP(BD$43,$BA$56:$BB$58,2,0),22) -> 1500.003591 | BE48: =INDEX('Appendix 4 - Category-spec calc'!$A$1:$Z$90,VLOOKUP($BC48,$AW$56:$AX$64,2,0)+VLOOKUP(BE$43,$BA$56:$BB$58,2,0),22) -> 740.2428429 | BF48: =INDEX('Appendix 4 - Category-spec calc'!$A$1:$Z$90,VLOOKUP($BC48,$AW$56:$AX$64,2,0)+VLOOKUP(BF$43,$BA$56:$BB$58,2,0),22) -> 644.7803092 | BG48: =INDEX('Appendix 4 - Category-spec calc'!$A$1:$Z$90,VLOOKUP($BC48,$AW$56:$AX$64,2,0)+VLOOKUP(BG$43,$BA$56:$BB$58,2,0),23) -> 807.7784887 | BI48: =INDEX('Appendix 4 - Category-spec calc'!$A$1:$Z$90,VLOOKUP($BC48,$AW$56:$AX$64,2,0)+VLOOKUP(BI$43,$BA$56:$BB$58,2,0),23) -> 769.1170517 | BJ48: =INDEX('Appendix 4 - Category-spec calc'!$A$1:$Z$90,VLOOKUP($BC48,$AW$56:$AX$64,2,0)+VLOOKUP(BJ$43,$BA$56:$BB$58,2,0),23) -> 817.3262271
BC49: 2027 | BD49: =INDEX('Appendix 4 - Category-spec calc'!$A$1:$Z$90,VLOOKUP($BC49,$AW$56:$AX$64,2,0)+VLOOKUP(BD$43,$BA$56:$BB$58,2,0),22) -> 1452.666419 | BE49: =INDEX('Appendix 4 - Category-spec calc'!$A$1:$Z$90,VLOOKUP($BC49,$AW$56:$AX$64,2,0)+VLOOKUP(BE$43,$BA$56:$BB$58,2,0),22) -> 553.8851305 | BF49: =INDEX('Appendix 4 - Category-spec calc'!$A$1:$Z$90,VLOOKUP($BC49,$AW$56:$AX$64,2,0)+VLOOKUP(BF$43,$BA$56:$BB$58,2,0),22) -> 564.1078917 | BG49: =INDEX('Appendix 4 - Category-spec calc'!$A$1:$Z$90,VLOOKUP($BC49,$AW$56:$AX$64,2,0)+VLOOKUP(BG$43,$BA$56:$BB$58,2,0),23) -> 798.1245578 | BH49: =INDEX('Appendix 4 - Category-spec calc'!$A$1:$Z$90,VLOOKUP($BC49,$AW$56:$AX$64,2,0)+VLOOKUP(BG$43,$BA$56:$BB$58,2,0),23) -> 798.1245578 | BI49: =INDEX('Appendix 4 - Category-spec calc'!$A$1:$Z$90,VLOOKUP($BC49,$AW$56:$AX$64,2,0)+VLOOKUP(BI$43,$BA$56:$BB$58,2,0),23) -> 755.5418181 | BJ49: =INDEX('Appendix 4 - Category-spec calc'!$A$1:$Z$90,VLOOKUP($BC49,$AW$56:$AX$64,2,0)+VLOOKUP(BJ$43,$BA$56:$BB$58,2,0),23) -> 789.3600779 | BK49: =INDEX('Appendix 4 - Category-spec calc'!$A$1:$Z$90,VLOOKUP($BC49,$AW$56:$AX$64,2,0)+VLOOKUP(BJ$43,$BA$56:$BB$58,2,0),23) -> 789.3600779
BC50: 2028 | BD50: =INDEX('Appendix 4 - Category-spec calc'!$A$1:$Z$90,VLOOKUP($BC50,$AW$56:$AX$64,2,0)+VLOOKUP(BD$43,$BA$56:$BB$58,2,0),22) -> 1404.262459 | BE50: =INDEX('Appendix 4 - Category-spec calc'!$A$1:$Z$90,VLOOKUP($BC50,$AW$56:$AX$64,2,0)+VLOOKUP(BE$43,$BA$56:$BB$58,2,0),22) -> 495.0766306 | BF50: =INDEX('Appendix 4 - Category-spec calc'!$A$1:$Z$90,VLOOKUP($BC50,$AW$56:$AX$64,2,0)+VLOOKUP(BF$43,$BA$56:$BB$58,2,0),22) -> 471.3952615 | BH50: =INDEX('Appendix 4 - Category-spec calc'!$A$1:$Z$90,VLOOKUP($BC50,$AW$56:$AX$64,2,0)+VLOOKUP(BG$43,$BA$56:$BB$58,2,0),23) -> 788.6986539 | BI50: =INDEX('Appendix 4 - Category-spec calc'!$A$1:$Z$90,VLOOKUP($BC50,$AW$56:$AX$64,2,0)+VLOOKUP(BI$43,$BA$56:$BB$58,2,0),23) -> 734.7696115 | BK50: =INDEX('Appendix 4 - Category-spec calc'!$A$1:$Z$90,VLOOKUP($BC50,$AW$56:$AX$64,2,0)+VLOOKUP(BJ$43,$BA$56:$BB$58,2,0),23) -> 760.0492798
BC51: 2029 | BD51: =INDEX('Appendix 4 - Category-spec calc'!$A$1:$Z$90,VLOOKUP($BC51,$AW$56:$AX$64,2,0)+VLOOKUP(BD$43,$BA$56:$BB$58,2,0),22) -> 1354.75524 | BE51: =INDEX('Appendix 4 - Category-spec calc'!$A$1:$Z$90,VLOOKUP($BC51,$AW$56:$AX$64,2,0)+VLOOKUP(BE$43,$BA$56:$BB$58,2,0),22) -> 430.8233593 | BF51: =INDEX('Appendix 4 - Category-spec calc'!$A$1:$Z$90,VLOOKUP($BC51,$AW$56:$AX$64,2,0)+VLOOKUP(BF$43,$BA$56:$BB$58,2,0),22) -> 363.729581 | BH51: =INDEX('Appendix 4 - Category-spec calc'!$A$1:$Z$90,VLOOKUP($BC51,$AW$56:$AX$64,2,0)+VLOOKUP(BG$43,$BA$56:$BB$58,2,0),23) -> 779.4927925 | BI51: =INDEX('Appendix 4 - Category-spec calc'!$A$1:$Z$90,VLOOKUP($BC51,$AW$56:$AX$64,2,0)+VLOOKUP(BI$43,$BA$56:$BB$58,2,0),23) -> 713.0820029 | BK51: =INDEX('Appendix 4 - Category-spec calc'!$A$1:$Z$90,VLOOKUP($BC51,$AW$56:$AX$64,2,0)+VLOOKUP(BJ$43,$BA$56:$BB$58,2,0),23) -> 729.2944651
BC52: 2030 | BD52: =INDEX('Appendix 4 - Category-spec calc'!$A$1:$Z$90,VLOOKUP($BC52,$AW$56:$AX$64,2,0)+VLOOKUP(BD$43,$BA$56:$BB$58,2,0),22) -> 1304.106606 | BE52: =INDEX('Appendix 4 - Category-spec calc'!$A$1:$Z$90,VLOOKUP($BC52,$AW$56:$AX$64,2,0)+VLOOKUP(BE$43,$BA$56:$BB$58,2,0),22) -> 360.3324588 | BF52: =INDEX('Appendix 4 - Category-spec calc'!$A$1:$Z$90,VLOOKUP($BC52,$AW$56:$AX$64,2,0)+VLOOKUP(BF$43,$BA$56:$BB$58,2,0),22) -> 237.1760085 | BH52: =INDEX('Appendix 4 - Category-spec calc'!$A$1:$Z$90,VLOOKUP($BC52,$AW$56:$AX$64,2,0)+VLOOKUP(BG$43,$BA$56:$BB$58,2,0),23) -> 770.4993571 | BI52: =INDEX('Appendix 4 - Category-spec calc'!$A$1:$Z$90,VLOOKUP($BC52,$AW$56:$AX$64,2,0)+VLOOKUP(BI$43,$BA$56:$BB$58,2,0),23) -> 690.4171182 | BK52: =INDEX('Appendix 4 - Category-spec calc'!$A$1:$Z$90,VLOOKUP($BC52,$AW$56:$AX$64,2,0)+VLOOKUP(BJ$43,$BA$56:$BB$58,2,0),23) -> 696.9862282
AW55: year | AX55: row | BA55: region | BB55: row add
AW56: 2022 | AX56: 88 | BA56: Eastern | BB56: 0
AW57: 2023 | AX57: 79 | BA57: Western | BB57: 1
AW58: 2024 | AX58: 70 | BA58: Texas | BB58: 2
AW59: 2025 | AX59: 61
AW60: 2026 | AX60: 52
AW61: 2027 | AX61: 42
AW62: 2028 | AX62: 32
AW63: 2029 | AX63: 22
AW64: 2030 | AX64: 13

Sheet StateGenMix
B2: Clean Power Plan Goal Calculation Viewer
H3: State Generation Mix
H5: In Step 1 of the rate calculation, the generation by source category is determined for each state and region. In most instances, states are encompassed entirely by a single region. For these states, the state generation mix is simply the total determined in step 1. However, three states, Montana, New Mexico, and Texas, have sources in multiple regions. For these states, the state generation mix is determined by adding the regional components within the state determined in step 1. [See Appendix 3 for regional data and appendix 5 for sum of state level data]
H11: Select a state below to view the 2012 generation mix for that state
I12: State: | K12: Alabama
T13: Generation (MWh) | Y13: Percent
K14: 2012 Fossil Steam Generation | T14: =VLOOKUP($K$12,'Appendix 5- State Goals'!$B$6:$F$55,2,0) -> 46059839.57 | Y14: =VLOOKUP($K$12,'Appendix 5- State Goals'!$B$6:$F$55,4,0) -> 0.4626714621
K15: 2012 NGCC Generation | T15: =VLOOKUP($K$12,'Appendix 5- State Goals'!$B$6:$F$55,3,0) -> 53492095.96 | Y15: =VLOOKUP($K$12,'Appendix 5- State Goals'!$B$6:$F$55,5,0) -> 0.5373285379
T16: *Note: Data shown is the 2012 adjusted baseline
H22: 1. See also: CO2 Emission Performance Rate and Goal Computation TSD 2. See also: CPP final rule preamble section VI.D.3
B63: Alabama | C63: AL
B64: Arkansas | C64: AR
B65: Arizona | C65: AZ
B66: California | C66: CA
B67: Colorado | C67: CO
B68: Connecticut | C68: CT
B69: Delaware | C69: DE
B70: Florida | C70: FL
B71: Lands of the Fort Mojave Tribe | C71: Fort Mojave
B72: Georgia | C72: GA
B73: Iowa | C73: IA
B74: Idaho | C74: ID
B75: Illinois | C75: IL
B76: Indiana | C76: IN
B77: Kansas | C77: KS
B78: Kentucky | C78: KY
B79: Louisiana | C79: LA
B80: Massachusetts | C80: MA
B81: Maryland | C81: MD
B82: Maine | C82: ME
B83: Michigan | C83: MI
B84: Minnesota | C84: MN
B85: Missouri | C85: MO
B86: Mississippi | C86: MS
B87: Montana | C87: MT
B88: Lands of the Navajo Nation | C88: Navajo
B89: North Carolina | C89: NC
B90: North Dakota | C90: ND
B91: Nebraska | C91: NE
B92: New Hampshire | C92: NH
B93: New Jersey | C93: NJ
B94: New Mexico | C94: NM
B95: Nevada | C95: NV
B96: New York | C96: NY
B97: Ohio | C97: OH
B98: Oklahoma | C98: OK
B99: Oregon | C99: OR
B100: Pennsylvania | C100: PA
B101: Rhode Island | C101: RI
B102: South Carolina | C102: SC
B103: South Dakota | C103: SD
B104: Tennessee | C104: TN
B105: Texas | C105: TX
B106: Lands of the Uintah and Ouray Reservation | C106: UTE
B107: Utah | C107: UT
B108: Virginia | C108: VA
B109: Washington | C109: WA
B110: Wisconsin | C110: WI
B111: West Virginia | C111: WV
B112: Wyoming | C112: WY

Sheet State Goal Rates
B2: Clean Power Plan Goal Calculation Viewer
H3: State Goal Rates
I4: To calculate state goals in the final CPP, the EPA calculates the affected fleet rate for states assuming that all likely affected baseline sources meet the respective category-specific emission performance rates presented while generating at the same baseline generation total. For each state, EPA calculated an average of the category-specific fossil steam and NGCC rates, weighting by the state’s baseline generation levels for each source category. These blended state rates reflect the total emission rate from likely affected units in the state if they operated at baseline generation levels while meeting the category-specific rates.
I11: Select a state/year below to view calculation for that combination
J12: State: | L12: Alabama | R12: Year: | T12: Final (2030)
M14: = (1,305 lbs/MWh * 46% ) + (771 lbs/MWh * 54%)
M15: =" = "&TEXT(VLOOKUP($J$45,'Appendix 5- State Goals'!$A$6:$Q$55,MATCH(IF($T$12="Final (2030)","Final",$T$12),'Appendix 5- State Goals'!$A$5:$Q$5,0),0),"###,##0")&" lbs/MWh" -> = 1,018 lbs/MWh
H22: 1. See also: CO2 Emission Performance Rate and Goal Computation TSD 2. See also: CPP final rule preamble section VII.B
J42: =T12&" "&$L$12&" Goal Rate" -> Final (2030) Alabama Goal Rate
J43: =$L$12&" Goal Rate" -> Alabama Goal Rate
J45: =VLOOKUP($L$12,$B$63:$C$112,2,0) -> AL | AB45: =$L$12&" Interim Goal (avg of 2022-2029)" -> Alabama Interim Goal (avg of 2022-2029)
J46: = (1,305 lbs/MWh * 75%) + (771 lbs/MWh * 25% ) | AH46: =$L$12&" Interim Goal Rate (2022-2029)" -> Alabama Interim Goal Rate (2022-2029) | AI46: =" = "&TEXT(VLOOKUP(VLOOKUP($L$12,$B$63:$C$109,2,0),'Appendix 5- State Goals'!$A$6:$Q$55,16,0),"###,##0")&" lbs/MWh" -> = 1,157 lbs/MWh
J48: ="=" -> = | AH48: =$L$12&" Final Goal Rate (2030)" -> Alabama Final Goal Rate (2030) | AI48: ="= "&TEXT(VLOOKUP(VLOOKUP($L$12,$B$63:$C$109,2,0),'Appendix 5- State Goals'!$A$6:$Q$55,17),"###,##0")&" lbs/MWh" -> = 1,018 lbs/MWh
J49: =" ("&TEXT(INDEX('Appendix 4 - Category-spec calc'!$B$5:$L$6,1,VLOOKUP($T$12,$J$63:$K$72,2,0)),"###,##0") -> (1,305
J50: =" lbs/MWh * " -> lbs/MWh *
J51: =TEXT(VLOOKUP($J$45,'Appendix 5- State Goals'!$A$6:$Q$55,5,0),"#0%")&" )" -> 46% )
J52: =" + " -> +
J53: =" ("&TEXT(INDEX('Appendix 4 - Category-spec calc'!$B$5:$L$6,2,VLOOKUP($T$12,$J$63:$K$72,2,0)),"###,##0") -> (771 | AC53: 2022 | AD53: =VLOOKUP($L$12,'Appendix 5- State Goals'!$B$6:$Q$55,6,0) -> 1287.731177
J54: =" lbs/MWh * " -> lbs/MWh * | AC54: 2023 | AD54: =VLOOKUP($L$12,'Appendix 5- State Goals'!$B$6:$Q$55,7,0) -> 1248.791128
J55: =TEXT(VLOOKUP($J$45,'Appendix 5- State Goals'!$A$6:$Q$55,6,0),"#0%") -> 54% | AC55: 2024 | AD55: =VLOOKUP($L$12,'Appendix 5- State Goals'!$B$6:$Q$55,8,0) -> 1195.820242
J56: =")" -> ) | AC56: 2025 | AD56: =VLOOKUP($L$12,'Appendix 5- State Goals'!$B$6:$Q$55,9,0) -> 1164.721333
AC57: 2026 | AD57: =VLOOKUP($L$12,'Appendix 5- State Goals'!$B$6:$Q$55,10,0) -> 1133.181561
AC58: 2027 | AD58: =VLOOKUP($L$12,'Appendix 5- State Goals'!$B$6:$Q$55,11,0) -> 1100.962398
AC59: 2028 | AD59: =VLOOKUP($L$12,'Appendix 5- State Goals'!$B$6:$Q$55,12,0) -> 1073.50246
AC60: 2029 | AD60: =VLOOKUP($L$12,'Appendix 5- State Goals'!$B$6:$Q$55,13,0) -> 1045.65031
AC61: 2030 | AD61: =VLOOKUP($L$12,'Appendix 5- State Goals'!$B$6:$Q$55,16,0) -> 1018.066561
B63: Alabama | C63: AL | J63: 2022 | K63: 1
B64: Arkansas | C64: AR | J64: 2023 | K64: 2
B65: Arizona | C65: AZ | J65: 2024 | K65: 3
B66: California | C66: CA | J66: 2025 | K66: 4
B67: Colorado | C67: CO | J67: 2026 | K67: 5
B68: Connecticut | C68: CT | J68: 2027 | K68: 6
B69: Delaware | C69: DE | J69: 2028 | K69: 7
B70: Florida | C70: FL | J70: 2029 | K70: 8
B71: Lands of the Fort Mojave Tribe | C71: Fort Mojave | J71: Final (2030) | K71: 11
B72: Georgia | C72: GA | J72: Interim | K72: 10
B73: Iowa | C73: IA
B74: Idaho | C74: ID
B75: Illinois | C75: IL
B76: Indiana | C76: IN
B77: Kansas | C77: KS
B78: Kentucky | C78: KY
B79: Louisiana | C79: LA
B80: Massachusetts | C80: MA
B81: Maryland | C81: MD
B82: Maine | C82: ME
B83: Michigan | C83: MI
B84: Minnesota | C84: MN
B85: Missouri | C85: MO
B86: Mississippi | C86: MS
B87: Montana | C87: MT
B88: Lands of the Navajo Nation | C88: Navajo
B89: North Carolina | C89: NC
B90: North Dakota | C90: ND
B91: Nebraska | C91: NE
B92: New Hampshire | C92: NH
B93: New Jersey | C93: NJ
B94: New Mexico | C94: NM
B95: Nevada | C95: NV
B96: New York | C96: NY
B97: Ohio | C97: OH
B98: Oklahoma | C98: OK
B99: Oregon | C99: OR
B100: Pennsylvania | C100: PA
B101: Rhode Island | C101: RI
B102: South Carolina | C102: SC
B103: South Dakota | C103: SD
B104: Tennessee | C104: TN
B105: Texas | C105: TX
B106: Lands of the Uintah and Ouray Reservation | C106: UTE
B107: Utah | C107: UT
B108: Virginia | C108: VA
B109: Washington | C109: WA
B110: Wisconsin | C110: WI
B111: West Virginia | C111: WV
B112: Wyoming | C112: WY

Sheet Mass Goal Overview
B2: Clean Power Plan Goal Calculation Viewer
H3: Mass Goal Overview[1] | AS3: Mass Goal Overview
I4: As described in Preamble section VII.C, states have the option of complying with the CPP via an equivalent mass goal. Mass goals are calculated using the formula below, which adds two components together. First, it includes the emissions associated with each state’s emission rate goal, which is the product of the state emission rate goal and 2012 affected EGU generation. Second, it includes the emissions associated with the ability of affected EGUs to expand output under rate-based compliance if they deploy the amount of RE quantified under building block 3 that is not included in the ultimate quantification of the source category-specific performance rates.
H22: 1. Mass Goals presented here do not include the new source complement (for states that choose to include new sources). For more information on the new source complement, see the New Source Complements TSD for CPP Final Rule. 2. See also: CO2 Emission Performance Rate and Goal Computation TSD 3. See also: CPP final rule preamble section VII.C
B63: Alabama | C63: AL
B64: Arkansas | C64: AR
B65: Arizona | C65: AZ
B66: California | C66: CA
B67: Colorado | C67: CO
B68: Connecticut | C68: CT
B69: Delaware | C69: DE
B70: Florida | C70: FL
B71: Lands of the Fort Mojave Tribe | C71: Fort Mojave
B72: Georgia | C72: GA
B73: Iowa | C73: IA
B74: Idaho | C74: ID
B75: Illinois | C75: IL
B76: Indiana | C76: IN
B77: Kansas | C77: KS
B78: Kentucky | C78: KY
B79: Louisiana | C79: LA
B80: Massachusetts | C80: MA
B81: Maryland | C81: MD
B82: Maine | C82: ME
B83: Michigan | C83: MI
B84: Minnesota | C84: MN
B85: Missouri | C85: MO
B86: Mississippi | C86: MS
B87: Montana | C87: MT
B88: Lands of the Navajo Nation | C88: Navajo
B89: North Carolina | C89: NC
B90: North Dakota | C90: ND
B91: Nebraska | C91: NE
B92: New Hampshire | C92: NH
B93: New Jersey | C93: NJ
B94: New Mexico | C94: NM
B95: Nevada | C95: NV
B96: New York | C96: NY
B97: Ohio | C97: OH
B98: Oklahoma | C98: OK
B99: Oregon | C99: OR
B100: Pennsylvania | C100: PA
B101: Rhode Island | C101: RI
B102: South Carolina | C102: SC
B103: South Dakota | C103: SD
B104: Tennessee | C104: TN
B105: Texas | C105: TX
B106: Lands of the Uintah and Ouray Reservation | C106: UTE
B107: Utah | C107: UT
B108: Virginia | C108: VA
B109: Washington | C109: WA
B110: Wisconsin | C110: WI
B111: West Virginia | C111: WV
B112: Wyoming | C112: WY

Sheet MG Step 1
B2: Clean Power Plan Goal Calculation Viewer
H3: Mass Goals: Calculating Excess BB3 Generation | AS3: TITLE HERE
I4: Under rate-based implementation, all affected EGUs have the opportunity to increase utilization, provided that sufficient emission reduction measures are available to meet the category-specific emission performance rates. Since the emission performance rate methodology, which selects the highest regional value for each source category as the CO2 emission performance rate, there are cost-effective lower-emitting generation opportunities available to affected EGUs at a national level as a means to increase their own output (and, as a result, their own emissions) while meeting the relevant emission performance rate. To afford affected EGUs that are subject to a mass-based goal similar compliance flexibility as EGUs subject to a rate-based goal, the EPA quantifies the emissions associated with the potential realization of these lower-emitting generation opportunities and incorporates those additional tons into each state’s mass-based goal. To quantify that amount of excess building block 3 generation, the EPA uses an optimization algorithm to reduce the region’s building block 3 potential until the regional rate is equal to the limiting region’s rate for each source category. The sum of the three regions' BB3 generation that is not needed to meet the goal rates for each year appears in the table below. See the CO2 Emission Performance Rate and Goal Computation TSD for more information on the optimization algorithm.
J17: CONUS BB3 Not Captured for Goal Rates
M18: 2022 | P18: 2023 | S18: 2024 | V18: 2025 | Y18: 2026 | AB18: 2027 | AE18: 2028 | AH18: 2029 | AK18: 2030
J19: MWh | M19: ='Appendix 5- State Goals'!U3 -> 94975762.49 | P19: ='Appendix 5- State Goals'!V3 -> 90713245.93 | S19: ='Appendix 5- State Goals'!W3 -> 92966029.46 | V19: ='Appendix 5- State Goals'!X3 -> 102634454.1 | Y19: ='Appendix 5- State Goals'!Y3 -> 111033909.9 | AB19: ='Appendix 5- State Goals'!Z3 -> 113468333.3 | AE19: ='Appendix 5- State Goals'!AA3 -> 131936775.2 | AH19: ='Appendix 5- State Goals'!AB3 -> 150167508.3 | AK19: ='Appendix 5- State Goals'!AC3 -> 166255493.4
AW63: year | AX63: row | BA63: region | BB63: row add | BI63: year | BJ63: column
AW64: 2022 | AX64: 79 | AY64: =AY65+9 -> 79 | BA64: Eastern | BB64: 0 | BI64: 2022 | BJ64: 4
AW65: 2023 | AX65: 70 | AY65: 70 | BA65: Western | BB65: 1 | BI65: 2023 | BJ65: 5
AW66: 2024 | AX66: 61 | AY66: 61 | BA66: Texas | BB66: 2 | BI66: 2024 | BJ66: 6
AW67: 2025 | AX67: 52 | AY67: 52 | BI67: 2025 | BJ67: 7
AW68: 2026 | AX68: 43 | AY68: 43 | BI68: 2026 | BJ68: 8
AW69: 2027 | AX69: 34 | AY69: 34 | BI69: 2027 | BJ69: 9
AW70: 2028 | AX70: 25 | AY70: 25 | BI70: 2028 | BJ70: 10
AW71: 2029 | AX71: 16 | AY71: =AY72+9 -> 16 | BI71: 2029 | BJ71: 11
AW72: 2030 | AX72: 7 | AY72: 7 | BI72: 2030 | BJ72: 12

Sheet MG Step 2
B2: Clean Power Plan Goal Calculation Viewer
H3: Mass Goals: State Shares of Not Captured BB3 Generation
I4: Once EPA determines the BB3 generation not captured in the Source-Category Specific Performance Rates, EPA apportions the excess building block 3 generation to states on the basis of each state’s 2012 adjusted share of affected EGU generation,[1] as shown in the calculation below.
I9: Select a state/year below to view that state's share of the BB3 Generation not Captured in Source Category Specific Performance Rates
K12: State: | M12: Alabama | S12: Year: | U12: 2030
I14: =M12&" Share of Not Captured BB3 Generation, "&U12 -> Alabama Share of Not Captured BB3 Generation, 2030 | S14: =TEXT(VLOOKUP($M$12,'Appendix 5- State Goals'!$B$6:$D$55,2,0)+VLOOKUP($M$12,'Appendix 5- State Goals'!$B$6:$D$55,3,0),"###,###,##0")&" MWh" -> 99,551,936 MWh | AB14: =" * "&TEXT(INDEX('Appendix 5- State Goals'!$U$3:$AC$3,1,MATCH($U$12,'Appendix 5- State Goals'!$U$2:$AC$2,0)),"###,###,##0")&" MWh" -> * 166,255,493 MWh
S15: =TEXT(SUM('Appendix 5- State Goals'!$C$6:$D$55),"###,###,##0")&" MWh" -> 2,715,465,610 MWh
S17: =TEXT(VLOOKUP($M$12,'Appendix 5- State Goals'!$T$6:$AC$55,MATCH($U$12,'Appendix 5- State Goals'!$T$5:$AC$5,0),0),"###,##,##0")&" MWh" -> 6,095,108 MWh
H22: 1. The adjusted generation baseline for affected EGUs is described in Appendix 3.
B63: Alabama | C63: AL
B64: Arkansas | C64: AR
B65: Arizona | C65: AZ
B66: California | C66: CA
B67: Colorado | C67: CO
B68: Connecticut | C68: CT
B69: Delaware | C69: DE
B70: Florida | C70: FL
B71: Lands of the Fort Mojave Tribe | C71: Fort Mojave
B72: Georgia | C72: GA
B73: Iowa | C73: IA
B74: Idaho | C74: ID
B75: Illinois | C75: IL
B76: Indiana | C76: IN
B77: Kansas | C77: KS
B78: Kentucky | C78: KY
B79: Louisiana | C79: LA
B80: Massachusetts | C80: MA
B81: Maryland | C81: MD
B82: Maine | C82: ME
B83: Michigan | C83: MI
B84: Minnesota | C84: MN
B85: Missouri | C85: MO
B86: Mississippi | C86: MS
B87: Montana | C87: MT
B88: Lands of the Navajo Nation | C88: Navajo
B89: North Carolina | C89: NC
B90: North Dakota | C90: ND
B91: Nebraska | C91: NE
B92: New Hampshire | C92: NH
B93: New Jersey | C93: NJ
B94: New Mexico | C94: NM
B95: Nevada | C95: NV
B96: New York | C96: NY
B97: Ohio | C97: OH
B98: Oklahoma | C98: OK
B99: Oregon | C99: OR
B100: Pennsylvania | C100: PA
B101: Rhode Island | C101: RI
B102: South Carolina | C102: SC
B103: South Dakota | C103: SD
B104: Tennessee | C104: TN
B105: Texas | C105: TX
B106: Lands of the Uintah and Ouray Reservation | C106: UTE
B107: Utah | C107: UT
B108: Virginia | C108: VA
B109: Washington | C109: WA
B110: Wisconsin | C110: WI
B111: West Virginia | C111: WV
B112: Wyoming | C112: WY

Sheet MG Step 3
B2: Clean Power Plan Goal Calculation Viewer
H3: Mass Goals: Mass Adjustments
I4: Once the state's share of the BB3 Generation not captured in the Source Category Specific Performance Rates has been determined, EPA can calculate the Mass Adjustment for each state and year. The mass adjustment reflects the ability of affected EGUs to procure incremental RE to increase their own generation and emissions if subject to an applicable rate-based standard. In that rate-based compliance scenario, every zero-emitting MWh added to the denominator of an EGU’s effective emission rate would enable that EGU to add another MWh of generation with twice the emissions intensity of the applicable rate-based standard, because the average intensity of that emitting MWh combined with the zero-emitting MWh would then equal the applicable rate-based standard and thus maintain that EGU’s compliance.[1,2]
I13: Mass adjustments and the final mass goals for each state are calculated in step 4
H22: 1. The assumption that one MWh of incremental RE enables one MWh of additional affected EGU generation is consistent with the historical performance of affected EGUs over time as well as expected future demand levels. Refer to the memorandum and accompanying spreadsheet ‘Historical Affected EGU Performance’ for additional details, available in the docket. 2. The emissions quantified through this particular mass adjustment approach could also represent a variety of source-specific and fleet-wide actions that could result if affected EGUs procure incremental RE beyond what is required to demonstrate the source category-specific performance rate.

Sheet MG Step 4
B2: Clean Power Plan Goal Calculation Viewer
H3: Calculating State Mass Goals[1]
I11: Select a state/year below to view calculation for that combination
J12: State: | L12: Alabama | R12: Year: | T12: 2030
M14: = (1,018 lbs/MWh * 99,551,936 MWh + (1,018 lbs/MWh * 6,095,108 MWh * 2)
M16: =" = "&TEXT($O$58,"###,###,##0")&" short tons" -> = 56,880,474 short tons
H22: 1. Mass Goals presented here do not include the new source complement (for states that choose to include new sources). For more information on the new source complement, see the New Source Complements TSD for CPP Final Rule. 2. See also: CO2 Emission Performance Rate and Goal Computation TSD 3. See also: CPP final rule preamble section VII.C
J42: =L12&" Mass Goal "&T12 -> Alabama Mass Goal 2030
J43: =L12&" Mass Goal" -> Alabama Mass Goal
J45: =VLOOKUP($L$12,$B$63:$C$109,2,0) -> AL | AB45: =L12&" Mass Goal 2022-2030" -> Alabama Mass Goal 2022-2030
J46: = (1,305 lbs/MWh * 75%) + (771 lbs/MWh * 25% ) | AH46: =$L$12&" Interim Mass Goal (Annual) (avg of 2022-2029)" -> Alabama Interim Mass Goal (Annual) (avg of 2022-2029) | AI46: =" = "&TEXT(VLOOKUP($L$12,'Appendix 5- State Goals'!$AP$6:$AU$55,5,0),"###,##0")&" short tons" -> = 62,210,288 short tons
J48: ="=" -> = | AH48: =$L$12&" Final Mass Goal (Annual) (2030)" -> Alabama Final Mass Goal (Annual) (2030) | AI48: ="= "&TEXT(VLOOKUP($L$12,'Appendix 5- State Goals'!$AP$6:$AU$55,6,0),"###,##0")&" short tons" -> = 56,880,474 short tons
J49: =" ("&TEXT(INDEX('Appendix 5- State Goals'!$A$6:$Q$55,MATCH($L$12,'Appendix 5- State Goals'!$B$6:$B$55,0),MATCH($T$12,'Appendix 5- State Goals'!$A$5:$Q$5,0)),"###,##0") -> (1,018
J50: =" lbs/MWh * " -> lbs/MWh *
J51: =TEXT(VLOOKUP($L$12,'Appendix 5- State Goals'!$B$6:$D$55,2,0)+VLOOKUP($L$12,'Appendix 5- State Goals'!$B$6:$D$55,3,0),"###,###,###,##0")&" MWh" -> 99,551,936 MWh
J52: =" + " -> +
J53: =" ("&TEXT(INDEX('Appendix 5- State Goals'!$A$6:$Q$55,MATCH($L$12,'Appendix 5- State Goals'!$B$6:$B$55,0),MATCH($T$12,'Appendix 5- State Goals'!$A$5:$Q$5,0)),"###,##0") -> (1,018 | AC53: 2022 | AD53: =VLOOKUP($L$12,'Appendix 5- State Goals'!$AE$6:$AN$55,MATCH($AC53,'Appendix 5- State Goals'!$AE$5:$AN$5,0),0)/1000000 -> 68.58183633
J54: =" lbs/MWh * " -> lbs/MWh * | AC54: 2023 | AD54: =VLOOKUP($L$12,'Appendix 5- State Goals'!$AE$6:$AN$55,MATCH($AC54,'Appendix 5- State Goals'!$AE$5:$AN$5,0),0)/1000000 -> 66.31282503
J55: =TEXT(VLOOKUP($L$12,'Appendix 5- State Goals'!$T$6:$AC$55,MATCH($T$12,'Appendix 5- State Goals'!$T$5:$AC$5,0),0),"###,###,###,##0")&" MWh" -> 6,095,108 MWh | AC55: 2024 | AD55: =VLOOKUP($L$12,'Appendix 5- State Goals'!$AE$6:$AN$55,MATCH($AC55,'Appendix 5- State Goals'!$AE$5:$AN$5,0),0)/1000000 -> 63.59874767
J56: =" * 2)" -> * 2) | AC56: 2025 | AD56: =VLOOKUP($L$12,'Appendix 5- State Goals'!$AE$6:$AN$55,MATCH($AC56,'Appendix 5- State Goals'!$AE$5:$AN$5,0),0)/1000000 -> 62.35761823
AC57: 2026 | AD57: =VLOOKUP($L$12,'Appendix 5- State Goals'!$AE$6:$AN$55,MATCH($AC57,'Appendix 5- State Goals'!$AE$5:$AN$5,0),0)/1000000 -> 61.01796542
O58: =VLOOKUP($L$12,'Appendix 5- State Goals'!$AE$6:$AN$55,MATCH($T$12,'Appendix 5- State Goals'!$AE$5:$AN$5,0),0) -> 56880473.95 | AC58: 2027 | AD58: =VLOOKUP($L$12,'Appendix 5- State Goals'!$AE$6:$AN$55,MATCH($AC58,'Appendix 5- State Goals'!$AE$5:$AN$5,0),0)/1000000 -> 59.38133262
AC59: 2028 | AD59: =VLOOKUP($L$12,'Appendix 5- State Goals'!$AE$6:$AN$55,MATCH($AC59,'Appendix 5- State Goals'!$AE$5:$AN$5,0),0)/1000000 -> 58.62709758
AC60: 2029 | AD60: =VLOOKUP($L$12,'Appendix 5- State Goals'!$AE$6:$AN$55,MATCH($AC60,'Appendix 5- State Goals'!$AE$5:$AN$5,0),0)/1000000 -> 57.80487989
AC61: 2030 | AD61: =VLOOKUP($L$12,'Appendix 5- State Goals'!$AE$6:$AN$55,MATCH($AC61,'Appendix 5- State Goals'!$AE$5:$AN$5,0),0)/1000000 -> 56.88047395
B63: Alabama | C63: AL | J63: 2022 | K63: 2
B64: Arkansas | C64: AR | J64: 2023 | K64: 3
B65: Arizona | C65: AZ | J65: 2024 | K65: 4
B66: California | C66: CA | J66: 2025 | K66: 5
B67: Colorado | C67: CO | J67: 2026 | K67: 6
B68: Connecticut | C68: CT | J68: 2027 | K68: 7
B69: Delaware | C69: DE | J69: 2028 | K69: 8
B70: Florida | C70: FL | J70: 2029 | K70: 9
B71: Lands of the Fort Mojave Tribe | C71: Fort Mojave
B72: Georgia | C72: GA
B73: Iowa | C73: IA
B74: Idaho | C74: ID
B75: Illinois | C75: IL
B76: Indiana | C76: IN
B77: Kansas | C77: KS
B78: Kentucky | C78: KY
B79: Louisiana | C79: LA
B80: Massachusetts | C80: MA
B81: Maryland | C81: MD
B82: Maine | C82: ME
B83: Michigan | C83: MI
B84: Minnesota | C84: MN
B85: Missouri | C85: MO
B86: Mississippi | C86: MS
B87: Montana | C87: MT
B88: Lands of the Navajo Nation | C88: Navajo
B89: North Carolina | C89: NC
B90: North Dakota | C90: ND
B91: Nebraska | C91: NE
B92: New Hampshire | C92: NH
B93: New Jersey | C93: NJ
B94: New Mexico | C94: NM
B95: Nevada | C95: NV
B96: New York | C96: NY
B97: Ohio | C97: OH
B98: Oklahoma | C98: OK
B99: Oregon | C99: OR
B100: Pennsylvania | C100: PA
B101: Rhode Island | C101: RI
B102: South Carolina | C102: SC
B103: South Dakota | C103: SD
B104: Tennessee | C104: TN
B105: Texas | C105: TX
B106: Lands of the Uintah and Ouray Reservation | C106: UTE
B107: Utah | C107: UT
B108: Virginia | C108: VA
B109: Washington | C109: WA
B110: Wisconsin | C110: WI
B111: West Virginia | C111: WV
B112: Wyoming | C112: WY

Sheet Appendix 1 - All Units (2012)
A1: Category | B1: State | C1: State-Region | D1: Plant Name | E1: ORIS Code | F1: Generator ID | G1: Fuel type | H1: Prime mover type | I1: Nameplate Capacity (MW) | J1: Summer Capacity (MW) | K1: Heat Input Capacity (mmBtu/hr) | L1: Electric Generation (MWh) | M1: Carbon Dioxide Emissions (tons) | N1: UNITKEEP (CA<25 part of CC with CT>25) | O1: Source Category | P1: Cogn Flag Y/N | Q1: Unit Status | R1: Unit Retirement Year | S1: Exclusion Description | T1: Commenced Operations in Data Year | U1: NERC Interconnection
A2: EXCLUDE | B2: AL | C2: AL-Eastern | D2: Bankhead Dam | E2: 2 | F2: 1 | G2: WAT | H2: HY | I2: 45 | J2: 56 | K2: 0 | L2: 159180 | M2: 0 | O2: Electric Utility | P2: N | Q2: OP | S2: Non Combustion (NUC, WAT, WND, GEO, or SUN) | U2: Eastern
A3: COALST | B3: AL | C3: AL-Eastern | D3: Barry | E3: 3 | F3: 1 | G3: BIT | H3: ST | I3: 153.1 | J3: 138 | K3: 2322 | L3: 152102 | M3: 136584.42 | O3: Electric Utility | P3: N | Q3: OP | R3: 2019 | U3: Eastern
A4: COALST | B4: AL | C4: AL-Eastern | D4: Barry | E4: 3 | F4: 2 | G4: BIT | H4: ST | I4: 153.1 | J4: 137 | K4: 2359 | L4: 123410 | M4: 151505.45 | O4: Electric Utility | P4: N | Q4: OP | R4: 2019 | U4: Eastern
A5: COALST | B5: AL | C5: AL-Eastern | D5: Barry | E5: 3 | F5: 3 | G5: BIT | H5: ST | I5: 272 | J5: 249 | K5: 4318 | L5: 496557 | M5: 597437.36 | O5: Electric Utility | P5: N | Q5: OP | U5: Eastern
A6: COALST | B6: AL | C6: AL-Eastern | D6: Barry | E6: 3 | F6: 4 | G6: BIT | H6: ST | I6: 403.7 | J6: 362 | K6: 6372 | L6: 1142699 | M6: 1284533.55 | O6: Electric Utility | P6: N | Q6: OP | U6: Eastern
A7: COALST | B7: AL | C7: AL-Eastern | D7: Barry | E7: 3 | F7: 5 | G7: BIT | H7: ST | I7: 788.8 | J7: 726.5 | K7: 11057 | L7: 3404379 | M7: 3821950.38 | O7: Electric Utility | P7: N | Q7: OP | U7: Eastern
A8: NGCC | B8: AL | C8: AL-Eastern | D8: Barry | E8: 3 | F8: A1CT | G8: NG | H8: CC | I8: 170.1 | J8: 154 | K8: 3000 | L8: 1261831.6 | M8: 543578.95 | O8: Electric Utility | P8: N | Q8: OP | U8: Eastern
A9: NGCC | B9: AL | C9: AL-Eastern | D9: Barry | E9: 3 | F9: A1CT2 | G9: NG | H9: CC | I9: 170.1 | J9: 154 | K9: 3000 | L9: 1261831.6 | M9: 543578.95 | O9: Electric Utility | P9: N | Q9: OP | U9: Eastern
A10: NGCC | B10: AL | C10: AL-Eastern | D10: Barry | E10: 3 | F10: A1ST | G10: NG | H10: CC | I10: 195.2 | J10: 173 | K10: 3000 | L10: 1448027.8 | M10: 623789.6 | O10: Electric Utility | P10: N | Q10: OP | U10: Eastern
A11: NGCC | B11: AL | C11: AL-Eastern | D11: Barry | E11: 3 | F11: A2C1 | G11: NG | H11: CC | I11: 170.1 | J11: 154 | K11: 3000 | L11: 1261831.6 | M11: 543578.95 | O11: Electric Utility | P11: N | Q11: OP | U11: Eastern
A12: NGCC | B12: AL | C12: AL-Eastern | D12: Barry | E12: 3 | F12: A2C2 | G12: NG | H12: CC | I12: 170.1 | J12: 154 | K12: 3000 | L12: 1261831.6 | M12: 543578.95 | O12: Electric Utility | P12: N | Q12: OP | U12: Eastern
A13: NGCC | B13: AL | C13: AL-Eastern | D13: Barry | E13: 3 | F13: A2ST | G13: NG | H13: CC | I13: 195.2 | J13: 173 | K13: 3000 | L13: 1448027.8 | M13: 623789.6 | O13: Electric Utility | P13: N | Q13: OP | U13: Eastern
A14: EXCLUDE | B14: AL | C14: AL-Eastern | D14: Walter Bouldin Dam | E14: 4 | F14: 1 | G14: WAT | H14: HY | I14: 75 | J14: 75.3 | K14: 0 | L14: 122362.67 | M14: 0 | O14: Electric Utility | P14: N | Q14: OP | S14: Non Combustion (NUC, WAT, WND, GEO, or SUN) | U14: Eastern
A15: EXCLUDE | B15: AL | C15: AL-Eastern | D15: Walter Bouldin Dam | E15: 4 | F15: 2 | G15: WAT | H15: HY | I15: 75 | J15: 75.3 | K15: 0 | L15: 122362.67 | M15: 0 | O15: Electric Utility | P15: N | Q15: OP | S15: Non Combustion (NUC, WAT, WND, GEO, or SUN) | U15: Eastern
A16: EXCLUDE | B16: AL | C16: AL-Eastern | D16: Walter Bouldin Dam | E16: 4 | F16: 3 | G16: WAT | H16: HY | I16: 75 | J16: 75.3 | K16: 0 | L16: 122362.67 | M16: 0 | O16: Electric Utility | P16: N | Q16: OP | S16: Non Combustion (NUC, WAT, WND, GEO, or SUN) | U16: Eastern
A17: COALST | B17: AL | C17: AL-Eastern | D17: Gadsden | E17: 7 | F17: 1 | G17: BIT | H17: ST | I17: 69 | J17: 64 | K17: 1142 | L17: 170448 | M17: 164509.7 | O17: Electric Utility | P17: Y | Q17: OP | R17: 2014 | U17: Eastern
A18: COALST | B18: AL | C18: AL-Eastern | D18: Gadsden | E18: 7 | F18: 2 | G18: BIT | H18: ST | I18: 69 | J18: 66 | K18: 1090 | L18: 51652 | M18: 54000.52 | O18: Electric Utility | P18: Y | Q18: OP | R18: 2014 | U18: Eastern
A19: COALST | B19: AL | C19: AL-Eastern | D19: Gorgas | E19: 8 | F19: 10 | G19: BIT | H19: ST | I19: 788.8 | J19: 703 | K19: 17436 | L19: 2198784 | M19: 2245226.55 | O19: Electric Utility | P19: N | Q19: OP | U19: Eastern
A20: COALST | B20: AL | C20: AL-Eastern | D20: Gorgas | E20: 8 | F20: 6 | G20: BIT | H20: ST | I20: 125 | J20: 103 | K20: 3096 | L20: 52177 | M20: 75078.99 | O20: Electric Utility | P20: N | Q20: OP | R20: 2016 | U20: Eastern
A21: COALST | B21: AL | C21: AL-Eastern | D21: Gorgas | E21: 8 | F21: 7 | G21: BIT | H21: ST | I21: 125 | J21: 104 | K21: 2319 | L21: 94947 | M21: 120310.76 | O21: Electric Utility | P21: N | Q21: OP | R21: 2017 | U21: Eastern
A22: COALST | B22: AL | C22: AL-Eastern | D22: Gorgas | E22: 8 | F22: 8 | G22: BIT | H22: ST | I22: 187.5 | J22: 161 | K22: 3062 | L22: 295904 | M22: 345613.65 | O22: Electric Utility | P22: N | Q22: OP | U22: Eastern
A23: COALST | B23: AL | C23: AL-Eastern | D23: Gorgas | E23: 8 | F23: 9 | G23: BIT | H23: ST | I23: 190.4 | J23: 170 | K23: 2778 | L23: 410866 | M23: 453095.58 | O23: Electric Utility | P23: N | Q23: OP | U23: Eastern
A24: EXCLUDE | B24: TX | C24: TX-Western | D24: Copper | E24: 9 | F24: 1 | G24: NG | H24: GT | I24: 80.5 | J24: 62 | K24: 865 | L24: 37420 | M24: 37592.99 | O24: Electric Utility | P24: N | Q24: OP | S24: Simple cycle unit | U24: Western
A25: COALST | B25: AL | C25: AL-Eastern | D25: Greene County | E25: 10 | F25: 1 | G25: BIT | H25: ST | I25: 299.2 | J25: 254 | K25: 3386 | L25: 1068988 | M25: 1272157.26 | O25: Electric Utility | P25: N | Q25: OP | U25: Eastern
A26: COALST | B26: AL | C26: AL-Eastern | D26: Greene County | E26: 10 | F26: 2 | G26: BIT | H26: ST | I26: 269.2 | J26: 243 | K26: 3334 | L26: 946774 | M26: 1098694.19 | O26: Electric Utility | P26: N | Q26: OP | U26: Eastern
A27: EXCLUDE | B27: AL | C27: AL-Eastern | D27: Greene County | E27: 10 | F27: GT10 | G27: NG | H27: GT | I27: 80 | J27: 85 | K27: 1294 | L27: 8815.44 | M27: 5801.3 | O27: Electric Utility | P27: N | Q27: OP | S27: Simple cycle unit | U27: Eastern
A28: EXCLUDE | B28: AL | C28: AL-Eastern | D28: Greene County | E28: 10 | F28: GT2 | G28: NG | H28: GT | I28: 80 | J28: 84 | K28: 1375 | L28: 8815.44 | M28: 10654.81 | O28: Electric Utility | P28: N | Q28: OP | S28: Simple cycle unit | U28: Eastern
A29: EXCLUDE | B29: AL | C29: AL-Eastern | D29: Greene County | E29: 10 | F29: GT3 | G29: NG | H29: GT | I29: 80 | J29: 82 | K29: 1307.2 | L29: 8815.44 | M29: 13031.4 | O29: Electric Utility | P29: N | Q29: OP | S29: Simple cycle unit | U29: Eastern
A30: EXCLUDE | B30: AL | C30: AL-Eastern | D30: Greene County | E30: 10 | F30: GT4 | G30: NG | H30: GT | I30: 80 | J30: 81 | K30: 1294 | L30: 8815.44 | M30: 6585.41 | O30: Electric Utility | P30: N | Q30: OP | S30: Simple cycle unit | U30: Eastern
A31: EXCLUDE | B31: AL | C31: AL-Eastern | D31: Greene County | E31: 10 | F31: GT5 | G31: NG | H31: GT | I31: 80 | J31: 82 | K31: 1294 | L31: 8815.44 | M31: 8356.7 | O31: Electric Utility | P31: N | Q31: OP | S31: Simple cycle unit | U31: Eastern
A32: EXCLUDE | B32: AL | C32: AL-Eastern | D32: Greene County | E32: 10 | F32: GT6 | G32: NG | H32: GT | I32: 80 | J32: 81 | K32: 1308.9 | L32: 8815.44 | M32: 5611.19 | O32: Electric Utility | P32: N | Q32: OP | S32: Simple cycle unit | U32: Eastern
A33: EXCLUDE | B33: AL | C33: AL-Eastern | D33: Greene County | E33: 10 | F33: GT7 | G33: NG | H33: GT | I33: 80 | J33: 80 | K33: 1294 | L33: 8815.44 | M33: 6682 | O33: Electric Utility | P33: N | Q33: OP | S33: Simple cycle unit | U33: Eastern
A34: EXCLUDE | B34: AL | C34: AL-Eastern | D34: Greene County | E34: 10 | F34: GT8 | G34: NG | H34: GT | I34: 80 | J34: 83 | K34: 1655 | L34: 8815.44 | M34: 10227.31 | O34: Electric Utility | P34: N | Q34: OP | S34: Simple cycle unit | U34: Eastern
A35: EXCLUDE | B35: AL | C35: AL-Eastern | D35: Greene County | E35: 10 | F35: GT9 | G35: NG | H35: GT | I35: 80 | J35: 82 | K35: 1334.7 | L35: 8815.44 | M35: 9553.9 | O35: Electric Utility | P35: N | Q35: OP | S35: Simple cycle unit | U35: Eastern
A36: EXCLUDE | B36: AL | C36: AL-Eastern | D36: H Neely Henry Dam | E36: 11 | F36: 1 | G36: WAT | H36: HY | I36: 24.3 | J36: 23.3 | K36: 0 | L36: 42801.33 | M36: 0 | O36: Electric Utility | P36: N | Q36: OP | S36: Non Combustion (NUC, WAT, WND, GEO, or SUN) | U36: Eastern
A37: EXCLUDE | B37: AL | C37: AL-Eastern | D37: H Neely Henry Dam | E37: 11 | F37: 2 | G37: WAT | H37: HY | I37: 24.3 | J37: 23.3 | K37: 0 | L37: 42801.33 | M37: 0 | O37: Electric Utility | P37: N | Q37: OP | S37: Non Combustion (NUC, WAT, WND, GEO, or SUN) | U37: Eastern
A38: EXCLUDE | B38: AL | C38: AL-Eastern | D38: H Neely Henry Dam | E38: 11 | F38: 3 | G38: WAT | H38: HY | I38: 24.3 | J38: 23.4 | K38: 0 | L38: 42801.33 | M38: 0 | O38: Electric Utility | P38: N | Q38: OP | S38: Non Combustion (NUC, WAT, WND, GEO, or SUN) | U38: Eastern
A39: EXCLUDE | B39: AL | C39: AL-Eastern | D39: Holt Dam | E39: 12 | F39: 1 | G39: WAT | H39: HY | I39: 40 | J39: 45 | K39: 0 | L39: 155852 | M39: 0 | O39: Electric Utility | P39: N | Q39: OP | R39: 2015 | S39: Non Combustion (NUC, WAT, WND, GEO, or SUN) | U39: Eastern
A40: EXCLUDE | B40: AL | C40: AL-Eastern | D40: Jordan Dam | E40: 13 | F40: 1 | G40: WAT | H40: HY | I40: 25 | J40: 25 | K40: 0 | L40: 50335.75 | M40: 0 | O40: Electric Utility | P40: N | Q40: OP | S40: Non Combustion (NUC, WAT, WND, GEO, or SUN) | U40: Eastern
A41: EXCLUDE | B41: AL | C41: AL-Eastern | D41: Jordan Dam | E41: 13 | F41: 2 | G41: WAT | H41: HY | I41: 25 | J41: 25 | K41: 0 | L41: 50335.75 | M41: 0 | O41: Electric Utility | P41: N | Q41: OP | S41: Non Combustion (NUC, WAT, WND, GEO, or SUN) | U41: Eastern
A42: EXCLUDE | B42: AL | C42: AL-Eastern | D42: Jordan Dam | E42: 13 | F42: 3 | G42: WAT | H42: HY | I42: 25 | J42: 25 | K42: 0 | L42: 50335.75 | M42: 0 | O42: Electric Utility | P42: N | Q42: OP | S42: Non Combustion (NUC, WAT, WND, GEO, or SUN) | U42: Eastern
A43: EXCLUDE | B43: AL | C43: AL-Eastern | D43: Jordan Dam | E43: 13 | F43: 4 | G43: WAT | H43: HY | I43: 25 | J43: 25 | K43: 0 | L43: 50335.75 | M43: 0 | O43: Electric Utility | P43: N | Q43: OP | S43: Non Combustion (NUC, WAT, WND, GEO, or SUN) | U43: Eastern
A44: EXCLUDE | B44: AL | C44: AL-Eastern | D44: Logan Martin Dam | E44: 14 | F44: 1 | G44: WAT | H44: HY | I44: 42.7 | J44: 45 | K44: 0 | L44: 66098.33 | M44: 0 | O44: Electric Utility | P44: N | Q44: OP | S44: Non Combustion (NUC, WAT, WND, GEO, or SUN) | U44: Eastern
A45: EXCLUDE | B45: AL | C45: AL-Eastern | D45: Logan Martin Dam | E45: 14 | F45: 2 | G45: WAT | H45: HY | I45: 42.7 | J45: 45 | K45: 0 | L45: 66098.33 | M45: 0 | O45: Electric Utility | P45: N | Q45: OP | S45: Non Combustion (NUC, WAT, WND, GEO, or SUN) | U45: Eastern
A46: EXCLUDE | B46: AL | C46: AL-Eastern | D46: Logan Martin Dam | E46: 14 | F46: 3 | G46: WAT | H46: HY | I46: 42.7 | J46: 45 | K46: 0 | L46: 66098.33 | M46: 0 | O46: Electric Utility | P46: N | Q46: OP | S46: Non Combustion (NUC, WAT, WND, GEO, or SUN) | U46: Eastern
A47: EXCLUDE | B47: AL | C47: AL-Eastern | D47: Lay Dam | E47: 15 | F47: 1 | G47: WAT | H47: HY | I47: 29.5 | J47: 29.8 | K47: 0 | L47: 58304 | M47: 0 | O47: Electric Utility | P47: N | Q47: OP | S47: Non Combustion (NUC, WAT, WND, GEO, or SUN) | U47: Eastern
A48: EXCLUDE | B48: AL | C48: AL-Eastern | D48: Lay Dam | E48: 15 | F48: 2 | G48: WAT | H48: HY | I48: 29.5 | J48: 29.8 | K48: 0 | L48: 58304 | M48: 0 | O48: Electric Utility | P48: N | Q48: OP | S48: Non Combustion (NUC, WAT, WND, GEO, or SUN) | U48: Eastern
A49: EXCLUDE | B49: AL | C49: AL-Eastern | D49: Lay Dam | E49: 15 | F49: 3 | G49: WAT | H49: HY | I49: 29.5 | J49: 29.8 | K49: 0 | L49: 58304 | M49: 0 | O49: Electric Utility | P49: N | Q49: OP | S49: Non Combustion (NUC, WAT, WND, GEO, or SUN) | U49: Eastern
A50: EXCLUDE | B50: AL | C50: AL-Eastern | D50: Lay Dam | E50: 15 | F50: 4 | G50: WAT | H50: HY | I50: 29.5 | J50: 29.8 | K50: 0 | L50: 58304 | M50: 0 | O50: Electric Utility | P50: N | Q50: OP | S50: Non Combustion (NUC, WAT, WND, GEO, or SUN) | U50: Eastern
A51: EXCLUDE | B51: AL | C51: AL-Eastern | D51: Lay Dam | E51: 15 | F51: 5 | G51: WAT | H51: HY | I51: 29.5 | J51: 29.8 | K51: 0 | L51: 58304 | M51: 0 | O51: Electric Utility | P51: N | Q51: OP | S51: Non Combustion (NUC, WAT, WND, GEO, or SUN) | U51: Eastern
A52: EXCLUDE | B52: AL | C52: AL-Eastern | D52: Lay Dam | E52: 15 | F52: 6 | G52: WAT | H52: HY | I52: 29.5 | J52: 29.8 | K52: 0 | L52: 58304 | M52: 0 | O52: Electric Utility | P52: N | Q52: OP | S52: Non Combustion (NUC, WAT, WND, GEO, or SUN) | U52: Eastern
A53: EXCLUDE | B53: AL | C53: AL-Eastern | D53: Martin Dam | E53: 16 | F53: 1 | G53: WAT | H53: HY | I53: 50.2 | J53: 46.5 | K53: 0 | L53: 41944.65 | M53: 0 | O53: Electric Utility | P53: N | Q53: OP | S53: Non Combustion (NUC, WAT, WND, GEO, or SUN) | U53: Eastern
A54: EXCLUDE | B54: AL | C54: AL-Eastern | D54: Martin Dam | E54: 16 | F54: 2 | G54: WAT | H54: HY | I54: 50.2 | J54: 46.5 | K54: 0 | L54: 41944.65 | M54: 0 | O54: Electric Utility | P54: N | Q54: OP | S54: Non Combustion (NUC, WAT, WND, GEO, or SUN) | U54: Eastern
A55: EXCLUDE | B55: AL | C55: AL-Eastern | D55: Martin Dam | E55: 16 | F55: 3 | G55: WAT | H55: HY | I55: 50.2 | J55: 46.5 | K55: 0 | L55: 41944.65 | M55: 0 | O55: Electric Utility | P55: N | Q55: OP | S55: Non Combustion (NUC, WAT, WND, GEO, or SUN) | U55: Eastern
A56: EXCLUDE | B56: AL | C56: AL-Eastern | D56: Martin Dam | E56: 16 | F56: 4 | G56: WAT | H56: HY | I56: 60 | J56: 46.5 | K56: 0 | L56: 50133.05 | M56: 0 | O56: Electric Utility | P56: N | Q56: OP | S56: Non Combustion (NUC, WAT, WND, GEO, or SUN) | U56: Eastern
A57: EXCLUDE | B57: AL | C57: AL-Eastern | D57: Mitchell Dam | E57: 17 | F57: 4 | G57: WAT | H57: HY | I57: 20 | J57: 19.5 | K57: 0 | L57: 35188.82 | M57: 0 | O57: Electric Utility | P57: N | Q57: OP | S57: Non Combustion (NUC, WAT, WND, GEO, or SUN) | U57: Eastern
A58: EXCLUDE | B58: AL | C58: AL-Eastern | D58: Mitchell Dam | E58: 17 | F58: 5 | G58: WAT | H58: HY | I58: 50 | J58: 48.8 | K58: 0 | L58: 87972.06 | M58: 0 | O58: Electric Utility | P58: N | Q58: OP | S58: Non Combustion (NUC, WAT, WND, GEO, or SUN) | U58: Eastern
A59: EXCLUDE | B59: AL | C59: AL-Eastern | D59: Mitchell Dam | E59: 17 | F59: 6 | G59: WAT | H59: HY | I59: 50 | J59: 48.8 | K59: 0 | L59: 87972.06 | M59: 0 | O59: Electric Utility | P59: N | Q59: OP | S59: Non Combustion (NUC, WAT, WND, GEO, or SUN) | U59: Eastern
A60: EXCLUDE | B60: AL | C60: AL-Eastern | D60: Mitchell Dam | E60: 17 | F60: 7 | G60: WAT | H60: HY | I60: 50 | J60: 48.8 | K60: 0 | L60: 87972.06 | M60: 0 | O60: Electric Utility | P60: N | Q60: OP | S60: Non Combustion (NUC, WAT, WND, GEO, or SUN) | U60: Eastern
A61: EXCLUDE | B61: AL | C61: AL-Eastern | D61: Lewis Smith Dam | E61: 18 | F61: 1 | G61: WAT | H61: HY | I61: 78.7 | J61: 90 | K61: 0 | L61: 110232.5 | M61: 0 | O61: Electric Utility | P61: N | Q61: OP | S61: Non Combustion (NUC, WAT, WND, GEO, or SUN) | U61: Eastern
A62: EXCLUDE | B62: AL | C62: AL-Eastern | D62: Lewis Smith Dam | E62: 18 | F62: 2 | G62: WAT | H62: HY | I62: 78.7 | J62: 90 | K62: 0 | L62: 110232.5 | M62: 0 | O62: Electric Utility | P62: N | Q62: OP | S62: Non Combustion (NUC, WAT, WND, GEO, or SUN) | U62: Eastern
A63: EXCLUDE | B63: AL | C63: AL-Eastern | D63: Thurlow Dam | E63: 19 | F63: 1 | G63: WAT | H63: HY | I63: 40.5 | J63: 34 | K63: 0 | L63: 56299.01 | M63: 0 | O63: Electric Utility | P63: N | Q63: OP | S63: Non Combustion (NUC, WAT, WND, GEO, or SUN) | U63: Eastern
A64: EXCLUDE | B64: AL | C64: AL-Eastern | D64: Thurlow Dam | E64: 19 | F64: 2 | G64: WAT | H64: HY | I64: 40.5 | J64: 34 | K64: 0 | L64: 56299.01 | M64: 0 | O64: Electric Utility | P64: N | Q64: OP | S64: Non Combustion (NUC, WAT, WND, GEO, or SUN) | U64: Eastern
A65: EXCLUDE | B65: AL | C65: AL-Eastern | D65: Thurlow Dam | E65: 19 | F65: 3 | G65: WAT | H65: HY | I65: 10 | J65: 10 | K65: 0 | L65: 13900.99 | M65: 0 | O65: Electric Utility | P65: N | Q65: OP | S65: Non Combustion (NUC, WAT, WND, GEO, or SUN) | U65: Eastern
A66: EXCLUDE | B66: AL | C66: AL-Eastern | D66: Weiss Dam | E66: 20 | F66: 1 | G66: WAT | H66: HY | I66: 29.2 | J66: 24.7 | K66: 0 | L66: 44914.33 | M66: 0 | O66: Electric Utility | P66: N | Q66: OP | S66: Non Combustion (NUC, WAT, WND, GEO, or SUN) | U66: Eastern
A67: EXCLUDE | B67: AL | C67: AL-Eastern | D67: Weiss Dam | E67: 20 | F67: 2 | G67: WAT | H67: HY | I67: 29.2 | J67: 24.7 | K67: 0 | L67: 44914.33 | M67: 0 | O67: Electric Utility | P67: N | Q67: OP | S67: Non Combustion (NUC, WAT, WND, GEO, or SUN) | U67: Eastern
A68: EXCLUDE | B68: AL | C68: AL-Eastern | D68: Weiss Dam | E68: 20 | F68: 3 | G68: WAT | H68: HY | I68: 29.2 | J68: 24.7 | K68: 0 | L68: 44914.33 | M68: 0 | O68: Electric Utility | P68: N | Q68: OP | S68: Non Combustion (NUC, WAT, WND, GEO, or SUN) | U68: Eastern
A69: EXCLUDE | B69: AL | C69: AL-Eastern | D69: Yates Dam | E69: 21 | F69: 1 | G69: WAT | H69: HY | I69: 25.5 | J69: 23.5 | K69: 0 | L69: 37834.93 | M69: 0 | O69: Electric Utility | P69: N | Q69: OP | S69: Non Combustion (NUC, WAT, WND, GEO, or SUN) | U69: Eastern
A70: EXCLUDE | B70: AL | C70: AL-Eastern | D70: Yates Dam | E70: 21 | F70: 2 | G70: WAT | H70: HY | I70: 25 | J70: 23.5 | K70: 0 | L70: 37093.07 | M70: 0 | O70: Electric Utility | P70: N | Q70: OP | S70: Non Combustion (NUC, WAT, WND, GEO, or SUN) | U70: Eastern
A71: COALST | B71: AL | C71: AL-Eastern | D71: E C Gaston | E71: 26 | F71: 1 | G71: BIT | H71: ST | I71: 272 | J71: 254 | K71: 5462 | L71: 783158 | M71: 878388.11 | O71: Electric Utility | P71: N | Q71: OP | U71: Eastern
A72: COALST | B72: AL | C72: AL-Eastern | D72: E C Gaston | E72: 26 | F72: 2 | G72: BIT | H72: ST | I72: 272 | J72: 256 | K72: 5324 | L72: 853211 | M72: 987187.92 | O72: Electric Utility | P72: N | Q72: OP | U72: Eastern
A73: COALST | B73: AL | C73: AL-Eastern | D73: E C Gaston | E73: 26 | F73: 3 | G73: BIT | H73: ST | I73: 272 | J73: 254 | K73: 5077.2 | L73: 839616 | M73: 1051879.15 | O73: Electric Utility | P73: N | Q73: OP | U73: Eastern
A74: COALST | B74: AL | C74: AL-Eastern | D74: E C Gaston | E74: 26 | F74: 5 | G74: BIT | H74: ST | I74: 952 | J74: 842 | K74: 16078 | L74: 4944693 | M74: 5243197.05 | O74: Electric Utility | P74: N | Q74: OP | U74: Eastern
A75: EXCLUDE | B75: AL | C75: AL-Eastern | D75: E C Gaston | E75: 26 | F75: GT4 | G75: DFO | H75: GT | I75: 21.2 | J75: 16 | K75: 0 | L75: 82 | M75: 199.57 | O75: Electric Utility | P75: N | Q75: OP | S75: Simple cycle unit | U75: Eastern
A76: COALST | B76: AL | C76: AL-Eastern | D76: E C Gaston | E76: 26 | F76: ST4 | G76: BIT | H76: ST | I76: 244.8 | J76: 256 | K76: 3635 | L76: 714273 | M76: 805781.36 | O76: Electric Utility | P76: N | Q76: OP | U76: Eastern
A77: EXCLUDE | B77: MN | C77: MN-Eastern | D77: Madelia | E77: 30 | F77: 1 | G77: NG | H77: IC | I77: 3.1 | J77: 3 | K77: 0 | L77: 0 | M77: 0 | O77: Electric Utility | P77: N | Q77: OP | S77: Internal Combustion | U77: Eastern
A78: EXCLUDE | B78: MN | C78: MN-Eastern | D78: Madelia | E78: 30 | F78: 2 | G78: NG | H78: IC | I78: 2 | J78: 1.5 | K78: 0 | L78: 0 | M78: 0 | O78: Electric Utility | P78: N | Q78: OP | S78: Internal Combustion | U78: Eastern
A79: EXCLUDE | B79: MN | C79: MN-Eastern | D79: Madelia | E79: 30 | F79: 3 | G79: NG | H79: IC | I79: 1.1 | J79: 0.9 | K79: 0 | L79: 0 | M79: 0 | O79: Electric Utility | P79: N | Q79: OP | S79: Internal Combustion | U79: Eastern
A80: EXCLUDE | B80: MN | C80: MN-Eastern | D80: Madelia | E80: 30 | F80: 4 | G80: NG | H80: IC | I80: 4.3 | J80: 3.7 | K80: 0 | L80: 0 | M80: 0 | O80: Electric Utility | P80: N | Q80: OP | S80: Internal Combustion | U80: Eastern
A81: EXCLUDE | B81: MN | C81: MN-Eastern | D81: Madelia | E81: 30 | F81: 5 | G81: NG | H81: IC | I81: 1.3 | J81: 1.1 | K81: 0 | L81: 0 | M81: 0 | O81: Electric Utility | P81: N | Q81: OP | S81: Internal Combustion | U81: Eastern
A82: EXCLUDE | B82: CA | C82: CA-Western | D82: Rollins | E82: 34 | F82: 1P | G82: WAT | H82: HY | I82: 12.1 | J82: 12.1 | K82: 0 | L82: 56325 | M82: 0 | O82: IPP Non-CHP | P82: N | Q82: OP | S82: Non Combustion (NUC, WAT, WND, GEO, or SUN) | U82: Western
A83: EXCLUDE | B83: AL | C83: AL-Eastern | D83: Millers Ferry | E83: 38 | F83: 1 | G83: WAT | H83: HY | I83: 33.7 | J83: 30 | K83: 0 | L83: 99970.67 | M83: 0 | O83: Electric Utility | P83: N | Q83: OP | S83: Non Combustion (NUC, WAT, WND, GEO, or SUN) | U83: Eastern
A84: EXCLUDE | B84: AL | C84: AL-Eastern | D84: Millers Ferry | E84: 38 | F84: 2 | G84: WAT | H84: HY | I84: 33.7 | J84: 30 | K84: 0 | L84: 99970.67 | M84: 0 | O84: Electric Utility | P84: N | Q84: OP | S84: Non Combustion (NUC, WAT, WND, GEO, or SUN) | U84: Eastern
A85: EXCLUDE | B85: AL | C85: AL-Eastern | D85: Millers Ferry | E85: 38 | F85: 3 | G85: WAT | H85: HY | I85: 33.7 | J85: 30 | K85: 0 | L85: 99970.67 | M85: 0 | O85: Electric Utility | P85: N | Q85: OP | S85: Non Combustion (NUC, WAT, WND, GEO, or SUN) | U85: Eastern
A86: EXCLUDE | B86: AL | C86: AL-Eastern | D86: Browns Ferry | E86: 46 | F86: 1 | G86: NUC | H86: ST | I86: 1152 | J86: 1100.8 | K86: 0 | L86: 8598204.56 | M86: 0 | O86: Electric Utility | P86: N | Q86: OP | S86: Non Combustion (NUC, WAT, WND, GEO, or SUN) | U86: Eastern
A87: EXCLUDE | B87: AL | C87: AL-Eastern | D87: Browns Ferry | E87: 46 | F87: 2 | G87: NUC | H87: ST | I87: 1152 | J87: 1103.7 | K87: 0 | L87: 8598204.56 | M87: 0 | O87: Electric Utility | P87: N | Q87: OP | S87: Non Combustion (NUC, WAT, WND, GEO, or SUN) | U87: Eastern
A88: EXCLUDE | B88: AL | C88: AL-Eastern | D88: Browns Ferry | E88: 46 | F88: 3 | G88: NUC | H88: ST | I88: 1190 | J88: 1104.9 | K88: 0 | L88: 8881825.89 | M88: 0 | O88: Electric Utility | P88: N | Q88: OP | S88: Non Combustion (NUC, WAT, WND, GEO, or SUN) | U88: Eastern
A89: COALST | B89: AL | C89: AL-Eastern | D89: Colbert | E89: 47 | F89: 1 | G89: BIT | H89: ST | I89: 200 | J89: 178 | K89: 2463 | L89: 725700 | M89: 798061.33 | O89: Electric Utility | P89: N | Q89: OP | U89: Eastern
A90: COALST | B90: AL | C90: AL-Eastern | D90: Colbert | E90: 47 | F90: 2 | G90: BIT | H90: ST | I90: 200 | J90: 178 | K90: 2869 | L90: 977731 | M90: 1055732.26 | O90: Electric Utility | P90: N | Q90: OP | U90: Eastern
A91: COALST | B91: AL | C91: AL-Eastern | D91: Colbert | E91: 47 | F91: 3 | G91: BIT | H91: ST | I91: 200 | J91: 178 | K91: 2805 | L91: 744938 | M91: 823354.67 | O91: Electric Utility | P91: N | Q91: OP | U91: Eastern
A92: COALST | B92: AL | C92: AL-Eastern | D92: Colbert | E92: 47 | F92: 4 | G92: BIT | H92: ST | I92: 200 | J92: 178 | K92: 2716 | L92: 522365 | M92: 589946.42 | O92: Electric Utility | P92: N | Q92: OP | U92: Eastern
A93: COALST | B93: AL | C93: AL-Eastern | D93: Colbert | E93: 47 | F93: 5 | G93: BIT | H93: ST | I93: 550 | J93: 472 | K93: 8070 | L93: 394186 | M93: 451007.11 | O93: Electric Utility | P93: N | Q93: OP | U93: Eastern
A94: EXCLUDE | B94: AL | C94: AL-Eastern | D94: Colbert | E94: 47 | F94: GT1 | G94: NG | H94: GT | I94: 59.5 | J94: 45.4 | K94: 760 | L94: 567.63 | M94: 504.6 | O94: Electric Utility | P94: N | Q94: OP | S94: Simple cycle unit | U94: Eastern
A95: EXCLUDE | B95: AL | C95: AL-Eastern | D95: Colbert | E95: 47 | F95: GT2 | G95: NG | H95: GT | I95: 59.5 | J95: 45.4 | K95: 760 | L95: 567.63 | M95: 404.43 | O95: Electric Utility | P95: N | Q95: OP | S95: Simple cycle unit | U95: Eastern
A96: EXCLUDE | B96: AL | C96: AL-Eastern | D96: Colbert | E96: 47 | F96: GT3 | G96: NG | H96: GT | I96: 59.5 | J96: 45.4 | K96: 760 | L96: 567.63 | M96: 767.95 | O96: Electric Utility | P96: N | Q96: OP | S96: Simple cycle unit | U96: Eastern
A97: EXCLUDE | B97: AL | C97: AL-Eastern | D97: Colbert | E97: 47 | F97: GT4 | G97: NG | H97: GT | I97: 59.5 | J97: 45.4 | K97: 760 | L97: 567.63 | M97: 476.08 | O97: Electric Utility | P97: N | Q97: OP | S97: Simple cycle unit | U97: Eastern
A98: EXCLUDE | B98: AL | C98: AL-Eastern | D98: Colbert | E98: 47 | F98: GT5 | G98: NG | H98: GT | I98: 59.5 | J98: 45.4 | K98: 760 | L98: 567.63 | M98: 380.48 | O98: Electric Utility | P98: N | Q98: OP | S98: Simple cycle unit | U98: Eastern
A99: EXCLUDE | B99: AL | C99: AL-Eastern | D99: Colbert | E99: 47 | F99: GT6 | G99: NG | H99: GT | I99: 59.5 | J99: 45.4 | K99: 760 | L99: 567.63 | M99: 255.98 | O99: Electric Utility | P99: N | Q99: OP | S99: Simple cycle unit | U99: Eastern
A100: EXCLUDE | B100: AL | C100: AL-Eastern | D100: Colbert | E100: 47 | F100: GT7 | G100: NG | H100: GT | I100: 59.5 | J100: 45.4 | K100: 760 | L100: 567.63 | M100: 573.79 | O100: Electric Utility | P100: N | Q100: OP | S100: Simple cycle unit | U100: Eastern
A101: EXCLUDE | B101: AL | C101: AL-Eastern | D101: Colbert | E101: 47 | F101: GT8 | G101: NG | H101: GT | I101: 59.5 | J101: 45.4 | K101: 760 | L101: 567.63 | M101: 473.47 | O101: Electric Utility | P101: N | Q101: OP | S101: Simple cycle unit | U101: Eastern
A102: EXCLUDE | B102: AL | C102: AL-Eastern | D102: Guntersville | E102: 48 | F102: 1 | G102: WAT | H102: HY | I102: 28.8 | J102: 31 | K102: 0 | L102: 166615.25 | M102: 0 | O102: Electric Utility | P102: N | Q102: OP | S102: Non Combustion (NUC, WAT, WND, GEO, or SUN) | U102: Eastern
A103: EXCLUDE | B103: AL | C103: AL-Eastern | D103: Guntersville | E103: 48 | F103: 2 | G103: WAT | H103: HY | I103: 28.8 | J103: 30.6 | K103: 0 | L103: 166615.25 | M103: 0 | O103: Electric Utility | P103: N | Q103: OP | S103: Non Combustion (NUC, WAT, WND, GEO, or SUN) | U103: Eastern
A104: EXCLUDE | B104: AL | C104: AL-Eastern | D104: Guntersville | E104: 48 | F104: 3 | G104: WAT | H104: HY | I104: 28.8 | J104: 29.8 | K104: 0 | L104: 166615.25 | M104: 0 | O104: Electric Utility | P104: N | Q104: OP | S104: Non Combustion (NUC, WAT, WND, GEO, or SUN) | U104: Eastern
A105: EXCLUDE | B105: AL | C105: AL-Eastern | D105: Guntersville | E105: 48 | F105: 4 | G105: WAT | H105: HY | I105: 28.8 | J105: 31.3 | K105: 0 | L105: 166615.25 | M105: 0 | O105: Electric Utility | P105: N | Q105: OP | S105: Non Combustion (NUC, WAT, WND, GEO, or SUN) | U105: Eastern
A106: EXCLUDE | B106: AL | C106: AL-Eastern | D106: Wheeler Dam | E106: 49 | F106: 1 | G106: WAT | H106: HY | I106: 35.1 | J106: 34.1 | K106: 0 | L106: 95974.52 | M106: 0 | O106: Electric Utility | P106: N | Q106: OP | S106: Non Combustion (NUC, WAT, WND, GEO, or SUN) | U106: Eastern
A107: EXCLUDE | B107: AL | C107: AL-Eastern | D107: Wheeler Dam | E107: 49 | F107: 10 | G107: WAT | H107: HY | I107: 36 | J107: 41.9 | K107: 0 | L107: 98435.41 | M107: 0 | O107: Electric Utility | P107: N | Q107: OP | S107: Non Combustion (NUC, WAT, WND, GEO, or SUN) | U107: Eastern
A108: EXCLUDE | B108: AL | C108: AL-Eastern | D108: Wheeler Dam | E108: 49 | F108: 11 | G108: WAT | H108: HY | I108: 43.6 | J108: 41.9 | K108: 0 | L108: 119216.21 | M108: 0 | O108: Electric Utility | P108: N | Q108: OP | S108: Non Combustion (NUC, WAT, WND, GEO, or SUN) | U108: Eastern
A109: EXCLUDE | B109: AL | C109: AL-Eastern | D109: Wheeler Dam | E109: 49 | F109: 2 | G109: WAT | H109: HY | I109: 35.1 | J109: 33.2 | K109: 0 | L109: 95974.52 | M109: 0 | O109: Electric Utility | P109: N | Q109: OP | S109: Non Combustion (NUC, WAT, WND, GEO, or SUN) | U109: Eastern
A110: EXCLUDE | B110: AL | C110: AL-Eastern | D110: Wheeler Dam | E110: 49 | F110: 3 | G110: WAT | H110: HY | I110: 35.1 | J110: 33.6 | K110: 0 | L110: 95974.52 | M110: 0 | O110: Electric Utility | P110: N | Q110: OP | S110: Non Combustion (NUC, WAT, WND, GEO, or SUN) | U110: Eastern
A111: EXCLUDE | B111: AL | C111: AL-Eastern | D111: Wheeler Dam | E111: 49 | F111: 4 | G111: WAT | H111: HY | I111: 35.1 | J111: 33.4 | K111: 0 | L111: 95974.52 | M111: 0 | O111: Electric Utility | P111: N | Q111: OP | S111: Non Combustion (NUC, WAT, WND, GEO, or SUN) | U111: Eastern
A112: EXCLUDE | B112: AL | C112: AL-Eastern | D112: Wheeler Dam | E112: 49 | F112: 5 | G112: WAT | H112: HY | I112: 35.1 | J112: 34.7 | K112: 0 | L112: 95974.52 | M112: 0 | O112: Electric Utility | P112: N | Q112: OP | S112: Non Combustion (NUC, WAT, WND, GEO, or SUN) | U112: Eastern
A113: EXCLUDE | B113: AL | C113: AL-Eastern | D113: Wheeler Dam | E113: 49 | F113: 6 | G113: WAT | H113: HY | I113: 35.1 | J113: 34.6 | K113: 0 | L113: 95974.52 | M113: 0 | O113: Electric Utility | P113: N | Q113: OP | S113: Non Combustion (NUC, WAT, WND, GEO, or SUN) | U113: Eastern
A114: EXCLUDE | B114: AL | C114: AL-Eastern | D114: Wheeler Dam | E114: 49 | F114: 7 | G114: WAT | H114: HY | I114: 35.1 | J114: 34.4 | K114: 0 | L114: 95974.52 | M114: 0 | O114: Electric Utility | P114: N | Q114: OP | S114: Non Combustion (NUC, WAT, WND, GEO, or SUN) | U114: Eastern
A115: EXCLUDE | B115: AL | C115: AL-Eastern | D115: Wheeler Dam | E115: 49 | F115: 8 | G115: WAT | H115: HY | I115: 35.1 | J115: 34.5 | K115: 0 | L115: 95974.52 | M115: 0 | O115: Electric Utility | P115: N | Q115: OP | S115: Non Combustion (NUC, WAT, WND, GEO, or SUN) | U115: Eastern
A116: EXCLUDE | B116: AL | C116: AL-Eastern | D116: Wheeler Dam | E116: 49 | F116: 9 | G116: WAT | H116: HY | I116: 43.6 | J116: 41.9 | K116: 0 | L116: 119216.21 | M116: 0 | O116: Electric Utility | P116: N | Q116: OP | S116: Non Combustion (NUC, WAT, WND, GEO, or SUN) | U116: Eastern
A117: COALST | B117: AL | C117: AL-Eastern | D117: Widows Creek | E117: 50 | F117: 1 | G117: BIT | H117: ST | I117: 140.6 | J117: 111 | K117: 0 | L117: 0 | M117: 0 | O117: Electric Utility | P117: N | Q117: OS | R117: 2014 | U117: Eastern
A118: COALST | B118: AL | C118: AL-Eastern | D118: Widows Creek | E118: 50 | F118: 2 | G118: BIT | H118: ST | I118: 140.6 | J118: 111 | K118: 0 | L118: 0 | M118: 0 | O118: Electric Utility | P118: N | Q118: OS | R118: 2014 | U118: Eastern
A119: COALST | B119: AL | C119: AL-Eastern | D119: Widows Creek | E119: 50 | F119: 3 | G119: BIT | H119: ST | I119: 140.6 | J119: 111 | K119: 0 | L119: 0 | M119: 0 | O119: Electric Utility | P119: N | Q119: OS | R119: 2013 | U119: Eastern
A120: COALST | B120: AL | C120: AL-Eastern | D120: Widows Creek | E120: 50 | F120: 4 | G120: BIT | H120: ST | I120: 140.6 | J120: 111 | K120: 0 | L120: 0 | M120: 0 | O120: Electric Utility | P120: N | Q120: OS | R120: 2015 | U120: Eastern
A121: COALST | B121: AL | C121: AL-Eastern | D121: Widows Creek | E121: 50 | F121: 5 | G121: BIT | H121: ST | I121: 140.6 | J121: 111 | K121: 0 | L121: 0 | M121: 0 | O121: Electric Utility | P121: N | Q121: OS | R121: 2013 | U121: Eastern
A122: COALST | B122: AL | C122: AL-Eastern | D122: Widows Creek | E122: 50 | F122: 6 | G122: BIT | H122: ST | I122: 140.6 | J122: 111 | K122: 0 | L122: 0 | M122: 0 | O122: Electric Utility | P122: N | Q122: OP | R122: 2015 | U122: Eastern
A123: COALST | B123: AL | C123: AL-Eastern | D123: Widows Creek | E123: 50 | F123: 7 | G123: BIT | H123: ST | I123: 575 | J123: 473 | K123: 5681 | L123: 2493213 | M123: 2849451.5 | O123: Electric Utility | P123: N | Q123: OP | U123: Eastern
A124: COALST | B124: AL | C124: AL-Eastern | D124: Widows Creek | E124: 50 | F124: 8 | G124: BIT | H124: ST | I124: 550 | J124: 465 | K124: 6602 | L124: 1949090 | M124: 2148195.65 | O124: Electric Utility | P124: N | Q124: OP | U124: Eastern
A125: COALST | B125: LA | C125: LA-Eastern | D125: Dolet Hills | E125: 51 | F125: 1 | G125: LIG | H125: ST | I125: 720.7 | J125: 638 | K125: 7600 | L125: 4616823 | M125: 5678438.03 | O125: Electric Utility | P125: N | Q125: OP | U125: Eastern
A126: EXCLUDE | B126: AL | C126: AL-Eastern | D126: Gantt | E126: 53 | F126: 3 | G126: WAT | H126: HY | I126: 1.2 | J126: 1 | K126: 0 | L126: 1477.6 | M126: 0 | O126: Electric Utility | P126: N | Q126: OP | S126: Non Combustion (NUC, WAT, WND, GEO, or SUN) | U126: Eastern
A127: EXCLUDE | B127: AL | C127: AL-Eastern | D127: Gantt | E127: 53 | F127: 4 | G127: WAT | H127: HY | I127: 1.8 | J127: 1.8 | K127: 0 | L127: 2216.4 | M127: 0 | O127: Electric Utility | P127: N | Q127: OP | S127: Non Combustion (NUC, WAT, WND, GEO, or SUN) | U127: Eastern
A128: EXCLUDE | B128: KY | C128: KY-Eastern | D128: J K Smith | E128: 54 | F128: GT1 | G128: NG | H128: GT | I128: 149 | J128: 104 | K128: 1777.55 | L128: 125036.14 | M128: 87972.81 | O128: Electric Utility | P128: N | Q128: OP | S128: Simple cycle unit | U128: Eastern
A129: EXCLUDE | B129: KY | C129: KY-Eastern | D129: J K Smith | E129: 54 | F129: GT10 | G129: NG | H129: GT | I129: 98 | J129: 88 | K129: 1169.13 | L129: 82238.53 | M129: 57861.31 | O129: Electric Utility | P129: N | Q129: OP | S129: Simple cycle unit | U129: Eastern
A130: EXCLUDE | B130: KY | C130: KY-Eastern | D130: J K Smith | E130: 54 | F130: GT11 | G130: NG | H130: GT | I130: 98 | J130: 74 | K130: 0 | L130: 0 | M130: 0 | O130: Electric Utility | P130: N | Q130: IP | S130: Status of Operation (IP, L, P, T) | U130: Eastern
A131: EXCLUDE | B131: KY | C131: KY-Eastern | D131: J K Smith | E131: 54 | F131: GT12 | G131: NG | H131: GT | I131: 98 | J131: 74 | K131: 0 | L131: 0 | M131: 0 | O131: Electric Utility | P131: N | Q131: IP | S131: Status of Operation (IP, L, P, T) | U131: Eastern
A132: EXCLUDE | B132: KY | C132: KY-Eastern | D132: J K Smith | E132: 54 | F132: GT2 | G132: NG | H132: GT | I132: 149 | J132: 104 | K132: 1777.55 | L132: 125036.14 | M132: 87972.81 | O132: Electric Utility | P132: N | Q132: OP | S132: Simple cycle unit | U132: Eastern
A133: EXCLUDE | B133: KY | C133: KY-Eastern | D133: J K Smith | E133: 54 | F133: GT3 | G133: NG | H133: GT | I133: 149 | J133: 104 | K133: 1777.55 | L133: 125036.14 | M133: 87972.81 | O133: Electric Utility | P133: N | Q133: OP | S133: Simple cycle unit | U133: Eastern
A134: EXCLUDE | B134: KY | C134: KY-Eastern | D134: J K Smith | E134: 54 | F134: GT4 | G134: NG | H134: GT | I134: 108 | J134: 74 | K134: 1288.42 | L134: 90630.22 | M134: 63765.53 | O134: Electric Utility | P134: N | Q134: OP | S134: Simple cycle unit | U134: Eastern
A135: EXCLUDE | B135: KY | C135: KY-Eastern | D135: J K Smith | E135: 54 | F135: GT5 | G135: NG | H135: GT | I135: 108 | J135: 74 | K135: 1288.42 | L135: 90630.22 | M135: 63765.53 | O135: Electric Utility | P135: N | Q135: OP | S135: Simple cycle unit | U135: Eastern
A136: EXCLUDE | B136: KY | C136: KY-Eastern | D136: J K Smith | E136: 54 | F136: GT6 | G136: NG | H136: GT | I136: 98 | J136: 74 | K136: 1169.13 | L136: 82238.53 | M136: 57861.31 | O136: Electric Utility | P136: N | Q136: OP | S136: Simple cycle unit | U136: Eastern
A137: EXCLUDE | B137: KY | C137: KY-Eastern | D137: J K Smith | E137: 54 | F137: GT7 | G137: NG | H137: GT | I137: 98 | J137: 74 | K137: 1169.13 | L137: 82238.53 | M137: 57861.31 | O137: Electric Utility | P137: N | Q137: OP | S137: Simple cycle unit | U137: Eastern
A138: EXCLUDE | B138: KY | C138: KY-Eastern | D138: J K Smith | E138: 54 | F138: GT8 | G138: NG | H138: GT | I138: 83 | J138: 74 | K138: 0 | L138: 0 | M138: 0 | O138: Electric Utility | P138: N | Q138: IP | S138: Status of Operation (IP, L, P, T) | U138: Eastern
A139: EXCLUDE | B139: KY | C139: KY-Eastern | D139: J K Smith | E139: 54 | F139: GT9 | G139: NG | H139: GT | I139: 98 | J139: 88 | K139: 1169.13 | L139: 82238.53 | M139: 57861.31 | O139: Electric Utility | P139: N | Q139: OP | S139: Simple cycle unit | U139: Eastern
A140: EXCLUDE | B140: KY | C140: KY-Eastern | D140: J K Smith | E140: 54 | F140: ST1 | G140: BIT | H140: ST | I140: 329.4 | J140: 278 | K140: 0 | L140: 0 | M140: 0 | O140: Electric Utility | P140: N | Q140: IP | S140: Status of Operation (IP, L, P, T) | U140: Eastern
A141: EXCLUDE | B141: AL | C141: AL-Eastern | D141: Point A | E141: 55 | F141: 1 | G141: WAT | H141: HY | I141: 1.6 | J141: 1.8 | K141: 0 | L141: 3269.54 | M141: 0 | O141: Electric Utility | P141: N | Q141: OP | S141: Non Combustion (NUC, WAT, WND, GEO, or SUN) | U141: Eastern
A142: EXCLUDE | B142: AL | C142: AL-Eastern | D142: Point A | E142: 55 | F142: 2 | G142: WAT | H142: HY | I142: 1.6 | J142: 1.8 | K142: 0 | L142: 3269.54 | M142: 0 | O142: Electric Utility | P142: N | Q142: OP | S142: Non Combustion (NUC, WAT, WND, GEO, or SUN) | U142: Eastern
A143: EXCLUDE | B143: AL | C143: AL-Eastern | D143: Point A | E143: 55 | F143: 3 | G143: WAT | H143: HY | I143: 2 | J143: 1.8 | K143: 0 | L143: 4086.92 | M143: 0 | O143: Electric Utility | P143: N | Q143: OP | S143: Non Combustion (NUC, WAT, WND, GEO, or SUN) | U143: Eastern
A144: COALST | B144: AL | C144: AL-Eastern | D144: Charles R Lowman | E144: 56 | F144: 1 | G144: BIT | H144: ST | I144: 66 | J144: 80 | K144: 1119 | L144: 4388.57 | M144: 7012.41 | O144: Electric Utility | P144: N | Q144: OP | U144: Eastern
A145: COALST | B145: AL | C145: AL-Eastern | D145: Charles R Lowman | E145: 56 | F145: 2 | G145: BIT | H145: ST | I145: 236 | J145: 235 | K145: 3103 | L145: 878335 | M145: 1074000.88 | O145: Electric Utility | P145: N | Q145: OP | U145: Eastern
A146: COALST | B146: AL | C146: AL-Eastern | D146: Charles R Lowman | E146: 56 | F146: 3 | G146: BIT | H146: ST | I146: 236 | J146: 235 | K146: 3010 | L146: 999488 | M146: 1245084.88 | O146: Electric Utility | P146: N | Q146: OP | U146: Eastern
A147: COALST | B147: NE | C147: NE-Eastern | D147: Platte | E147: 59 | F147: 1 | G147: SUB | H147: ST | I147: 109.8 | J147: 100 | K147: 1500 | L147: 441660 | M147: 587336.65 | O147: Electric Utility | P147: N | Q147: OP | U147: Eastern
A148: COALST | B148: NE | C148: NE-Eastern | D148: Whelan Energy Center | E148: 60 | F148: 1 | G148: SUB | H148: ST | I148: 76.3 | J148: 77 | K148: 835 | L148: 362131 | M148: 477654.19 | O148: Electric Utility | P148: N | Q148: OP | U148: Eastern
A149: COALST | B149: NE | C149: NE-Eastern | D149: Whelan Energy Center | E149: 60 | F149: 2 | G149: SUB | H149: ST | I149: 248 | J149: 232 | K149: 2210.5 | L149: 998948 | M149: 1119293.9 | O149: Electric Utility | P149: N | Q149: OP | U149: Eastern
A150: EXCLUDE | B150: AK | C150: AK-Alaska | D150: Annex Creek | E150: 62 | F150: 5 | G150: WAT | H150: HY | I150: 1.8 | J150: 1.8 | K150: 0 | L150: 9870.75 | M150: 0 | O150: Electric Utility | P150: N | Q150: OP | S150: State not covered under final 111(d) | U150: Alaska
A151: EXCLUDE | B151: AK | C151: AK-Alaska | D151: Annex Creek | E151: 62 | F151: 6 | G151: WAT | H151: HY | I151: 2.2 | J151: 1.8 | K151: 0 | L151: 12064.25 | M151: 0 | O151: Electric Utility | P151: N | Q151: OP | S151: State not covered under final 111(d) | U151: Alaska
A152: EXCLUDE | B152: AK | C152: AK-Alaska | D152: Gold Creek | E152: 63 | F152: 1 | G152: WAT | H152: HY | I152: 0.8 | J152: 0.8 | K152: 0 | L152: 1993.5 | M152: 0 | O152: Electric Utility | P152: N | Q152: OP | S152: State not covered under final 111(d) | U152: Alaska
A153: EXCLUDE | B153: AK | C153: AK-Alaska | D153: Gold Creek | E153: 63 | F153: 2 | G153: WAT | H153: HY | I153: 0.4 | J153: 0.4 | K153: 0 | L153: 996.75 | M153: 0 | O153: Electric Utility | P153: N | Q153: OP | S153: State not covered under final 111(d) | U153: Alaska
A154: EXCLUDE | B154: AK | C154: AK-Alaska | D154: Gold Creek | E154: 63 | F154: 3 | G154: WAT | H154: HY | I154: 0.4 | J154: 0.4 | K154: 0 | L154: 996.75 | M154: 0 | O154: Electric Utility | P154: N | Q154: OP | S154: State not covered under final 111(d) | U154: Alaska
A155: EXCLUDE | B155: AK | C155: AK-Alaska | D155: Gold Creek | E155: 63 | F155: IC1 | G155: DFO | H155: IC | I155: 1.2 | J155: 1.2 | K155: 0 | L155: 0 | M155: 0 | O155: Electric Utility | P155: N | Q155: SB | S155: State not covered under final 111(d) | U155: Alaska
A156: EXCLUDE | B156: AK | C156: AK-Alaska | D156: Gold Creek | E156: 63 | F156: IC2 | G156: DFO | H156: IC | I156: 1.2 | J156: 1.2 | K156: 0 | L156: 0 | M156: 0 | O156: Electric Utility | P156: N | Q156: SB | S156: State not covered under final 111(d) | U156: Alaska
A157: EXCLUDE | B157: AK | C157: AK-Alaska | D157: Gold Creek | E157: 63 | F157: IC3 | G157: DFO | H157: IC | I157: 1.1 | J157: 1.1 | K157: 0 | L157: 0 | M157: 0 | O157: Electric Utility | P157: N | Q157: SB | S157: State not covered under final 111(d) | U157: Alaska
A158: EXCLUDE | B158: AK | C158: AK-Alaska | D158: Gold Creek | E158: 63 | F158: IC4 | G158: DFO | H158: IC | I158: 3.5 | J158: 3.5 | K158: 0 | L158: 0 | M158: 0 | O158: Electric Utility | P158: N | Q158: SB | S158: State not covered under final 111(d) | U158: Alaska
A159: EXCLUDE | B159: AK | C159: AK-Alaska | D159: Gold Creek | E159: 63 | F159: IC5 | G159: DFO | H159: IC | I159: 1.1 | J159: 1.1 | K159: 0 | L159: 0 | M159: 0 | O159: Electric Utility | P159: N | Q159: SB | S159: State not covered under final 111(d) | U159: Alaska
A160: EXCLUDE | B160: AK | C160: AK-Alaska | D160: Lemon Creek | E160: 64 | F160: 1 | G160: DFO | H160: IC | I160: 2.5 | J160: 2.5 | K160: 0 | L160: 0 | M160: 0 | O160: Electric Utility | P160: N | Q160: SB | S160: State not covered under final 111(d) | U160: Alaska
A161: EXCLUDE | B161: AK | C161: AK-Alaska | D161: Lemon Creek | E161: 64 | F161: 2 | G161: DFO | H161: IC | I161: 2.6 | J161: 2.5 | K161: 0 | L161: 0 | M161: 0 | O161: Electric Utility | P161: N | Q161: SB | S161: State not covered under final 111(d) | U161: Alaska
A162: EXCLUDE | B162: AK | C162: AK-Alaska | D162: Lemon Creek | E162: 64 | F162: 3 | G162: DFO | H162: IC | I162: 2.6 | J162: 2.5 | K162: 0 | L162: 0 | M162: 0 | O162: Electric Utility | P162: N | Q162: SB | S162: State not covered under final 111(d) | U162: Alaska
A163: EXCLUDE | B163: AK | C163: AK-Alaska | D163: Lemon Creek | E163: 64 | F163: 5 | G163: DFO | H163: GT | I163: 18.6 | J163: 17.5 | K163: 0 | L163: 10 | M163: 18.14 | O163: Electric Utility | P163: N | Q163: SB | S163: State not covered under final 111(d) | U163: Alaska
A164: EXCLUDE | B164: AK | C164: AK-Alaska | D164: Lemon Creek | E164: 64 | F164: 6 | G164: DFO | H164: GT | I164: 18.6 | J164: 17.5 | K164: 0 | L164: 10 | M164: 18.14 | O164: Electric Utility | P164: N | Q164: SB | S164: State not covered under final 111(d) | U164: Alaska
A165: EXCLUDE | B165: AK | C165: AK-Alaska | D165: Lemon Creek | E165: 64 | F165: 7 | G165: DFO | H165: IC | I165: 2.8 | J165: 2.5 | K165: 0 | L165: 0 | M165: 0 | O165: Electric Utility | P165: N | Q165: SB | S165: State not covered under final 111(d) | U165: Alaska
A166: EXCLUDE | B166: AK | C166: AK-Alaska | D166: Lemon Creek | E166: 64 | F166: IC10 | G166: DFO | H166: IC | I166: 2.8 | J166: 2.5 | K166: 0 | L166: 0 | M166: 0 | O166: Electric Utility | P166: N | Q166: SB | S166: State not covered under final 111(d) | U166: Alaska
A167: EXCLUDE | B167: AK | C167: AK-Alaska | D167: Lemon Creek | E167: 64 | F167: IC11 | G167: DFO | H167: IC | I167: 2.8 | J167: 2.5 | K167: 0 | L167: 0 | M167: 0 | O167: Electric Utility | P167: N | Q167: SB | S167: State not covered under final 111(d) | U167: Alaska
A168: EXCLUDE | B168: AK | C168: AK-Alaska | D168: Lemon Creek | E168: 64 | F168: IC12 | G168: DFO | H168: IC | I168: 2.8 | J168: 2.5 | K168: 0 | L168: 0 | M168: 0 | O168: Electric Utility | P168: N | Q168: SB | S168: State not covered under final 111(d) | U168: Alaska
A169: EXCLUDE | B169: AK | C169: AK-Alaska | D169: Lemon Creek | E169: 64 | F169: IC8 | G169: DFO | H169: IC | I169: 2.8 | J169: 2.5 | K169: 0 | L169: 0 | M169: 0 | O169: Electric Utility | P169: N | Q169: SB | S169: State not covered under final 111(d) | U169: Alaska
A170: EXCLUDE | B170: AK | C170: AK-Alaska | D170: Lemon Creek | E170: 64 | F170: IC9 | G170: DFO | H170: IC | I170: 2.8 | J170: 2.5 | K170: 0 | L170: 0 | M170: 0 | O170: Electric Utility | P170: N | Q170: SB | S170: State not covered under final 111(d) | U170: Alaska
A171: EXCLUDE | B171: AK | C171: AK-Alaska | D171: Salmon Creek 1 | E171: 65 | F171: HY7 | G171: WAT | H171: HY | I171: 8.5 | J171: 5.2 | K171: 0 | L171: 28396 | M171: 0 | O171: Electric Utility | P171: N | Q171: OP | S171: State not covered under final 111(d) | U171: Alaska
A172: EXCLUDE | B172: AK | C172: AK-Alaska | D172: Skagway | E172: 66 | F172: 1 | G172: WAT | H172: HY | I172: 0.4 | J172: 0.4 | K172: 0 | L172: 1332.4 | M172: 0 | O172: Electric Utility | P172: N | Q172: OP | S172: State not covered under final 111(d) | U172: Alaska
A173: EXCLUDE | B173: AK | C173: AK-Alaska | D173: Skagway | E173: 66 | F173: 2 | G173: WAT | H173: HY | I173: 0.1 | J173: 0.1 | K173: 0 | L173: 333.1 | M173: 0 | O173: Electric Utility | P173: N | Q173: OP | S173: State not covered under final 111(d) | U173: Alaska
A174: EXCLUDE | B174: AK | C174: AK-Alaska | D174: Skagway | E174: 66 | F174: 3 | G174: WAT | H174: HY | I174: 0.3 | J174: 0.3 | K174: 0 | L174: 999.3 | M174: 0 | O174: Electric Utility | P174: N | Q174: OP | S174: State not covered under final 111(d) | U174: Alaska
A175: EXCLUDE | B175: AK | C175: AK-Alaska | D175: Skagway | E175: 66 | F175: 4 | G175: WAT | H175: HY | I175: 0.2 | J175: 0.2 | K175: 0 | L175: 666.2 | M175: 0 | O175: Electric Utility | P175: N | Q175: OP | S175: State not covered under final 111(d) | U175: Alaska
A176: EXCLUDE | B176: AK | C176: AK-Alaska | D176: Skagway | E176: 66 | F176: 6A | G176: DFO | H176: IC | I176: 0.8 | J176: 0.8 | K176: 0 | L176: 0 | M176: 0 | O176: Electric Utility | P176: N | Q176: OP | S176: State not covered under final 111(d) | U176: Alaska
A177: EXCLUDE | B177: AK | C177: AK-Alaska | D177: Skagway | E177: 66 | F177: 7A | G177: DFO | H177: IC | I177: 1.1 | J177: 1.1 | K177: 0 | L177: 0 | M177: 0 | O177: Electric Utility | P177: N | Q177: OP | S177: State not covered under final 111(d) | U177: Alaska
A178: EXCLUDE | B178: AK | C178: AK-Alaska | D178: Skagway | E178: 66 | F178: 8A | G178: DFO | H178: IC | I178: 0.5 | J178: 0.5 | K178: 0 | L178: 0 | M178: 0 | O178: Electric Utility | P178: N | Q178: OP | S178: State not covered under final 111(d) | U178: Alaska
A179: EXCLUDE | B179: AK | C179: AK-Alaska | D179: Skagway | E179: 66 | F179: 9 | G179: DFO | H179: IC | I179: 1 | J179: 1 | K179: 0 | L179: 0 | M179: 0 | O179: Electric Utility | P179: N | Q179: OP | S179: State not covered under final 111(d) | U179: Alaska
A180: EXCLUDE | B180: AK | C180: AK-Alaska | D180: Haines | E180: 69 | F180: 10 | G180: DFO | H180: IC | I180: 1.2 | J180: 1.2 | K180: 0 | L180: 0 | M180: 0 | O180: Electric Utility | P180: N | Q180: OP | S180: State not covered under final 111(d) | U180: Alaska
A181: EXCLUDE | B181: AK | C181: AK-Alaska | D181: Haines | E181: 69 | F181: 5 | G181: DFO | H181: IC | I181: 0.6 | J181: 0.6 | K181: 0 | L181: 0 | M181: 0 | O181: Electric Utility | P181: N | Q181: OP | S181: State not covered under final 111(d) | U181: Alaska
A182: EXCLUDE | B182: AK | C182: AK-Alaska | D182: Haines | E182: 69 | F182: 7A | G182: DFO | H182: IC | I182: 2.8 | J182: 2.8 | K182: 0 | L182: 0 | M182: 0 | O182: Electric Utility | P182: N | Q182: OP | S182: State not covered under final 111(d) | U182: Alaska
A183: EXCLUDE | B183: AK | C183: AK-Alaska | D183: Haines | E183: 69 | F183: 9 | G183: DFO | H183: IC | I183: 1.1 | J183: 1.1 | K183: 0 | L183: 0 | M183: 0 | O183: Electric Utility | P183: N | Q183: RE | R183: 2004 | S183: State not covered under final 111(d) | U183: Alaska
A184: EXCLUDE | B184: AK | C184: AK-Alaska | D184: Haines | E184: 69 | F184: IC8A | G184: DFO | H184: IC | I184: 1.6 | J184: 1.6 | K184: 0 | L184: 0 | M184: 0 | O184: Electric Utility | P184: N | Q184: OP | S184: State not covered under final 111(d) | U184: Alaska
A185: EXCLUDE | B185: AK | C185: AK-Alaska | D185: Swan Lake | E185: 70 | F185: 1 | G185: WAT | H185: HY | I185: 11.2 | J185: 11.2 | K185: 0 | L185: 48344.5 | M185: 0 | O185: Electric Utility | P185: N | Q185: OP | S185: State not covered under final 111(d) | U185: Alaska
A186: EXCLUDE | B186: AK | C186: AK-Alaska | D186: Swan Lake | E186: 70 | F186: 2 | G186: WAT | H186: HY | I186: 11.2 | J186: 11.2 | K186: 0 | L186: 48344.5 | M186: 0 | O186: Electric Utility | P186: N | Q186: OP | S186: State not covered under final 111(d) | U186: Alaska
A187: EXCLUDE | B187: AK | C187: AK-Alaska | D187: Terror Lake | E187: 71 | F187: 1 | G187: WAT | H187: HY | I187: 11.2 | J187: 11.2 | K187: 0 | L187: 65560.5 | M187: 0 | O187: Electric Utility | P187: N | Q187: OP | S187: State not covered under final 111(d) | U187: Alaska
A188: EXCLUDE | B188: AK | C188: AK-Alaska | D188: Terror Lake | E188: 71 | F188: 2 | G188: WAT | H188: HY | I188: 11.2 | J188: 11.2 | K188: 0 | L188: 65560.5 | M188: 0 | O188: Electric Utility | P188: N | Q188: OP | S188: State not covered under final 111(d) | U188: Alaska
A189: EXCLUDE | B189: CA | C189: CA-Western | D189: Venice | E189: 72 | F189: 1 | G189: WAT | H189: HY | I189: 10.1 | J189: 10.1 | K189: 0 | L189: 6972 | M189: 0 | O189: Electric Utility | P189: N | Q189: OP | S189: Non Combustion (NUC, WAT, WND, GEO, or SUN) | U189: Western
A190: EXCLUDE | B190: AK | C190: AK-Alaska | D190: Anchorage 1 | E190: 75 | F190: 1 | G190: NG | H190: GT | I190: 12.5 | J190: 14 | K190: 0 | L190: 6768.21 | M190: 5001.2 | O190: Electric Utility | P190: N | Q190: OP | S190: State not covered under final 111(d) | U190: Alaska
A191: EXCLUDE | B191: AK | C191: AK-Alaska | D191: Anchorage 1 | E191: 75 | F191: 2 | G191: NG | H191: GT | I191: 12.5 | J191: 14 | K191: 0 | L191: 6768.21 | M191: 5001.2 | O191: Electric Utility | P191: N | Q191: OP | S191: State not covered under final 111(d) | U191: Alaska
A192: EXCLUDE | B192: AK | C192: AK-Alaska | D192: Anchorage 1 | E192: 75 | F192: 3 | G192: NG | H192: GT | I192: 16.3 | J192: 17.7 | K192: 0 | L192: 0 | M192: 0 | O192: Electric Utility | P192: N | Q192: RE | R192: 2004 | S192: State not covered under final 111(d) | U192: Alaska
A193: EXCLUDE | B193: AK | C193: AK-Alaska | D193: Anchorage 1 | E193: 75 | F193: 3R | G193: NG | H193: GT | I193: 48.9 | J193: 29.3 | K193: 0 | L193: 26477.24 | M193: 19564.7 | O193: Electric Utility | P193: N | Q193: OP | S193: State not covered under final 111(d) | U193: Alaska
A194: EXCLUDE | B194: AK | C194: AK-Alaska | D194: Anchorage 1 | E194: 75 | F194: 4 | G194: NG | H194: GT | I194: 27 | J194: 31.1 | K194: 0 | L194: 14619.34 | M194: 10802.59 | O194: Electric Utility | P194: N | Q194: OP | S194: State not covered under final 111(d) | U194: Alaska
A195: EXCLUDE | B195: AK | C195: AK-Alaska | D195: Anchorage 1 | E195: 75 | F195: D1 | G195: DFO | H195: IC | I195: 1.1 | J195: 1.2 | K195: 0 | L195: 0 | M195: 0 | O195: Electric Utility | P195: N | Q195: RE | R195: 2010 | S195: State not covered under final 111(d) | U195: Alaska
A196: EXCLUDE | B196: AK | C196: AK-Alaska | D196: Anchorage 1 | E196: 75 | F196: D2 | G196: DFO | H196: IC | I196: 1.1 | J196: 1.4 | K196: 0 | L196: 0 | M196: 0 | O196: Electric Utility | P196: N | Q196: RE | R196: 2010 | S196: State not covered under final 111(d) | U196: Alaska
A197: EXCLUDE | B197: AK | C197: AK-Alaska | D197: Anchorage 1 | E197: 75 | F197: P1BS | G197: DFO | H197: IC | I197: 2 | J197: 2 | K197: 0 | L197: 0 | M197: 0 | O197: Electric Utility | P197: N | Q197: OP | S197: State not covered under final 111(d) | U197: Alaska
A198: EXCLUDE | B198: AK | C198: AK-Alaska | D198: Eklutna Hydro Project | E198: 77 | F198: 1 | G198: WAT | H198: HY | I198: 22.2 | J198: 22.2 | K198: 0 | L198: 35563 | M198: 0 | O198: Electric Utility | P198: N | Q198: OP | S198: State not covered under final 111(d) | U198: Alaska
A199: EXCLUDE | B199: AK | C199: AK-Alaska | D199: Eklutna Hydro Project | E199: 77 | F199: 2 | G199: WAT | H199: HY | I199: 22.2 | J199: 22.2 | K199: 0 | L199: 35563 | M199: 0 | O199: Electric Utility | P199: N | Q199: OP | S199: State not covered under final 111(d) | U199: Alaska
A200: EXCLUDE | B200: AK | C200: AK-Alaska | D200: Snettisham | E200: 78 | F200: 1 | G200: WAT | H200: HY | I200: 23.6 | J200: 23.5 | K200: 0 | L200: 87646.54 | M200: 0 | O200: Electric Utility | P200: N | Q200: OP | S200: State not covered under final 111(d) | U200: Alaska
... 4300 more rows

Sheet Appendix 2 - Under Construction
A1: Note- this worksheet is largely a subset of units in Appendix 1
A2: Category | B2: State | C2: Plant Name | D2: ORIS Code | E2: Generator ID | F2: Fuel type | G2: Prime mover type | H2: Nameplate Capacity (MW) | I2: Summer Capacity (MW) | J2: 2012 Unit Status (EIA 860) | K2: 2013 Unit Status (EIA 860) | L2: Commenced Operation in 2012 | M2: NERC Interconnection
A3: UC Coal - commenced in 2012 | B3: AR | C3: John W Turk Jr Power Plant | D3: 56564 | E3: 1 | F3: SUB | G3: ST | H3: 609 | I3: 609 | J3: OP | L3: Yes | M3: Eastern
A4: UC NGCC - commenced in 2012 | B4: CA | C4: Algonquin Power Sanger LLC | D4: 57564 | E4: STG2 | F4: NG | G4: CC | H4: 12.5 | I4: 12.5 | J4: OP | L4: Yes | M4: Western
A5: UC-NGCC | B5: CA | C5: El Segundo Energy Center LLC | D5: 57901 | E5: 5 | F5: NG | G5: CC | H5: 198 | I5: 195 | J5: V | K5: Op | M5: Western
A6: UC-NGCC | B6: CA | C6: El Segundo Energy Center LLC | D6: 57901 | E6: 6 | F6: NG | G6: CC | H6: 70.7 | I6: 60 | J6: V | K6: OP | M6: Western
A7: UC-NGCC | B7: CA | C7: El Segundo Energy Center LLC | D7: 57901 | E7: 7 | F7: NG | G7: CC | H7: 198 | I7: 195 | J7: V | K7: OP | M7: Western
A8: UC-NGCC | B8: CA | C8: El Segundo Energy Center LLC | D8: 57901 | E8: 8 | F8: NG | G8: CC | H8: 70.7 | I8: 60 | J8: V | K8: OP | M8: Western
A9: UC-NGCC | B9: CA | C9: Glenarm | F9: NG | G9: CC | I9: 68 | K9: U | M9: Western
A10: UC-NGCC | B10: CA | C10: Los Esteros Critical Energy Center | D10: 55748 | E10: CAG5 | F10: NG | G10: CC | H10: 126.1 | I10: 126.1 | J10: U | K10: OP | M10: Western
A11: UC-NGCC | B11: CA | C11: Russell City Energy Center | D11: 56467 | E11: CTG1 | F11: NG | G11: CC | H11: 200 | I11: 185 | J11: V | K11: OP | M11: Western
A12: UC-NGCC | B12: CA | C12: Russell City Energy Center | D12: 56467 | E12: CTG2 | F12: NG | G12: CC | H12: 200 | I12: 185 | J12: V | K12: OP | M12: Western
A13: UC NGCC - commenced in 2012 | B13: CA | C13: El Centro | D13: 389 | E13: 30 | F13: NG | G13: CC | H13: 65.9 | I13: 59.7 | J13: OP | L13: Yes | M13: Western
A14: UC NGCC - commenced in 2012 | B14: CA | C14: El Centro | D14: 389 | E14: 31 | F14: NG | G14: CC | H14: 43.2 | I14: 42.2 | J14: OP | L14: Yes | M14: Western
A15: UC NGCC - commenced in 2012 | B15: CA | C15: El Centro | D15: 389 | E15: 32 | F15: NG | G15: CC | H15: 43.2 | I15: 42.2 | J15: OP | L15: Yes | M15: Western
A16: UC-NGCC | B16: CA | C16: Russell City Energy Center | D16: 56467 | E16: STG1 | F16: NG | G16: CC | H16: 255 | I16: 245 | J16: V | K16: OP | M16: Western
A17: UC NGCC - commenced in 2012 | B17: CA | C17: Lodi Energy Center | D17: 57978 | E17: CT1 | F17: NG | G17: CC | H17: 185 | I17: 162 | J17: OP | L17: Yes | M17: Western
A18: UC NGCC - commenced in 2012 | B18: CA | C18: Lodi Energy Center | D18: 57978 | E18: ST1 | F18: NG | G18: CC | H18: 130 | I18: 95 | J18: OP | L18: Yes | M18: Western
A19: UC NGCC - commenced in 2012 | B19: CA | C19: Tracy Combined Cycle Power Plant | D19: 55933 | E19: TCC1 | F19: NG | G19: CC | H19: 167.3 | I19: 156.2 | J19: OP | L19: Yes | M19: Western
A20: UC-NGCC | B20: CO | C20: Cherokee | D20: 469 | E20: 5 | F20: NG | G20: CC | H20: 185.3 | I20: 173.4 | J20: T | K20: V | M20: Western
A21: UC-NGCC | B21: CO | C21: Cherokee | D21: 469 | E21: 6 | F21: NG | G21: CC | H21: 185.3 | I21: 173.4 | J21: T | K21: V | M21: Western
A22: UC-NGCC | B22: CO | C22: Cherokee | D22: 469 | E22: 7 | F22: NG | G22: CC | H22: 255 | I22: 241.4 | J22: T | K22: V | M22: Western
A23: UC NGCC - commenced in 2012 | B23: CO | C23: Pueblo Airport Generating Station | D23: 56998 | E23: 4 | F23: NG | G23: CC | H23: 40 | I23: 40 | J23: OP | L23: Yes | M23: Western
A24: UC NGCC - commenced in 2012 | B24: CO | C24: Pueblo Airport Generating Station | D24: 56998 | E24: 43 | F24: NG | G24: CC | H24: 20 | I24: 20 | J24: OP | L24: Yes | M24: Western
A25: UC NGCC - commenced in 2012 | B25: CO | C25: Pueblo Airport Generating Station | D25: 56998 | E25: 5 | F25: NG | G25: CC | H25: 40 | I25: 40 | J25: OP | L25: Yes | M25: Western
A26: UC NGCC - commenced in 2012 | B26: CO | C26: Pueblo Airport Generating Station | D26: 56998 | E26: 53 | F26: NG | G26: CC | H26: 20 | I26: 20 | J26: OP | L26: Yes | M26: Western
A27: UC NGCC - commenced in 2012 | B27: CO | C27: Pueblo Airport Generating Station | D27: 56998 | E27: 6 | F27: NG | G27: CC | H27: 40 | I27: 40 | J27: OP | L27: Yes | M27: Western
A28: UC NGCC - commenced in 2012 | B28: CO | C28: Pueblo Airport Generating Station | D28: 56998 | E28: 7 | F28: NG | G28: CC | H28: 40 | I28: 40 | J28: OP | L28: Yes | M28: Western
A29: UC-NGCC | B29: DE | C29: Garrison Energy Center LLC | D29: 57349 | E29: CTG1 | F29: NG | G29: CC | H29: 235 | I29: 183 | J29: P | K29: P | M29: Eastern
A30: UC-NGCC | B30: DE | C30: Garrison Energy Center LLC | D30: 57349 | E30: STG2 | F30: NG | G30: CC | H30: 126 | I30: 126 | J30: P | K30: P | M30: Eastern
A31: UC NGCC - commenced in 2012 | B31: FL | C31: Cape Canaveral | D31: 609 | E31: 3A | F31: NG | G31: CC | H31: 265 | I31: 1210 | J31: TS | M31: Eastern
A32: UC NGCC - commenced in 2012 | B32: FL | C32: Cape Canaveral | D32: 609 | E32: 3B | F32: NG | G32: CC | H32: 265 | J32: TS | M32: Eastern
A33: UC NGCC - commenced in 2012 | B33: FL | C33: Cape Canaveral | D33: 609 | E33: 3C | F33: NG | G33: CC | H33: 265 | J33: TS | M33: Eastern
A34: UC NGCC - commenced in 2012 | B34: FL | C34: Cape Canaveral | D34: 609 | E34: 3ST | F34: NG | G34: CC | H34: 500 | J34: TS | M34: Eastern
A35: UC-NGCC | B35: FL | C35: Polk | D35: 7242 | E35: 9 | F35: NG | G35: CC | H35: 463 | I35: 459 | J35: P | K35: U | M35: Eastern
A36: UC-NGCC | B36: FL | C36: Riviera | D36: 619 | E36: 5A | F36: NG | G36: CC | H36: 265 | I36: 1212 | J36: U | K36: V | M36: Eastern
A37: UC-NGCC | B37: FL | C37: Riviera | D37: 619 | E37: 5B | F37: NG | G37: CC | H37: 265 | J37: U | K37: V | M37: Eastern
A38: UC-NGCC | B38: FL | C38: Riviera | D38: 619 | E38: 5C | F38: NG | G38: CC | H38: 265 | J38: U | K38: V | M38: Eastern
A39: UC-NGCC | B39: FL | C39: Riviera | D39: 619 | E39: 5ST | F39: NG | G39: CC | H39: 500 | J39: U | K39: V | M39: Eastern
A40: UC NGCC - commenced in 2012 | B40: GA | C40: Jack McDonough | D40: 710 | E40: 5 | F40: NG | G40: CC | H40: 375 | I40: 375 | J40: OP | L40: Yes | M40: Eastern
A41: UC NGCC - commenced in 2012 | B41: GA | C41: Jack McDonough | D41: 710 | E41: 5ACT | F41: NG | G41: CC | H41: 232.5 | I41: 231.5 | J41: OP | L41: Yes | M41: Eastern
A42: UC NGCC - commenced in 2012 | B42: GA | C42: Jack McDonough | D42: 710 | E42: 5BCT | F42: NG | G42: CC | H42: 232.5 | I42: 231.5 | J42: OP | L42: Yes | M42: Eastern
A43: UC NGCC - commenced in 2012 | B43: GA | C43: Jack McDonough | D43: 710 | E43: 6 | F43: NG | G43: CC | H43: 375 | I43: 375 | J43: OP | L43: Yes | M43: Eastern
A44: UC NGCC - commenced in 2012 | B44: GA | C44: Jack McDonough | D44: 710 | E44: 6ACT | F44: NG | G44: CC | H44: 232.5 | I44: 231.5 | J44: OP | L44: Yes | M44: Eastern
A45: UC NGCC - commenced in 2012 | B45: GA | C45: Jack McDonough | D45: 710 | E45: 6BCT | F45: NG | G45: CC | H45: 232.5 | I45: 231.5 | J45: OP | L45: Yes | M45: Eastern
A46: UC NGCC - commenced in 2012 | B46: ID | C46: Langley Gulch Power Plant | D46: 57028 | E46: GTG | F46: NG | G46: CC | H46: 187 | I46: 175.8 | J46: OP | L46: Yes | M46: Western
A47: UC NGCC - commenced in 2012 | B47: ID | C47: Langley Gulch Power Plant | D47: 57028 | E47: STG | F47: NG | G47: CC | H47: 131.5 | I47: 122.9 | J47: OP | L47: Yes | M47: Western
A48: UC-NGCC | B48: IL | C48: Nelson Energy Center | F48: NG | G48: CC | I48: 155.7 | K48: V | M48: Eastern
A49: UC-NGCC | B49: IL | C49: Nelson Energy Center | F49: NG | G49: CC | I49: 155.7 | K49: V | M49: Eastern
A50: UC-NGCC | B50: IL | C50: Nelson Energy Center | F50: NG | G50: CC | I50: 129.6 | K50: V | M50: Eastern
A51: UC-NGCC | B51: IL | C51: Nelson Energy Center | F51: NG | G51: CC | I51: 129.6 | K51: V | M51: Eastern
A52: UC Coal - commenced in 2012 | B52: IL | C52: Prairie State Generatng Station | D52: 55856 | E52: PC1 | F52: BIT | G52: ST | H52: 883 | I52: 812 | J52: OP | L52: Yes | M52: Eastern
A53: UC Coal - commenced in 2012 | B53: IL | C53: Prairie State Generatng Station | D53: 55856 | E53: PC2 | F53: BIT | G53: ST | H53: 883 | I53: 817 | J53: OP | L53: Yes | M53: Eastern
A54: UC Coal - commenced in 2012 | B54: IN | C54: Edwardsport | D54: 1004 | E54: CT1 | F54: BIT | G54: ST | H54: 236.5 | I54: 570.6 | J54: TS | L54: Yes | M54: Eastern
A55: UC Coal - commenced in 2012 | B55: IN | C55: Edwardsport | D55: 1004 | E55: CT2 | F55: BIT | G55: ST | H55: 236.5 | J55: TS | L55: Yes | M55: Eastern
A56: UC Coal - commenced in 2012 | B56: IN | C56: Edwardsport | D56: 1004 | E56: ST | F56: BIT | G56: ST | H56: 331.5 | J56: TS | L56: Yes | M56: Eastern
A57: UC-NGCC | B57: KS | C57: Riverton | D57: 1239 | E57: 2015-12-02 | F57: NG | G57: CC | H57: 250 | I57: 138 | J57: L | K57: U | M57: Eastern
A58: UC-NGCC | B58: KY | C58: Cane Run | D58: 1363 | E58: 7 | F58: NG | G58: CC | H58: 690 | I58: 640 | J58: P | K58: V | M58: Eastern
A59: UC-NGCC | B59: LA | C59: Morgan City CC Youngs Road | D59: 58478 | E59: LEPA1 | F59: NG | G59: CC | H59: 84 | I59: 79 | J59: L | K59: U | M59: Eastern
A60: UC-NGCC | B60: LA | C60: Nine Mile Point | D60: 1403 | E60: 6 | F60: NG | G60: CC | H60: 627 | I60: 561 | J60: U | K60: V | M60: Eastern
A61: UC NGCC - commenced in 2012 | B61: MS | C61: Moselle | D61: 2070 | E61: GTG1 | F61: NG | G61: CC | H61: 83.5 | I61: 75 | J61: OP | L61: Yes | M61: Eastern
A62: UC NGCC - commenced in 2012 | B62: MS | C62: Moselle | D62: 2070 | E62: GTG2 | F62: NG | G62: CC | H62: 83.5 | I62: 75 | J62: OP | L62: Yes | M62: Eastern
A63: UC - Coal | B63: MS | C63: Kemper County IGCC Project | D63: 57037 | E63: 1A | F63: SGC | G63: CC | H63: 235.4 | I63: 153.8 | J63: U | K63: V | M63: Eastern
A64: UC - Coal | B64: MS | C64: Kemper County IGCC Project | D64: 57037 | E64: 1B | F64: SGC | G64: CC | H64: 235.4 | I64: 153.8 | J64: U | K64: V | M64: Eastern
A65: UC - Coal | B65: MS | C65: Kemper County IGCC Project | D65: 57037 | E65: 1C | F65: SGC | G65: CC | H65: 369 | I65: 285.4 | J65: U | K65: V | M65: Eastern
A66: UC Coal - commenced in 2012 | B66: NC | C66: Cliffside | D66: 2721 | E66: 6 | F66: BIT | G66: ST | H66: 909.5 | I66: 825 | J66: OP | L66: Yes | M66: Eastern
A67: UC NGCC - commenced in 2012 | B67: NC | C67: Dan River | D67: 2723 | E67: CT8 | F67: NG | G67: CC | H67: 185.3 | I67: 165 | J67: OP | L67: Yes | M67: Eastern
A68: UC NGCC - commenced in 2012 | B68: NC | C68: Dan River | D68: 2723 | E68: CT9 | F68: NG | G68: CC | H68: 185.3 | I68: 165 | J68: OP | L68: Yes | M68: Eastern
A69: UC NGCC - commenced in 2012 | B69: NC | C69: Dan River | D69: 2723 | E69: ST7 | F69: NG | G69: CC | H69: 320.5 | I69: 290 | J69: OP | L69: Yes | M69: Eastern
A70: UC NGCC - commenced in 2012 | B70: NC | C70: Lee Combined Cycle Plant | D70: 58215 | E70: 1A | F70: NG | G70: CC | H70: 221 | I70: 181 | J70: OP | L70: Yes | M70: Eastern
A71: UC NGCC - commenced in 2012 | B71: NC | C71: Lee Combined Cycle Plant | D71: 58215 | E71: 1B | F71: NG | G71: CC | H71: 221 | I71: 181 | J71: OP | L71: Yes | M71: Eastern
A72: UC NGCC - commenced in 2012 | B72: NC | C72: Lee Combined Cycle Plant | D72: 58215 | E72: 1C | F72: NG | G72: CC | H72: 221 | I72: 181 | J72: OP | L72: Yes | M72: Eastern
A73: UC NGCC - commenced in 2012 | B73: NC | C73: Lee Combined Cycle Plant | D73: 58215 | E73: ST1 | F73: NG | G73: CC | H73: 405 | I73: 377 | J73: OP | L73: Yes | M73: Eastern
A74: UC-NGCC | B74: NC | C74: L V Sutton Steam | D74: 2713 | E74: CA1 | F74: NG | G74: CC | H74: 263 | I74: 263 | J74: U | K74: OP | M74: Eastern
A75: UC-NGCC | B75: NC | C75: L V Sutton Steam | D75: 2713 | E75: CT1 | F75: NG | G75: CC | H75: 181 | I75: 181 | J75: U | K75: OP | M75: Eastern
A76: UC-NGCC | B76: NC | C76: L V Sutton Steam | D76: 2713 | E76: CT2 | F76: NG | G76: CC | H76: 181 | I76: 181 | J76: U | K76: OP | M76: Eastern
A77: UC - Coal | B77: ND | C77: Spiritwood Station | D77: 56786 | E77: 1 | F77: LIG | G77: ST | H77: 106.2 | I77: 62 | J77: V | K77: OP | M77: Eastern
A78: UC-NGCC | B78: NJ | C78: Newark Energy Center | D78: 58079 | E78: GT-1 | F78: NG | G78: CC | H78: 225 | I78: 200 | J78: T | K78: T | M78: Eastern
A79: UC-NGCC | B79: NJ | C79: Newark Energy Center | D79: 58079 | E79: GT-2 | F79: NG | G79: CC | H79: 225 | I79: 200 | J79: T | K79: T | M79: Eastern
A80: UC-NGCC | B80: NJ | C80: Newark Energy Center | D80: 58079 | E80: STG-1 | F80: NG | G80: CC | H80: 285 | I80: 285 | J80: T | K80: T | M80: Eastern
A81: UC-NGCC | B81: NJ | C81: West Deptford Energy Station | D81: 56963 | E81: E101 | F81: NG | G81: CC | H81: 380 | I81: 304 | J81: U | K81: V | M81: Eastern
A82: UC-NGCC | B82: NJ | C82: West Deptford Energy Station | D82: 56963 | E82: E102 | F82: NG | G82: CC | H82: 380 | I82: 304 | J82: U | K82: V | M82: Eastern
A83: UC-NGCC | B83: NJ | C83: Woodbridge Energy Center | D83: 57839 | E83: CT001 | F83: NG | G83: CC | H83: 240 | I83: 240 | J83: L | K83: L | M83: Eastern
A84: UC-NGCC | B84: NJ | C84: Woodbridge Energy Center | D84: 57839 | E84: CT002 | F84: NG | G84: CC | H84: 240 | I84: 240 | J84: L | K84: L | M84: Eastern
A85: UC NGCC - commenced in 2012 | B85: OH | C85: Dresden Energy Facility | D85: 55350 | E85: 1 | F85: NG | G85: CC | H85: 198.9 | I85: 158.3 | J85: OP | L85: Yes | M85: Eastern
A86: UC NGCC - commenced in 2012 | B86: OH | C86: Dresden Energy Facility | D86: 55350 | E86: 2 | F86: NG | G86: CC | H86: 198.9 | I86: 158.3 | J86: OP | L86: Yes | M86: Eastern
A87: UC NGCC - commenced in 2012 | B87: OH | C87: Dresden Energy Facility | D87: 55350 | E87: 3 | F87: NG | G87: CC | H87: 280.5 | I87: 223.4 | J87: OP | L87: Yes | M87: Eastern
A88: UC NGCC - commenced in 2012 | B88: OH | C88: Fremont Energy Center | D88: 55701 | E88: CA01 | F88: NG | G88: CC | H88: 358.7 | I88: 330.5 | J88: OP | L88: Yes | M88: Eastern
A89: UC NGCC - commenced in 2012 | B89: OH | C89: Fremont Energy Center | D89: 55701 | E89: CT01 | F89: NG | G89: CC | H89: 190.4 | I89: 168.4 | J89: OP | L89: Yes | M89: Eastern
A90: UC NGCC - commenced in 2012 | B90: OH | C90: Fremont Energy Center | D90: 55701 | E90: CT02 | F90: NG | G90: CC | H90: 190.4 | I90: 168.4 | J90: OP | L90: Yes | M90: Eastern
A91: UC-NGCC | B91: PA | C91: Moxie Liberty Generation Plant | D91: 58420 | E91: GEN1 | F91: NG | G91: CC | H91: 435 | I91: 382.5 | J91: T | K91: U | M91: Eastern
A92: UC-NGCC | B92: PA | C92: Moxie Liberty Generation Plant | D92: 58420 | E92: GEN2 | F92: NG | G92: CC | H92: 435 | I92: 382.5 | J92: T | K92: U | M92: Eastern
A93: UC-NGCC | B93: PA | C93: Moxie Patriot Generation Plant | D93: 58426 | E93: GEN1 | F93: NG | G93: CC | H93: 435 | I93: 382.5 | J93: T | K93: U | M93: Eastern
A94: UC-NGCC | B94: PA | C94: Moxie Patriot Generation Plant | D94: 58426 | E94: GEN2 | F94: NG | G94: CC | H94: 435 | I94: 382.5 | J94: T | K94: U | M94: Eastern
A95: UC NGCC - commenced in 2012 | B95: SD | C95: Deer Creek Station | D95: 56610 | E95: 1 | F95: NG | G95: CC | H95: 154 | I95: 150 | J95: OP | L95: Yes | M95: Eastern
A96: UC NGCC - commenced in 2012 | B96: SD | C96: Deer Creek Station | D96: 56610 | E96: 2 | F96: NG | G96: CC | H96: 170 | I96: 140 | J96: OP | L96: Yes | M96: Eastern
A97: UC NGCC - commenced in 2012 | B97: TN | C97: John Sevier | D97: 3405 | E97: CTG1 | F97: NG | G97: CC | H97: 191.3 | I97: 165 | J97: OP | L97: Yes | M97: Eastern
A98: UC NGCC - commenced in 2012 | B98: TN | C98: John Sevier | D98: 3405 | E98: CTG2 | F98: NG | G98: CC | H98: 191.3 | I98: 165 | J98: OP | L98: Yes | M98: Eastern
A99: UC NGCC - commenced in 2012 | B99: TN | C99: John Sevier | D99: 3405 | E99: CTG3 | F99: NG | G99: CC | H99: 191.3 | I99: 165 | J99: OP | L99: Yes | M99: Eastern
A100: UC NGCC - commenced in 2012 | B100: TN | C100: John Sevier | D100: 3405 | E100: STG1 | F100: NG | G100: CC | H100: 423 | I100: 383 | J100: OP | L100: Yes | M100: Eastern
A101: UC-NGCC | B101: TX | C101: Channel Energy Center LLC | D101: 55299 | E101: CTG3 | F101: NG | G101: CC | H101: 208.8 | I101: 183 | J101: P | K101: V | M101: ERCOT
A102: UC-NGCC | B102: TX | C102: Deer Park Energy Center | D102: 55464 | E102: CTG6 | F102: NG | G102: CC | H102: 180 | I102: 154.8 | J102: U | K102: U | M102: ERCOT
A103: UC-NGCC | B103: TX | C103: Panda Sherman Power Station | D103: 58005 | E103: CTG-1 | F103: NG | G103: CC | H103: 232 | I103: 204 | J103: U | K103: V | M103: ERCOT
A104: UC-NGCC | B104: TX | C104: Panda Sherman Power Station | D104: 58005 | E104: CTG-2 | F104: NG | G104: CC | H104: 232 | I104: 204 | J104: U | K104: V | M104: ERCOT
A105: UC-NGCC | B105: TX | C105: Panda Sherman Power Station | D105: 58005 | E105: STG-1 | F105: NG | G105: CC | H105: 339.2 | I105: 309 | J105: U | K105: V | M105: ERCOT
A106: UC-NGCC | B106: TX | C106: Panda Temple Power Station | D106: 58001 | E106: CTG-1 | F106: NG | G106: CC | H106: 232 | I106: 204 | J106: U | K106: V | M106: ERCOT
A107: UC-NGCC | B107: TX | C107: Panda Temple Power Station | D107: 58001 | E107: CTG-2 | F107: NG | G107: CC | H107: 232 | I107: 204 | J107: U | K107: V | M107: ERCOT
A108: UC-NGCC | B108: TX | C108: Panda Temple Power Station | D108: 58001 | E108: CTG-3 | F108: NG | G108: CC | H108: 232 | I108: 204 | J108: U | K108: U | M108: ERCOT
A109: UC-NGCC | B109: TX | C109: Panda Temple Power Station | D109: 58001 | E109: CTG-4 | F109: NG | G109: CC | H109: 232 | I109: 204 | J109: U | K109: U | M109: ERCOT
A110: UC-NGCC | B110: TX | C110: Panda Temple Power Station | D110: 58001 | E110: STG-1 | F110: NG | G110: CC | H110: 339.2 | I110: 309 | J110: U | K110: V | M110: ERCOT
A111: UC-NGCC | B111: TX | C111: Panda Temple Power Station | D111: 58001 | E111: STG-2 | F111: NG | G111: CC | H111: 339.2 | I111: 309 | J111: U | K111: U | M111: ERCOT
A112: UC Coal - commenced in 2012 | B112: TX | C112: Sandy Creek Energy Station | D112: 56611 | E112: S01 | F112: SUB | G112: ST | H112: 957.6 | I112: 911 | J112: TS | L112: Yes | M112: ERCOT
A113: UC-NGCC | B113: UT | C113: Lake Side 2 | D113: 58393 | E113: CT21 | F113: NG | G113: CC | H113: 185.4 | I113: 178 | J113: V | K113: V | M113: Western
A114: UC-NGCC | B114: UT | C114: Lake Side 2 | D114: 58393 | E114: CT22 | F114: NG | G114: CC | H114: 185.4 | I114: 178 | J114: V | K114: V | M114: Western
A115: UC-NGCC | B115: UT | C115: Lake Side 2 | D115: 58393 | E115: ST2 | F115: NG | G115: CC | H115: 284.4 | I115: 273 | J115: V | K115: V | M115: Western
A116: UC-NGCC | B116: VA | C116: Brunswick County Power Station | D116: 58260 | E116: CT01 | F116: NG | G116: CC | H116: 297.5 | I116: 270.8 | J116: L | K116: L | M116: Eastern
A117: UC-NGCC | B117: VA | C117: Brunswick County Power Station | D117: 58260 | E117: CT02 | F117: NG | G117: CC | H117: 297.5 | I117: 270.8 | J117: L | K117: L | M117: Eastern
A118: UC Coal - commenced in 2012 | B118: VA | C118: Virginia City Hybrid Energy Center | D118: 56808 | E118: 1 | F118: BIT | G118: ST | H118: 668 | I118: 600 | J118: OP | L118: Yes | M118: Eastern
A119: UC-NGCC | B119: VA | C119: Brunswick County Power Station | D119: 58260 | E119: CT03 | F119: NG | G119: CC | H119: 297.5 | I119: 270.8 | J119: L | K119: L | M119: Eastern
A120: UC-NGCC | B120: VA | C120: Brunswick County Power Station | D120: 58260 | E120: ST01 | F120: NG | G120: CC | H120: 579.7 | I120: 595.3 | J120: L | K120: L | M120: Eastern
A121: UC-NGCC | B121: VA | C121: Warren County VA | D121: 55939 | E121: CT01 | F121: NG | G121: CC | H121: 256 | I121: 256 | J121: T | K121: T | M121: Eastern
A122: UC-NGCC | B122: VA | C122: Warren County VA | D122: 55939 | E122: CT02 | F122: NG | G122: CC | H122: 256 | I122: 256 | J122: T | K122: T | M122: Eastern
A123: UC-NGCC | B123: VA | C123: Warren County VA | D123: 55939 | E123: CT03 | F123: NG | G123: CC | H123: 256 | I123: 256 | J123: T | K123: T | M123: Eastern
A124: UC-NGCC | B124: VA | C124: Warren County VA | D124: 55939 | E124: ST01 | F124: NG | G124: CC | H124: 561 | I124: 561 | J124: T | K124: T | M124: Eastern
A125: UC-NGCC | B125: WY | C125: Cheyenne Prairie Generating Station | D125: 57703 | E125: 01A | F125: NG | G125: CC | H125: 47.5 | I125: 40 | J125: P | K125: U | M125: Western
A126: UC-NGCC | B126: WY | C126: Cheyenne Prairie Generating Station | D126: 57703 | E126: 01B | F126: NG | G126: CC | H126: 47.5 | I126: 40 | J126: P | K126: U | M126: Western
A127: UC-NGCC | B127: WY | C127: Cheyenne Prairie Generating Station | D127: 57703 | E127: 01C | F127: WH | G127: CC | H127: 20 | I127: 20 | J127: P | K127: U | M127: Western

Sheet Appendix 3 - State-level Data
D1: COAL Steam (from appendix 1 - does not include any under construction units) | G1: NGCC (from appendix 1 - does not include any under construction units) | K1: Oil and gas-fired steam (from appendix 1 - does not include any under construction units) | N1: Adjustments for Hydro and Outages | R1: UC Coal - commenced operation in 2012 | S1: UC-Coal (began construction by 1/08/14) | T1: UC NGCC - commenced operation in 2012 | U1: UC-NGCC (began construction by 1/08/14) | V1: Coal (Adjusted Baseline) | Y1: NGCC (Adjusted Baseline) | AC1: OG Steam (Adjusted Baseline)
A2: State/Tribe | B2: Region | C2: State-region | D2: Electric Generation (MWh) | E2: Carbon Dioxide Emissions (tons) | F2: Emission Rate (lb/MWh) | G2: Electric Generation (MWh) | H2: Carbon Dioxide Emissions (tons) | I2: Emission Rate (lb/MWh) | J2: Summer Capacity (MW) | K2: Electric Generation (MWh) | L2: Carbon Dioxide Emissions (tons) | M2: Emission Rate (lb/MWh) | N2: Adjustment | O2: Adjusted Coal Steam Gen (MWh) | P2: Adjusted NGCC Gen (MWh) | Q2: Adjusted OG Gen (MWh) | R2: Summer Capacity (MW) | S2: Summer Capacity (MW) | T2: Summer Capacity (MW) | U2: Summer Capacity (MW) | V2: Electric Generation (MWh) | W2: Emission Rate (lb/MWh) | X2: Carbon Dioxide Emissions (tons) | Y2: Electric Generation (MWh) | Z2: Emission Rate (lb/MWh) | AA2: Carbon Dioxide Emissions (tons) | AB2: Capacity (MW) | AC2: Electric Generation (MWh) | AD2: Emission Rate (lb/MWh) | AE2: Carbon Dioxide Emissions (tons) | AG2: Total Adj. Baseline Fossil Steam Generation (Used in Appendix 5)
A3: =LEFT(C3,2) -> AL | B3: =RIGHT(C3,7) -> Eastern | C3: AL-Eastern | D3: 46059839.57 | E3: 52123954.54 | F3: =E3*2000/D3 -> 2263.314637 | G3: 53492095.96 | H3: 23447825.97 | I3: =H3*2000/G3 -> 876.6837623 | J3: 9277.6 | K3: 0 | L3: 0 | R3: 0 | S3: 0 | T3: 0 | U3: 0 | V3: =MAX(O3,D3)+8784*SUM(R3:S3)*0.6 -> 46059839.57 | W3: =F3 -> 2263.314637 | X3: =V3*W3/2000 -> 52123954.54 | Y3: =SUM(T3:U3)*8784*0.55+MAX(P3,G3) -> 53492095.96 | Z3: =I3 -> 876.6837623 | AA3: =Y3*Z3/2000 -> 23447825.97 | AB3: =SUM(T3:U3,J3) -> 9277.6 | AE3: =AC3*AD3/2000 -> 0 | AG3: =AC3+V3 -> 46059839.57
A4: AR | B4: Eastern | C4: AR-Eastern | D4: 28083856 | E4: 32108696.01 | F4: 2286.630156 | G4: 15651185.02 | H4: 7015577.4 | I4: 896.4915297 | J4: 4660.5 | K4: 861462.48 | L4: 622275.65 | M4: =L4*2000/K4 -> 1444.695885 | R4: 609 | S4: 0 | T4: 0 | U4: 0 | V4: 31293529.6 | W4: 2286.630156 | X4: 35778364.23 | Y4: 15651185.02 | Z4: 896.4915297 | AA4: 7015577.4 | AB4: 4660.5 | AC4: =MAX(Q4,K4) -> 861462.48 | AD4: =M4 -> 1444.695885 | AE4: 622275.65 | AG4: 32154992.08
A5: AZ | B5: Western | C5: AZ-Western | D5: 24335930 | E5: 27598213.48 | F5: 2268.104279 | G5: 26783421.01 | H5: 12058895.13 | I5: 900.4745977 | J5: 9304.9 | K5: 1034710 | L5: 807926.28 | M5: 1561.647766 | R5: 0 | S5: 0 | T5: 0 | U5: 0 | V5: 24335930 | W5: 2268.104279 | X5: 27598213.48 | Y5: 26783421.01 | Z5: 900.4745977 | AA5: 12058895.13 | AB5: 9304.9 | AC5: 1034710 | AD5: 1561.647766 | AE5: 807926.28 | AG5: 25370640
A6: CA | B6: Western | C6: CA-Western | D6: 933157 | E6: 1270049.22 | F6: 2722.048316 | G6: 83942957.94 | H6: 37274012.87 | I6: 888.079567 | J6: 16860.5 | K6: 10179479 | L6: 7123997.42 | M6: 1399.6782 | R6: 0 | S6: 0 | T6: 569.8 | U6: 1319.1 | V6: 933157 | W6: 2722.048316 | X6: 1270049.22 | Y6: 93068611.62 | Z6: 888.079567 | AA6: 41326166.15 | AB6: 18749.4 | AC6: 10179479 | AD6: 1399.6782 | AE6: 7123997.42 | AG6: 11112636
A7: CO | B7: Western | C7: CO-Western | D7: 34248191 | E7: 38100151.33 | F7: 2224.943871 | G7: 7323418.43 | H7: 3360251.34 | I7: 917.672907 | J7: 2200.2 | K7: 618 | L7: 1638.99 | M7: 5304.174757 | R7: 0 | S7: 0 | T7: 200 | U7: 588.2 | V7: 34248191 | W7: 2224.943871 | X7: 38100151.33 | Y7: 11131370.27 | Z7: 917.672907 | AA7: 5107478.457 | AB7: 2988.4 | AC7: 618 | AD7: 5304.174757 | AE7: 1638.99 | AG7: 34248809
A8: CT | B8: Eastern | C8: CT-Eastern | D8: 103383 | E8: 156454.14 | F8: 3026.689881 | G8: 15299704.41 | H8: 6207715.62 | I8: 811.4817716 | J8: 2417.9 | K8: 335267 | L8: 295633.59 | M8: 1763.571064 | R8: 0 | S8: 0 | T8: 0 | U8: 0 | V8: 103383 | W8: 3026.689881 | X8: 156454.14 | Y8: 15299704.41 | Z8: 811.4817716 | AA8: 6207715.62 | AB8: 2417.9 | AC8: 335267 | AD8: 1763.571064 | AE8: 295633.59 | AG8: 438650
A9: DE | B9: Eastern | C9: DE-Eastern | D9: 1412555 | E9: 1502778.76 | F9: 2127.745482 | G9: 5179269.98 | H9: 2536173.1 | I9: 979.3554342 | J9: 1130 | K9: 1078941.6 | L9: 770329.57 | M9: 1427.935618 | R9: 0 | S9: 0 | T9: 0 | U9: 309 | V9: 1412555 | W9: 2127.745482 | X9: 1502778.76 | Y9: 6672110.78 | Z9: 979.3554342 | AA9: 3267183.975 | AB9: 1439 | AC9: 1078941.6 | AD9: 1427.935618 | AE9: 770329.57 | AG9: 2491496.6
A10: FL | B10: Eastern | C10: FL-Eastern | D10: 46401833.26 | E10: 52873980.44 | F10: 2278.960839 | G10: 133408757.3 | H10: 57857617.21 | I10: 867.3736027 | J10: 23945.9 | K10: 10050187.34 | L10: 7664246.54 | M10: 1525.194761 | R10: 0 | S10: 0 | T10: 1210 | U10: 1671 | V10: 46401833.26 | W10: 2278.960839 | X10: 52873980.44 | Y10: 147327444.5 | Z10: 867.3736027 | AA10: 63893968.14 | AB10: 26826.9 | AC10: 10050187.34 | AD10: 1525.194761 | AE10: 7664246.54 | AG10: 56452020.6
A11: Fort Mojave | B11: Western | C11: Fort Mojave-Western | D11: 0 | E11: 0 | G11: 1360092.99 | H11: 583530.18 | I11: 858.0739468 | J11: 550 | K11: 0 | L11: 0 | R11: 0 | S11: 0 | T11: 0 | U11: 0 | Y11: 1360092.99 | Z11: 858.0739468 | AA11: 583530.18 | AB11: 550 | AE11: 0 | AG11: 0
A12: =LEFT(C12,2) -> GA | B12: Eastern | C12: GA-Eastern | D12: 40990604.03 | E12: 47006256.69 | F12: =E12*2000/D12 -> 2293.513736 | G12: 29631545 | H12: 12437996.02 | I12: 839.5104622 | J12: 6222 | K12: 0 | L12: 0 | R12: 0 | S12: 0 | T12: 1676 | U12: 0 | V12: =MAX(O12,D12)+8784*SUM(R12:S12)*0.6 -> 40990604.03 | W12: =F12 -> 2293.513736 | X12: =V12*W12/2000 -> 47006256.69 | Y12: 37728636.2 | Z12: 839.5104622 | AA12: 15836792.41 | AB12: 7898 | AE12: 0 | AG12: 40990604.03
A13: IA | B13: Eastern | C13: IA-Eastern | D13: 33009046 | E13: 37128849.78 | F13: =E13*2000/D13 -> 2249.616652 | G13: 1430247.71 | H13: 637094.97 | I13: 890.8875932 | J13: 1091.7 | K13: 305111 | L13: 369441.53 | M13: =L13*2000/K13 -> 2421.686075 | R13: 0 | S13: 0 | T13: 0 | U13: 0 | V13: =MAX(O13,D13)+8784*SUM(R13:S13)*0.6 -> 33009046 | W13: =F13 -> 2249.616652 | X13: =V13*W13/2000 -> 37128849.78 | Y13: 1430247.71 | Z13: 890.8875932 | AA13: 637094.97 | AB13: 1091.7 | AC13: =MAX(Q13,K13) -> 305111 | AD13: =M13 -> 2421.686075 | AE13: 369441.53 | AG13: 33314157
A14: ID | B14: Western | C14: ID-Western | D14: 0 | E14: 0 | G14: 1214659 | H14: 506599.54 | I14: 834.142817 | J14: 248 | K14: 0 | L14: 0 | N14: 1.652295724 | O14: =$N14*D14 -> 0 | P14: =$N14*G14 -> 2006975.872 | Q14: =$N14*K14 -> 0 | R14: 0 | S14: 0 | T14: 298.7 | U14: 0 | Y14: 3450055.312 | Z14: 834.142817 | AA14: 1438919.429 | AB14: 546.7 | AE14: 0 | AG14: 0
A15: IL | B15: Eastern | C15: IL-Eastern | D15: 75902267.98 | E15: 87310629.88 | F15: =E15*2000/D15 -> 2300.606614 | G15: 7870423 | H15: 3719026.23 | I15: 945.0638752 | J15: 2972.9 | K15: 0 | L15: 0 | R15: 1629 | S15: 0 | T15: 0 | U15: 570.6 | V15: =MAX(O15,D15)+8784*SUM(R15:S15)*0.6 -> 84487749.58 | W15: =F15 -> 2300.606614 | X15: =V15*W15/2000 -> 97186537.76 | Y15: 10627105.72 | Z15: 945.0638752 | AA15: 5021646.857 | AB15: 3543.5 | AE15: 0 | AG15: 84487749.58
A16: IN | B16: Eastern | C16: IN-Eastern | D16: 93328197.54 | E16: 101180864 | F16: 2168.280684 | G16: 12839309.01 | H16: 6115550.96 | I16: 952.6292973 | J16: 2451.9 | K16: 2967.54 | L16: 3176.52 | M16: =L16*2000/K16 -> 2140.843931 | R16: 570.6 | S16: 0 | T16: 0 | U16: 0 | V16: 96335487.78 | W16: 2168.280684 | X16: 104441188.7 | Y16: 12839309.01 | Z16: 952.6292973 | AA16: 6115550.96 | AB16: 2451.9 | AC16: =MAX(Q16,K16) -> 2967.54 | AD16: =M16 -> 2140.843931 | AE16: 3176.52 | AG16: 96338455.32
A17: KS | B17: Eastern | C17: KS-Eastern | D17: 27979593 | E17: 33079019.48 | F17: 2364.510412 | G17: 0 | H17: 0 | J17: 0 | K17: 1652252.43 | L17: 1274085.71 | M17: =L17*2000/K17 -> 1542.240988 | R17: 0 | S17: 0 | T17: 0 | U17: 138 | V17: 27979593 | W17: 2364.510412 | X17: 33079019.48 | Y17: 666705.6 | Z17: 908 | AA17: 302684.3424 | AB17: 138 | AC17: =MAX(Q17,K17) -> 1652252.43 | AD17: =M17 -> 1542.240988 | AE17: 1274085.71 | AG17: 29631845.43
A18: KY | B18: Eastern | C18: KY-Eastern | D18: 84364121 | E18: 91372076.02 | F18: 2166.13591 | G18: 0 | H18: 0 | J18: 0 | K18: 0 | L18: 0 | R18: 0 | S18: 0 | T18: 0 | U18: 640 | V18: 84364121 | W18: 2166.13591 | X18: 91372076.02 | Y18: 3091968 | Z18: 908 | AA18: 1403753.472 | AB18: 640 | AE18: 0 | AG18: 84364121
A19: LA | B19: Eastern | C19: LA-Eastern | D19: 22682437 | E19: 26051944.6 | F19: 2297.102785 | G19: 16260301.38 | H19: 7166642.84 | I19: =H19*2000/G19 -> 881.4895459 | J19: 4254 | K19: 14255348 | L19: 9809837.35 | M19: =L19*2000/K19 -> 1376.302753 | R19: 0 | S19: 0 | T19: 0 | U19: 640 | V19: 22682437 | W19: 2297.102785 | X19: 26051944.6 | Y19: 19352269.38 | Z19: =I19 -> 881.4895459 | AA19: 8529411.574 | AB19: 4894 | AC19: =MAX(Q19,K19) -> 14255348 | AD19: =M19 -> 1376.302753 | AE19: 9809837.35 | AG19: 36937785
A20: MA | B20: Eastern | C20: MA-Eastern | D20: 2281526 | E20: 2361698.13 | F20: 2070.279392 | G20: 23554516.93 | H20: 10473821.27 | I20: 889.3259243 | J20: 5408.5 | K20: 329883.24 | L20: 289728.96 | M20: 1756.554592 | R20: 0 | S20: 0 | T20: 0 | U20: 0 | V20: 2281526 | W20: 2070.279392 | X20: 2361698.13 | Y20: 23554516.93 | Z20: 889.3259243 | AA20: 10473821.27 | AB20: 5408.5 | AC20: 329883.24 | AD20: 1756.554592 | AE20: 289728.96 | AG20: 2611409.24
A21: MD | B21: Eastern | C21: MD-Eastern | D21: 16297835 | E21: 17607899.76 | F21: 2160.765496 | G21: 676555.6 | H21: 329880.85 | I21: 975.1773542 | J21: 230 | K21: 2892354 | L21: 2233246.37 | M21: 1544.241383 | R21: 0 | S21: 0 | T21: 0 | U21: 0 | V21: 16297835 | W21: 2160.765496 | X21: 17607899.76 | Y21: 676555.6 | Z21: 975.1773542 | AA21: 329880.85 | AB21: 230 | AC21: 2892354 | AD21: 1544.241383 | AE21: 2233246.37 | AG21: 19190189
A22: ME | B22: Eastern | C22: ME-Eastern | D22: 0 | E22: 0 | G22: 4053378 | H22: 1717805.56 | I22: 847.5920874 | J22: 1250 | K22: 59067 | L22: 77824.54 | M22: 2635.127567 | N22: =ROUND(115.384234291596%,3) -> 1.154 | O22: =$N22*D22 -> 0 | P22: =$N22*G22 -> 4677598.212 | Q22: =$N22*K22 -> 68163.318 | R22: 0 | S22: 0 | T22: 0 | U22: 0 | V22: 0 | X22: 0 | Y22: 4677598.212 | Z22: 847.5920874 | AA22: 1982347.616 | AB22: 1250 | AC22: 68163.318 | AD22: 2635.127567 | AE22: 89809.51916 | AG22: 68163.318
A23: MI | B23: Eastern | C23: MI-Eastern | D23: 53210780 | E23: 60017798.46 | F23: =E23*2000/D23 -> 2255.851106 | G23: 18499950.62 | H23: 9228243.58 | I23: 997.6506175 | J23: 4667.7 | K23: 774872 | L23: 614411.72 | M23: 1585.840552 | R23: 0 | S23: 0 | T23: 0 | U23: 0 | V23: 53210780 | W23: =F23 -> 2255.851106 | X23: 60017798.46 | Y23: 18499950.62 | Z23: 997.6506175 | AA23: 9228243.58 | AB23: 4667.7 | AC23: 774872 | AD23: 1585.840552 | AE23: 614411.72 | AG23: 53985652
A24: MN | B24: Eastern | C24: MN-Eastern | D24: 22065859 | E24: 25732441.47 | F24: 2332.330817 | G24: 5715510.03 | H24: 2507478.14 | I24: 877.4293552 | J24: 2016.5 | K24: 29243 | L24: 23259.64 | M24: 1590.783435 | O24: =D24+5492640 -> 27558499 | R24: 0 | S24: 0 | T24: 0 | U24: 0 | V24: 27558499 | W24: =F24 -> 2332.330817 | X24: 32137768.24 | Y24: 5715510.03 | Z24: 877.4293552 | AA24: 2507478.14 | AB24: 2016.5 | AC24: 29243 | AD24: 1590.783435 | AE24: 23259.64 | AG24: 27587742
A25: MO | B25: Eastern | C25: MO-Eastern | D25: 72859571 | E25: 75879841.48 | F25: 2082.906623 | G25: 4854569 | H25: 2159607.54 | I25: 889.7216375 | J25: 1807 | K25: 0 | L25: 0 | R25: 0 | S25: 0 | T25: 0 | U25: 0 | V25: 72859571 | W25: =F25 -> 2082.906623 | X25: 75879841.48 | Y25: 4854569 | Z25: 889.7216375 | AA25: 2159607.54 | AB25: 1807 | AE25: 0 | AG25: 72859571
A26: MS | B26: Eastern | C26: MS-Eastern | D26: 7503114 | E26: 9356112.5 | F26: 2493.927854 | G26: 31422808.24 | H26: 13266758.27 | I26: 844.4030953 | J26: 6793.9 | K26: 4407690 | L26: 3055982.22 | M26: =L26*2000/K26 -> 1386.659325 | R26: 0 | S26: 593 | T26: 150 | U26: 0 | V26: =MAX(O26,D26)+8784*SUM(R26:S26)*0.7 -> 11149352.4 | W26: =X26*2000/V26 -> 1939.952649 | X26: =(S26*8784*0.7*800/2000+E26) -> 10814607.86 | Y26: 32147488.24 | Z26: 844.4030953 | AA26: 13572719.29 | AB26: 6943.9 | AC26: =MAX(Q26,K26) -> 4407690 | AD26: =M26 -> 1386.659325 | AE26: 3055982.22 | AG26: 15557042.4
A27: MT | B27: Eastern | C27: MT-Eastern | D27: 254009 | E27: 334414.12 | F27: 2633.088749 | G27: 0 | H27: 0 | J27: 0 | K27: 0 | L27: 0 | N27: 1.068218546 | O27: =$N27*D27 -> 271337.1246 | R27: 0 | S27: 0 | T27: 0 | U27: 0 | V27: =MAX(O27,D27)+8784*SUM(R27:S27)*0.6 -> 271337.1246 | W27: =F27 -> 2633.088749 | X27: =V27*W27/2000 -> 357227.365 | Y27: 0 | Z27: 0 | AA27: 0 | AB27: 0 | AE27: 0 | AG27: 271337.1246
A28: MT | B28: Western | C28: MT-Western | D28: 14193397 | E28: 17590120.99 | F28: 2478.634395 | G28: 0 | H28: 0 | J28: 0 | K28: 0 | L28: 0 | N28: 1.068218546 | O28: =$N28*D28 -> 15161649.9 | R28: 0 | S28: 0 | T28: 0 | U28: 0 | V28: 15161649.9 | W28: 2478.634395 | X28: 18790093.47 | Y28: 0 | Z28: 0 | AA28: 0 | AB28: 0 | AE28: 0 | AG28: 15161649.9
A29: Navajo | B29: Western | C29: Navajo-Western | D29: 29629453 | E29: 31416872.59 | F29: 2120.651542 | G29: 0 | H29: 0 | J29: 0 | K29: 0 | L29: 0 | R29: 0 | S29: 0 | T29: 0 | U29: 0 | V29: 29629453 | W29: 2120.651542 | X29: 31416872.59 | Y29: 0 | Z29: 0 | AA29: 0 | AB29: 0 | AE29: 0 | AG29: 29629453
A30: =LEFT(C30,2) -> NC | B30: Eastern | C30: NC-Eastern | D30: 50572372 | E30: 51933504.63 | F30: 2053.8291 | G30: 15060253.99 | H30: 6419972.7 | I30: =H30*2000/G30 -> 852.5716371 | J30: 2534.6 | K30: 0 | L30: 0 | R30: 825 | S30: 0 | T30: 1540 | U30: 625 | V30: 54920452 | W30: 2053.8291 | X30: 56398611.25 | Y30: 25519801.99 | Z30: 852.5716371 | AA30: 10878729.68 | AB30: 4699.6 | AE30: 0 | AG30: 54920452
A31: ND | B31: Eastern | C31: ND-Eastern | D31: 28186691 | E31: 33370886.25 | F31: 2367.847028 | G31: 0 | H31: 0 | J31: 0 | K31: 0 | L31: 0 | R31: 0 | S31: 62 | T31: 0 | U31: 0 | V31: 28513455.8 | W31: 2367.847028 | X31: 33757750.78 | Y31: 0 | Z31: 0 | AA31: 0 | AB31: 0 | AE31: 0 | AG31: 28513455.8
A32: NE | B32: Eastern | C32: NE-Eastern | D32: 24660983 | E32: 26894698.98 | F32: 2181.153848 | G32: 423638 | H32: 215102.88 | I32: =H32*2000/G32 -> 1015.503236 | J32: 320.6 | K32: 37881.81 | L32: 32926.5 | M32: =L32*2000/K32 -> 1738.380505 | R32: 0 | S32: 0 | T32: 0 | U32: 0 | V32: 24660983 | W32: 2181.153848 | X32: 26894698.98 | Y32: 423638 | Z32: 1015.503236 | AA32: 215102.88 | AB32: 320.6 | AC32: =MAX(Q32,K32) -> 37881.81 | AD32: =M32 -> 1738.380505 | AE32: 32926.5 | AG32: 24698864.81
A33: NH | B33: Eastern | C33: NH-Eastern | D33: 1281341 | E33: 1526091.13 | F33: 2382.021851 | G33: 6946868.99 | H33: 3048206.99 | I33: 877.5772206 | J33: 1203 | K33: 72614 | L33: 68600.16 | M33: 1889.447214 | R33: 0 | S33: 0 | T33: 0 | U33: 0 | V33: 1281341 | W33: 2382.021851 | X33: 1526091.13 | Y33: 6946868.99 | Z33: 877.5772206 | AA33: 3048206.99 | AB33: 1203 | AC33: 72614 | AD33: 1889.447214 | AE33: 68600.16 | AG33: 1353955
A34: NJ | B34: Eastern | C34: NJ-Eastern | D34: 2602990 | E34: 3176790.94 | F34: 2440.878328 | G34: 25099064.5 | H34: 11904003.85 | I34: 948.5615569 | J34: 5792.5 | K34: 172589 | L34: 126348.08 | M34: 1464.149859 | R34: 0 | S34: 0 | T34: 0 | U34: 1773 | V34: 2602990 | W34: 2440.878328 | X34: 3176790.94 | Y34: 33664782.1 | Z34: 948.5615569 | AA34: 15966559.06 | AB34: 7565.5 | AC34: 172589 | AD34: 1464.149859 | AE34: 126348.08 | AG34: 2775579
A35: NM | B35: Eastern | C35: NM-Eastern | D35: 0 | E35: 0 | G35: 2987812.01 | H35: 1339380.91 | I35: 896.5630405 | J35: 530.4 | K35: 1388302 | L35: 879643.42 | M35: 1267.222002 | R35: 0 | S35: 0 | T35: 0 | U35: 0 | Y35: =SUM(T35:U35)*8784*0.55+MAX(P35,G35) -> 2987812.01 | Z35: 896.5630405 | AA35: =Y35*Z35/2000 -> 1339380.91 | AB35: =SUM(T35:U35,J35) -> 530.4 | AC35: 1388302 | AD35: 1267.222002 | AE35: =AC35*AD35/2000 -> 879643.42 | AG35: =AC35+V35 -> 1388302
A36: NM | B36: Western | C36: NM-Western | D36: 11353987 | E36: 13289478.33 | F36: =E36*2000/D36 -> 2340.935978 | G36: 2743145 | H36: 1260779 | I36: 919.2215504 | J36: 859.6 | K36: 819699 | L36: 570401.54 | M36: 1391.734137 | R36: 0 | S36: 0 | T36: 0 | U36: 0 | V36: =MAX(O36,D36)+8784*SUM(R36:S36)*0.6 -> 11353987 | W36: =F36 -> 2340.935978 | X36: =V36*W36/2000 -> 13289478.33 | Y36: 2743145 | Z36: 919.2215504 | AA36: 1260779 | AB36: 859.6 | AC36: 819699 | AD36: 1391.734137 | AE36: 570401.54 | AG36: 12173686
A37: NV | B37: Western | C37: NV-Western | D37: 4133662.04 | E37: 4701206.7 | F37: 2274.596546 | G37: 23783255.68 | H37: 10632353.21 | I37: 894.1041002 | J37: 5157 | K37: 279853 | L37: 203170.55 | M37: 1451.980504 | R37: 0 | S37: 0 | T37: 0 | U37: 0 | V37: 4133662.04 | W37: 2274.596546 | X37: 4701206.7 | Y37: 23783255.68 | Z37: 894.1041002 | AA37: 10632353.21 | AB37: 5157 | AC37: 279853 | AD37: 1451.980504 | AE37: 203170.55 | AG37: 4413515.04
A38: NY | B38: Eastern | C38: NY-Eastern | D38: 4156143.41 | E38: 4625706.06 | F38: 2225.960754 | G38: 44035433.69 | H38: 21430979.5 | I38: 973.351581 | J38: 8457.2 | K38: 12505652 | L38: 8539770.33 | M38: 1365.745717 | R38: 0 | S38: 0 | T38: 0 | U38: 0 | V38: 4156143.41 | W38: 2225.960754 | X38: 4625706.06 | Y38: 44035433.69 | Z38: 973.351581 | AA38: 21430979.5 | AB38: 8457.2 | AC38: 12505652 | AD38: 1365.745717 | AE38: 8539770.33 | AG38: 16661795.41
A39: OH | B39: Eastern | C39: OH-Eastern | D39: 86344796.55 | E39: 91681732.14 | F39: 2123.61916 | G39: 17854300.99 | H39: 7732578.59 | I39: 866.186651 | J39: 2688 | K39: 384308 | L39: 494399.14 | M39: 2572.931815 | R39: 0 | S39: 0 | T39: 1207.3 | U39: 0 | V39: 86344796.55 | W39: 2123.61916 | X39: 91681732.14 | Y39: 23687008.75 | Z39: 866.186651 | AA39: 10258685.39 | AB39: 3895.3 | AC39: 384308 | AD39: 2572.931815 | AE39: 494399.14 | AG39: 86729104.55
A40: OK | B40: Eastern | C40: OK-Eastern | D40: 29102160 | E40: 33592414.94 | F40: 2308.585682 | G40: 29943375.99 | H40: 13403825.21 | I40: 895.2781553 | J40: 6918.4 | K40: 8488757.72 | L40: 5865837.32 | M40: 1382.024912 | R40: 0 | S40: 0 | T40: 0 | U40: 0 | V40: 29102160 | W40: 2308.585682 | X40: 33592414.94 | Y40: 29943375.99 | Z40: 895.2781553 | AA40: 13403825.21 | AB40: 6918.4 | AC40: 8488757.72 | AD40: 1382.024912 | AE40: 5865837.32 | AG40: 37590917.72
A41: OR | B41: Western | C41: OR-Western | D41: 2640259 | E41: 2745242.59 | F41: 2079.525221 | G41: 11424291.03 | H41: 4914531.98 | I41: 860.3653333 | J41: 2861.7 | K41: 0 | L41: 0 | N41: 1.180539763 | O41: =$N41*D41 -> 3116930.734 | P41: =$N41*G41 -> 13486829.82 | Q41: =$N41*K41 -> 0 | R41: 0 | S41: 0 | T41: 0 | U41: 0 | V41: 3116930.734 | W41: 2079.525221 | X41: 3240868.036 | Y41: 13486829.82 | Z41: 860.3653333 | AA41: 5801800.418 | AB41: 2861.7 | AE41: 0 | AG41: 3116930.734
A42: PA | B42: Eastern | C42: PA-Eastern | D42: 87054957 | E42: 92864178.69 | F42: 2133.46102 | G42: 50028719.12 | H42: 22552383.19 | I42: 901.5774774 | J42: 8207.4 | K42: 1661967.7 | L42: 1241069.83 | M42: =L42*2000/K42 -> 1493.494525 | R42: 0 | S42: 0 | T42: 0 | U42: 1530 | V42: 87054957 | W42: 2133.46102 | X42: 92864178.69 | Y42: 57420455.12 | Z42: 901.5774774 | AA42: 25884494.54 | AB42: 9737.4 | AC42: =MAX(Q42,K42) -> 1661967.7 | AD42: =M42 -> 1493.494525 | AE42: 1241069.83 | AG42: 88716924.7
A43: RI | B43: Eastern | C43: RI-Eastern | D43: 0 | E43: 0 | G43: 8140017.28 | H43: 3735785.5 | I43: 917.8814667 | J43: 1725.2 | K43: 0 | L43: 0 | R43: 0 | S43: 0 | T43: 0 | U43: 0 | Y43: 8140017.28 | Z43: 917.8814667 | AA43: 3735785.5 | AB43: 1725.2 | AE43: 0 | AG43: 0
A44: SC | B44: Eastern | C44: SC-Eastern | D44: 28466763.54 | E44: 30790348.52 | F44: =E44*2000/D44 -> 2163.248975 | G44: 11209393.6 | H44: 4751978.94 | I44: 847.8565584 | J44: 2281.7 | K44: 409033 | L44: 350937.68 | M44: =L44*2000/K44 -> 1715.938225 | R44: 0 | S44: 0 | T44: 0 | U44: 0 | V44: =MAX(O44,D44)+8784*SUM(R44:S44)*0.6 -> 28466763.54 | W44: =F44 -> 2163.248975 | X44: =V44*W44/2000 -> 30790348.52 | Y44: 11209393.6 | Z44: 847.8565584 | AA44: 4751978.94 | AB44: 2281.7 | AC44: =MAX(Q44,K44) -> 409033 | AD44: =M44 -> 1715.938225 | AE44: 350937.68 | AG44: 28875796.54
A45: SD | B45: Eastern | C45: SD-Eastern | D45: 2830363 | E45: 3169636.08 | F45: =E45*2000/D45 -> 2239.73821 | G45: 0 | H45: 0 | J45: 0 | K45: 0 | L45: 0 | N45: 1.415004073 | O45: =$N45*D45 -> 4004975.174 | R45: 0 | S45: 0 | T45: 290 | U45: 0 | V45: =MAX(O45,D45)+8784*SUM(R45:S45)*0.6 -> 4004975.174 | W45: =F45 -> 2239.73821 | X45: =V45*W45/2000 -> 4485047.964 | Y45: 1401048 | Z45: 908 | AA45: 636075.792 | AB45: 290 | AE45: 0 | AG45: 4004975.174
A46: TN | B46: Eastern | C46: TN-Eastern | D46: 34373696 | E46: 38560354.83 | F46: =E46*2000/D46 -> 2243.596664 | G46: 3091449.95 | H46: 1191716.46 | I46: =H46*2000/G46 -> 770.9757423 | J46: 525 | K46: 0 | L46: 0 | R46: 0 | S46: 0 | T46: 878 | U46: 0 | V46: =MAX(O46,D46)+8784*SUM(R46:S46)*0.6 -> 34373696 | W46: =F46 -> 2243.596664 | X46: =V46*W46/2000 -> 38560354.83 | Y46: 7333243.55 | Z46: =I46 -> 770.9757423 | AA46: 2826876.445 | AB46: 1403 | AE46: 0 | AG46: 34373696
A47: TX | B47: Eastern | C47: TX-Eastern | D47: 28353732 | E47: 30621111.9 | F47: =E47*2000/D47 -> 2159.9352 | G47: 20981139.26 | H47: 11079777.22 | I47: =H47*2000/G47 -> 1056.165452 | J47: 4023.8 | K47: 11684378 | L47: 7937279.83 | M47: =L47*2000/K47 -> 1358.614011 | R47: 0 | S47: 0 | T47: 0 | U47: 0 | V47: =MAX(O47,D47)+8784*SUM(R47:S47)*0.6 -> 28353732 | W47: =F47 -> 2159.9352 | X47: =V47*W47/2000 -> 30621111.9 | Y47: 20981139.26 | Z47: 1056.165452 | AA47: 11079777.22 | AB47: 4023.8 | AC47: =MAX(Q47,K47) -> 11684378 | AD47: =M47 -> 1358.614011 | AE47: 7937279.83 | AG47: 40038110
A48: TX | B48: =RIGHT(C48,5) -> ERCOT | C48: TX-ERCOT | D48: 110248798 | E48: 124003927.7 | F48: =E48*2000/D48 -> 2249.528882 | G48: 125159004.6 | H48: 59519020.38 | I48: =H48*2000/G48 -> 951.0944987 | J48: 28423.5 | K48: 8331348 | L48: 5835640.98 | M48: =L48*2000/K48 -> 1400.887583 | R48: 911 | S48: 0 | T48: 0 | U48: 2488.8 | V48: =MAX(O48,D48)+8784*SUM(R48:S48)*0.6 -> 115050132.4 | W48: =F48 -> 2249.528882 | X48: =V48*W48/2000 -> 129404297.9 | Y48: 137182895.2 | Z48: 951.0944987 | AA48: 65236948.46 | AB48: 30912.3 | AC48: =MAX(Q48,K48) -> 8331348 | AD48: =M48 -> 1400.887583 | AE48: 5835640.98 | AG48: 123381480.4
A49: TX | B49: =RIGHT(C49,7) -> Western | C49: TX-Western | D49: 0 | E49: 0 | G49: 1870133.83 | H49: 1119576.42 | I49: =H49*2000/G49 -> 1197.322247 | J49: 508.9 | K49: 891480 | L49: 613702.2 | M49: =L49*2000/K49 -> 1376.81653 | R49: 0 | S49: 0 | T49: 0 | U49: 0 | Y49: 1870133.83 | Z49: 1197.322247 | AA49: 1119576.42 | AB49: 508.9 | AC49: =MAX(Q49,K49) -> 891480 | AD49: =M49 -> 1376.81653 | AE49: 613702.2 | AG49: 891480
A50: UTE | B50: Western | C50: Ute-Western | D50: 3090433 | E50: 3314096.53 | F50: =E50*2000/D50 -> 2144.745756 | G50: 0 | H50: 0 | J50: 0 | K50: 0 | L50: 0 | R50: 0 | S50: 0 | T50: 0 | U50: 0 | V50: =MAX(O50,D50)+8784*SUM(R50:S50)*0.6 -> 3090433 | W50: =F50 -> 2144.745756 | X50: =V50*W50/2000 -> 3314096.53 | Y50: 0 | Z50: 0 | AA50: 0 | AB50: 0 | AE50: 0 | AG50: 3090433
A51: =LEFT(C51,2) -> UT | B51: Western | C51: UT-Western | D51: 27332140 | E51: 28300939.08 | F51: 2070.890833 | G51: 5447362 | H51: 2409060.27 | I51: =H51*2000/G51 -> 884.4869388 | J51: 1201 | K51: 120348 | L51: 112343.32 | M51: =L51*2000/K51 -> 1866.974441 | R51: 0 | S51: 0 | T51: 0 | U51: 629 | V51: 27332140 | W51: 2070.890833 | X51: 28300939.08 | Y51: 8486186.8 | Z51: 884.4869388 | AA51: 3752960.692 | AB51: 1830 | AC51: =MAX(Q51,K51) -> 120348 | AD51: =M51 -> 1866.974441 | AE51: 112343.32 | AG51: 27452488
A52: VA | B52: Eastern | C52: VA-Eastern | D52: 12508936 | E52: 15130445.38 | F52: 2419.141865 | G52: 23070349.87 | H52: 10485032.61 | I52: =H52*2000/G52 -> 908.9617339 | J52: 3939.3 | K52: 343908 | L52: 284130.73 | M52: =L52*2000/K52 -> 1652.36476 | R52: 600 | S52: 0 | T52: 0 | U52: 2736.7 | V52: 15671176 | W52: 2419.141865 | X52: 18955398.97 | Y52: 36291894.91 | Z52: 908.9617339 | AA52: 16493971.86 | AB52: 6676 | AC52: =MAX(Q52,K52) -> 343908 | AD52: =M52 -> 1652.36476 | AE52: 284130.73 | AG52: 16015084
A53: WA | B53: Western | C53: WA-Western | D53: 3735730 | E53: 4542415.37 | F53: 2431.875628 | G53: 5665045 | H53: 2817768.02 | I53: =H53*2000/G53 -> 994.7910458 | J53: 3065.7 | K53: 0 | L53: 0 | N53: 2.070266623 | O53: =$N53*D53 -> 7733957.13 | P53: =$N53*G53 -> 11728153.58 | R53: 0 | S53: 0 | T53: 0 | U53: 0 | V53: 7733957.13 | W53: 2431.875628 | X53: 9404010.926 | Y53: 11728153.58 | Z53: 994.7910458 | AA53: 5833531.082 | AB53: 3065.7 | AE53: 0 | AG53: 7733957.13
A54: WI | B54: Eastern | C54: WI-Eastern | D54: 32112721 | E54: 37938965.89 | F54: 2362.862112 | G54: 10244272.94 | H54: 4335785.5 | I54: =H54*2000/G54 -> 846.4798869 | J54: 2618.2 | K54: 47668 | L54: 42850.83 | M54: =L54*2000/K54 -> 1797.886633 | R54: 0 | S54: 0 | T54: 0 | U54: 0 | V54: 32112721 | W54: 2362.862112 | X54: 37938965.89 | Y54: 10244272.94 | Z54: 846.4798869 | AA54: 4335785.5 | AB54: 2618.2 | AC54: =MAX(Q54,K54) -> 47668 | AD54: =M54 -> 1797.886633 | AE54: 42850.83 | AG54: 32160389
A55: WV | B55: Eastern | C55: WV-Eastern | D55: 70078372.82 | E55: 72318916.52 | F55: 2063.943942 | G55: 0 | H55: 0 | J55: 0 | K55: 0 | L55: 0 | R55: 0 | S55: 0 | T55: 0 | U55: 0 | V55: 70078372.82 | W55: 2063.943942 | X55: 72318916.52 | Y55: 0 | Z55: 0 | AA55: 0 | AB55: 0 | AE55: 0 | AG55: 70078372.82
A56: WY | B56: Western | C56: WY-Western | D56: 42907427.02 | E56: 49998736.12 | F56: 2330.539936 | G56: 0 | H56: 0 | J56: 0 | K56: 0 | L56: 0 | R56: 0 | S56: 0 | T56: 0 | U56: 100 | V56: 42907427.02 | W56: 2330.539936 | X56: 49998736.12 | Y56: 483120 | Z56: 908 | AA56: 219336.48 | AB56: 100 | AE56: 0 | AG56: 42907427.02

Sheet Appendix 4 - Category-spec calc
A1: Category-specific rate (lb/MWh)
A3: Annual Category-specific Rates (lb/MWh) | N3: Step, Interim, and Final Category-specific Rates (lb/MWh)
B4: 2022 | C4: 2023 | D4: 2024 | E4: 2025 | F4: 2026 | G4: 2027 | H4: 2028 | I4: 2029 | J4: 2030 | K4: Interim* | L4: Final* | O4: 2022-2024 | P4: 2025-2027 | Q4: 2028-2029 | R4: Interim | S4: Final
A5: Fossil Steam | B5: =Y88 -> 1740.871168 | C5: =Y79 -> 1680.511033 | D5: =Y70 -> 1591.6156 | E5: =Y61 -> 1546.308859 | F5: =Y52 -> 1500.003591 | G5: =Y42 -> 1452.666419 | H5: =Y32 -> 1404.262459 | I5: =Y22 -> 1354.75524 | J5: =Y13 -> 1304.106606 | K5: =ROUNDUP(AVERAGE(B5:I5),0) -> 1534 | L5: =ROUNDUP(J5,0) -> 1305 | N5: Fossil Steam | O5: =AVERAGE(B5:D5) -> 1670.999267 | P5: =AVERAGE(E5:G5) -> 1499.659623 | Q5: =AVERAGE(H5:I5) -> 1379.508849 | R5: =K5 -> 1534 | S5: =L5 -> 1305
A6: NGCC | B6: =Z88 -> 897.5510043 | C6: =Z79 -> 877.0549082 | D6: =Z70 -> 855.0171699 | E6: =Z61 -> 836.1520383 | F6: =Z52 -> 817.3262271 | G6: =Z42 -> 798.1245578 | H6: =Z32 -> 788.6986539 | I6: =Z22 -> 779.4927925 | J6: =Z13 -> 770.4993571 | K6: =ROUNDUP(AVERAGE(B6:I6),0) -> 832 | L6: =ROUNDUP(J6,0) -> 771 | N6: NGCC | O6: =AVERAGE(B6:D6) -> 876.5410274 | P6: =AVERAGE(E6:G6) -> 817.200941 | Q6: =AVERAGE(H6:I6) -> 784.0957232 | R6: =K6 -> 832 | S6: =L6 -> 771
A7: *Interim and Final rates are rounded up to nearest integer
A9: 2030 | B9: Underlying calculations
B10: Adj. Baseline | H10: BB1 HRI | J10: BB3 - RE | S10: BB2 - NGCC | V10: Final Rates
A11: Interconnection | B11: Coal | D11: NGCC | F11: OG Steam | H11: Fossil Steam Rate | I11: NGCC Emission Rate | J11: Baseline Fossil Steam Gen | K11: Baseline NGCC Gen | L11: Fossil Steam Share of Total Fossil | M11: NGCC Share of Total Fossil | N11: Potential BB3 | O11: Remaining Fossil Steam | P11: Remaining NGCC Gen | Q11: BB3 Apportioned to Fossil Steam | R11: BB3 Apportioned to NGCC | S11: Difference between NGCC generation levels at maximum BB2 utilization and Post BB3 NGCC levels (MWh) | T11: Remaining Fossil Steam | U11: Remaining NGCC Gen | V11: Fossil Steam Rate | W11: NGCC Rate | Y11: Fossil Steam Performance Rate | Z11: NGCC Performance Rate
B12: Emissions (tons) | C12: Gen (MWh) | D12: Emissions (tons) | E12: Gen(MWh) | F12: Emissions (tons) | G12: Gen(MWh) | H12: lbs/MWh | I12: lbs/MWh | J12: MWh | K12: MWh | N12: MWh | O12: MWh | P12: MWh | Q12: MWh | R12: MWh | S12: MWh | T12: MWh | U12: MWh | V12: lb/MWh | W12: lb/MWh
A13: Eastern | B13: =SUMIF('Appendix 3 - State-level Data'!$B$3:$B$56,$A13,'Appendix 3 - State-level Data'!$X$3:$X$56) -> 1356066366 | C13: =SUMIF('Appendix 3 - State-level Data'!$B$3:$B$56,$A13,'Appendix 3 - State-level Data'!$V$3:$V$56) -> 1230447795 | D13: =SUMIF('Appendix 3 - State-level Data'!$B$3:$B$56,$A13,'Appendix 3 - State-level Data'!$AA$3:$AA$56) -> 328219519.4 | E13: =SUMIF('Appendix 3 - State-level Data'!$B$3:$B$56,$A13,'Appendix 3 - State-level Data'!$Y$3:$Y$56) -> 734535157.1 | F13: =SUMIF('Appendix 3 - State-level Data'!$B$3:$B$56,$A13,'Appendix 3 - State-level Data'!$AE$3:$AE$56) -> 52979258.74 | G13: =SUMIF('Appendix 3 - State-level Data'!$B$3:$B$56,$A13,'Appendix 3 - State-level Data'!$AC$3:$AC$56) -> 74240802.18 | H13: =(((B13*0.957)+(F13))*2000)/(G13+C13) -> 2070.585693 | I13: =D13*2000/E13 -> 893.6795366 | J13: =G13+C13 -> 1304688597 | K13: =E13 -> 734535157.1 | L13: =J13/($J13+$K13) -> 0.6397966846 | M13: 0.3602033154 | N13: =VLOOKUP(A13,'BB3'!$A$3:$J$5,10,0) -> 438444699.7 | O13: =J13-(N13*L13) -> 1024173132 | P13: =K13-(N13*M13) -> 576605922.6 | Q13: =J13-O13 -> 280515465.2 | R13: 157929234.5 | S13: =VLOOKUP(A13,'BB2'!$A$4:$L$6,12,0)-P13 -> 411250842.6 | T13: =MAX(O13-S13,0) -> 612922289 | U13: =(O13-T13)+P13 -> 987856765.2 | V13: =(T13*H13+(MAX(0,U13-K13)*I13))/(MAX(0,U13-K13)+T13+Q13) -> 1304.106606 | W13: =(U13*I13)/(U13+R13) -> 770.4993571 | Y13: =MAX(V13:V15) -> 1304.106606 | Z13: =MAX(W13:W15) -> 770.4993571
A14: Western | B14: =SUMIF('Appendix 3 - State-level Data'!$B$3:$B$56,A14,'Appendix 3 - State-level Data'!$X$3:$X$56) -> 229424715.8 | C14: =SUMIF('Appendix 3 - State-level Data'!$B$3:$B$56,$A14,'Appendix 3 - State-level Data'!$V$3:$V$56) -> 203976917.8 | D14: =SUMIF('Appendix 3 - State-level Data'!$B$3:$B$56,$A14,'Appendix 3 - State-level Data'!$AA$3:$AA$56) -> 89135326.65 | E14: =SUMIF('Appendix 3 - State-level Data'!$B$3:$B$56,$A14,'Appendix 3 - State-level Data'!$Y$3:$Y$56) -> 198374375.9 | F14: =SUMIF('Appendix 3 - State-level Data'!$B$3:$B$56,$A14,'Appendix 3 - State-level Data'!$AE$3:$AE$56) -> 9433180.3 | G14: =SUMIF('Appendix 3 - State-level Data'!$B$3:$B$56,$A14,'Appendix 3 - State-level Data'!$AC$3:$AC$56) -> 13326187 | H14: =(((B14*0.979)+(F14))*2000)/(G14+C14) -> 2154.041722 | I14: =D14*2000/E14 -> 898.6576642 | J14: =G14+C14 -> 217303104.8 | K14: =E14 -> 198374375.9 | L14: 0.5227685282 | M14: 0.4772314718 | N14: =VLOOKUP(A14,'BB3'!$A$3:$J$5,10,0) -> 160974865.6 | O14: =J14-(N14*L14) -> 133150511.3 | P14: =K14-(N14*M14) -> 121552103.9 | Q14: 84152593.57 | R14: 76822272.03 | S14: =VLOOKUP(A14,'BB2'!$A$4:$L$6,12,0)-P14 -> 184936808.5 | T14: =MAX(O14-S14,0) -> 0 | U14: =(O14-T14)+P14 -> 254702615.1 | V14: =(T14*H14+(MAX(0,U14-K14)*I14))/(MAX(0,U14-K14)+T14+Q14) -> 360.3324588 | W14: =(U14*I14)/(U14+R14) -> 690.4171182
A15: ERCOT | B15: =SUMIF('Appendix 3 - State-level Data'!$B$3:$B$56,A15,'Appendix 3 - State-level Data'!$X$3:$X$56) -> 129404297.9 | C15: =SUMIF('Appendix 3 - State-level Data'!$B$3:$B$56,$A15,'Appendix 3 - State-level Data'!$V$3:$V$56) -> 115050132.4 | D15: =SUMIF('Appendix 3 - State-level Data'!$B$3:$B$56,$A15,'Appendix 3 - State-level Data'!$AA$3:$AA$56) -> 65236948.46 | E15: =SUMIF('Appendix 3 - State-level Data'!$B$3:$B$56,$A15,'Appendix 3 - State-level Data'!$Y$3:$Y$56) -> 137182895.2 | F15: =SUMIF('Appendix 3 - State-level Data'!$B$3:$B$56,$A15,'Appendix 3 - State-level Data'!$AE$3:$AE$56) -> 5835640.98 | G15: =SUMIF('Appendix 3 - State-level Data'!$B$3:$B$56,$A15,'Appendix 3 - State-level Data'!$AC$3:$AC$56) -> 8331348 | H15: =(((B15*0.977)+(F15))*2000)/(G15+C15) -> 2143.978814 | I15: =D15*2000/E15 -> 951.0944987 | J15: =G15+C15 -> 123381480.4 | K15: =E15 -> 137182895.2 | L15: 0.4735163052 | M15: 0.5264836948 | N15: =VLOOKUP(A15,'BB3'!$A$3:$J$5,10,0) -> 106610547 | O15: =J15-(N15*L15) -> 72899648.11 | P15: =K15-(N15*M15) -> 81054180.52 | Q15: 50481832.29 | R15: 56128714.66 | S15: =VLOOKUP(A15,'BB2'!$A$4:$L$6,12,0)-P15 -> 122596051.9 | T15: =MAX(O15-S15,0) -> 0 | U15: =(O15-T15)+P15 -> 153953828.6 | V15: =(T15*H15+(MAX(0,U15-K15)*I15))/(MAX(0,U15-K15)+T15+Q15) -> 237.1760085 | W15: =(U15*I15)/(U15+R15) -> 696.9862282
A18: 2029
B19: Adj. Baseline | H19: BB1 HRI | J19: BB3 | S19: BB2 | V19: Final Rates
A20: Interconnection | B20: Coal | D20: NGCC | F20: OG Steam | H20: Fossil Steam Rate | I20: NGCC Emission Rate | J20: Baseline Fossil Steam Gen | K20: Baseline NGCC Gen | L20: Fossil Steam Share of Total Fossil | M20: NGCC Share of Total Fossil | N20: Potential BB3 | O20: Remaining Fossil Steam | P20: Remaining NGCC Gen | Q20: BB3 Apportioned to Fossil Steam | R20: BB3 Apportioned to NGCC | S20: Difference between NGCC generation levels at maximum BB2 utilization and Post BB3 NGCC levels (MWh) | T20: Remaining Fossil Steam | U20: Remaining NGCC Gen | V20: Fossil Steam Rate | W20: NGCC Rate | Y20: Fossil Steam Performance Rate | Z20: NGCC Performance Rate
B21: Emissions (tons) | C21: Gen (MWh) | D21: Emissions (tons) | E21: Gen(MWh) | F21: Emissions (tons) | G21: Gen(MWh) | H21: lbs/MWh | I21: lbs/MWh | J21: MWh | K21: MWh | N21: MWh | O21: MWh | P21: MWh | Q21: MWh | R21: MWh | S21: MWh | T21: MWh | U21: MWh | V21: lb/MWh | W21: lb/MWh
A22: Eastern | B22: =SUMIF('Appendix 3 - State-level Data'!$B$3:$B$56,$A22,'Appendix 3 - State-level Data'!$X$3:$X$56) -> 1356066366 | C22: =SUMIF('Appendix 3 - State-level Data'!$B$3:$B$56,$A22,'Appendix 3 - State-level Data'!$V$3:$V$56) -> 1230447795 | D22: =SUMIF('Appendix 3 - State-level Data'!$B$3:$B$56,$A22,'Appendix 3 - State-level Data'!$AA$3:$AA$56) -> 328219519.4 | E22: =SUMIF('Appendix 3 - State-level Data'!$B$3:$B$56,$A22,'Appendix 3 - State-level Data'!$Y$3:$Y$56) -> 734535157.1 | F22: =SUMIF('Appendix 3 - State-level Data'!$B$3:$B$56,$A22,'Appendix 3 - State-level Data'!$AE$3:$AE$56) -> 52979258.74 | G22: =SUMIF('Appendix 3 - State-level Data'!$B$3:$B$56,$A22,'Appendix 3 - State-level Data'!$AC$3:$AC$56) -> 74240802.18 | H22: =$H$13 -> 2070.585693 | I22: =D22*2000/E22 -> 893.6795366 | J22: =G22+C22 -> 1304688597 | K22: =E22 -> 734535157.1 | L22: =J22/($J22+$K22) -> 0.6397966846 | M22: 0.3602033154 | N22: =VLOOKUP(A22,'BB3'!$A$3:$J$5,9,0) -> 401744424.8 | O22: =J22-(N22*L22) -> 1047653846 | P22: =K22-(N22*M22) -> 589825483.3 | Q22: =J22-O22 -> 257034751 | R22: 144709673.8 | S22: =VLOOKUP(A22,'BB2'!$A$4:$L$6,11,0)-P22 -> 398031281.9 | T22: =MAX(O22-S22,0) -> 649622563.9 | U22: =(O22-T22)+P22 -> 987856765.2 | V22: =(T22*H22+(MAX(0,U22-K22)*I22))/(MAX(0,U22-K22)+T22+Q22) -> 1354.75524 | W22: =(U22*I22)/(U22+R22) -> 779.4927925 | Y22: =MAX(V22:V24) -> 1354.75524 | Z22: =MAX(W22:W24) -> 779.4927925
A23: Western | B23: =SUMIF('Appendix 3 - State-level Data'!$B$3:$B$56,A23,'Appendix 3 - State-level Data'!$X$3:$X$56) -> 229424715.8 | C23: =SUMIF('Appendix 3 - State-level Data'!$B$3:$B$56,$A23,'Appendix 3 - State-level Data'!$V$3:$V$56) -> 203976917.8 | D23: =SUMIF('Appendix 3 - State-level Data'!$B$3:$B$56,$A23,'Appendix 3 - State-level Data'!$AA$3:$AA$56) -> 89135326.65 | E23: =SUMIF('Appendix 3 - State-level Data'!$B$3:$B$56,$A23,'Appendix 3 - State-level Data'!$Y$3:$Y$56) -> 198374375.9 | F23: =SUMIF('Appendix 3 - State-level Data'!$B$3:$B$56,$A23,'Appendix 3 - State-level Data'!$AE$3:$AE$56) -> 9433180.3 | G23: =SUMIF('Appendix 3 - State-level Data'!$B$3:$B$56,$A23,'Appendix 3 - State-level Data'!$AC$3:$AC$56) -> 13326187 | H23: =$H$14 -> 2154.041722 | I23: =D23*2000/E23 -> 898.6576642 | J23: =G23+C23 -> 217303104.8 | K23: =E23 -> 198374375.9 | L23: 0.5227685282 | M23: 0.4772314718 | N23: =VLOOKUP(A23,'BB3'!$A$3:$J$5,9,0) -> 146686508.2 | O23: =J23-(N23*L23) -> 140620014.8 | P23: =K23-(N23*M23) -> 128370957.7 | Q23: 76683089.98 | R23: 70003418.17 | S23: =VLOOKUP(A23,'BB2'!$A$4:$L$6,11,0)-P23 -> 178117954.7 | T23: =MAX(O23-S23,0) -> 0 | U23: =(O23-T23)+P23 -> 268990972.6 | V23: =(T23*H23+(MAX(0,U23-K23)*I23))/(MAX(0,U23-K23)+T23+Q23) -> 430.8233593 | W23: =(U23*I23)/(U23+R23) -> 713.0820029
A24: ERCOT | B24: =SUMIF('Appendix 3 - State-level Data'!$B$3:$B$56,A24,'Appendix 3 - State-level Data'!$X$3:$X$56) -> 129404297.9 | C24: =SUMIF('Appendix 3 - State-level Data'!$B$3:$B$56,$A24,'Appendix 3 - State-level Data'!$V$3:$V$56) -> 115050132.4 | D24: =SUMIF('Appendix 3 - State-level Data'!$B$3:$B$56,$A24,'Appendix 3 - State-level Data'!$AA$3:$AA$56) -> 65236948.46 | E24: =SUMIF('Appendix 3 - State-level Data'!$B$3:$B$56,$A24,'Appendix 3 - State-level Data'!$Y$3:$Y$56) -> 137182895.2 | F24: =SUMIF('Appendix 3 - State-level Data'!$B$3:$B$56,$A24,'Appendix 3 - State-level Data'!$AE$3:$AE$56) -> 5835640.98 | G24: =SUMIF('Appendix 3 - State-level Data'!$B$3:$B$56,$A24,'Appendix 3 - State-level Data'!$AC$3:$AC$56) -> 8331348 | H24: =$H$15 -> 2143.978814 | I24: =D24*2000/E24 -> 951.0944987 | J24: =G24+C24 -> 123381480.4 | K24: =E24 -> 137182895.2 | L24: 0.4735163052 | M24: 0.5264836948 | N24: =VLOOKUP(A24,'BB3'!$A$3:$J$5,9,0) -> 95405816.09 | O24: =J24-(N24*L24) -> 78205270.87 | P24: =K24-(N24*M24) -> 86953288.62 | Q24: 45176209.53 | R24: 50229606.56 | S24: =VLOOKUP(A24,'BB2'!$A$4:$L$6,11,0)-P24 -> 116696943.8 | T24: =MAX(O24-S24,0) -> 0 | U24: =(O24-T24)+P24 -> 165158559.5 | V24: =(T24*H24+(MAX(0,U24-K24)*I24))/(MAX(0,U24-K24)+T24+Q24) -> 363.729581 | W24: =(U24*I24)/(U24+R24) -> 729.2944651
A28: 2028
B29: Adj. Baseline | H29: BB1 HRI | J29: BB3 | S29: BB2 | V29: Final Rates
A30: Interconnection | B30: Coal | D30: NGCC | F30: OG Steam | H30: Fossil Steam Rate | I30: NGCC Emission Rate | J30: Baseline Fossil Steam Gen | K30: Baseline NGCC Gen | L30: Fossil Steam Share of Total Fossil | M30: NGCC Share of Total Fossil | N30: Potential BB3 | O30: Remaining Fossil Steam | P30: Remaining NGCC Gen | Q30: BB3 Apportioned to Fossil Steam | R30: BB3 Apportioned to NGCC | S30: Difference between NGCC generation levels at maximum BB2 utilization and Post BB3 NGCC levels (MWh) | T30: Remaining Fossil Steam | U30: Remaining NGCC Gen | V30: Fossil Steam Rate | W30: NGCC Rate | Y30: Fossil Steam Performance Rate | Z30: NGCC Performance Rate
B31: Emissions (tons) | C31: Gen (MWh) | D31: Emissions (tons) | E31: Gen(MWh) | F31: Emissions (tons) | G31: Gen(MWh) | H31: lbs/MWh | I31: lbs/MWh | J31: MWh | K31: MWh | N31: MWh | O31: MWh | P31: MWh | Q31: MWh | R31: MWh | S31: MWh | T31: MWh | U31: MWh | V31: lb/MWh | W31: lb/MWh
A32: Eastern | B32: =SUMIF('Appendix 3 - State-level Data'!$B$3:$B$56,$A32,'Appendix 3 - State-level Data'!$X$3:$X$56) -> 1356066366 | C32: =SUMIF('Appendix 3 - State-level Data'!$B$3:$B$56,$A32,'Appendix 3 - State-level Data'!$V$3:$V$56) -> 1230447795 | D32: =SUMIF('Appendix 3 - State-level Data'!$B$3:$B$56,$A32,'Appendix 3 - State-level Data'!$AA$3:$AA$56) -> 328219519.4 | E32: =SUMIF('Appendix 3 - State-level Data'!$B$3:$B$56,$A32,'Appendix 3 - State-level Data'!$Y$3:$Y$56) -> 734535157.1 | F32: =SUMIF('Appendix 3 - State-level Data'!$B$3:$B$56,$A32,'Appendix 3 - State-level Data'!$AE$3:$AE$56) -> 52979258.74 | G32: =SUMIF('Appendix 3 - State-level Data'!$B$3:$B$56,$A32,'Appendix 3 - State-level Data'!$AC$3:$AC$56) -> 74240802.18 | H32: =$H$13 -> 2070.585693 | I32: =D32*2000/E32 -> 893.6795366 | J32: =G32+C32 -> 1304688597 | K32: =E32 -> 734535157.1 | L32: =J32/($J32+$K32) -> 0.6397966846 | M32: 0.3602033154 | N32: =VLOOKUP(A32,'BB3'!$A$3:$J$5,8,0) -> 365044149.9 | O32: =J32-(N32*L32) -> 1071134560 | P32: =K32-(N32*M32) -> 603045044 | Q32: =J32-O32 -> 233554036.8 | R32: 131490113.1 | S32: =VLOOKUP(A32,'BB2'!$A$4:$L$6,10,0)-P32 -> 384811721.2 | T32: =MAX(O32-S32,0) -> 686322838.8 | U32: =(O32-T32)+P32 -> 987856765.2 | V32: =(T32*H32+(MAX(0,U32-K32)*I32))/(MAX(0,U32-K32)+T32+Q32) -> 1404.262459 | W32: =(U32*I32)/(U32+R32) -> 788.6986539 | Y32: =MAX(V32:V34) -> 1404.262459 | Z32: =MAX(W32:W34) -> 788.6986539
A33: Western | B33: =SUMIF('Appendix 3 - State-level Data'!$B$3:$B$56,A33,'Appendix 3 - State-level Data'!$X$3:$X$56) -> 229424715.8 | C33: =SUMIF('Appendix 3 - State-level Data'!$B$3:$B$56,$A33,'Appendix 3 - State-level Data'!$V$3:$V$56) -> 203976917.8 | D33: =SUMIF('Appendix 3 - State-level Data'!$B$3:$B$56,$A33,'Appendix 3 - State-level Data'!$AA$3:$AA$56) -> 89135326.65 | E33: =SUMIF('Appendix 3 - State-level Data'!$B$3:$B$56,$A33,'Appendix 3 - State-level Data'!$Y$3:$Y$56) -> 198374375.9 | F33: =SUMIF('Appendix 3 - State-level Data'!$B$3:$B$56,$A33,'Appendix 3 - State-level Data'!$AE$3:$AE$56) -> 9433180.3 | G33: =SUMIF('Appendix 3 - State-level Data'!$B$3:$B$56,$A33,'Appendix 3 - State-level Data'!$AC$3:$AC$56) -> 13326187 | H33: =$H$14 -> 2154.041722 | I33: =D33*2000/E33 -> 898.6576642 | J33: =G33+C33 -> 217303104.8 | K33: =E33 -> 198374375.9 | L33: 0.5227685282 | M33: 0.4772314718 | N33: =VLOOKUP(A33,'BB3'!$A$3:$J$5,8,0) -> 132398150.7 | O33: =J33-(N33*L33) -> 148089518.4 | P33: =K33-(N33*M33) -> 135189811.6 | Q33: 69213586.38 | R33: 63184564.32 | S33: =VLOOKUP(A33,'BB2'!$A$4:$L$6,10,0)-P33 -> 171299100.8 | T33: =MAX(O33-S33,0) -> 0 | U33: =(O33-T33)+P33 -> 283279330 | V33: =(T33*H33+(MAX(0,U33-K33)*I33))/(MAX(0,U33-K33)+T33+Q33) -> 495.0766306 | W33: =(U33*I33)/(U33+R33) -> 734.7696115
A34: ERCOT | B34: =SUMIF('Appendix 3 - State-level Data'!$B$3:$B$56,A34,'Appendix 3 - State-level Data'!$X$3:$X$56) -> 129404297.9 | C34: =SUMIF('Appendix 3 - State-level Data'!$B$3:$B$56,$A34,'Appendix 3 - State-level Data'!$V$3:$V$56) -> 115050132.4 | D34: =SUMIF('Appendix 3 - State-level Data'!$B$3:$B$56,$A34,'Appendix 3 - State-level Data'!$AA$3:$AA$56) -> 65236948.46 | E34: =SUMIF('Appendix 3 - State-level Data'!$B$3:$B$56,$A34,'Appendix 3 - State-level Data'!$Y$3:$Y$56) -> 137182895.2 | F34: =SUMIF('Appendix 3 - State-level Data'!$B$3:$B$56,$A34,'Appendix 3 - State-level Data'!$AE$3:$AE$56) -> 5835640.98 | G34: =SUMIF('Appendix 3 - State-level Data'!$B$3:$B$56,$A34,'Appendix 3 - State-level Data'!$AC$3:$AC$56) -> 8331348 | H34: =$H$15 -> 2143.978814 | I34: =D34*2000/E34 -> 951.0944987 | J34: =G34+C34 -> 123381480.4 | K34: =E34 -> 137182895.2 | L34: 0.4735163052 | M34: 0.5264836948 | N34: =VLOOKUP(A34,'BB3'!$A$3:$J$5,8,0) -> 84201085.22 | O34: =J34-(N34*L34) -> 83510893.63 | P34: =K34-(N34*M34) -> 92852396.73 | Q34: 39870586.77 | R34: 44330498.45 | S34: =VLOOKUP(A34,'BB2'!$A$4:$L$6,10,0)-P34 -> 110797835.7 | T34: =MAX(O34-S34,0) -> 0 | U34: =(O34-T34)+P34 -> 176363290.4 | V34: =(T34*H34+(MAX(0,U34-K34)*I34))/(MAX(0,U34-K34)+T34+Q34) -> 471.3952615 | W34: =(U34*I34)/(U34+R34) -> 760.0492798
A38: 2027
B39: Adj. Baseline | H39: BB1 HRI | J39: BB3/BB4 | S39: BB2 | V39: Final Rates
A40: Interconnection | B40: Coal | D40: NGCC | F40: OG Steam | H40: Fossil Steam Rate | I40: NGCC Emission Rate | J40: Baseline Fossil Steam Gen | K40: Baseline NGCC Gen | L40: Fossil Steam Share of Total Fossil | M40: NGCC Share of Total Fossil | N40: Potential BB3 | O40: Remaining Fossil Steam | P40: Remaining NGCC Gen | Q40: BB3 Apportioned to Fossil Steam | R40: BB3 Apportioned to NGCC | S40: Difference between NGCC generation levels at 75% utilization and Post BB3 NGCC levels (MWh) | T40: Remaining Fossil Steam | U40: Remaining NGCC Gen | V40: Fossil Steam Rate | W40: NGCC Rate | Y40: Fossil Steam Performance Rate | Z40: NGCC Performance Rate
B41: Emissions (tons) | C41: Gen (MWh) | D41: Emissions (tons) | E41: Gen(MWh) | F41: Emissions (tons) | G41: Gen(MWh) | H41: lbs/MWh | I41: lbs/MWh | J41: MWh | K41: MWh | N41: MWh | O41: MWh | P41: MWh | Q41: MWh | R41: MWh | S41: MWh | T41: MWh | U41: MWh | V41: lb/MWh | W41: lb/MWh
A42: Eastern | B42: =SUMIF('Appendix 3 - State-level Data'!$B$3:$B$56,$A42,'Appendix 3 - State-level Data'!$X$3:$X$56) -> 1356066366 | C42: =SUMIF('Appendix 3 - State-level Data'!$B$3:$B$56,$A42,'Appendix 3 - State-level Data'!$V$3:$V$56) -> 1230447795 | D42: =SUMIF('Appendix 3 - State-level Data'!$B$3:$B$56,$A42,'Appendix 3 - State-level Data'!$AA$3:$AA$56) -> 328219519.4 | E42: =SUMIF('Appendix 3 - State-level Data'!$B$3:$B$56,$A42,'Appendix 3 - State-level Data'!$Y$3:$Y$56) -> 734535157.1 | F42: =SUMIF('Appendix 3 - State-level Data'!$B$3:$B$56,$A42,'Appendix 3 - State-level Data'!$AE$3:$AE$56) -> 52979258.74 | G42: =SUMIF('Appendix 3 - State-level Data'!$B$3:$B$56,$A42,'Appendix 3 - State-level Data'!$AC$3:$AC$56) -> 74240802.18 | H42: =$H$13 -> 2070.585693 | I42: =D42*2000/E42 -> 893.6795366 | J42: =G42+C42 -> 1304688597 | K42: =E42 -> 734535157.1 | L42: =J42/($J42+$K42) -> 0.6397966846 | M42: 0.3602033154 | N42: =VLOOKUP(A42,'BB3'!$A$3:$J$5,7,0) -> 328343874.9 | O42: =J42-(N42*L42) -> 1094615274 | P42: =K42-(N42*M42) -> 616264604.7 | Q42: =J42-O42 -> 210073322.6 | R42: 118270552.4 | S42: =VLOOKUP(A42,'BB2'!$A$4:$L$6,9,0)-P42 -> 371592160.5 | T42: =MAX(O42-S42,0) -> 723023113.8 | U42: =(O42-T42)+P42 -> 987856765.2 | V42: =(T42*H42+(MAX(0,U42-K42)*I42))/(MAX(0,U42-K42)+T42+Q42) -> 1452.666419 | W42: =(U42*I42)/(U42+R42) -> 798.1245578 | Y42: =MAX(V42:V44) -> 1452.666419 | Z42: =MAX(W42:W44) -> 798.1245578
A43: Western | B43: =SUMIF('Appendix 3 - State-level Data'!$B$3:$B$56,A43,'Appendix 3 - State-level Data'!$X$3:$X$56) -> 229424715.8 | C43: =SUMIF('Appendix 3 - State-level Data'!$B$3:$B$56,$A43,'Appendix 3 - State-level Data'!$V$3:$V$56) -> 203976917.8 | D43: =SUMIF('Appendix 3 - State-level Data'!$B$3:$B$56,$A43,'Appendix 3 - State-level Data'!$AA$3:$AA$56) -> 89135326.65 | E43: =SUMIF('Appendix 3 - State-level Data'!$B$3:$B$56,$A43,'Appendix 3 - State-level Data'!$Y$3:$Y$56) -> 198374375.9 | F43: =SUMIF('Appendix 3 - State-level Data'!$B$3:$B$56,$A43,'Appendix 3 - State-level Data'!$AE$3:$AE$56) -> 9433180.3 | G43: =SUMIF('Appendix 3 - State-level Data'!$B$3:$B$56,$A43,'Appendix 3 - State-level Data'!$AC$3:$AC$56) -> 13326187 | H43: =$H$14 -> 2154.041722 | I43: =D43*2000/E43 -> 898.6576642 | J43: =G43+C43 -> 217303104.8 | K43: =E43 -> 198374375.9 | L43: 0.5227685282 | M43: 0.4772314718 | N43: =VLOOKUP(A43,'BB3'!$A$3:$J$5,7,0) -> 118109793.3 | O43: =J43-(N43*L43) -> 155559022 | P43: =K43-(N43*M43) -> 142008665.4 | Q43: 61744082.79 | R43: 56365710.47 | S43: =VLOOKUP(A43,'BB2'!$A$4:$L$6,9,0)-P43 -> 164480247 | T43: =MAX(O43-S43,0) -> 0 | U43: =(O43-T43)+P43 -> 297567687.5 | V43: =(T43*H43+(MAX(0,U43-K43)*I43))/(MAX(0,U43-K43)+T43+Q43) -> 553.8851305 | W43: =(U43*I43)/(U43+R43) -> 755.5418181
A44: ERCOT | B44: =SUMIF('Appendix 3 - State-level Data'!$B$3:$B$56,A44,'Appendix 3 - State-level Data'!$X$3:$X$56) -> 129404297.9 | C44: =SUMIF('Appendix 3 - State-level Data'!$B$3:$B$56,$A44,'Appendix 3 - State-level Data'!$V$3:$V$56) -> 115050132.4 | D44: =SUMIF('Appendix 3 - State-level Data'!$B$3:$B$56,$A44,'Appendix 3 - State-level Data'!$AA$3:$AA$56) -> 65236948.46 | E44: =SUMIF('Appendix 3 - State-level Data'!$B$3:$B$56,$A44,'Appendix 3 - State-level Data'!$Y$3:$Y$56) -> 137182895.2 | F44: =SUMIF('Appendix 3 - State-level Data'!$B$3:$B$56,$A44,'Appendix 3 - State-level Data'!$AE$3:$AE$56) -> 5835640.98 | G44: =SUMIF('Appendix 3 - State-level Data'!$B$3:$B$56,$A44,'Appendix 3 - State-level Data'!$AC$3:$AC$56) -> 8331348 | H44: =$H$15 -> 2143.978814 | I44: =D44*2000/E44 -> 951.0944987 | J44: =G44+C44 -> 123381480.4 | K44: =E44 -> 137182895.2 | L44: 0.4735163052 | M44: 0.5264836948 | N44: =VLOOKUP(A44,'BB3'!$A$3:$J$5,7,0) -> 72996354.36 | O44: =J44-(N44*L44) -> 88816516.39 | P44: =K44-(N44*M44) -> 98751504.83 | Q44: 34564964.01 | R44: 38431390.35 | S44: =VLOOKUP(A44,'BB2'!$A$4:$L$6,9,0)-P44 -> 104898727.6 | T44: =MAX(O44-S44,0) -> 0 | U44: =(O44-T44)+P44 -> 187568021.2 | V44: =(T44*H44+(MAX(0,U44-K44)*I44))/(MAX(0,U44-K44)+T44+Q44) -> 564.1078917 | W44: =(U44*I44)/(U44+R44) -> 789.3600779
A48: 2026
B49: Adj. Baseline | H49: BB1 HRI | J49: BB3 | S49: BB2 | V49: Final Rates
A50: Interconnection | B50: Coal | D50: NGCC | F50: OG Steam | H50: Fossil Steam Rate | I50: NGCC Emission Rate | J50: Baseline Fossil Steam Gen | K50: Baseline NGCC Gen | L50: Fossil Steam Share of Total Fossil | M50: NGCC Share of Total Fossil | N50: Potential BB3 | O50: Remaining Fossil Steam | P50: Remaining NGCC Gen | Q50: BB3 Apportioned to Fossil Steam | R50: BB3 Apportioned to NGCC | S50: Difference between NGCC generation levels at maximum BB2 utilization and Post BB3 NGCC levels (MWh) | T50: Remaining Fossil Steam | U50: Remaining NGCC Gen | V50: Fossil Steam Rate | W50: NGCC Rate | Y50: Fossil Steam Performance Rate | Z50: NGCC Performance Rate
B51: Emissions (tons) | C51: Gen (MWh) | D51: Emissions (tons) | E51: Gen(MWh) | F51: Emissions (tons) | G51: Gen(MWh) | H51: lbs/MWh | I51: lbs/MWh | J51: MWh | K51: MWh | N51: MWh | O51: MWh | P51: MWh | Q51: MWh | R51: MWh | S51: MWh | T51: MWh | U51: MWh | V51: lb/MWh | W51: lb/MWh
A52: Eastern | B52: =SUMIF('Appendix 3 - State-level Data'!$B$3:$B$56,$A52,'Appendix 3 - State-level Data'!$X$3:$X$56) -> 1356066366 | C52: =SUMIF('Appendix 3 - State-level Data'!$B$3:$B$56,$A52,'Appendix 3 - State-level Data'!$V$3:$V$56) -> 1230447795 | D52: =SUMIF('Appendix 3 - State-level Data'!$B$3:$B$56,$A52,'Appendix 3 - State-level Data'!$AA$3:$AA$56) -> 328219519.4 | E52: =SUMIF('Appendix 3 - State-level Data'!$B$3:$B$56,$A52,'Appendix 3 - State-level Data'!$Y$3:$Y$56) -> 734535157.1 | F52: =SUMIF('Appendix 3 - State-level Data'!$B$3:$B$56,$A52,'Appendix 3 - State-level Data'!$AE$3:$AE$56) -> 52979258.74 | G52: =SUMIF('Appendix 3 - State-level Data'!$B$3:$B$56,$A52,'Appendix 3 - State-level Data'!$AC$3:$AC$56) -> 74240802.18 | H52: =$H$13 -> 2070.585693 | I52: =D52*2000/E52 -> 893.6795366 | J52: =G52+C52 -> 1304688597 | K52: =E52 -> 734535157.1 | L52: =J52/($J52+$K52) -> 0.6397966846 | M52: 0.3602033154 | N52: =VLOOKUP(A52,'BB3'!$A$3:$J$5,6,0) -> 291643600 | O52: =J52-(N52*L52) -> 1118095988 | P52: =K52-(N52*M52) -> 629484165.4 | Q52: =J52-O52 -> 186592608.4 | R52: 105050991.6 | S52: =VLOOKUP(A52,'BB2'!$A$4:$L$6,8,0)-P52 -> 358372599.8 | T52: =MAX(O52-S52,0) -> 759723388.7 | U52: =(O52-T52)+P52 -> 987856765.2 | V52: =(T52*H52+(MAX(0,U52-K52)*I52))/(MAX(0,U52-K52)+T52+Q52) -> 1500.003591 | W52: =(U52*I52)/(U52+R52) -> 807.7784887 | Y52: =MAX(V52:V54) -> 1500.003591 | Z52: =MAX(W52:W54) -> 817.3262271
A53: Western | B53: =SUMIF('Appendix 3 - State-level Data'!$B$3:$B$56,A53,'Appendix 3 - State-level Data'!$X$3:$X$56) -> 229424715.8 | C53: =SUMIF('Appendix 3 - State-level Data'!$B$3:$B$56,$A53,'Appendix 3 - State-level Data'!$V$3:$V$56) -> 203976917.8 | D53: =SUMIF('Appendix 3 - State-level Data'!$B$3:$B$56,$A53,'Appendix 3 - State-level Data'!$AA$3:$AA$56) -> 89135326.65 | E53: =SUMIF('Appendix 3 - State-level Data'!$B$3:$B$56,$A53,'Appendix 3 - State-level Data'!$Y$3:$Y$56) -> 198374375.9 | F53: =SUMIF('Appendix 3 - State-level Data'!$B$3:$B$56,$A53,'Appendix 3 - State-level Data'!$AE$3:$AE$56) -> 9433180.3 | G53: =SUMIF('Appendix 3 - State-level Data'!$B$3:$B$56,$A53,'Appendix 3 - State-level Data'!$AC$3:$AC$56) -> 13326187 | H53: =$H$14 -> 2154.041722 | I53: =D53*2000/E53 -> 898.6576642 | J53: =G53+C53 -> 217303104.8 | K53: =E53 -> 198374375.9 | L53: 0.5227685282 | M53: 0.4772314718 | N53: =VLOOKUP(A53,'BB3'!$A$3:$J$5,6,0) -> 103821435.8 | O53: =J53-(N53*L53) -> 163028525.6 | P53: =K53-(N53*M53) -> 148827519.3 | Q53: 54274579.2 | R53: 49546856.61 | S53: =VLOOKUP(A53,'BB2'!$A$4:$L$6,8,0)-P53 -> 145345339.1 | T53: =MAX(O53-S53,0) -> 17683186.54 | U53: =(O53-T53)+P53 -> 294172858.4 | V53: =(T53*H53+(MAX(0,U53-K53)*I53))/(MAX(0,U53-K53)+T53+Q53) -> 740.2428429 | W53: =(U53*I53)/(U53+R53) -> 769.1170517
A54: ERCOT | B54: =SUMIF('Appendix 3 - State-level Data'!$B$3:$B$56,A54,'Appendix 3 - State-level Data'!$X$3:$X$56) -> 129404297.9 | C54: =SUMIF('Appendix 3 - State-level Data'!$B$3:$B$56,$A54,'Appendix 3 - State-level Data'!$V$3:$V$56) -> 115050132.4 | D54: =SUMIF('Appendix 3 - State-level Data'!$B$3:$B$56,$A54,'Appendix 3 - State-level Data'!$AA$3:$AA$56) -> 65236948.46 | E54: =SUMIF('Appendix 3 - State-level Data'!$B$3:$B$56,$A54,'Appendix 3 - State-level Data'!$Y$3:$Y$56) -> 137182895.2 | F54: =SUMIF('Appendix 3 - State-level Data'!$B$3:$B$56,$A54,'Appendix 3 - State-level Data'!$AE$3:$AE$56) -> 5835640.98 | G54: =SUMIF('Appendix 3 - State-level Data'!$B$3:$B$56,$A54,'Appendix 3 - State-level Data'!$AC$3:$AC$56) -> 8331348 | H54: =$H$15 -> 2143.978814 | I54: =D54*2000/E54 -> 951.0944987 | J54: =G54+C54 -> 123381480.4 | K54: =E54 -> 137182895.2 | L54: 0.4735163052 | M54: 0.5264836948 | N54: =VLOOKUP(A54,'BB3'!$A$3:$J$5,6,0) -> 61791623.49 | O54: =J54-(N54*L54) -> 94122139.15 | P54: =K54-(N54*M54) -> 104650612.9 | Q54: 29259341.25 | R54: 32532282.24 | S54: =VLOOKUP(A54,'BB2'!$A$4:$L$6,8,0)-P54 -> 98780320.17 | T54: =MAX(O54-S54,0) -> 0 | U54: =(O54-T54)+P54 -> 198772752.1 | V54: =(T54*H54+(MAX(0,U54-K54)*I54))/(MAX(0,U54-K54)+T54+Q54) -> 644.7803092 | W54: =(U54*I54)/(U54+R54) -> 817.3262271
A57: 2025
B58: Adj. Baseline | H58: BB1 HRI | J58: BB3 | S58: BB2 | V58: Final Rates
A59: Interconnection | B59: Coal | D59: NGCC | F59: OG Steam | H59: Fossil Steam Rate | I59: NGCC Emission Rate | J59: Baseline Fossil Steam Gen | K59: Baseline NGCC Gen | L59: Fossil Steam Share of Total Fossil | M59: NGCC Share of Total Fossil | N59: Potential BB3 | O59: Remaining Fossil Steam | P59: Remaining NGCC Gen | Q59: BB3 Apportioned to Fossil Steam | R59: BB3 Apportioned to NGCC | S59: Difference between NGCC generation levels at maximum BB2 utilization and Post BB3 NGCC levels (MWh) | T59: Remaining Fossil Steam | U59: Remaining NGCC Gen | V59: Fossil Steam Rate | W59: NGCC Rate | Y59: Fossil Steam Performance Rate | Z59: NGCC Performance Rate
B60: Emissions (tons) | C60: Gen (MWh) | D60: Emissions (tons) | E60: Gen(MWh) | F60: Emissions (tons) | G60: Gen(MWh) | H60: lbs/MWh | I60: lbs/MWh | J60: MWh | K60: MWh | N60: MWh | O60: MWh | P60: MWh | Q60: MWh | R60: MWh | S60: MWh | T60: MWh | U60: MWh | V60: lb/MWh | W60: lb/MWh
A61: Eastern | B61: =SUMIF('Appendix 3 - State-level Data'!$B$3:$B$56,$A61,'Appendix 3 - State-level Data'!$X$3:$X$56) -> 1356066366 | C61: =SUMIF('Appendix 3 - State-level Data'!$B$3:$B$56,$A61,'Appendix 3 - State-level Data'!$V$3:$V$56) -> 1230447795 | D61: =SUMIF('Appendix 3 - State-level Data'!$B$3:$B$56,$A61,'Appendix 3 - State-level Data'!$AA$3:$AA$56) -> 328219519.4 | E61: =SUMIF('Appendix 3 - State-level Data'!$B$3:$B$56,$A61,'Appendix 3 - State-level Data'!$Y$3:$Y$56) -> 734535157.1 | F61: =SUMIF('Appendix 3 - State-level Data'!$B$3:$B$56,$A61,'Appendix 3 - State-level Data'!$AE$3:$AE$56) -> 52979258.74 | G61: =SUMIF('Appendix 3 - State-level Data'!$B$3:$B$56,$A61,'Appendix 3 - State-level Data'!$AC$3:$AC$56) -> 74240802.18 | H61: =$H$13 -> 2070.585693 | I61: =D61*2000/E61 -> 893.6795366 | J61: =G61+C61 -> 1304688597 | K61: =E61 -> 734535157.1 | L61: =J61/($J61+$K61) -> 0.6397966846 | M61: 0.3602033154 | N61: =VLOOKUP(A61,'BB3'!$A$3:$J$5,5,0) -> 254943325.1 | O61: =J61-(N61*L61) -> 1141576703 | P61: =K61-(N61*M61) -> 642703726.1 | Q61: =J61-O61 -> 163111894.1 | R61: 91831430.94 | S61: =VLOOKUP(A61,'BB2'!$A$4:$L$6,7,0)-P61 -> 345153039.1 | T61: =MAX(O61-S61,0) -> 796423663.6 | U61: =(O61-T61)+P61 -> 987856765.2 | V61: =(T61*H61+(MAX(0,U61-K61)*I61))/(MAX(0,U61-K61)+T61+Q61) -> 1546.308859 | W61: =(U61*I61)/(U61+R61) -> 817.6688226 | Y61: =MAX(V61:V63) -> 1546.308859 | Z61: =MAX(W61:W63) -> 836.1520383
A62: Western | B62: =SUMIF('Appendix 3 - State-level Data'!$B$3:$B$56,A62,'Appendix 3 - State-level Data'!$X$3:$X$56) -> 229424715.8 | C62: =SUMIF('Appendix 3 - State-level Data'!$B$3:$B$56,$A62,'Appendix 3 - State-level Data'!$V$3:$V$56) -> 203976917.8 | D62: =SUMIF('Appendix 3 - State-level Data'!$B$3:$B$56,$A62,'Appendix 3 - State-level Data'!$AA$3:$AA$56) -> 89135326.65 | E62: =SUMIF('Appendix 3 - State-level Data'!$B$3:$B$56,$A62,'Appendix 3 - State-level Data'!$Y$3:$Y$56) -> 198374375.9 | F62: =SUMIF('Appendix 3 - State-level Data'!$B$3:$B$56,$A62,'Appendix 3 - State-level Data'!$AE$3:$AE$56) -> 9433180.3 | G62: =SUMIF('Appendix 3 - State-level Data'!$B$3:$B$56,$A62,'Appendix 3 - State-level Data'!$AC$3:$AC$56) -> 13326187 | H62: =$H$14 -> 2154.041722 | I62: =D62*2000/E62 -> 898.6576642 | J62: =G62+C62 -> 217303104.8 | K62: =E62 -> 198374375.9 | L62: 0.5227685282 | M62: 0.4772314718 | N62: =VLOOKUP(A62,'BB3'!$A$3:$J$5,5,0) -> 89533078.37 | O62: =J62-(N62*L62) -> 170498029.2 | P62: =K62-(N62*M62) -> 155646373.2 | Q62: 46805075.61 | R62: 42728002.76 | S62: =VLOOKUP(A62,'BB2'!$A$4:$L$6,7,0)-P62 -> 124518253.9 | T62: =MAX(O62-S62,0) -> 45979775.34 | U62: =(O62-T62)+P62 -> 280164627 | V62: =(T62*H62+(MAX(0,U62-K62)*I62))/(MAX(0,U62-K62)+T62+Q62) -> 988.3642538 | W62: =(U62*I62)/(U62+R62) -> 779.7393502
A63: ERCOT | B63: =SUMIF('Appendix 3 - State-level Data'!$B$3:$B$56,A63,'Appendix 3 - State-level Data'!$X$3:$X$56) -> 129404297.9 | C63: =SUMIF('Appendix 3 - State-level Data'!$B$3:$B$56,$A63,'Appendix 3 - State-level Data'!$V$3:$V$56) -> 115050132.4 | D63: =SUMIF('Appendix 3 - State-level Data'!$B$3:$B$56,$A63,'Appendix 3 - State-level Data'!$AA$3:$AA$56) -> 65236948.46 | E63: =SUMIF('Appendix 3 - State-level Data'!$B$3:$B$56,$A63,'Appendix 3 - State-level Data'!$Y$3:$Y$56) -> 137182895.2 | F63: =SUMIF('Appendix 3 - State-level Data'!$B$3:$B$56,$A63,'Appendix 3 - State-level Data'!$AE$3:$AE$56) -> 5835640.98 | G63: =SUMIF('Appendix 3 - State-level Data'!$B$3:$B$56,$A63,'Appendix 3 - State-level Data'!$AC$3:$AC$56) -> 8331348 | H63: =$H$15 -> 2143.978814 | I63: =D63*2000/E63 -> 951.0944987 | J63: =G63+C63 -> 123381480.4 | K63: =E63 -> 137182895.2 | L63: 0.4735163052 | M63: 0.5264836948 | N63: =VLOOKUP(A63,'BB3'!$A$3:$J$5,5,0) -> 50586892.63 | O63: =J63-(N63*L63) -> 99427761.91 | P63: =K63-(N63*M63) -> 110549721 | Q63: 23953718.49 | R63: 26633174.14 | S63: =VLOOKUP(A63,'BB2'!$A$4:$L$6,7,0)-P63 -> 83194024.78 | T63: =MAX(O63-S63,0) -> 16233737.13 | U63: =(O63-T63)+P63 -> 193743745.8 | V63: =(T63*H63+(MAX(0,U63-K63)*I63))/(MAX(0,U63-K63)+T63+Q63) -> 915.7731623 | W63: =(U63*I63)/(U63+R63) -> 836.1520383
A66: 2024
B67: Adj. Baseline | H67: BB1 HRI | J67: BB3 | S67: BB2 | V67: Final Rates
A68: Interconnection | B68: Coal | D68: NGCC | F68: OG Steam | H68: Fossil Steam Rate | I68: NGCC Emission Rate | J68: Baseline Fossil Steam Gen | K68: Baseline NGCC Gen | L68: Fossil Steam Share of Total Fossil | M68: NGCC Share of Total Fossil | N68: Potential BB3 | O68: Remaining Fossil Steam | P68: Remaining NGCC Gen | Q68: BB3 Apportioned to Fossil Steam | R68: BB3 Apportioned to NGCC | S68: Difference between NGCC generation levels at maximum BB2 utilization and Post BB3 NGCC levels (MWh) | T68: Remaining Fossil Steam | U68: Remaining NGCC Gen | V68: Fossil Steam Rate | W68: NGCC Rate | Y68: Fossil Steam Performance Rate | Z68: NGCC Performance Rate
B69: Emissions (tons) | C69: Gen (MWh) | D69: Emissions (tons) | E69: Gen(MWh) | F69: Emissions (tons) | G69: Gen(MWh) | H69: lbs/MWh | I69: lbs/MWh | J69: MWh | K69: MWh | N69: MWh | O69: MWh | P69: MWh | Q69: MWh | R69: MWh | S69: MWh | T69: MWh | U69: MWh | V69: lb/MWh | W69: lb/MWh
A70: Eastern | B70: =SUMIF('Appendix 3 - State-level Data'!$B$3:$B$56,$A70,'Appendix 3 - State-level Data'!$X$3:$X$56) -> 1356066366 | C70: =SUMIF('Appendix 3 - State-level Data'!$B$3:$B$56,$A70,'Appendix 3 - State-level Data'!$V$3:$V$56) -> 1230447795 | D70: =SUMIF('Appendix 3 - State-level Data'!$B$3:$B$56,$A70,'Appendix 3 - State-level Data'!$AA$3:$AA$56) -> 328219519.4 | E70: =SUMIF('Appendix 3 - State-level Data'!$B$3:$B$56,$A70,'Appendix 3 - State-level Data'!$Y$3:$Y$56) -> 734535157.1 | F70: =SUMIF('Appendix 3 - State-level Data'!$B$3:$B$56,$A70,'Appendix 3 - State-level Data'!$AE$3:$AE$56) -> 52979258.74 | G70: =SUMIF('Appendix 3 - State-level Data'!$B$3:$B$56,$A70,'Appendix 3 - State-level Data'!$AC$3:$AC$56) -> 74240802.18 | H70: =$H$13 -> 2070.585693 | I70: =D70*2000/E70 -> 893.6795366 | J70: =G70+C70 -> 1304688597 | K70: =E70 -> 734535157.1 | L70: =J70/($J70+$K70) -> 0.6397966846 | M70: 0.3602033154 | N70: =VLOOKUP(A70,'BB3'!$A$3:$J$5,4,0) -> 218243050.2 | O70: =J70-(N70*L70) -> 1165057417 | P70: =K70-(N70*M70) -> 655923286.8 | Q70: =J70-O70 -> 139631179.9 | R70: 78611870.24 | S70: =VLOOKUP(A70,'BB2'!$A$4:$L$6,6,0)-P70 -> 331933478.4 | T70: =MAX(O70-S70,0) -> 833123938.5 | U70: =(O70-T70)+P70 -> 987856765.2 | V70: =(T70*H70+(MAX(0,U70-K70)*I70))/(MAX(0,U70-K70)+T70+Q70) -> 1591.6156 | W70: =(U70*I70)/(U70+R70) -> 827.8043506 | Y70: =MAX(V70:V72) -> 1591.6156 | Z70: =MAX(W70:W72) -> 855.0171699
A71: Western | B71: =SUMIF('Appendix 3 - State-level Data'!$B$3:$B$56,A71,'Appendix 3 - State-level Data'!$X$3:$X$56) -> 229424715.8 | C71: =SUMIF('Appendix 3 - State-level Data'!$B$3:$B$56,$A71,'Appendix 3 - State-level Data'!$V$3:$V$56) -> 203976917.8 | D71: =SUMIF('Appendix 3 - State-level Data'!$B$3:$B$56,$A71,'Appendix 3 - State-level Data'!$AA$3:$AA$56) -> 89135326.65 | E71: =SUMIF('Appendix 3 - State-level Data'!$B$3:$B$56,$A71,'Appendix 3 - State-level Data'!$Y$3:$Y$56) -> 198374375.9 | F71: =SUMIF('Appendix 3 - State-level Data'!$B$3:$B$56,$A71,'Appendix 3 - State-level Data'!$AE$3:$AE$56) -> 9433180.3 | G71: =SUMIF('Appendix 3 - State-level Data'!$B$3:$B$56,$A71,'Appendix 3 - State-level Data'!$AC$3:$AC$56) -> 13326187 | H71: =$H$14 -> 2154.041722 | I71: =D71*2000/E71 -> 898.6576642 | J71: =G71+C71 -> 217303104.8 | K71: =E71 -> 198374375.9 | L71: 0.5227685282 | M71: 0.4772314718 | N71: =VLOOKUP(A71,'BB3'!$A$3:$J$5,4,0) -> 75244720.92 | O71: =J71-(N71*L71) -> 177967532.8 | P71: =K71-(N71*M71) -> 162465227 | Q71: 39335572.01 | R71: 35909148.91 | S71: =VLOOKUP(A71,'BB2'!$A$4:$L$6,6,0)-P71 -> 104358227.3 | T71: =MAX(O71-S71,0) -> 73609305.5 | U71: =(O71-T71)+P71 -> 266823454.3 | V71: =(T71*H71+(MAX(0,U71-K71)*I71))/(MAX(0,U71-K71)+T71+Q71) -> 1213.214646 | W71: =(U71*I71)/(U71+R71) -> 792.0618383
A72: ERCOT | B72: =SUMIF('Appendix 3 - State-level Data'!$B$3:$B$56,A72,'Appendix 3 - State-level Data'!$X$3:$X$56) -> 129404297.9 | C72: =SUMIF('Appendix 3 - State-level Data'!$B$3:$B$56,$A72,'Appendix 3 - State-level Data'!$V$3:$V$56) -> 115050132.4 | D72: =SUMIF('Appendix 3 - State-level Data'!$B$3:$B$56,$A72,'Appendix 3 - State-level Data'!$AA$3:$AA$56) -> 65236948.46 | E72: =SUMIF('Appendix 3 - State-level Data'!$B$3:$B$56,$A72,'Appendix 3 - State-level Data'!$Y$3:$Y$56) -> 137182895.2 | F72: =SUMIF('Appendix 3 - State-level Data'!$B$3:$B$56,$A72,'Appendix 3 - State-level Data'!$AE$3:$AE$56) -> 5835640.98 | G72: =SUMIF('Appendix 3 - State-level Data'!$B$3:$B$56,$A72,'Appendix 3 - State-level Data'!$AC$3:$AC$56) -> 8331348 | H72: =$H$15 -> 2143.978814 | I72: =D72*2000/E72 -> 951.0944987 | J72: =G72+C72 -> 123381480.4 | K72: =E72 -> 137182895.2 | L72: 0.4735163052 | M72: 0.5264836948 | N72: =VLOOKUP(A72,'BB3'!$A$3:$J$5,4,0) -> 39382161.76 | O72: =J72-(N72*L72) -> 104733384.7 | P72: =K72-(N72*M72) -> 116448829.1 | Q72: 18648095.73 | R72: 20734066.03 | S72: =VLOOKUP(A72,'BB2'!$A$4:$L$6,6,0)-P72 -> 68069024.01 | T72: =MAX(O72-S72,0) -> 36664360.66 | U72: =(O72-T72)+P72 -> 184517853.2 | V72: =(T72*H72+(MAX(0,U72-K72)*I72))/(MAX(0,U72-K72)+T72+Q72) -> 1204.391083 | W72: =(U72*I72)/(U72+R72) -> 855.0171699
A75: 2023
B76: Adj. Baseline | H76: BB1 HRI | J76: BB3 | S76: BB2 | V76: Final Rates
A77: Interconnection | B77: Coal | D77: NGCC | F77: OG Steam | H77: Fossil Steam Rate | I77: NGCC Emission Rate | J77: Baseline Fossil Steam Gen | K77: Baseline NGCC Gen | L77: Fossil Steam Share of Total Fossil | M77: NGCC Share of Total Fossil | N77: Potential BB3 | O77: Remaining Fossil Steam | P77: Remaining NGCC Gen | Q77: BB3 Apportioned to Fossil Steam | R77: BB3 Apportioned to NGCC | S77: Difference between NGCC generation levels at maximum BB2 utilization and Post BB3 NGCC levels (MWh) | T77: Remaining Fossil Steam | U77: Remaining NGCC Gen | V77: Fossil Steam Rate | W77: NGCC Rate | Y77: Fossil Steam Performance Rate | Z77: NGCC Performance Rate
B78: Emissions (tons) | C78: Gen (MWh) | D78: Emissions (tons) | E78: Gen(MWh) | F78: Emissions (tons) | G78: Gen(MWh) | H78: lbs/MWh | I78: lbs/MWh | J78: MWh | K78: MWh | N78: MWh | O78: MWh | P78: MWh | Q78: MWh | R78: MWh | S78: MWh | T78: MWh | U78: MWh | V78: lb/MWh | W78: lb/MWh
A79: Eastern | B79: =SUMIF('Appendix 3 - State-level Data'!$B$3:$B$56,$A79,'Appendix 3 - State-level Data'!$X$3:$X$56) -> 1356066366 | C79: =SUMIF('Appendix 3 - State-level Data'!$B$3:$B$56,$A79,'Appendix 3 - State-level Data'!$V$3:$V$56) -> 1230447795 | D79: =SUMIF('Appendix 3 - State-level Data'!$B$3:$B$56,$A79,'Appendix 3 - State-level Data'!$AA$3:$AA$56) -> 328219519.4 | E79: =SUMIF('Appendix 3 - State-level Data'!$B$3:$B$56,$A79,'Appendix 3 - State-level Data'!$Y$3:$Y$56) -> 734535157.1 | F79: =SUMIF('Appendix 3 - State-level Data'!$B$3:$B$56,$A79,'Appendix 3 - State-level Data'!$AE$3:$AE$56) -> 52979258.74 | G79: =SUMIF('Appendix 3 - State-level Data'!$B$3:$B$56,$A79,'Appendix 3 - State-level Data'!$AC$3:$AC$56) -> 74240802.18 | H79: =$H$13 -> 2070.585693 | I79: =D79*2000/E79 -> 893.6795366 | J79: =G79+C79 -> 1304688597 | K79: =E79 -> 734535157.1 | L79: =J79/($J79+$K79) -> 0.6397966846 | M79: 0.3602033154 | N79: =VLOOKUP(A79,'BB3'!$A$3:$J$5,3,0) -> 181542775.2 | O79: =J79-(N79*L79) -> 1188538131 | P79: =K79-(N79*M79) -> 669142847.5 | Q79: =J79-O79 -> 116150465.7 | R79: 65392309.53 | S79: =VLOOKUP(A79,'BB2'!$A$4:$L$6,5,0)-P79 -> 271796688.7 | T79: =MAX(O79-S79,0) -> 916741442.5 | U79: =(O79-T79)+P79 -> 940939536.2 | V79: =(T79*H79+(MAX(0,U79-K79)*I79))/(MAX(0,U79-K79)+T79+Q79) -> 1680.511033 | W79: =(U79*I79)/(U79+R79) -> 835.6074711 | Y79: =MAX(V79:V81) -> 1680.511033 | Z79: =MAX(W79:W81) -> 877.0549082
A80: Western | B80: =SUMIF('Appendix 3 - State-level Data'!$B$3:$B$56,A80,'Appendix 3 - State-level Data'!$X$3:$X$56) -> 229424715.8 | C80: =SUMIF('Appendix 3 - State-level Data'!$B$3:$B$56,$A80,'Appendix 3 - State-level Data'!$V$3:$V$56) -> 203976917.8 | D80: =SUMIF('Appendix 3 - State-level Data'!$B$3:$B$56,$A80,'Appendix 3 - State-level Data'!$AA$3:$AA$56) -> 89135326.65 | E80: =SUMIF('Appendix 3 - State-level Data'!$B$3:$B$56,$A80,'Appendix 3 - State-level Data'!$Y$3:$Y$56) -> 198374375.9 | F80: =SUMIF('Appendix 3 - State-level Data'!$B$3:$B$56,$A80,'Appendix 3 - State-level Data'!$AE$3:$AE$56) -> 9433180.3 | G80: =SUMIF('Appendix 3 - State-level Data'!$B$3:$B$56,$A80,'Appendix 3 - State-level Data'!$AC$3:$AC$56) -> 13326187 | H80: =$H$14 -> 2154.041722 | I80: =D80*2000/E80 -> 898.6576642 | J80: =G80+C80 -> 217303104.8 | K80: =E80 -> 198374375.9 | L80: 0.5227685282 | M80: 0.4772314718 | N80: =VLOOKUP(A80,'BB3'!$A$3:$J$5,3,0) -> 60956363.47 | O80: =J80-(N80*L80) -> 185437036.4 | P80: =K80-(N80*M80) -> 169284080.9 | Q80: 31866068.42 | R80: 29090295.05 | S80: =VLOOKUP(A80,'BB2'!$A$4:$L$6,5,0)-P80 -> 84833494.69 | T80: =MAX(O80-S80,0) -> 100603541.7 | U80: =(O80-T80)+P80 -> 254117575.5 | V80: =(T80*H80+(MAX(0,U80-K80)*I80))/(MAX(0,U80-K80)+T80+Q80) -> 1417.535184 | W80: =(U80*I80)/(U80+R80) -> 806.3501427
A81: ERCOT | B81: =SUMIF('Appendix 3 - State-level Data'!$B$3:$B$56,A81,'Appendix 3 - State-level Data'!$X$3:$X$56) -> 129404297.9 | C81: =SUMIF('Appendix 3 - State-level Data'!$B$3:$B$56,$A81,'Appendix 3 - State-level Data'!$V$3:$V$56) -> 115050132.4 | D81: =SUMIF('Appendix 3 - State-level Data'!$B$3:$B$56,$A81,'Appendix 3 - State-level Data'!$AA$3:$AA$56) -> 65236948.46 | E81: =SUMIF('Appendix 3 - State-level Data'!$B$3:$B$56,$A81,'Appendix 3 - State-level Data'!$Y$3:$Y$56) -> 137182895.2 | F81: =SUMIF('Appendix 3 - State-level Data'!$B$3:$B$56,$A81,'Appendix 3 - State-level Data'!$AE$3:$AE$56) -> 5835640.98 | G81: =SUMIF('Appendix 3 - State-level Data'!$B$3:$B$56,$A81,'Appendix 3 - State-level Data'!$AC$3:$AC$56) -> 8331348 | H81: =$H$15 -> 2143.978814 | I81: =D81*2000/E81 -> 951.0944987 | J81: =G81+C81 -> 123381480.4 | K81: =E81 -> 137182895.2 | L81: 0.4735163052 | M81: 0.5264836948 | N81: =VLOOKUP(A81,'BB3'!$A$3:$J$5,3,0) -> 28177430.89 | O81: =J81-(N81*L81) -> 110039007.4 | P81: =K81-(N81*M81) -> 122347937.3 | Q81: 13342472.97 | R81: 14834957.93 | S81: =VLOOKUP(A81,'BB2'!$A$4:$L$6,5,0)-P81 -> 53383351.47 | T81: =MAX(O81-S81,0) -> 56655655.96 | U81: =(O81-T81)+P81 -> 175731288.7 | V81: =(T81*H81+(MAX(0,U81-K81)*I81))/(MAX(0,U81-K81)+T81+Q81) -> 1456.810292 | W81: =(U81*I81)/(U81+R81) -> 877.0549082
A84: 2022
B85: Adj. Baseline | H85: BB1 HRI | J85: BB3 | S85: BB2 | V85: Final Rates
A86: Interconnection | B86: Coal | D86: NGCC | F86: OG Steam | H86: Fossil Steam Rate | I86: NGCC Emission Rate | J86: Baseline Fossil Steam Gen | K86: Baseline NGCC Gen | L86: Fossil Steam Share of Total Fossil | M86: NGCC Share of Total Fossil | N86: Potential BB3 | O86: Remaining Fossil Steam | P86: Remaining NGCC Gen | Q86: BB3 Apportioned to Fossil Steam | R86: BB3 Apportioned to NGCC | S86: Difference between NGCC generation levels at maximum BB2 utilization and Post BB3 NGCC levels (MWh) | T86: Remaining Fossil Steam | U86: Remaining NGCC Gen | V86: Fossil Steam Rate | W86: NGCC Rate | Y86: Fossil Steam Performance Rate | Z86: NGCC Performance Rate
B87: Emissions (tons) | C87: Gen (MWh) | D87: Emissions (tons) | E87: Gen(MWh) | F87: Emissions (tons) | G87: Gen(MWh) | H87: lbs/MWh | I87: lbs/MWh | J87: MWh | K87: MWh | N87: MWh | O87: MWh | P87: MWh | Q87: MWh | R87: MWh | S87: MWh | T87: MWh | U87: MWh | V87: lb/MWh | W87: lb/MWh
A88: Eastern | B88: =SUMIF('Appendix 3 - State-level Data'!$B$3:$B$56,$A88,'Appendix 3 - State-level Data'!$X$3:$X$56) -> 1356066366 | C88: =SUMIF('Appendix 3 - State-level Data'!$B$3:$B$56,$A88,'Appendix 3 - State-level Data'!$V$3:$V$56) -> 1230447795 | D88: =SUMIF('Appendix 3 - State-level Data'!$B$3:$B$56,$A88,'Appendix 3 - State-level Data'!$AA$3:$AA$56) -> 328219519.4 | E88: =SUMIF('Appendix 3 - State-level Data'!$B$3:$B$56,$A88,'Appendix 3 - State-level Data'!$Y$3:$Y$56) -> 734535157.1 | F88: =SUMIF('Appendix 3 - State-level Data'!$B$3:$B$56,$A88,'Appendix 3 - State-level Data'!$AE$3:$AE$56) -> 52979258.74 | G88: =SUMIF('Appendix 3 - State-level Data'!$B$3:$B$56,$A88,'Appendix 3 - State-level Data'!$AC$3:$AC$56) -> 74240802.18 | H88: =$H$13 -> 2070.585693 | I88: =D88*2000/E88 -> 893.6795366 | J88: =G88+C88 -> 1304688597 | K88: =E88 -> 734535157.1 | L88: =J88/($J88+$K88) -> 0.6397966846 | M88: 0.3602033154 | N88: =VLOOKUP(A88,'BB3'!$A$3:$J$5,2,0) -> 166253133.9 | O88: =J88-(N88*L88) -> 1198320393 | P88: =K88-(N88*M88) -> 674650227 | Q88: =J88-O88 -> 106368203.9 | R88: 59884930.03 | S88: =VLOOKUP(A88,'BB2'!$A$4:$L$6,4,0)-P88 -> 221482664.6 | T88: =MAX(O88-S88,0) -> 976837728.4 | U88: =(O88-T88)+P88 -> 896132891.6 | V88: =(T88*H88+(MAX(0,U88-K88)*I88))/(MAX(0,U88-K88)+T88+Q88) -> 1740.871168 | W88: =(U88*I88)/(U88+R88) -> 837.699475 | Y88: =MAX(V88:V90) -> 1740.871168 | Z88: =MAX(W88:W90) -> 897.5510043
A89: Western | B89: =SUMIF('Appendix 3 - State-level Data'!$B$3:$B$56,A89,'Appendix 3 - State-level Data'!$X$3:$X$56) -> 229424715.8 | C89: =SUMIF('Appendix 3 - State-level Data'!$B$3:$B$56,$A89,'Appendix 3 - State-level Data'!$V$3:$V$56) -> 203976917.8 | D89: =SUMIF('Appendix 3 - State-level Data'!$B$3:$B$56,$A89,'Appendix 3 - State-level Data'!$AA$3:$AA$56) -> 89135326.65 | E89: =SUMIF('Appendix 3 - State-level Data'!$B$3:$B$56,$A89,'Appendix 3 - State-level Data'!$Y$3:$Y$56) -> 198374375.9 | F89: =SUMIF('Appendix 3 - State-level Data'!$B$3:$B$56,$A89,'Appendix 3 - State-level Data'!$AE$3:$AE$56) -> 9433180.3 | G89: =SUMIF('Appendix 3 - State-level Data'!$B$3:$B$56,$A89,'Appendix 3 - State-level Data'!$AC$3:$AC$56) -> 13326187 | H89: =$H$14 -> 2154.041722 | I89: =D89*2000/E89 -> 898.6576642 | J89: =G89+C89 -> 217303104.8 | K89: =E89 -> 198374375.9 | L89: 0.5227685282 | M89: 0.4772314718 | N89: =VLOOKUP(A89,'BB3'!$A$3:$J$5,2,0) -> 56663540.94 | O89: =J89-(N89*L89) -> 187681188.9 | P89: =K89-(N89*M89) -> 171332750.9 | Q89: 29621915.9 | R89: 27041625.04 | S89: =VLOOKUP(A89,'BB2'!$A$4:$L$6,4,0)-P89 -> 70683987.74 | T89: =MAX(O89-S89,0) -> 116997201.2 | U89: =(O89-T89)+P89 -> 242016738.6 | V89: =(T89*H89+(MAX(0,U89-K89)*I89))/(MAX(0,U89-K89)+T89+Q89) -> 1530.716553 | W89: =(U89*I89)/(U89+R89) -> 808.3383623
A90: ERCOT | B90: =SUMIF('Appendix 3 - State-level Data'!$B$3:$B$56,A90,'Appendix 3 - State-level Data'!$X$3:$X$56) -> 129404297.9 | C90: =SUMIF('Appendix 3 - State-level Data'!$B$3:$B$56,$A90,'Appendix 3 - State-level Data'!$V$3:$V$56) -> 115050132.4 | D90: =SUMIF('Appendix 3 - State-level Data'!$B$3:$B$56,$A90,'Appendix 3 - State-level Data'!$AA$3:$AA$56) -> 65236948.46 | E90: =SUMIF('Appendix 3 - State-level Data'!$B$3:$B$56,$A90,'Appendix 3 - State-level Data'!$Y$3:$Y$56) -> 137182895.2 | F90: =SUMIF('Appendix 3 - State-level Data'!$B$3:$B$56,$A90,'Appendix 3 - State-level Data'!$AE$3:$AE$56) -> 5835640.98 | G90: =SUMIF('Appendix 3 - State-level Data'!$B$3:$B$56,$A90,'Appendix 3 - State-level Data'!$AC$3:$AC$56) -> 8331348 | H90: =$H$15 -> 2143.978814 | I90: =D90*2000/E90 -> 951.0944987 | J90: =G90+C90 -> 123381480.4 | K90: =E90 -> 137182895.2 | L90: 0.4735163052 | M90: 0.5264836948 | N90: =VLOOKUP(A90,'BB3'!$A$3:$J$5,2,0) -> 18963672.37 | O90: =J90-(N90*L90) -> 114401872.3 | P90: =K90-(N90*M90) -> 127198830.9 | Q90: 8979608.074 | R90: 9984064.295 | S90: =VLOOKUP(A90,'BB2'!$A$4:$L$6,4,0)-P90 -> 40164301.23 | T90: =MAX(O90-S90,0) -> 74237571.09 | U90: =(O90-T90)+P90 -> 167363132.1 | V90: =(T90*H90+(MAX(0,U90-K90)*I90))/(MAX(0,U90-K90)+T90+Q90) -> 1656.722379 | W90: =(U90*I90)/(U90+R90) -> 897.5510043

Sheet Appendix 5- State Goals
T1: CONUS BB3 Not Necessary for Goal Rates | AE1: Sum of Affected Source Mass Goals (Short Tons)
U2: 2022 | V2: 2023 | W2: 2024 | X2: 2025 | Y2: 2026 | Z2: 2027 | AA2: 2028 | AB2: 2029 | AC2: 2030 | AF2: 2022 | AG2: 2023 | AH2: 2024 | AI2: 2025 | AJ2: 2026 | AK2: 2027 | AL2: 2028 | AM2: 2029 | AN2: 2030
T3: MWh | U3: 94975762.49 | V3: 90713245.93 | W3: 92966029.46 | X3: 102634454.1 | Y3: 111033909.9 | Z3: 113468333.3 | AA3: 131936775.2 | AB3: 150167508.3 | AC3: 166255493.4 | AF3: 94919836.93 | AG3: 90629861.15 | AH3: 92860792.22 | AI3: 102527579.9 | AJ3: 110921833.1 | AK3: 113510323.5 | AL3: 131985718.6 | AM3: 150035286.7 | AN3: =SUM(AN6:AN55) -> 1668104055
G4: State Goals (lbs/MWh) | T4: BB3 Not Necessary for Goal Rates by State (MWh) | AE4: Affected Source Mass Goals (Short Tons) | AP4: Average Annual Affected Source Mass Goals (Short Tons) | AW4: Cumulative Annual Affected Source Mass Goals (Short Tons)
A5: State | B5: State Name | C5: Baseline Fossil Steam Gen (MWh) | D5: Baseline NGCC Gen (MWh) | E5: % Fossil Steam Generation | F5: % NGCC Generation | G5: 2022 | H5: 2023 | I5: 2024 | J5: 2025 | K5: 2026 | L5: 2027 | M5: 2028 | N5: 2029 | O5: 2030 | P5: Interim | Q5: Final | S5: Share of Affected Source Generation | T5: State | U5: 2022 | V5: 2023 | W5: 2024 | X5: 2025 | Y5: 2026 | Z5: 2027 | AA5: 2028 | AB5: 2029 | AC5: 2030 | AE5: State | AF5: 2022 | AG5: 2023 | AH5: 2024 | AI5: 2025 | AJ5: 2026 | AK5: 2027 | AL5: 2028 | AM5: 2029 | AN5: 2030 | AP5: State | AQ5: 2022-2024 | AR5: 2025-2027 | AS5: 2028-2029 | AT5: Interim | AU5: Final | AW5: State | AX5: 2022-2024 | AY5: 2025-2027 | AZ5: 2028-2029 | BA5: Interim (2022-2029) | BB5: Final (2030-2031)
A6: AL | B6: Alabama | C6: =SUMIF('Appendix 3 - State-level Data'!$A$3:$A$56,A6,'Appendix 3 - State-level Data'!$AG$3:$AG$56) -> 46059839.57 | D6: =SUMIF('Appendix 3 - State-level Data'!$A$3:$A$56,A6,'Appendix 3 - State-level Data'!$Y$3:$Y$56) -> 53492095.96 | E6: =C6/($C6+$D6) -> 0.4626714621 | F6: =D6/($C6+$D6) -> 0.5373285379 | G6: =(($E6*'Appendix 4 - Category-spec calc'!$Y$88)+('Appendix 4 - Category-spec calc'!$Z$88*'Appendix 5- State Goals'!$F6)) -> 1287.731177 | H6: =($E6*'Appendix 4 - Category-spec calc'!C$5+('Appendix 4 - Category-spec calc'!C$6*'Appendix 5- State Goals'!$F6)) -> 1248.791128 | I6: =($E6*'Appendix 4 - Category-spec calc'!D$5+('Appendix 4 - Category-spec calc'!D$6*'Appendix 5- State Goals'!$F6)) -> 1195.820242 | J6: =($E6*'Appendix 4 - Category-spec calc'!E$5+('Appendix 4 - Category-spec calc'!E$6*'Appendix 5- State Goals'!$F6)) -> 1164.721333 | K6: =($E6*'Appendix 4 - Category-spec calc'!F$5+('Appendix 4 - Category-spec calc'!F$6*'Appendix 5- State Goals'!$F6)) -> 1133.181561 | L6: =($E6*'Appendix 4 - Category-spec calc'!G$5+('Appendix 4 - Category-spec calc'!G$6*'Appendix 5- State Goals'!$F6)) -> 1100.962398 | M6: =($E6*'Appendix 4 - Category-spec calc'!H$5+('Appendix 4 - Category-spec calc'!H$6*'Appendix 5- State Goals'!$F6)) -> 1073.50246 | N6: =($E6*'Appendix 4 - Category-spec calc'!I$5+('Appendix 4 - Category-spec calc'!I$6*'Appendix 5- State Goals'!$F6)) -> 1045.65031 | O6: =($E6*'Appendix 4 - Category-spec calc'!L$5+('Appendix 4 - Category-spec calc'!L$6*'Appendix 5- State Goals'!$F6)) -> 1018.066561 | P6: =E6*'Appendix 4 - Category-spec calc'!$K$5+'Appendix 4 - Category-spec calc'!$K$6*'Appendix 5- State Goals'!F6 -> 1156.795366 | Q6: =O6 -> 1018.066561 | S6: =(C6+D6)/SUM($C$6:$D$55) -> 0.03666109236 | T6: Alabama | U6: =U$3*$S6 -> 3481915.2 | V6: 3325646.687 | W6: 3408236.192 | X6: 3762691.202 | Y6: 4070624.425 | Z6: 4159873.045 | AA6: 4836946.3 | AB6: 5505304.891 | AC6: 6095108 | AE6: Alabama | AF6: =(U6*G6*2/2000)+(G6*($C6+$D6)/2000) -> 68581836.33 | AG6: =(V6*H6*2/2000)+(H6*($C6+$D6)/2000) -> 66312825.03 | AH6: =(W6*I6*2/2000)+(I6*($C6+$D6)/2000) -> 63598747.67 | AI6: =(X6*J6*2/2000)+(J6*($C6+$D6)/2000) -> 62357618.23 | AJ6: =(Y6*K6*2/2000)+(K6*($C6+$D6)/2000) -> 61017965.42 | AK6: =(Z6*L6*2/2000)+(L6*($C6+$D6)/2000) -> 59381332.62 | AL6: =(AA6*M6*2/2000)+(M6*($C6+$D6)/2000) -> 58627097.58 | AM6: =(AB6*N6*2/2000)+(N6*($C6+$D6)/2000) -> 57804879.89 | AN6: =(AC6*O6*2/2000)+(O6*($C6+$D6)/2000) -> 56880473.95 | AP6: Alabama | AQ6: =ROUNDUP(AVERAGE(AF6:AH6),0) -> 66164470 | AR6: =ROUNDUP(AVERAGE(AI6:AK6),0) -> 60918973 | AS6: =ROUNDUP(AVERAGE(AL6:AM6),0) -> 58215989 | AT6: =ROUNDUP(AVERAGE(AF6:AM6),0) -> 62210288 | AU6: =ROUNDUP(AN6,0) -> 56880474 | AW6: Alabama | AX6: =AQ6*3 -> 198493410 | AY6: =AR6*3 -> 182756919 | AZ6: =AS6*2 -> 116431978 | BA6: =AT6*8 -> 497682304 | BB6: =AU6*2 -> 113760948
A7: AR | B7: Arkansas | C7: =SUMIF('Appendix 3 - State-level Data'!$A$3:$A$56,A7,'Appendix 3 - State-level Data'!$AG$3:$AG$56) -> 32154992.08 | D7: =SUMIF('Appendix 3 - State-level Data'!$A$3:$A$56,A7,'Appendix 3 - State-level Data'!$Y$3:$Y$56) -> 15651185.02 | E7: 0.6726116588 | F7: 0.3273883412 | G7: =(($E7*'Appendix 4 - Category-spec calc'!$Y$88)+('Appendix 4 - Category-spec calc'!$Z$88*'Appendix 5- State Goals'!$F7)) -> 1464.777978 | H7: =($E7*'Appendix 4 - Category-spec calc'!C$5+('Appendix 4 - Category-spec calc'!C$6*'Appendix 5- State Goals'!$F7)) -> 1417.468865 | I7: =($E7*'Appendix 4 - Category-spec calc'!D$5+('Appendix 4 - Category-spec calc'!D$6*'Appendix 5- State Goals'!$F7)) -> 1350.461862 | J7: =($E7*'Appendix 4 - Category-spec calc'!E$5+('Appendix 4 - Category-spec calc'!E$6*'Appendix 5- State Goals'!$F7)) -> 1313.811796 | K7: =($E7*'Appendix 4 - Category-spec calc'!F$5+('Appendix 4 - Category-spec calc'!F$6*'Appendix 5- State Goals'!$F7)) -> 1276.502982 | L7: =($E7*'Appendix 4 - Category-spec calc'!G$5+('Appendix 4 - Category-spec calc'!G$6*'Appendix 5- State Goals'!$F7)) -> 1238.377045 | M7: =($E7*'Appendix 4 - Category-spec calc'!H$5+('Appendix 4 - Category-spec calc'!H$6*'Appendix 5- State Goals'!$F7)) -> 1202.734046 | N7: =($E7*'Appendix 4 - Category-spec calc'!I$5+('Appendix 4 - Category-spec calc'!I$6*'Appendix 5- State Goals'!$F7)) -> 1166.421021 | O7: =($E7*'Appendix 4 - Category-spec calc'!L$5+('Appendix 4 - Category-spec calc'!L$6*'Appendix 5- State Goals'!$F7)) -> 1130.174626 | P7: =E7*'Appendix 4 - Category-spec calc'!$K$5+'Appendix 4 - Category-spec calc'!$K$6*'Appendix 5- State Goals'!F7 -> 1304.173384 | Q7: 1130.174626 | S7: 0.01760514916 | T7: Arkansas | U7: 1672062.465 | V7: 1597020.225 | W7: 1636680.815 | X7: 1806894.873 | Y7: 1954768.545 | Z7: 1997626.932 | AA7: 2322766.606 | AB7: 2643721.382 | AC7: 2926952.76 | AE7: Arkansas | AF7: 37461918 | AG7: 36145610.25 | AH7: 34490484.48 | AI7: 33778079.49 | AJ7: 33007631.68 | AK7: 32074851.5 | AL7: 31542728.88 | AM7: 30964757.15 | AN7: 30322631.9 | AP7: Arkansas | AQ7: 36032671 | AR7: 32953521 | AS7: 31253744 | AT7: 33683258 | AU7: 30322632 | AW7: Arkansas | AX7: 108098013 | AY7: 98860563 | AZ7: 62507488 | BA7: 269466064 | BB7: 60645264
A8: AZ | B8: Arizona | C8: =SUMIF('Appendix 3 - State-level Data'!$A$3:$A$56,A8,'Appendix 3 - State-level Data'!$AG$3:$AG$56) -> 25370640 | D8: =SUMIF('Appendix 3 - State-level Data'!$A$3:$A$56,A8,'Appendix 3 - State-level Data'!$Y$3:$Y$56) -> 26783421.01 | E8: 0.4864556951 | F8: 0.5135443049 | G8: =(($E8*'Appendix 4 - Category-spec calc'!$Y$88)+('Appendix 4 - Category-spec calc'!$Z$88*'Appendix 5- State Goals'!$F8)) -> 1307.788901 | H8: =($E8*'Appendix 4 - Category-spec calc'!C$5+('Appendix 4 - Category-spec calc'!C$6*'Appendix 5- State Goals'!$F8)) -> 1267.900716 | I8: =($E8*'Appendix 4 - Category-spec calc'!D$5+('Appendix 4 - Category-spec calc'!D$6*'Appendix 5- State Goals'!$F8)) -> 1213.339671 | J8: =($E8*'Appendix 4 - Category-spec calc'!E$5+('Appendix 4 - Category-spec calc'!E$6*'Appendix 5- State Goals'!$F8)) -> 1181.611868 | K8: =($E8*'Appendix 4 - Category-spec calc'!F$5+('Appendix 4 - Category-spec calc'!F$6*'Appendix 5- State Goals'!$F8)) -> 1149.418519 | L8: =($E8*'Appendix 4 - Category-spec calc'!G$5+('Appendix 4 - Category-spec calc'!G$6*'Appendix 5- State Goals'!$F8)) -> 1116.530174 | M8: =($E8*'Appendix 4 - Category-spec calc'!H$5+('Appendix 4 - Category-spec calc'!H$6*'Appendix 5- State Goals'!$F8)) -> 1088.143173 | N8: =($E8*'Appendix 4 - Category-spec calc'!I$5+('Appendix 4 - Category-spec calc'!I$6*'Appendix 5- State Goals'!$F8)) -> 1059.332486 | O8: =($E8*'Appendix 4 - Category-spec calc'!L$5+('Appendix 4 - Category-spec calc'!L$6*'Appendix 5- State Goals'!$F8)) -> 1030.767341 | P8: =E8*'Appendix 4 - Category-spec calc'!$K$5+'Appendix 4 - Category-spec calc'!$K$6*'Appendix 5- State Goals'!F8 -> 1173.491898 | Q8: 1030.767341 | S8: 0.0192063051 | T8: Arizona | U8: 1824133.472 | V8: 1742266.278 | W8: 1785533.926 | X8: 1971228.64 | Y8: 2132551.15 | Z8: 2179307.428 | AA8: 2534017.958 | AB8: 2884162.981 | AC8: 3193153.732 | AE8: Arizona | AF8: 36488832.56 | AG8: 35272106.31 | AH8: 33806754.76 | AI8: 33142155.89 | AJ8: 32424615.56 | AK8: 31549053.9 | AL8: 31132917.05 | AM8: 30679533.09 | AN8: 30170749.98 | AP8: Arizona | AQ8: 35189232 | AR8: 32371942 | AS8: 30906226 | AT8: 33061997 | AU8: 30170750 | AW8: Arizona | AX8: 105567696 | AY8: 97115826 | AZ8: 61812452 | BA8: 264495976 | BB8: 60341500
A9: CA | B9: California | C9: =SUMIF('Appendix 3 - State-level Data'!$A$3:$A$56,A9,'Appendix 3 - State-level Data'!$AG$3:$AG$56) -> 11112636 | D9: =SUMIF('Appendix 3 - State-level Data'!$A$3:$A$56,A9,'Appendix 3 - State-level Data'!$Y$3:$Y$56) -> 93068611.62 | E9: 0.1066663747 | F9: 0.8933336253 | G9: =(($E9*'Appendix 4 - Category-spec calc'!$Y$88)+('Appendix 4 - Category-spec calc'!$Z$88*'Appendix 5- State Goals'!$F9)) -> 987.5049089 | H9: =($E9*'Appendix 4 - Category-spec calc'!C$5+('Appendix 4 - Category-spec calc'!C$6*'Appendix 5- State Goals'!$F9)) -> 962.7566603 | I9: =($E9*'Appendix 4 - Category-spec calc'!D$5+('Appendix 4 - Category-spec calc'!D$6*'Appendix 5- State Goals'!$F9)) -> 933.587454 | J9: =($E9*'Appendix 4 - Category-spec calc'!E$5+('Appendix 4 - Category-spec calc'!E$6*'Appendix 5- State Goals'!$F9)) -> 911.9018919 | K9: =($E9*'Appendix 4 - Category-spec calc'!F$5+('Appendix 4 - Category-spec calc'!F$6*'Appendix 5- State Goals'!$F9)) -> 890.1449466 | L9: =($E9*'Appendix 4 - Category-spec calc'!G$5+('Appendix 4 - Category-spec calc'!G$6*'Appendix 5- State Goals'!$F9)) -> 867.9421652 | M9: =($E9*'Appendix 4 - Category-spec calc'!H$5+('Appendix 4 - Category-spec calc'!H$6*'Appendix 5- State Goals'!$F9)) -> 854.3586134 | N9: =($E9*'Appendix 4 - Category-spec calc'!I$5+('Appendix 4 - Category-spec calc'!I$6*'Appendix 5- State Goals'!$F9)) -> 840.8539522 | O9: =($E9*'Appendix 4 - Category-spec calc'!L$5+('Appendix 4 - Category-spec calc'!L$6*'Appendix 5- State Goals'!$F9)) -> 827.9598441 | P9: =E9*'Appendix 4 - Category-spec calc'!$K$5+'Appendix 4 - Category-spec calc'!$K$6*'Appendix 5- State Goals'!F9 -> 906.8797951 | Q9: 827.9598441 | S9: 0.03836588732 | T9: California | U9: 3643829.402 | V9: 3480294.172 | W9: 3566724.211 | X9: 3937661.902 | Y9: 4259914.475 | Z9: 4353313.288 | AA9: 5061871.449 | AB9: 5761309.702 | AC9: 6378539.527 | AE9: California | AF9: 55038046.14 | AG9: 53501271.41 | AH9: 51961001.84 | AI9: 51092299.74 | AJ9: 50160146.89 | AK9: 48990072.98 | AL9: 48828726.6 | AM9: 48645026.94 | AN9: 48410119.36 | AP9: California | AQ9: 53500107 | AR9: 50080840 | AS9: 48736877 | AT9: 51027075 | AU9: 48410120 | AW9: California | AX9: 160500321 | AY9: 150242520 | AZ9: 97473754 | BA9: 408216600 | BB9: 96820240
A10: CO | B10: Colorado | C10: =SUMIF('Appendix 3 - State-level Data'!$A$3:$A$56,A10,'Appendix 3 - State-level Data'!$AG$3:$AG$56) -> 34248809 | D10: =SUMIF('Appendix 3 - State-level Data'!$A$3:$A$56,A10,'Appendix 3 - State-level Data'!$Y$3:$Y$56) -> 11131370.27 | E10: 0.7547085435 | F10: 0.2452914565 | G10: =(($E10*'Appendix 4 - Category-spec calc'!$Y$88)+('Appendix 4 - Category-spec calc'!$Z$88*'Appendix 5- State Goals'!$F10)) -> 1534.011936 | H10: =($E10*'Appendix 4 - Category-spec calc'!C$5+('Appendix 4 - Category-spec calc'!C$6*'Appendix 5- State Goals'!$F10)) -> 1483.43011 | I10: =($E10*'Appendix 4 - Category-spec calc'!D$5+('Appendix 4 - Category-spec calc'!D$6*'Appendix 5- State Goals'!$F10)) -> 1410.934298 | J10: =($E10*'Appendix 4 - Category-spec calc'!E$5+('Appendix 4 - Category-spec calc'!E$6*'Appendix 5- State Goals'!$F10)) -> 1372.113458 | K10: =($E10*'Appendix 4 - Category-spec calc'!F$5+('Appendix 4 - Category-spec calc'!F$6*'Appendix 5- State Goals'!$F10)) -> 1332.548666 | L10: =($E10*'Appendix 4 - Category-spec calc'!G$5+('Appendix 4 - Category-spec calc'!G$6*'Appendix 5- State Goals'!$F10)) -> 1292.112892 | M10: =($E10*'Appendix 4 - Category-spec calc'!H$5+('Appendix 4 - Category-spec calc'!H$6*'Appendix 5- State Goals'!$F10)) -> 1253.269917 | N10: =($E10*'Appendix 4 - Category-spec calc'!I$5+('Appendix 4 - Category-spec calc'!I$6*'Appendix 5- State Goals'!$F10)) -> 1213.648276 | O10: =($E10*'Appendix 4 - Category-spec calc'!L$5+('Appendix 4 - Category-spec calc'!L$6*'Appendix 5- State Goals'!$F10)) -> 1174.014362 | P10: =E10*'Appendix 4 - Category-spec calc'!$K$5+'Appendix 4 - Category-spec calc'!$K$6*'Appendix 5- State Goals'!F10 -> 1361.805398 | Q10: 1174.014362 | S10: 0.01671174884 | T10: Colorado | U10: 1587211.089 | V10: 1515976.983 | W10: 1553624.935 | X10: 1715201.22 | Y10: 1855570.815 | Z10: 1896254.287 | AA10: 2204894.25 | AB10: 2509561.683 | AC10: 2778420.05 | AE10: Colorado | AF10: 37241669.1 | AG10: 35908008.07 | AH10: 34206288.4 | AI10: 33486828.03 | AJ10: 32708287.1 | AK10: 31768331.96 | AL10: 31200134.38 | AM10: 30583513.38 | AN10: 29900396.15 | AP10: Colorado | AQ10: 35785322 | AR10: 32654483 | AS10: 30891824 | AT10: 33387883 | AU10: 29900397 | AW10: Colorado | AX10: 107355966 | AY10: 97963449 | AZ10: 61783648 | BA10: 267103064 | BB10: 59800794
A11: CT | B11: Connecticut | C11: =SUMIF('Appendix 3 - State-level Data'!$A$3:$A$56,A11,'Appendix 3 - State-level Data'!$AG$3:$AG$56) -> 438650 | D11: =SUMIF('Appendix 3 - State-level Data'!$A$3:$A$56,A11,'Appendix 3 - State-level Data'!$Y$3:$Y$56) -> 15299704.41 | E11: 0.02787140184 | F11: 0.9721285982 | G11: =(($E11*'Appendix 4 - Category-spec calc'!$Y$88)+('Appendix 4 - Category-spec calc'!$Z$88*'Appendix 5- State Goals'!$F11)) -> 921.0555194 | H11: =($E11*'Appendix 4 - Category-spec calc'!C$5+('Appendix 4 - Category-spec calc'!C$6*'Appendix 5- State Goals'!$F11)) -> 899.4483567 | I11: =($E11*'Appendix 4 - Category-spec calc'!D$5+('Appendix 4 - Category-spec calc'!D$6*'Appendix 5- State Goals'!$F11)) -> 875.5472007 | J11: =($E11*'Appendix 4 - Category-spec calc'!E$5+('Appendix 4 - Category-spec calc'!E$6*'Appendix 5- State Goals'!$F11)) -> 855.9451044 | K11: =($E11*'Appendix 4 - Category-spec calc'!F$5+('Appendix 4 - Category-spec calc'!F$6*'Appendix 5- State Goals'!$F11)) -> 836.3534022 | L11: =($E11*'Appendix 4 - Category-spec calc'!G$5+('Appendix 4 - Category-spec calc'!G$6*'Appendix 5- State Goals'!$F11)) -> 816.367557 | M11: =($E11*'Appendix 4 - Category-spec calc'!H$5+('Appendix 4 - Category-spec calc'!H$6*'Appendix 5- State Goals'!$F11)) -> 805.8552801 | N11: =($E11*'Appendix 4 - Category-spec calc'!I$5+('Appendix 4 - Category-spec calc'!I$6*'Appendix 5- State Goals'!$F11)) -> 795.5261633 | O11: =($E11*'Appendix 4 - Category-spec calc'!L$5+('Appendix 4 - Category-spec calc'!L$6*'Appendix 5- State Goals'!$F11)) -> 785.8833286 | P11: =E11*'Appendix 4 - Category-spec calc'!$K$5+'Appendix 4 - Category-spec calc'!$K$6*'Appendix 5- State Goals'!F11 -> 851.5657241 | Q11: 785.8833286 | S11: 0.005795821663 | T11: Connecticut | U11: 550462.5818 | V11: 525757.7959 | W11: 538814.5275 | X11: 594850.9926 | Y11: 643532.7402 | Z11: 657642.224 | AA11: 764682.0197 | AB11: 870344.0977 | AC11: 963587.1905 | AE11: Connecticut | AF11: 7754955.697 | AG11: 7550810.491 | AH11: 7361593.625 | AI11: 7244743.499 | AJ11: 7119633.925 | AK11: 6961018.746 | AL11: 6957641.044 | AM11: 6952517.851 | AN11: 6941522.284 | AP11: Connecticut | AQ11: 7555787 | AR11: 7108466 | AS11: 6955080 | AT11: 7237865 | AU11: 6941523 | AW11: Connecticut | AX11: 22667361 | AY11: 21325398 | AZ11: 13910160 | BA11: 57902920 | BB11: 13883046
A12: DE | B12: Delaware | C12: =SUMIF('Appendix 3 - State-level Data'!$A$3:$A$56,A12,'Appendix 3 - State-level Data'!$AG$3:$AG$56) -> 2491496.6 | D12: =SUMIF('Appendix 3 - State-level Data'!$A$3:$A$56,A12,'Appendix 3 - State-level Data'!$Y$3:$Y$56) -> 6672110.78 | E12: 0.2718903699 | F12: 0.7281096301 | G12: =(($E12*'Appendix 4 - Category-spec calc'!$Y$88)+('Appendix 4 - Category-spec calc'!$Z$88*'Appendix 5- State Goals'!$F12)) -> 1126.841635 | H12: =($E12*'Appendix 4 - Category-spec calc'!C$5+('Appendix 4 - Category-spec calc'!C$6*'Appendix 5- State Goals'!$F12)) -> 1095.506891 | I12: =($E12*'Appendix 4 - Category-spec calc'!D$5+('Appendix 4 - Category-spec calc'!D$6*'Appendix 5- State Goals'!$F12)) -> 1055.291189 | J12: =($E12*'Appendix 4 - Category-spec calc'!E$5+('Appendix 4 - Category-spec calc'!E$6*'Appendix 5- State Goals'!$F12)) -> 1029.236839 | K12: =($E12*'Appendix 4 - Category-spec calc'!F$5+('Appendix 4 - Category-spec calc'!F$6*'Appendix 5- State Goals'!$F12)) -> 1002.939628 | L12: =($E12*'Appendix 4 - Category-spec calc'!G$5+('Appendix 4 - Category-spec calc'!G$6*'Appendix 5- State Goals'!$F12)) -> 976.0881865 | M12: =($E12*'Appendix 4 - Category-spec calc'!H$5+('Appendix 4 - Category-spec calc'!H$6*'Appendix 5- State Goals'!$F12)) -> 956.0645246 | N12: =($E12*'Appendix 4 - Category-spec calc'!I$5+('Appendix 4 - Category-spec calc'!I$6*'Appendix 5- State Goals'!$F12)) -> 935.901112 | O12: =($E12*'Appendix 4 - Category-spec calc'!L$5+('Appendix 4 - Category-spec calc'!L$6*'Appendix 5- State Goals'!$F12)) -> 916.1894575 | P12: =E12*'Appendix 4 - Category-spec calc'!$K$5+'Appendix 4 - Category-spec calc'!$K$6*'Appendix 5- State Goals'!F12 -> 1022.86704 | Q12: 916.1894575 | S12: 0.003374598944 | T12: Delaware | U12: 320505.1078 | V12: 306120.8239 | W12: 313723.0648 | X12: 346350.1205 | Y12: 374694.915 | Z12: 382910.1175 | AA12: 445233.7021 | AB12: 506755.1149 | AC12: 561045.6125 | AE12: Delaware | AF12: 5524125.663 | AG12: 5354754.989 | AH12: 5166206.252 | AI12: 5072237.45 | AJ12: 4971068.868 | AK12: 4845998.497 | AL12: 4806172.114 | AM12: 4762387.844 | AN12: 4711824.313 | AP12: Delaware | AQ12: 5348363 | AR12: 4963102 | AS12: 4784280 | AT12: 5062869 | AU12: 4711825 | AW12: Delaware | AX12: 16045089 | AY12: 14889306 | AZ12: 9568560 | BA12: 40502952 | BB12: 9423650
A13: FL | B13: Florida | C13: =SUMIF('Appendix 3 - State-level Data'!$A$3:$A$56,A13,'Appendix 3 - State-level Data'!$AG$3:$AG$56) -> 56452020.6 | D13: =SUMIF('Appendix 3 - State-level Data'!$A$3:$A$56,A13,'Appendix 3 - State-level Data'!$Y$3:$Y$56) -> 147327444.5 | E13: 0.2770250701 | F13: 0.7229749299 | G13: =(($E13*'Appendix 4 - Category-spec calc'!$Y$88)+('Appendix 4 - Category-spec calc'!$Z$88*'Appendix 5- State Goals'!$F13)) -> 1131.171832 | H13: =($E13*'Appendix 4 - Category-spec calc'!C$5+('Appendix 4 - Category-spec calc'!C$6*'Appendix 5- State Goals'!$F13)) -> 1099.632398 | I13: =($E13*'Appendix 4 - Category-spec calc'!D$5+('Appendix 4 - Category-spec calc'!D$6*'Appendix 5- State Goals'!$F13)) -> 1059.073402 | J13: =($E13*'Appendix 4 - Category-spec calc'!E$5+('Appendix 4 - Category-spec calc'!E$6*'Appendix 5- State Goals'!$F13)) -> 1032.883281 | K13: =($E13*'Appendix 4 - Category-spec calc'!F$5+('Appendix 4 - Category-spec calc'!F$6*'Appendix 5- State Goals'!$F13)) -> 1006.444972 | L13: =($E13*'Appendix 4 - Category-spec calc'!G$5+('Appendix 4 - Category-spec calc'!G$6*'Appendix 5- State Goals'!$F13)) -> 979.4490628 | M13: =($E13*'Appendix 4 - Category-spec calc'!H$5+('Appendix 4 - Category-spec calc'!H$6*'Appendix 5- State Goals'!$F13)) -> 959.2252602 | N13: =($E13*'Appendix 4 - Category-spec calc'!I$5+('Appendix 4 - Category-spec calc'!I$6*'Appendix 5- State Goals'!$F13)) -> 938.8549122 | O13: =($E13*'Appendix 4 - Category-spec calc'!L$5+('Appendix 4 - Category-spec calc'!L$6*'Appendix 5- State Goals'!$F13)) -> 918.9313874 | P13: =E13*'Appendix 4 - Category-spec calc'!$K$5+'Appendix 4 - Category-spec calc'!$K$6*'Appendix 5- State Goals'!F13 -> 1026.471599 | Q13: 918.9313874 | S13: 0.0750440235 | T13: Florida | U13: 7127363.353 | V13: 6807486.959 | W13: 6976544.9 | X13: 7702102.387 | Y13: 8332431.342 | Z13: 8515120.267 | AA13: 9901066.456 | AB13: 11269174.02 | AC13: 12476481.16 | AE13: Florida | AF13: 123317068 | AG13: 119526984.1 | AH13: 115297378.8 | AI13: 113195574.1 | AJ13: 110932542.6 | AK13: 108135929.6 | AL13: 107232558.3 | AM13: 106239795.3 | AN13: 105094703.4 | AP13: Florida | AQ13: 119380477 | AR13: 110754683 | AS13: 106736177 | AT13: 112984729 | AU13: 105094704 | AW13: Florida | AX13: 358141431 | AY13: 332264049 | AZ13: 213472354 | BA13: 903877832 | BB13: 210189408
A14: Fort Mojave | B14: Lands of the Fort Mojave Tribe | C14: =SUMIF('Appendix 3 - State-level Data'!$A$3:$A$56,A14,'Appendix 3 - State-level Data'!$AG$3:$AG$56) -> 0 | D14: =SUMIF('Appendix 3 - State-level Data'!$A$3:$A$56,A14,'Appendix 3 - State-level Data'!$Y$3:$Y$56) -> 1360092.99 | E14: 0 | F14: 1 | G14: =(($E14*'Appendix 4 - Category-spec calc'!$Y$88)+('Appendix 4 - Category-spec calc'!$Z$88*'Appendix 5- State Goals'!$F14)) -> 897.5510043 | H14: =($E14*'Appendix 4 - Category-spec calc'!C$5+('Appendix 4 - Category-spec calc'!C$6*'Appendix 5- State Goals'!$F14)) -> 877.0549082 | I14: =($E14*'Appendix 4 - Category-spec calc'!D$5+('Appendix 4 - Category-spec calc'!D$6*'Appendix 5- State Goals'!$F14)) -> 855.0171699 | J14: =($E14*'Appendix 4 - Category-spec calc'!E$5+('Appendix 4 - Category-spec calc'!E$6*'Appendix 5- State Goals'!$F14)) -> 836.1520383 | K14: =($E14*'Appendix 4 - Category-spec calc'!F$5+('Appendix 4 - Category-spec calc'!F$6*'Appendix 5- State Goals'!$F14)) -> 817.3262271 | L14: =($E14*'Appendix 4 - Category-spec calc'!G$5+('Appendix 4 - Category-spec calc'!G$6*'Appendix 5- State Goals'!$F14)) -> 798.1245578 | M14: =($E14*'Appendix 4 - Category-spec calc'!H$5+('Appendix 4 - Category-spec calc'!H$6*'Appendix 5- State Goals'!$F14)) -> 788.6986539 | N14: =($E14*'Appendix 4 - Category-spec calc'!I$5+('Appendix 4 - Category-spec calc'!I$6*'Appendix 5- State Goals'!$F14)) -> 779.4927925 | O14: =($E14*'Appendix 4 - Category-spec calc'!L$5+('Appendix 4 - Category-spec calc'!L$6*'Appendix 5- State Goals'!$F14)) -> 771 | P14: =E14*'Appendix 4 - Category-spec calc'!$K$5+'Appendix 4 - Category-spec calc'!$K$6*'Appendix 5- State Goals'!F14 -> 832 | Q14: 771 | S14: 0.000500869164 | T14: Lands of the Fort Mojave Tribe | U14: 47570.43076 | V14: 45435.46765 | W14: 46563.81746 | X14: 51406.43323 | Y14: 55613.46161 | Z14: 56832.78921 | AA14: 66083.06227 | AB14: 75214.27434 | AC14: 83272.25 | AE14: Lands of the Fort Mojave Tribe | AF14: 653073.3024 | AG14: 636287.5161 | AH14: 621264.293 | AI14: 611605.8568 | AJ14: 601274.1767 | AK14: 588121.4528 | AL14: 588471.3775 | AM14: 588720.3261 | AN14: 588518.7524 | AP14: Lands of the Fort Mojave Tribe | AQ14: 636876 | AR14: 600334 | AS14: 588596 | AT14: 611103 | AU14: 588519 | AW14: Lands of the Fort Mojave Tribe | AX14: 1910628 | AY14: 1801002 | AZ14: 1177192 | BA14: 4888824 | BB14: 1177038
A15: GA | B15: Georgia | C15: =SUMIF('Appendix 3 - State-level Data'!$A$3:$A$56,A15,'Appendix 3 - State-level Data'!$AG$3:$AG$56) -> 40990604.03 | D15: =SUMIF('Appendix 3 - State-level Data'!$A$3:$A$56,A15,'Appendix 3 - State-level Data'!$Y$3:$Y$56) -> 37728636.2 | E15: 0.5207189997 | F15: 0.4792810003 | G15: =(($E15*'Appendix 4 - Category-spec calc'!$Y$88)+('Appendix 4 - Category-spec calc'!$Z$88*'Appendix 5- State Goals'!$F15)) -> 1336.683836 | H15: =($E15*'Appendix 4 - Category-spec calc'!C$5+('Appendix 4 - Category-spec calc'!C$6*'Appendix 5- State Goals'!$F15)) -> 1295.429778 | I15: =($E15*'Appendix 4 - Category-spec calc'!D$5+('Appendix 4 - Category-spec calc'!D$6*'Appendix 5- State Goals'!$F15)) -> 1238.577967 | J15: =($E15*'Appendix 4 - Category-spec calc'!E$5+('Appendix 4 - Category-spec calc'!E$6*'Appendix 5- State Goals'!$F15)) -> 1205.944188 | K15: =($E15*'Appendix 4 - Category-spec calc'!F$5+('Appendix 4 - Category-spec calc'!F$6*'Appendix 5- State Goals'!$F15)) -> 1172.809301 | L15: =($E15*'Appendix 4 - Category-spec calc'!G$5+('Appendix 4 - Category-spec calc'!G$6*'Appendix 5- State Goals'!$F15)) -> 1138.956941 | M15: =($E15*'Appendix 4 - Category-spec calc'!H$5+('Appendix 4 - Category-spec calc'!H$6*'Appendix 5- State Goals'!$F15)) -> 1109.234423 | N15: =($E15*'Appendix 4 - Category-spec calc'!I$5+('Appendix 4 - Category-spec calc'!I$6*'Appendix 5- State Goals'!$F15)) -> 1079.042878 | O15: =($E15*'Appendix 4 - Category-spec calc'!L$5+('Appendix 4 - Category-spec calc'!L$6*'Appendix 5- State Goals'!$F15)) -> 1049.063946 | P15: =E15*'Appendix 4 - Category-spec calc'!$K$5+'Appendix 4 - Category-spec calc'!$K$6*'Appendix 5- State Goals'!F15 -> 1197.544738 | Q15: 1049.063946 | S15: 0.02898922378 | T15: Georgia | U15: 2753273.632 | V15: 2629706.586 | W15: 2695013.032 | X15: 2975293.158 | Y15: 3218786.86 | Z15: 3289358.904 | AA15: 3824744.699 | AB15: 4353239.502 | AC15: 4819617.703 | AE15: Georgia | AF15: 56291624.37 | AG15: 54394224.17 | AH15: 52087942.05 | AI15: 51053542.6 | AJ15: 49936351.74 | AK15: 48575350.68 | AL15: 47901583.98 | AM15: 47168049.87 | AN15: 46346845.55 | AP15: Georgia | AQ15: 54257931 | AR15: 49855082 | AS15: 47534817 | AT15: 50926084 | AU15: 46346846 | AW15: Georgia | AX15: 162773793 | AY15: 149565246 | AZ15: 95069634 | BA15: 407408672 | BB15: 92693692
A16: IA | B16: Iowa | C16: =SUMIF('Appendix 3 - State-level Data'!$A$3:$A$56,A16,'Appendix 3 - State-level Data'!$AG$3:$AG$56) -> 33314157 | D16: =SUMIF('Appendix 3 - State-level Data'!$A$3:$A$56,A16,'Appendix 3 - State-level Data'!$Y$3:$Y$56) -> 1430247.71 | E16: 0.9588351643 | F16: 0.04116483566 | G16: =(($E16*'Appendix 4 - Category-spec calc'!$Y$88)+('Appendix 4 - Category-spec calc'!$Z$88*'Appendix 5- State Goals'!$F16)) -> 1706.156032 | H16: =($E16*'Appendix 4 - Category-spec calc'!C$5+('Appendix 4 - Category-spec calc'!C$6*'Appendix 5- State Goals'!$F16)) -> 1647.436894 | I16: =($E16*'Appendix 4 - Category-spec calc'!D$5+('Appendix 4 - Category-spec calc'!D$6*'Appendix 5- State Goals'!$F16)) -> 1561.293647 | J16: =($E16*'Appendix 4 - Category-spec calc'!E$5+('Appendix 4 - Category-spec calc'!E$6*'Appendix 5- State Goals'!$F16)) -> 1517.07537 | K16: =($E16*'Appendix 4 - Category-spec calc'!F$5+('Appendix 4 - Category-spec calc'!F$6*'Appendix 5- State Goals'!$F16)) -> 1471.90129 | L16: =($E16*'Appendix 4 - Category-spec calc'!G$5+('Appendix 4 - Category-spec calc'!G$6*'Appendix 5- State Goals'!$F16)) -> 1425.722311 | M16: =($E16*'Appendix 4 - Category-spec calc'!H$5+('Appendix 4 - Category-spec calc'!H$6*'Appendix 5- State Goals'!$F16)) -> 1378.922876 | N16: =($E16*'Appendix 4 - Category-spec calc'!I$5+('Appendix 4 - Category-spec calc'!I$6*'Appendix 5- State Goals'!$F16)) -> 1331.074655 | O16: =($E16*'Appendix 4 - Category-spec calc'!L$5+('Appendix 4 - Category-spec calc'!L$6*'Appendix 5- State Goals'!$F16)) -> 1283.017978 | P16: =E16*'Appendix 4 - Category-spec calc'!$K$5+'Appendix 4 - Category-spec calc'!$K$6*'Appendix 5- State Goals'!F16 -> 1505.102285 | Q16: 1283.017978 | S16: 0.01279500819 | T16: Iowa | U16: =U$3*$S16 -> 1215215.659 | V16: 1160676.724 | W16: 1189501.108 | X16: 1313208.681 | Y16: 1420679.786 | Z16: 1451828.253 | AA16: 1688132.118 | AB16: 1921394.498 | AC16: 2127240.399 | AE16: Iowa | AF16: 31713035.36 | AG16: 30531748.75 | AH16: 28980269.69 | AI16: 28347176.87 | AJ16: 27661267.47 | AK16: 26837840.42 | AL16: 26282731.23 | AM16: 25681217.78 | AN16: 25018135.61 | AP16: Iowa | AQ16: 30408352 | AR16: 27615429 | AS16: 25981975 | AT16: 28254411 | AU16: 25018136 | AW16: Iowa | AX16: 91225056 | AY16: 82846287 | AZ16: 51963950 | BA16: 226035288 | BB16: 50036272
A17: ID | B17: Idaho | C17: =SUMIF('Appendix 3 - State-level Data'!$A$3:$A$56,A17,'Appendix 3 - State-level Data'!$AG$3:$AG$56) -> 0 | D17: =SUMIF('Appendix 3 - State-level Data'!$A$3:$A$56,A17,'Appendix 3 - State-level Data'!$Y$3:$Y$56) -> 3450055.312 | E17: 0 | F17: 1 | G17: =(($E17*'Appendix 4 - Category-spec calc'!$Y$88)+('Appendix 4 - Category-spec calc'!$Z$88*'Appendix 5- State Goals'!$F17)) -> 897.5510043 | H17: =($E17*'Appendix 4 - Category-spec calc'!C$5+('Appendix 4 - Category-spec calc'!C$6*'Appendix 5- State Goals'!$F17)) -> 877.0549082 | I17: =($E17*'Appendix 4 - Category-spec calc'!D$5+('Appendix 4 - Category-spec calc'!D$6*'Appendix 5- State Goals'!$F17)) -> 855.0171699 | J17: =($E17*'Appendix 4 - Category-spec calc'!E$5+('Appendix 4 - Category-spec calc'!E$6*'Appendix 5- State Goals'!$F17)) -> 836.1520383 | K17: =($E17*'Appendix 4 - Category-spec calc'!F$5+('Appendix 4 - Category-spec calc'!F$6*'Appendix 5- State Goals'!$F17)) -> 817.3262271 | L17: =($E17*'Appendix 4 - Category-spec calc'!G$5+('Appendix 4 - Category-spec calc'!G$6*'Appendix 5- State Goals'!$F17)) -> 798.1245578 | M17: =($E17*'Appendix 4 - Category-spec calc'!H$5+('Appendix 4 - Category-spec calc'!H$6*'Appendix 5- State Goals'!$F17)) -> 788.6986539 | N17: =($E17*'Appendix 4 - Category-spec calc'!I$5+('Appendix 4 - Category-spec calc'!I$6*'Appendix 5- State Goals'!$F17)) -> 779.4927925 | O17: =($E17*'Appendix 4 - Category-spec calc'!L$5+('Appendix 4 - Category-spec calc'!L$6*'Appendix 5- State Goals'!$F17)) -> 771 | P17: =E17*'Appendix 4 - Category-spec calc'!$K$5+'Appendix 4 - Category-spec calc'!$K$6*'Appendix 5- State Goals'!F17 -> 832 | Q17: 771 | S17: 0.001270520716 | T17: Idaho | U17: 120668.6738 | V17: 115253.0582 | W17: 118115.2663 | X17: 130399.2002 | Y17: 141070.8827 | Z17: 144163.868 | AA17: 167628.4061 | AB17: 190790.9302 | AC17: 211231.0486 | AE17: Idaho | AF17: 1656606.594 | AG17: 1614027.233 | AH17: 1575918.845 | AI17: 1551418.948 | AJ17: 1525211.278 | AK17: 1491847.659 | AL17: 1492735.289 | AM17: 1493366.78 | AN17: 1492855.461 | AP17: Idaho | AQ17: 1615518 | AR17: 1522826 | AS17: 1493052 | AT17: 1550142 | AU17: 1492856 | AW17: Idaho | AX17: 4846554 | AY17: 4568478 | AZ17: 2986104 | BA17: 12401136 | BB17: 2985712
A18: IL | B18: Illinois | C18: =SUMIF('Appendix 3 - State-level Data'!$A$3:$A$56,A18,'Appendix 3 - State-level Data'!$AG$3:$AG$56) -> 84487749.58 | D18: =SUMIF('Appendix 3 - State-level Data'!$A$3:$A$56,A18,'Appendix 3 - State-level Data'!$Y$3:$Y$56) -> 10627105.72 | E18: 0.8882708102 | F18: 0.1117291898 | G18: =(($E18*'Appendix 4 - Category-spec calc'!$Y$88)+('Appendix 4 - Category-spec calc'!$Z$88*'Appendix 5- State Goals'!$F18)) -> 1646.647689 | H18: =($E18*'Appendix 4 - Category-spec calc'!C$5+('Appendix 4 - Category-spec calc'!C$6*'Appendix 5- State Goals'!$F18)) -> 1590.741531 | I18: =($E18*'Appendix 4 - Category-spec calc'!D$5+('Appendix 4 - Category-spec calc'!D$6*'Appendix 5- State Goals'!$F18)) -> 1509.316054 | J18: =($E18*'Appendix 4 - Category-spec calc'!E$5+('Appendix 4 - Category-spec calc'!E$6*'Appendix 5- State Goals'!$F18)) -> 1466.963613 | K18: =($E18*'Appendix 4 - Category-spec calc'!F$5+('Appendix 4 - Category-spec calc'!F$6*'Appendix 5- State Goals'!$F18)) -> 1423.728603 | L18: =($E18*'Appendix 4 - Category-spec calc'!G$5+('Appendix 4 - Category-spec calc'!G$6*'Appendix 5- State Goals'!$F18)) -> 1379.534987 | M18: =($E18*'Appendix 4 - Category-spec calc'!H$5+('Appendix 4 - Category-spec calc'!H$6*'Appendix 5- State Goals'!$F18)) -> 1335.486014 | N18: =($E18*'Appendix 4 - Category-spec calc'!I$5+('Appendix 4 - Category-spec calc'!I$6*'Appendix 5- State Goals'!$F18)) -> 1290.481632 | O18: =($E18*'Appendix 4 - Category-spec calc'!L$5+('Appendix 4 - Category-spec calc'!L$6*'Appendix 5- State Goals'!$F18)) -> 1245.336613 | P18: =E18*'Appendix 4 - Category-spec calc'!$K$5+'Appendix 4 - Category-spec calc'!$K$6*'Appendix 5- State Goals'!F18 -> 1455.566109 | Q18: 1245.336613 | S18: 0.03502708889 | T18: Illinois | U18: 3326724.475 | V18: 3177420.928 | W18: 3256329.378 | X18: 3594986.147 | Y18: 3889194.631 | Z18: 3974465.395 | AA18: 4621361.151 | AB18: 5259930.661 | AC18: 5823445.947 | AE18: Illinois | AF18: 83788271.5 | AG18: 80706030.73 | AH18: 76694019.25 | AI18: 75038729.75 | AJ18: 73246027.65 | AK18: 71090049.41 | AL18: 69684042.67 | AM18: 68159830.77 | AN18: 66477156.3 | AP18: Illinois | AQ18: 80396108 | AR18: 73124936 | AS18: 68921937 | AT18: 74800876 | AU18: 66477157 | AW18: Illinois | AX18: 241188324 | AY18: 219374808 | AZ18: 137843874 | BA18: 598407008 | BB18: 132954314
A19: IN | B19: Indiana | C19: =SUMIF('Appendix 3 - State-level Data'!$A$3:$A$56,A19,'Appendix 3 - State-level Data'!$AG$3:$AG$56) -> 96338455.32 | D19: =SUMIF('Appendix 3 - State-level Data'!$A$3:$A$56,A19,'Appendix 3 - State-level Data'!$Y$3:$Y$56) -> 12839309.01 | E19: 0.8823999641 | F19: 0.1176000359 | G19: =(($E19*'Appendix 4 - Category-spec calc'!$Y$88)+('Appendix 4 - Category-spec calc'!$Z$88*'Appendix 5- State Goals'!$F19)) -> 1641.696686 | H19: =($E19*'Appendix 4 - Category-spec calc'!C$5+('Appendix 4 - Category-spec calc'!C$6*'Appendix 5- State Goals'!$F19)) -> 1586.024564 | I19: =($E19*'Appendix 4 - Category-spec calc'!D$5+('Appendix 4 - Category-spec calc'!D$6*'Appendix 5- State Goals'!$F19)) -> 1504.991598 | J19: =($E19*'Appendix 4 - Category-spec calc'!E$5+('Appendix 4 - Category-spec calc'!E$6*'Appendix 5- State Goals'!$F19)) -> 1462.794391 | K19: =($E19*'Appendix 4 - Category-spec calc'!F$5+('Appendix 4 - Category-spec calc'!F$6*'Appendix 5- State Goals'!$F19)) -> 1419.720709 | L19: =($E19*'Appendix 4 - Category-spec calc'!G$5+('Appendix 4 - Category-spec calc'!G$6*'Appendix 5- State Goals'!$F19)) -> 1375.692273 | M19: =($E19*'Appendix 4 - Category-spec calc'!H$5+('Appendix 4 - Category-spec calc'!H$6*'Appendix 5- State Goals'!$F19)) -> 1331.872134 | N19: =($E19*'Appendix 4 - Category-spec calc'!I$5+('Appendix 4 - Category-spec calc'!I$6*'Appendix 5- State Goals'!$F19)) -> 1287.104355 | O19: =($E19*'Appendix 4 - Category-spec calc'!L$5+('Appendix 4 - Category-spec calc'!L$6*'Appendix 5- State Goals'!$F19)) -> 1242.201581 | P19: =E19*'Appendix 4 - Category-spec calc'!$K$5+'Appendix 4 - Category-spec calc'!$K$6*'Appendix 5- State Goals'!F19 -> 1451.444775 | Q19: 1242.201581 | S19: 0.04020590941 | T19: Indiana | U19: 3818586.903 | V19: 3647208.548 | W19: 3737783.759 | X19: 4126511.565 | Y19: 4464219.322 | Z19: 4562097.528 | AA19: 5304638.03 | AB19: 6037621.235 | AC19: 6684453.308 | AE19: Indiana | AF19: 95887348.41 | AG19: 92363870.39 | AH19: 87781142.15 | AI19: 85888548.64 | AJ19: 83838911.11 | AK19: 81373545.68 | AL19: 79770510.53 | AM19: 78032636.56 | AN19: 76113834.19 | AP19: Indiana | AQ19: 92010787 | AR19: 83700336 | AS19: 78901574 | AT19: 85617065 | AU19: 76113835 | AW19: Indiana | AX19: 276032361 | AY19: 251101008 | AZ19: 157803148 | BA19: 684936520 | BB19: 152227670
A20: KS | B20: Kansas | C20: =SUMIF('Appendix 3 - State-level Data'!$A$3:$A$56,A20,'Appendix 3 - State-level Data'!$AG$3:$AG$56) -> 29631845.43 | D20: =SUMIF('Appendix 3 - State-level Data'!$A$3:$A$56,A20,'Appendix 3 - State-level Data'!$Y$3:$Y$56) -> 666705.6 | E20: 0.9779954626 | F20: 0.02200453742 | G20: =(($E20*'Appendix 4 - Category-spec calc'!$Y$88)+('Appendix 4 - Category-spec calc'!$Z$88*'Appendix 5- State Goals'!$F20)) -> 1722.314298 | H20: =($E20*'Appendix 4 - Category-spec calc'!C$5+('Appendix 4 - Category-spec calc'!C$6*'Appendix 5- State Goals'!$F20)) -> 1662.831353 | I20: =($E20*'Appendix 4 - Category-spec calc'!D$5+('Appendix 4 - Category-spec calc'!D$6*'Appendix 5- State Goals'!$F20)) -> 1575.407092 | J20: =($E20*'Appendix 4 - Category-spec calc'!E$5+('Appendix 4 - Category-spec calc'!E$6*'Appendix 5- State Goals'!$F20)) -> 1530.682187 | K20: =($E20*'Appendix 4 - Category-spec calc'!F$5+('Appendix 4 - Category-spec calc'!F$6*'Appendix 5- State Goals'!$F20)) -> 1484.981592 | L20: =($E20*'Appendix 4 - Category-spec calc'!G$5+('Appendix 4 - Category-spec calc'!G$6*'Appendix 5- State Goals'!$F20)) -> 1438.263528 | M20: =($E20*'Appendix 4 - Category-spec calc'!H$5+('Appendix 4 - Category-spec calc'!H$6*'Appendix 5- State Goals'!$F20)) -> 1390.717262 | N20: =($E20*'Appendix 4 - Category-spec calc'!I$5+('Appendix 4 - Category-spec calc'!I$6*'Appendix 5- State Goals'!$F20)) -> 1342.096855 | O20: =($E20*'Appendix 4 - Category-spec calc'!L$5+('Appendix 4 - Category-spec calc'!L$6*'Appendix 5- State Goals'!$F20)) -> 1293.249577 | P20: =E20*'Appendix 4 - Category-spec calc'!$K$5+'Appendix 4 - Category-spec calc'!$K$6*'Appendix 5- State Goals'!F20 -> 1518.552815 | Q20: 1293.249577 | S20: 0.0111577738 | T20: Kansas | U20: 1059718.074 | V20: 1012157.878 | W20: 1037293.927 | X20: 1145172.023 | Y20: 1238891.25 | Z20: 1266053.995 | AA20: 1472120.693 | AB20: 1675535.089 | AC20: 1855041.188 | AE20: Kansas | AF20: 27916981.41 | AG20: 26873738.16 | AH20: 25500436.3 | AI20: 24941620.59 | AJ20: 24336125.97 | AK20: 23609569.74 | AL20: 23115662.63 | AM20: 22580525.41 | AN20: 21990825.38 | AP20: Kansas | AQ20: 26763719 | AR20: 24295773 | AS20: 22848095 | AT20: 24859333 | AU20: 21990826 | AW20: Kansas | AX20: 80291157 | AY20: 72887319 | AZ20: 45696190 | BA20: 198874664 | BB20: 43981652
A21: KY | B21: Kentucky | C21: =SUMIF('Appendix 3 - State-level Data'!$A$3:$A$56,A21,'Appendix 3 - State-level Data'!$AG$3:$AG$56) -> 84364121 | D21: =SUMIF('Appendix 3 - State-level Data'!$A$3:$A$56,A21,'Appendix 3 - State-level Data'!$Y$3:$Y$56) -> 3091968 | E21: 0.9646454805 | F21: 0.03535451945 | G21: =(($E21*'Appendix 4 - Category-spec calc'!$Y$88)+('Appendix 4 - Category-spec calc'!$Z$88*'Appendix 5- State Goals'!$F21)) -> 1711.055988 | H21: =($E21*'Appendix 4 - Category-spec calc'!C$5+('Appendix 4 - Category-spec calc'!C$6*'Appendix 5- State Goals'!$F21)) -> 1652.105228 | I21: =($E21*'Appendix 4 - Category-spec calc'!D$5+('Appendix 4 - Category-spec calc'!D$6*'Appendix 5- State Goals'!$F21)) -> 1565.573516 | J21: =($E21*'Appendix 4 - Category-spec calc'!E$5+('Appendix 4 - Category-spec calc'!E$6*'Appendix 5- State Goals'!$F21)) -> 1521.201606 | K21: =($E21*'Appendix 4 - Category-spec calc'!F$5+('Appendix 4 - Category-spec calc'!F$6*'Appendix 5- State Goals'!$F21)) -> 1475.867861 | L21: =($E21*'Appendix 4 - Category-spec calc'!G$5+('Appendix 4 - Category-spec calc'!G$6*'Appendix 5- State Goals'!$F21)) -> 1429.525406 | M21: =($E21*'Appendix 4 - Category-spec calc'!H$5+('Appendix 4 - Category-spec calc'!H$6*'Appendix 5- State Goals'!$F21)) -> 1382.499497 | N21: =($E21*'Appendix 4 - Category-spec calc'!I$5+('Appendix 4 - Category-spec calc'!I$6*'Appendix 5- State Goals'!$F21)) -> 1334.417112 | O21: =($E21*'Appendix 4 - Category-spec calc'!L$5+('Appendix 4 - Category-spec calc'!L$6*'Appendix 5- State Goals'!$F21)) -> 1286.120687 | P21: =E21*'Appendix 4 - Category-spec calc'!$K$5+'Appendix 4 - Category-spec calc'!$K$6*'Appendix 5- State Goals'!F21 -> 1509.181127 | Q21: 1286.120687 | S21: 0.03220666418 | T21: Kentucky | U21: 3058852.488 | V21: 2921571.048 | W21: 2994125.691 | X21: 3305513.397 | Y21: 3576031.848 | Z21: 3654436.504 | AA21: 4249243.411 | AB21: 4836394.511 | AC21: 5354534.845 | AE21: Kentucky | AF21: 80055000.27 | AG21: 77070073.74 | AH21: 73146992.28 | AI21: 71547523.81 | AJ21: 69814565.99 | AK21: 67734460.4 | AL21: 66328576.39 | AM21: 64805218.46 | AN21: 63126120.65 | AP21: Kentucky | AQ21: 76757356 | AR21: 69698851 | AS21: 65566898 | AT21: 71312802 | AU21: 63126121 | AW21: Kentucky | AX21: 230272068 | AY21: 209096553 | AZ21: 131133796 | BA21: 570502416 | BB21: 126252242
A22: LA | B22: Louisiana | C22: =SUMIF('Appendix 3 - State-level Data'!$A$3:$A$56,A22,'Appendix 3 - State-level Data'!$AG$3:$AG$56) -> 36937785 | D22: =SUMIF('Appendix 3 - State-level Data'!$A$3:$A$56,A22,'Appendix 3 - State-level Data'!$Y$3:$Y$56) -> 19352269.38 | E22: 0.6562044647 | F22: 0.3437955353 | G22: =(($E22*'Appendix 4 - Category-spec calc'!$Y$88)+('Appendix 4 - Category-spec calc'!$Z$88*'Appendix 5- State Goals'!$F22)) -> 1450.941461 | H22: =($E22*'Appendix 4 - Category-spec calc'!C$5+('Appendix 4 - Category-spec calc'!C$6*'Appendix 5- State Goals'!$F22)) -> 1404.286405 | I22: =($E22*'Appendix 4 - Category-spec calc'!D$5+('Appendix 4 - Category-spec calc'!D$6*'Appendix 5- State Goals'!$F22)) -> 1338.376348 | J22: =($E22*'Appendix 4 - Category-spec calc'!E$5+('Appendix 4 - Category-spec calc'!E$6*'Appendix 5- State Goals'!$F22)) -> 1302.160115 | K22: =($E22*'Appendix 4 - Category-spec calc'!F$5+('Appendix 4 - Category-spec calc'!F$6*'Appendix 5- State Goals'!$F22)) -> 1265.302162 | L22: =($E22*'Appendix 4 - Category-spec calc'!G$5+('Appendix 4 - Category-spec calc'!G$6*'Appendix 5- State Goals'!$F22)) -> 1227.637849 | M22: =($E22*'Appendix 4 - Category-spec calc'!H$5+('Appendix 4 - Category-spec calc'!H$6*'Appendix 5- State Goals'!$F22)) -> 1192.634371 | N22: =($E22*'Appendix 4 - Category-spec calc'!I$5+('Appendix 4 - Category-spec calc'!I$6*'Appendix 5- State Goals'!$F22)) -> 1156.982579 | O22: =($E22*'Appendix 4 - Category-spec calc'!L$5+('Appendix 4 - Category-spec calc'!L$6*'Appendix 5- State Goals'!$F22)) -> 1121.413184 | P22: =E22*'Appendix 4 - Category-spec calc'!$K$5+'Appendix 4 - Category-spec calc'!$K$6*'Appendix 5- State Goals'!F22 -> 1292.655534 | Q22: 1121.413184 | S22: 0.02072943004 | T22: Louisiana | U22: 1968793.424 | V22: 1880433.885 | W22: 1927132.803 | X22: 2127553.736 | Y22: 2301669.666 | Z22: 2352133.875 | AA22: 2734974.15 | AB22: 3112886.857 | AC22: 3446381.619 | AE22: Louisiana | AF22: 43693390.87 | AG22: 42164346.78 | AH22: 40247867.68 | AI22: 39419747.45 | AJ22: 38524271.34 | AK22: 37439469.22 | AL22: 36828550.98 | AM22: 36164861.99 | AN22: 35427022.34 | AP22: Louisiana | AQ22: 42035202 | AR22: 38461163 | AS22: 36496707 | AT22: 39310314 | AU22: 35427023 | AW22: Louisiana | AX22: 126105606 | AY22: 115383489 | AZ22: 72993414 | BA22: 314482512 | BB22: 70854046
A23: MA | B23: Massachusetts | C23: =SUMIF('Appendix 3 - State-level Data'!$A$3:$A$56,A23,'Appendix 3 - State-level Data'!$AG$3:$AG$56) -> 2611409.24 | D23: =SUMIF('Appendix 3 - State-level Data'!$A$3:$A$56,A23,'Appendix 3 - State-level Data'!$Y$3:$Y$56) -> 23554516.93 | E23: 0.09980190355 | F23: 0.9001980964 | G23: =(($E23*'Appendix 4 - Category-spec calc'!$Y$88)+('Appendix 4 - Category-spec calc'!$Z$88*'Appendix 5- State Goals'!$F23)) -> 981.7159619 | H23: =($E23*'Appendix 4 - Category-spec calc'!C$5+('Appendix 4 - Category-spec calc'!C$6*'Appendix 5- State Goals'!$F23)) -> 957.2413589 | I23: =($E23*'Appendix 4 - Category-spec calc'!D$5+('Appendix 4 - Category-spec calc'!D$6*'Appendix 5- State Goals'!$F23)) -> 928.5310953 | J23: =($E23*'Appendix 4 - Category-spec calc'!E$5+('Appendix 4 - Category-spec calc'!E$6*'Appendix 5- State Goals'!$F23)) -> 907.0270408 | K23: =($E23*'Appendix 4 - Category-spec calc'!F$5+('Appendix 4 - Category-spec calc'!F$6*'Appendix 5- State Goals'!$F23)) -> 885.4587275 | L23: =($E23*'Appendix 4 - Category-spec calc'!G$5+('Appendix 4 - Category-spec calc'!G$6*'Appendix 5- State Goals'!$F23)) -> 863.4490815 | M23: =($E23*'Appendix 4 - Category-spec calc'!H$5+('Appendix 4 - Category-spec calc'!H$6*'Appendix 5- State Goals'!$F23)) -> 850.1330934 | N23: =($E23*'Appendix 4 - Category-spec calc'!I$5+('Appendix 4 - Category-spec calc'!I$6*'Appendix 5- State Goals'!$F23)) -> 836.9050797 | O23: =($E23*'Appendix 4 - Category-spec calc'!L$5+('Appendix 4 - Category-spec calc'!L$6*'Appendix 5- State Goals'!$F23)) -> 824.2942165 | P23: =E23*'Appendix 4 - Category-spec calc'!$K$5+'Appendix 4 - Category-spec calc'!$K$6*'Appendix 5- State Goals'!F23 -> 902.0609363 | Q23: 824.2942165 | S23: 0.009635889356 | T23: Massachusetts | U23: 915175.9389 | V23: 874102.8009 | W23: 895810.3738 | X23: 988974.244 | Y23: 1069910.47 | Z23: 1093368.305 | AA23: 1271328.167 | AB23: 1446997.495 | AC23: 1602019.54 | AE23: Massachusetts | AF23: 13742196.52 | AG23: 13360280.71 | AH23: 12979725.83 | AI23: 12763627.67 | AJ23: 12531785.41 | AK23: 12240540.32 | AL23: 12203058.03 | AM23: 12160197.82 | AN23: 12104746.25 | AP23: Massachusetts | AQ23: 13360735 | AR23: 12511985 | AS23: 12181628 | AT23: 12747677 | AU23: 12104747 | AW23: Massachusetts | AX23: 40082205 | AY23: 37535955 | AZ23: 24363256 | BA23: 101981416 | BB23: 24209494
A24: MD | B24: Maryland | C24: =SUMIF('Appendix 3 - State-level Data'!$A$3:$A$56,A24,'Appendix 3 - State-level Data'!$AG$3:$AG$56) -> 19190189 | D24: =SUMIF('Appendix 3 - State-level Data'!$A$3:$A$56,A24,'Appendix 3 - State-level Data'!$Y$3:$Y$56) -> 676555.6 | E24: 0.9659453215 | F24: 0.03405467849 | G24: =(($E24*'Appendix 4 - Category-spec calc'!$Y$88)+('Appendix 4 - Category-spec calc'!$Z$88*'Appendix 5- State Goals'!$F24)) -> 1712.152171 | H24: =($E24*'Appendix 4 - Category-spec calc'!C$5+('Appendix 4 - Category-spec calc'!C$6*'Appendix 5- State Goals'!$F24)) -> 1653.149593 | I24: =($E24*'Appendix 4 - Category-spec calc'!D$5+('Appendix 4 - Category-spec calc'!D$6*'Appendix 5- State Goals'!$F24)) -> 1566.530977 | J24: =($E24*'Appendix 4 - Category-spec calc'!E$5+('Appendix 4 - Category-spec calc'!E$6*'Appendix 5- State Goals'!$F24)) -> 1522.124697 | K24: =($E24*'Appendix 4 - Category-spec calc'!F$5+('Appendix 4 - Category-spec calc'!F$6*'Appendix 5- State Goals'!$F24)) -> 1476.755233 | L24: =($E24*'Appendix 4 - Category-spec calc'!G$5+('Appendix 4 - Category-spec calc'!G$6*'Appendix 5- State Goals'!$F24)) -> 1430.376206 | M24: =($E24*'Appendix 4 - Category-spec calc'!H$5+('Appendix 4 - Category-spec calc'!H$6*'Appendix 5- State Goals'!$F24)) -> 1383.299632 | N24: =($E24*'Appendix 4 - Category-spec calc'!I$5+('Appendix 4 - Category-spec calc'!I$6*'Appendix 5- State Goals'!$F24)) -> 1335.164862 | O24: =($E24*'Appendix 4 - Category-spec calc'!L$5+('Appendix 4 - Category-spec calc'!L$6*'Appendix 5- State Goals'!$F24)) -> 1286.814802 | P24: =E24*'Appendix 4 - Category-spec calc'!$K$5+'Appendix 4 - Category-spec calc'!$K$6*'Appendix 5- State Goals'!F24 -> 1510.093616 | Q24: 1286.814802 | S24: 0.00731614664 | T24: Maryland | U24: 694856.6056 | V24: 663671.4094 | W24: 680153.1041 | X24: 750888.7166 | Y24: 812340.3667 | Z24: 830150.9651 | AA24: 965268.7943 | AB24: 1098647.511 | AC24: 1216349.57 | AE24: Maryland | AF24: 18197145.19 | AG24: 17518498.5 | AH24: 16626416.32 | AI24: 16262777.56 | AJ24: 15868787.42 | AK24: 15395887.57 | AL24: 15076086.21 | AM24: 14729565.21 | AN24: 14347627.14 | AP24: Maryland | AQ24: 17447354 | AR24: 15842485 | AS24: 14902826 | AT24: 16209396 | AU24: 14347628 | AW24: Maryland | AX24: 52342062 | AY24: 47527455 | AZ24: 29805652 | BA24: 129675168 | BB24: 28695256
A25: ME | B25: Maine | C25: =SUMIF('Appendix 3 - State-level Data'!$A$3:$A$56,A25,'Appendix 3 - State-level Data'!$AG$3:$AG$56) -> 68163.318 | D25: =SUMIF('Appendix 3 - State-level Data'!$A$3:$A$56,A25,'Appendix 3 - State-level Data'!$Y$3:$Y$56) -> 4677598.212 | E25: 0.01436298844 | F25: 0.9856370116 | G25: =(($E25*'Appendix 4 - Category-spec calc'!$Y$88)+('Appendix 4 - Category-spec calc'!$Z$88*'Appendix 5- State Goals'!$F25)) -> 909.663602 | H25: =($E25*'Appendix 4 - Category-spec calc'!C$5+('Appendix 4 - Category-spec calc'!C$6*'Appendix 5- State Goals'!$F25)) -> 888.5949392 | I25: =($E25*'Appendix 4 - Category-spec calc'!D$5+('Appendix 4 - Category-spec calc'!D$6*'Appendix 5- State Goals'!$F25)) -> 865.5969246 | J25: =($E25*'Appendix 4 - Category-spec calc'!E$5+('Appendix 4 - Category-spec calc'!E$6*'Appendix 5- State Goals'!$F25)) -> 846.3520125 | K25: =($E25*'Appendix 4 - Category-spec calc'!F$5+('Appendix 4 - Category-spec calc'!F$6*'Appendix 5- State Goals'!$F25)) -> 827.1315142 | L25: =($E25*'Appendix 4 - Category-spec calc'!G$5+('Appendix 4 - Category-spec calc'!G$6*'Appendix 5- State Goals'!$F25)) -> 807.5257349 | M25: =($E25*'Appendix 4 - Category-spec calc'!H$5+('Appendix 4 - Category-spec calc'!H$6*'Appendix 5- State Goals'!$F25)) -> 797.5399897 | N25: =($E25*'Appendix 4 - Category-spec calc'!I$5+('Appendix 4 - Category-spec calc'!I$6*'Appendix 5- State Goals'!$F25)) -> 787.7552803 | O25: =($E25*'Appendix 4 - Category-spec calc'!L$5+('Appendix 4 - Category-spec calc'!L$6*'Appendix 5- State Goals'!$F25)) -> 778.6698358 | P25: =E25*'Appendix 4 - Category-spec calc'!$K$5+'Appendix 4 - Category-spec calc'!$K$6*'Appendix 5- State Goals'!F25 -> 842.0828179 | Q25: 778.6698358 | S25: 0.001747678745 | T25: Maine | U25: 165987.1214 | V25: 158537.6118 | W25: 162474.7537 | X25: 179372.054 | Y25: 194051.6043 | Z25: 198306.1943 | AA25: 230583.0977 | AB25: 262444.5625 | AC25: 290561.1921 | AE25: Maine | AF25: 2309515.707 | AG25: 2249405.559 | AH25: 2194595.94 | AI25: 2160104.31 | AJ25: 2123190.657 | AK25: 2076299.639 | AL25: 2076366.542 | AM25: 2075991.442 | AN25: 2073941.911 | AP25: Maine | AQ25: 2251173 | AR25: 2119865 | AS25: 2076179 | AT25: 2158184 | AU25: 2073942 | AW25: Maine | AX25: 6753519 | AY25: 6359595 | AZ25: 4152358 | BA25: 17265472 | BB25: 4147884
A26: MI | B26: Michigan | C26: =SUMIF('Appendix 3 - State-level Data'!$A$3:$A$56,A26,'Appendix 3 - State-level Data'!$AG$3:$AG$56) -> 53985652 | D26: =SUMIF('Appendix 3 - State-level Data'!$A$3:$A$56,A26,'Appendix 3 - State-level Data'!$Y$3:$Y$56) -> 18499950.62 | E26: 0.7447775841 | F26: 0.2552224159 | G26: =(($E26*'Appendix 4 - Category-spec calc'!$Y$88)+('Appendix 4 - Category-spec calc'!$Z$88*'Appendix 5- State Goals'!$F26)) -> 1525.636958 | H26: =($E26*'Appendix 4 - Category-spec calc'!C$5+('Appendix 4 - Category-spec calc'!C$6*'Appendix 5- State Goals'!$F26)) -> 1475.45102 | I26: =($E26*'Appendix 4 - Category-spec calc'!D$5+('Appendix 4 - Category-spec calc'!D$6*'Appendix 5- State Goals'!$F26)) -> 1403.619169 | J26: =($E26*'Appendix 4 - Category-spec calc'!E$5+('Appendix 4 - Category-spec calc'!E$6*'Appendix 5- State Goals'!$F26)) -> 1365.06092 | K26: =($E26*'Appendix 4 - Category-spec calc'!F$5+('Appendix 4 - Category-spec calc'!F$6*'Appendix 5- State Goals'!$F26)) -> 1325.769025 | L26: =($E26*'Appendix 4 - Category-spec calc'!G$5+('Appendix 4 - Category-spec calc'!G$6*'Appendix 5- State Goals'!$F26)) -> 1285.612664 | M26: =($E26*'Appendix 4 - Category-spec calc'!H$5+('Appendix 4 - Category-spec calc'!H$6*'Appendix 5- State Goals'!$F26)) -> 1247.156778 | N26: =($E26*'Appendix 4 - Category-spec calc'!I$5+('Appendix 4 - Category-spec calc'!I$6*'Appendix 5- State Goals'!$F26)) -> 1207.935368 | O26: =($E26*'Appendix 4 - Category-spec calc'!L$5+('Appendix 4 - Category-spec calc'!L$6*'Appendix 5- State Goals'!$F26)) -> 1168.71123 | P26: =E26*'Appendix 4 - Category-spec calc'!$K$5+'Appendix 4 - Category-spec calc'!$K$6*'Appendix 5- State Goals'!F26 -> 1354.833864 | Q26: 1168.71123 | S26: 0.02669361834 | T26: Michigan | U26: =U$3*$S26 -> 2535246.756 | V26: 2421464.765 | W26: 2481599.709 | X26: 2739684.947 | Y26: 2963896.813 | Z26: 3028880.382 | AA26: 3521869.922 | AB26: 4008514.154 | AC26: 4437960.689 | AE26: Michigan | AF26: 59161223.29 | AG26: 57047230.82 | AH26: 54354311.58 | AI26: 53213468.54 | AJ26: 51979025.95 | AK26: 50488171.31 | AL26: 49592779.24 | AM26: 48620987.56 | AN26: 47544063.39 | AP26: Michigan | AQ26: 56854256 | AR26: 51893556 | AS26: 49106884 | AT26: 53057150 | AU26: 47544064 | AW26: Michigan | AX26: 170562768 | AY26: 155680668 | AZ26: 98213768 | BA26: 424457200 | BB26: 95088128
A27: MN | B27: Minnesota | C27: =SUMIF('Appendix 3 - State-level Data'!$A$3:$A$56,A27,'Appendix 3 - State-level Data'!$AG$3:$AG$56) -> 27587742 | D27: =SUMIF('Appendix 3 - State-level Data'!$A$3:$A$56,A27,'Appendix 3 - State-level Data'!$Y$3:$Y$56) -> 5715510.03 | E27: 0.8283798223 | F27: 0.1716201777 | G27: =(($E27*'Appendix 4 - Category-spec calc'!$Y$88)+('Appendix 4 - Category-spec calc'!$Z$88*'Appendix 5- State Goals'!$F27)) -> 1596.140411 | H27: =($E27*'Appendix 4 - Category-spec calc'!C$5+('Appendix 4 - Category-spec calc'!C$6*'Appendix 5- State Goals'!$F27)) -> 1542.62175 | I27: =($E27*'Appendix 4 - Category-spec calc'!D$5+('Appendix 4 - Category-spec calc'!D$6*'Appendix 5- State Goals'!$F27)) -> 1465.200446 | J27: =($E27*'Appendix 4 - Category-spec calc'!E$5+('Appendix 4 - Category-spec calc'!E$6*'Appendix 5- State Goals'!$F27)) -> 1424.431619 | K27: =($E27*'Appendix 4 - Category-spec calc'!F$5+('Appendix 4 - Category-spec calc'!F$6*'Appendix 5- State Goals'!$F27)) -> 1382.842381 | L27: =($E27*'Appendix 4 - Category-spec calc'!G$5+('Appendix 4 - Category-spec calc'!G$6*'Appendix 5- State Goals'!$F27)) -> 1340.333828 | M27: =($E27*'Appendix 4 - Category-spec calc'!H$5+('Appendix 4 - Category-spec calc'!H$6*'Appendix 5- State Goals'!$F27)) -> 1298.61929 | N27: =($E27*'Appendix 4 - Category-spec calc'!I$5+('Appendix 4 - Category-spec calc'!I$6*'Appendix 5- State Goals'!$F27)) -> 1256.028596 | O27: =($E27*'Appendix 4 - Category-spec calc'!L$5+('Appendix 4 - Category-spec calc'!L$6*'Appendix 5- State Goals'!$F27)) -> 1213.354825 | P27: =E27*'Appendix 4 - Category-spec calc'!$K$5+'Appendix 4 - Category-spec calc'!$K$6*'Appendix 5- State Goals'!F27 -> 1413.522635 | Q27: 1213.354825 | S27: 0.0122642879 | T27: Minnesota | U27: 1164810.095 | V27: 1112533.365 | W27: 1140162.15 | X27: 1258738.494 | Y27: 1361751.838 | Z27: 1391608.307 | AA27: 1618110.595 | AB27: 1841697.555 | AC27: 2039005.237 | AE27: Minnesota | AF27: 28437533.66 | AG27: 27403378.64 | AH27: 26068535.96 | AI27: 25512089.52 | AJ27: 24909662.32 | AK27: 24183957.34 | AL27: 23725432.38 | AM27: 23228143.24 | AN27: 22678367.61 | AP27: Minnesota | AQ27: 27303150 | AR27: 24868570 | AS27: 23476788 | AT27: 25433592 | AU27: 22678368 | AW27: Minnesota | AX27: 81909450 | AY27: 74605710 | AZ27: 46953576 | BA27: 203468736 | BB27: 45356736
A28: MO | B28: Missouri | C28: =SUMIF('Appendix 3 - State-level Data'!$A$3:$A$56,A28,'Appendix 3 - State-level Data'!$AG$3:$AG$56) -> 72859571 | D28: =SUMIF('Appendix 3 - State-level Data'!$A$3:$A$56,A28,'Appendix 3 - State-level Data'!$Y$3:$Y$56) -> 4854569 | E28: 0.9375330024 | F28: 0.06246699764 | G28: =(($E28*'Appendix 4 - Category-spec calc'!$Y$88)+('Appendix 4 - Category-spec calc'!$Z$88*'Appendix 5- State Goals'!$F28)) -> 1688.191489 | H28: =($E28*'Appendix 4 - Category-spec calc'!C$5+('Appendix 4 - Category-spec calc'!C$6*'Appendix 5- State Goals'!$F28)) -> 1630.321541 | I28: =($E28*'Appendix 4 - Category-spec calc'!D$5+('Appendix 4 - Category-spec calc'!D$6*'Appendix 5- State Goals'!$F28)) -> 1545.602507 | J28: =($E28*'Appendix 4 - Category-spec calc'!E$5+('Appendix 4 - Category-spec calc'!E$6*'Appendix 5- State Goals'!$F28)) -> 1501.947495 | K28: =($E28*'Appendix 4 - Category-spec calc'!F$5+('Appendix 4 - Category-spec calc'!F$6*'Appendix 5- State Goals'!$F28)) -> 1457.358786 | L28: =($E28*'Appendix 4 - Category-spec calc'!G$5+('Appendix 4 - Category-spec calc'!G$6*'Appendix 5- State Goals'!$F28)) -> 1411.779154 | M28: =($E28*'Appendix 4 - Category-spec calc'!H$5+('Appendix 4 - Category-spec calc'!H$6*'Appendix 5- State Goals'!$F28)) -> 1365.810036 | N28: =($E28*'Appendix 4 - Category-spec calc'!I$5+('Appendix 4 - Category-spec calc'!I$6*'Appendix 5- State Goals'!$F28)) -> 1318.820322 | O28: =($E28*'Appendix 4 - Category-spec calc'!L$5+('Appendix 4 - Category-spec calc'!L$6*'Appendix 5- State Goals'!$F28)) -> 1271.642623 | P28: =E28*'Appendix 4 - Category-spec calc'!$K$5+'Appendix 4 - Category-spec calc'!$K$6*'Appendix 5- State Goals'!F28 -> 1490.148168 | Q28: 1271.642623 | S28: 0.02861908459 | T28: Missouri | U28: 2718119.381 | V28: 2596130.059 | W28: 2660602.661 | X28: 2937304.124 | Y28: 3177688.859 | Z28: 3247359.828 | AA28: 3775909.729 | AB28: 4297656.623 | AC28: 4758080.03 | AE28: Missouri | AF28: 70186880.86 | AG28: 67582045.02 | AH28: 64169818.97 | AI28: 62772955.51 | AJ28: 61259725.15 | AK28: 59442156.33 | AL28: 58228551.6 | AM28: 56913330.44 | AN28: 55462883.8 | AP28: Missouri | AQ28: 67312915 | AR28: 61158279 | AS28: 57570942 | AT28: 62569433 | AU28: 55462884 | AW28: Missouri | AX28: 201938745 | AY28: 183474837 | AZ28: 115141884 | BA28: 500555464 | BB28: 110925768
A29: MS | B29: Mississippi | C29: =SUMIF('Appendix 3 - State-level Data'!$A$3:$A$56,A29,'Appendix 3 - State-level Data'!$AG$3:$AG$56) -> 15557042.4 | D29: =SUMIF('Appendix 3 - State-level Data'!$A$3:$A$56,A29,'Appendix 3 - State-level Data'!$Y$3:$Y$56) -> 32147488.24 | E29: 0.3261124717 | F29: 0.6738875283 | G29: =(($E29*'Appendix 4 - Category-spec calc'!$Y$88)+('Appendix 4 - Category-spec calc'!$Z$88*'Appendix 5- State Goals'!$F29)) -> 1172.568227 | H29: =($E29*'Appendix 4 - Category-spec calc'!C$5+('Appendix 4 - Category-spec calc'!C$6*'Appendix 5- State Goals'!$F29)) -> 1139.071971 | I29: =($E29*'Appendix 4 - Category-spec calc'!D$5+('Appendix 4 - Category-spec calc'!D$6*'Appendix 5- State Goals'!$F29)) -> 1095.231105 | J29: =($E29*'Appendix 4 - Category-spec calc'!E$5+('Appendix 4 - Category-spec calc'!E$6*'Appendix 5- State Goals'!$F29)) -> 1067.743034 | K29: =($E29*'Appendix 4 - Category-spec calc'!F$5+('Appendix 4 - Category-spec calc'!F$6*'Appendix 5- State Goals'!$F29)) -> 1039.95583 | L29: =($E29*'Appendix 4 - Category-spec calc'!G$5+('Appendix 4 - Category-spec calc'!G$6*'Appendix 5- State Goals'!$F29)) -> 1011.578822 | M29: =($E29*'Appendix 4 - Category-spec calc'!H$5+('Appendix 4 - Category-spec calc'!H$6*'Appendix 5- State Goals'!$F29)) -> 989.441688 | N29: =($E29*'Appendix 4 - Category-spec calc'!I$5+('Appendix 4 - Category-spec calc'!I$6*'Appendix 5- State Goals'!$F29)) -> 967.093051 | O29: =($E29*'Appendix 4 - Category-spec calc'!L$5+('Appendix 4 - Category-spec calc'!L$6*'Appendix 5- State Goals'!$F29)) -> 945.1440599 | P29: =E29*'Appendix 4 - Category-spec calc'!$K$5+'Appendix 4 - Category-spec calc'!$K$6*'Appendix 5- State Goals'!F29 -> 1060.930955 | Q29: 945.1440599 | S29: 0.01756771673 | T29: Mississippi | U29: 1668507.292 | V29: 1593624.608 | W29: 1633200.871 | X29: 1803053.017 | Y29: 1950612.277 | Z29: 1993379.537 | AA29: 2317827.893 | AB29: 2638100.248 | AC29: 2920729.414 | AE29: Mississippi | AF29: 29924847.1 | AG29: 28984700 | AH29: 27912475.29 | AI29: 27393287.45 | AJ29: 26833852.98 | AK29: 26144906.98 | AL29: 25893781.2 | AM29: 25618648.46 | AN29: 25304336.94 | AP29: Mississippi | AQ29: 28940675 | AR29: 26790683 | AS29: 25756215 | AT29: 27338313 | AU29: 25304337 | AW29: Mississippi | AX29: 86822025 | AY29: 80372049 | AZ29: 51512430 | BA29: 218706504 | BB29: 50608674
A30: MT | B30: Montana | C30: =SUMIF('Appendix 3 - State-level Data'!$A$3:$A$56,A30,'Appendix 3 - State-level Data'!$AG$3:$AG$56) -> 15432987.03 | D30: =SUMIF('Appendix 3 - State-level Data'!$A$3:$A$56,A30,'Appendix 3 - State-level Data'!$Y$3:$Y$56) -> 0 | E30: 1 | F30: 0 | G30: =(($E30*'Appendix 4 - Category-spec calc'!$Y$88)+('Appendix 4 - Category-spec calc'!$Z$88*'Appendix 5- State Goals'!$F30)) -> 1740.871168 | H30: =($E30*'Appendix 4 - Category-spec calc'!C$5+('Appendix 4 - Category-spec calc'!C$6*'Appendix 5- State Goals'!$F30)) -> 1680.511033 | I30: =($E30*'Appendix 4 - Category-spec calc'!D$5+('Appendix 4 - Category-spec calc'!D$6*'Appendix 5- State Goals'!$F30)) -> 1591.6156 | J30: =($E30*'Appendix 4 - Category-spec calc'!E$5+('Appendix 4 - Category-spec calc'!E$6*'Appendix 5- State Goals'!$F30)) -> 1546.308859 | K30: =($E30*'Appendix 4 - Category-spec calc'!F$5+('Appendix 4 - Category-spec calc'!F$6*'Appendix 5- State Goals'!$F30)) -> 1500.003591 | L30: =($E30*'Appendix 4 - Category-spec calc'!G$5+('Appendix 4 - Category-spec calc'!G$6*'Appendix 5- State Goals'!$F30)) -> 1452.666419 | M30: =($E30*'Appendix 4 - Category-spec calc'!H$5+('Appendix 4 - Category-spec calc'!H$6*'Appendix 5- State Goals'!$F30)) -> 1404.262459 | N30: =($E30*'Appendix 4 - Category-spec calc'!I$5+('Appendix 4 - Category-spec calc'!I$6*'Appendix 5- State Goals'!$F30)) -> 1354.75524 | O30: =($E30*'Appendix 4 - Category-spec calc'!L$5+('Appendix 4 - Category-spec calc'!L$6*'Appendix 5- State Goals'!$F30)) -> 1305 | P30: =E30*'Appendix 4 - Category-spec calc'!$K$5+'Appendix 4 - Category-spec calc'!$K$6*'Appendix 5- State Goals'!F30 -> 1534 | Q30: 1305 | S30: 0.005683366775 | T30: Montana | U30: 539782.093 | V30: 515556.648 | W30: 528360.0431 | X30: 583309.2465 | Y30: 631046.4343 | Z30: 644882.1553 | AA30: 749845.0844 | AB30: 853457.0274 | AC30: 944890.9476 | AE30: Montana | AF30: 14373112.16 | AG30: 13834051.13 | AH30: 13122637.54 | AI30: 12834058.54 | AJ30: 12521339.9 | AK30: 12146289.65 | AL30: 11888961.46 | AM30: 11610185.4 | AN30: 11303106.72 | AP30: Montana | AQ30: 13776601 | AR30: 12500563 | AS30: 11749574 | AT30: 12791330 | AU30: 11303107 | AW30: Montana | AX30: 41329803 | AY30: 37501689 | AZ30: 23499148 | BA30: 102330640 | BB30: 22606214
A31: Navajo | B31: Lands of the Navajo Nation | C31: =SUMIF('Appendix 3 - State-level Data'!$A$3:$A$56,A31,'Appendix 3 - State-level Data'!$AG$3:$AG$56) -> 29629453 | D31: =SUMIF('Appendix 3 - State-level Data'!$A$3:$A$56,A31,'Appendix 3 - State-level Data'!$Y$3:$Y$56) -> 0 | E31: 1 | F31: 0 | G31: =(($E31*'Appendix 4 - Category-spec calc'!$Y$88)+('Appendix 4 - Category-spec calc'!$Z$88*'Appendix 5- State Goals'!$F31)) -> 1740.871168 | H31: =($E31*'Appendix 4 - Category-spec calc'!C$5+('Appendix 4 - Category-spec calc'!C$6*'Appendix 5- State Goals'!$F31)) -> 1680.511033 | I31: =($E31*'Appendix 4 - Category-spec calc'!D$5+('Appendix 4 - Category-spec calc'!D$6*'Appendix 5- State Goals'!$F31)) -> 1591.6156 | J31: =($E31*'Appendix 4 - Category-spec calc'!E$5+('Appendix 4 - Category-spec calc'!E$6*'Appendix 5- State Goals'!$F31)) -> 1546.308859 | K31: =($E31*'Appendix 4 - Category-spec calc'!F$5+('Appendix 4 - Category-spec calc'!F$6*'Appendix 5- State Goals'!$F31)) -> 1500.003591 | L31: =($E31*'Appendix 4 - Category-spec calc'!G$5+('Appendix 4 - Category-spec calc'!G$6*'Appendix 5- State Goals'!$F31)) -> 1452.666419 | M31: =($E31*'Appendix 4 - Category-spec calc'!H$5+('Appendix 4 - Category-spec calc'!H$6*'Appendix 5- State Goals'!$F31)) -> 1404.262459 | N31: =($E31*'Appendix 4 - Category-spec calc'!I$5+('Appendix 4 - Category-spec calc'!I$6*'Appendix 5- State Goals'!$F31)) -> 1354.75524 | O31: =($E31*'Appendix 4 - Category-spec calc'!L$5+('Appendix 4 - Category-spec calc'!L$6*'Appendix 5- State Goals'!$F31)) -> 1305 | P31: =E31*'Appendix 4 - Category-spec calc'!$K$5+'Appendix 4 - Category-spec calc'!$K$6*'Appendix 5- State Goals'!F31 -> 1534 | Q31: 1305 | S31: 0.01091137111 | T31: Lands of the Navajo Nation | U31: 1036315.791 | V31: 989805.8906 | W31: 1014386.848 | X31: 1119882.617 | Y31: 1211532.196 | Z31: 1238095.093 | AA31: 1439611.116 | AB31: 1638533.411 | AC31: 1814075.387 | AE31: Lands of the Navajo Nation | AF31: 27594622.5 | AG31: 26559691.06 | AH31: 25193863.74 | AI31: 24639827.24 | AJ31: 24039445.6 | AK31: 23319394.86 | AL31: 22825356.11 | AM31: 22290140.07 | AN31: 21700586.46 | AP31: Lands of the Navajo Nation | AQ31: 26449393 | AR31: 23999556 | AS31: 22557749 | AT31: 24557793 | AU31: 21700587 | AW31: Lands of the Navajo Nation | AX31: 79348179 | AY31: 71998668 | AZ31: 45115498 | BA31: 196462344 | BB31: 43401174
A32: NC | B32: North Carolina | C32: =SUMIF('Appendix 3 - State-level Data'!$A$3:$A$56,A32,'Appendix 3 - State-level Data'!$AG$3:$AG$56) -> 54920452 | D32: =SUMIF('Appendix 3 - State-level Data'!$A$3:$A$56,A32,'Appendix 3 - State-level Data'!$Y$3:$Y$56) -> 25519801.99 | E32: 0.6827483663 | F32: 0.3172516337 | G32: =(($E32*'Appendix 4 - Category-spec calc'!$Y$88)+('Appendix 4 - Category-spec calc'!$Z$88*'Appendix 5- State Goals'!$F32)) -> 1473.326468 | H32: =($E32*'Appendix 4 - Category-spec calc'!C$5+('Appendix 4 - Category-spec calc'!C$6*'Appendix 5- State Goals'!$F32)) -> 1425.613265 | I32: =($E32*'Appendix 4 - Category-spec calc'!D$5+('Appendix 4 - Category-spec calc'!D$6*'Appendix 5- State Goals'!$F32)) -> 1357.928545 | J32: =($E32*'Appendix 4 - Category-spec calc'!E$5+('Appendix 4 - Category-spec calc'!E$6*'Appendix 5- State Goals'!$F32)) -> 1321.010448 | K32: =($E32*'Appendix 4 - Category-spec calc'!F$5+('Appendix 4 - Category-spec calc'!F$6*'Appendix 5- State Goals'!$F32)) -> 1283.423082 | L32: =($E32*'Appendix 4 - Category-spec calc'!G$5+('Appendix 4 - Category-spec calc'!G$6*'Appendix 5- State Goals'!$F32)) -> 1245.011944 | M32: =($E32*'Appendix 4 - Category-spec calc'!H$5+('Appendix 4 - Category-spec calc'!H$6*'Appendix 5- State Goals'!$F32)) -> 1208.973836 | N32: =($E32*'Appendix 4 - Category-spec calc'!I$5+('Appendix 4 - Category-spec calc'!I$6*'Appendix 5- State Goals'!$F32)) -> 1172.252288 | O32: =($E32*'Appendix 4 - Category-spec calc'!L$5+('Appendix 4 - Category-spec calc'!L$6*'Appendix 5- State Goals'!$F32)) -> 1135.587628 | P32: =E32*'Appendix 4 - Category-spec calc'!$K$5+'Appendix 4 - Category-spec calc'!$K$6*'Appendix 5- State Goals'!F32 -> 1311.289353 | Q32: 1135.587628 | S32: 0.02962300597 | T32: North Carolina | U32: 2813467.58 | V32: 2687199.026 | W32: 2753933.246 | X32: 3040341.047 | Y32: 3289158.175 | Z32: 3361273.114 | AA32: 3908363.879 | AB32: 4448412.995 | AC32: 4924987.475 | AE32: North Carolina | AF32: 63402533.9 | AG32: 61169253.14 | AH32: 58355703.08 | AI32: 57147530.25 | AJ32: 55840820.89 | AK32: 54259363.68 | AL32: 53350190.9 | AM32: 52362798.22 | AN32: 51266233.44 | AP32: North Carolina | AQ32: 60975831 | AR32: 55749239 | AS32: 52856495 | AT32: 56986025 | AU32: 51266234 | AW32: North Carolina | AX32: 182927493 | AY32: 167247717 | AZ32: 105712990 | BA32: 455888200 | BB32: 102532468
A33: ND | B33: North Dakota | C33: =SUMIF('Appendix 3 - State-level Data'!$A$3:$A$56,A33,'Appendix 3 - State-level Data'!$AG$3:$AG$56) -> 28513455.8 | D33: =SUMIF('Appendix 3 - State-level Data'!$A$3:$A$56,A33,'Appendix 3 - State-level Data'!$Y$3:$Y$56) -> 0 | E33: 1 | F33: 0 | G33: =(($E33*'Appendix 4 - Category-spec calc'!$Y$88)+('Appendix 4 - Category-spec calc'!$Z$88*'Appendix 5- State Goals'!$F33)) -> 1740.871168 | H33: =($E33*'Appendix 4 - Category-spec calc'!C$5+('Appendix 4 - Category-spec calc'!C$6*'Appendix 5- State Goals'!$F33)) -> 1680.511033 | I33: =($E33*'Appendix 4 - Category-spec calc'!D$5+('Appendix 4 - Category-spec calc'!D$6*'Appendix 5- State Goals'!$F33)) -> 1591.6156 | J33: =($E33*'Appendix 4 - Category-spec calc'!E$5+('Appendix 4 - Category-spec calc'!E$6*'Appendix 5- State Goals'!$F33)) -> 1546.308859 | K33: =($E33*'Appendix 4 - Category-spec calc'!F$5+('Appendix 4 - Category-spec calc'!F$6*'Appendix 5- State Goals'!$F33)) -> 1500.003591 | L33: =($E33*'Appendix 4 - Category-spec calc'!G$5+('Appendix 4 - Category-spec calc'!G$6*'Appendix 5- State Goals'!$F33)) -> 1452.666419 | M33: =($E33*'Appendix 4 - Category-spec calc'!H$5+('Appendix 4 - Category-spec calc'!H$6*'Appendix 5- State Goals'!$F33)) -> 1404.262459 | N33: =($E33*'Appendix 4 - Category-spec calc'!I$5+('Appendix 4 - Category-spec calc'!I$6*'Appendix 5- State Goals'!$F33)) -> 1354.75524 | O33: =($E33*'Appendix 4 - Category-spec calc'!L$5+('Appendix 4 - Category-spec calc'!L$6*'Appendix 5- State Goals'!$F33)) -> 1305 | P33: =E33*'Appendix 4 - Category-spec calc'!$K$5+'Appendix 4 - Category-spec calc'!$K$6*'Appendix 5- State Goals'!F33 -> 1534 | Q33: 1305 | S33: 0.01050039289 | T33: North Dakota | U33: 997282.8217 | V33: 952524.723 | W33: 976179.8353 | X33: 1077702.093 | Y33: 1165899.678 | Z33: 1191462.08 | AA33: 1385387.977 | AB33: 1576817.837 | AC33: 1745748.002 | AE33: North Dakota | AF33: 26555267.46 | AG33: 25559316.84 | AH33: 24244933.58 | AI33: 23711764.95 | AJ33: 23133996.76 | AK33: 22441066.82 | AL33: 21965636.11 | AM33: 21450579.05 | AN33: 20883231.05 | AP33: North Dakota | AQ33: 25453173 | AR33: 23095610 | AS33: 21708108 | AT33: 23632821 | AU33: 20883232 | AW33: North Dakota | AX33: 76359519 | AY33: 69286830 | AZ33: 43416216 | BA33: 189062568 | BB33: 41766464
